Workbook

Sheet Description
B2: NHHFA Residential Rental Cost Survey
B4: Description: This data set provides a median gross rental cost for rental housing in the state of New
B5: Hampshire. Gross rental cost is the rent charged by the landlord plus dollar allowances for each utility paid by
B6: the tenant. Units in public housing, units with tenant income restrictions and/or rent restrictions, and units in
B7: projects that received public funding or tax credits are not included in this survey.
B9: Source: This data set is the product of a statewide telephone survey of residential rental property owners and
B10: managers conducted annually by NHHFA. Contract rent and utility information is collected for each unit
B11: owned or managed by each survey respondent. The 2023 survey gathered information on 8,255 rental
B12: units across the state. So as to not give undue weight to larger projects, data from one in every four
B13: units in buildings with more than 10 units are included in the analysis.
B15: Analysis: A median gross rental cost is calculated for each unit size (0 bedroom, 1-bedroom, 2-bedrooms,
B16: 3-bedrooms and 4+ bedrooms) and for all units combined. The frequency of rents is also calculated
B17: for 2-bedroom units and all units. Calculations based on sample sizes smaller than 20 are viewed
B18: as providing inconsistent and highly volatile results and are not typically released. Individual record level data is
B19: not released.
B21: Geography: This data is available at the statewide, County, New England City and Town Area (NECTAs), LMA,
B22: Regional Planning Commission (RPCs), and HUD Metropolitan Fair Market Rent Areas (HMFAs). It is also
B23: available for larger municipalities within the state.
B25: Time Series: This survey has been conducted by NHHFA each year since 1985. Data is currently available
B26: for the period 2003 through 2023 on an annual basis. Historical data (1990-1999) is available by contacting
B27: New Hampshire Housing. The survey is conducted in April of each year and the analysis is released in either June or July.
B29: Limitations: The data at the statewide level is consistent over the entire time series, with an adequate sample
B30: for each unit size. At the county level, there is a sufficient sample of 2- bedroom units and a combined
B31: sample of all units for each county. However, the data does not support an analysis of any other unit sizes in
B32: the northern and western most counties of the state. Even in the most densely populated counties, there is
B33: rarely an adequate sample of 4+ bedroom units for analysis. This is also true for the major NECTAs-LMAs,
B34: and larger municipalities where the data is reasonably consistent in the analysis of 2-bedroom units and all
B35: units but frequently inadequate in the analysis of other unit sizes. For the smaller NECTAs - LMAs and small to
B36: moderate sized municipalities this data set is frequently insufficient and does not result in a consistent
B37: analysis.

Sheet AreaSelection
A2: Gross Rental Cost Data for Various Geographic and Civil Divisions of New Hampshire
C4: New Hampshire Statewide | K4: Regional Planning Commission Areas | S4: Select a Year for
K5: Select a NH Regional Planning Commission from | S5: Frequency Analysis
K6: this drop down list.
C15: Counties | K15: Towns and Cities
C16: Select a NH County from this drop down list. | K16: Select a NH Town or City from this drop down list.
K17: Then click a button to view the data.
C27: LMAs and NECTAs | K27: HUD Fair Market Rent Metro and Non-Metro Areas
C28: Select a NH New England City and Town Area or a NH | K28: Select a NH HMFA or Non-Metro area
C29: Labor Market Area from this drop down list. | K29: from this drop down list (includes combined metro)
C36: Towns in selected LMA and NECTA | K36: Towns in selected HMFA
B37: =LookUpSheet!H92 -> Amherst, Brookline, Chester, Derry, Greenfield, Greenville, Hollis, Hudson, Litchfield, Londonderry, Lyndeborough, Mason, Merrimack, Milford, Mont Vernon, Nashua, Temple, Wilton, Windham | J37: =LookUpSheet!H57 -> Barrington, Brentwood, Dover, Durham, East Kingston, Epping, Exeter, Farmington, Greenland, Hampton, Hampton Falls, Kensington, Lee, Madbury, Middleton, Milton, New Castle, New Durham, Newfields, Newington, Newmarket, North Hampton, Portsmouth, Rochester, Rollinsford, Rye, Somersworth, Strafford, Stratham
D148: Use these buttons to access hidden sheets

Sheet CountyChartAndTable (hidden)
B2: =(DataLink!A165) -> Grafton County
C26: All Units | E26: 0-Bedroom Units | G26: 1-Bedroom Units | I26: 2-Bedroom Units | K26: 3-Bedroom Units | M26: 4+-Bedroom Units
B27: Year | C27: Median Gross Rental Cost | D27: Sample Size | E27: Median Gross Rental Cost | F27: Sample Size | G27: Median Gross Rental Cost | H27: Sample Size | I27: Median Gross Rental Cost | J27: Sample Size | K27: Median Gross Rental Cost | L27: Sample Size | M27: Median Gross Rental Cost | N27: Sample Size
B28: =DataLink!B169 -> 2023 | C28: =IF(DataLink!F289>19,DataLink!E289,NA()) -> 1536 | D28: =DataLink!F289 -> 471 | E28: =IF(DataLink!F169>19,DataLink!E169,NA()) ->  | F28: =DataLink!F169 -> 10 | G28: =IF(DataLink!F190>19,DataLink!E190,NA()) ->  | H28: =DataLink!F190 -> 17 | I28: =IF(DataLink!F217>19,DataLink!E217,NA()) -> 2081 | J28: =DataLink!F217 -> 204 | K28: =IF(DataLink!F241>19,DataLink!E241,NA()) -> 1945 | L28: =DataLink!F241 -> 31 | M28: =IF(DataLink!F265>19,DataLink!E265,NA()) -> 2167 | N28: =DataLink!F265 -> 25
B29: =DataLink!B170 -> 2022 | C29: =IF(DataLink!F290>19,DataLink!E290,NA()) -> 1514 | D29: =DataLink!F290 -> 525 | E29: =IF(DataLink!F170>19,DataLink!E170,NA()) ->  | F29: =DataLink!F170 -> 15 | G29: =IF(DataLink!F191>19,DataLink!E191,NA()) -> 398 | H29: =DataLink!F191 -> 27 | I29: =IF(DataLink!F218>19,DataLink!E218,NA()) -> 1693 | J29: =DataLink!F218 -> 234 | K29: =IF(DataLink!F242>19,DataLink!E242,NA()) -> 1785 | L29: =DataLink!F242 -> 57 | M29: =IF(DataLink!F266>19,DataLink!E266,NA()) -> 1909 | N29: =DataLink!F266 -> 20
B30: =DataLink!B171 -> 2021 | C30: =IF(DataLink!F291>19,DataLink!E291,NA()) -> 1156 | D30: =DataLink!F291 -> 753 | E30: =IF(DataLink!F171>19,DataLink!E171,NA()) -> 728 | F30: =DataLink!F171 -> 51 | G30: =IF(DataLink!F192>19,DataLink!E192,NA()) -> 331 | H30: =DataLink!F192 -> 34 | I30: =IF(DataLink!F219>19,DataLink!E219,NA()) -> 1462 | J30: =DataLink!F219 -> 335 | K30: =IF(DataLink!F243>19,DataLink!E243,NA()) -> 1740 | L30: =DataLink!F243 -> 54 | M30: =IF(DataLink!F267>19,DataLink!E267,NA()) -> 1795 | N30: =DataLink!F267 -> 31
B31: =DataLink!B172 -> 2020 | C31: =IF(DataLink!F292>19,DataLink!E292,NA()) -> 1098 | D31: =DataLink!F292 -> 549 | E31: =IF(DataLink!F172>19,DataLink!E172,NA()) -> 693 | F31: =DataLink!F172 -> 47 | G31: =IF(DataLink!F196>19,DataLink!E196,NA()) -> 937 | H31: =DataLink!F196 -> 214 | I31: =IF(DataLink!F220>19,DataLink!E220,NA()) -> 1307 | J31: =DataLink!F220 -> 228 | K31: =IF(DataLink!F244>19,DataLink!E244,NA()) -> 1620 | L31: =DataLink!F244 -> 51 | M31: =IF(DataLink!F268>19,DataLink!E268,NA()) ->  | N31: =DataLink!F268 -> 9
B32: =DataLink!B173 -> 2019 | C32: =IF(DataLink!F293>19,DataLink!E293,NA()) -> 1081 | D32: =DataLink!F293 -> 647 | E32: =IF(DataLink!F173>19,DataLink!E173,NA()) -> 672 | F32: =DataLink!F173 -> 67 | G32: =IF(DataLink!F197>19,DataLink!E197,NA()) -> 934 | H32: =DataLink!F197 -> 242 | I32: =IF(DataLink!F221>19,DataLink!E221,NA()) -> 1217 | J32: =DataLink!F221 -> 279 | K32: =IF(DataLink!F245>19,DataLink!E245,NA()) -> 1478 | L32: =DataLink!F245 -> 47 | M32: =IF(DataLink!F269>19,DataLink!E269,NA()) ->  | N32: =DataLink!F269 -> 12
B33: =DataLink!B174 -> 2018 | C33: =IF(DataLink!F294>19,DataLink!E294,NA()) -> 975 | D33: =DataLink!F294 -> 474 | E33: =IF(DataLink!F174>19,DataLink!E174,NA()) -> 672 | F33: =DataLink!F174 -> 48 | G33: =IF(DataLink!F198>19,DataLink!E198,NA()) -> 858 | H33: =DataLink!F198 -> 178 | I33: =IF(DataLink!F222>19,DataLink!E222,NA()) -> 1146 | J33: =DataLink!F222 -> 197 | K33: =IF(DataLink!F246>19,DataLink!E246,NA()) -> 1561 | L33: =DataLink!F246 -> 40 | M33: =IF(DataLink!F270>19,DataLink!E270,NA()) ->  | N33: =DataLink!F270 -> 11
B34: =DataLink!B175 -> 2017 | C34: =IF(DataLink!F295>19,DataLink!E295,NA()) -> 1000 | D34: =DataLink!F295 -> 720 | E34: =IF(DataLink!F175>19,DataLink!E175,NA()) -> 672 | F34: =DataLink!F175 -> 50 | G34: =IF(DataLink!F199>19,DataLink!E199,NA()) -> 857 | H34: =DataLink!F199 -> 250 | I34: =IF(DataLink!F223>19,DataLink!E223,NA()) -> 1147 | J34: =DataLink!F223 -> 308 | K34: =IF(DataLink!F247>19,DataLink!E247,NA()) -> 1373 | L34: =DataLink!F247 -> 88 | M34: =IF(DataLink!F271>19,DataLink!E271,NA()) -> 1450 | N34: =DataLink!F271 -> 24
B35: =DataLink!B176 -> 2016 | C35: =IF(DataLink!F296>19,DataLink!E296,NA()) -> 1004 | D35: =DataLink!F296 -> 1047 | E35: =IF(DataLink!F176>19,DataLink!E176,NA()) -> 722 | F35: =DataLink!F176 -> 80 | G35: =IF(DataLink!F200>19,DataLink!E200,NA()) -> 834 | H35: =DataLink!F200 -> 370 | I35: =IF(DataLink!F224>19,DataLink!E224,NA()) -> 1134 | J35: =DataLink!F224 -> 432 | K35: =IF(DataLink!F248>19,DataLink!E248,NA()) -> 1381 | L35: =DataLink!F248 -> 132 | M35: =IF(DataLink!F272>19,DataLink!E272,NA()) -> 1602 | N35: =DataLink!F272 -> 33
B36: =DataLink!B177 -> 2015 | C36: =IF(DataLink!F297>19,DataLink!E297,NA()) -> 995 | D36: =DataLink!F297 -> 878 | E36: =IF(DataLink!F177>19,DataLink!E177,NA()) -> 698 | F36: =DataLink!F177 -> 39 | G36: =IF(DataLink!F201>19,DataLink!E201,NA()) -> 800 | H36: =DataLink!F201 -> 313 | I36: =IF(DataLink!F225>19,DataLink!E225,NA()) -> 1080 | J36: =DataLink!F225 -> 399 | K36: =IF(DataLink!F249>19,DataLink!E249,NA()) -> 1314 | L36: =DataLink!F249 -> 105 | M36: =IF(DataLink!F273>19,DataLink!E273,NA()) -> 1488 | N36: =DataLink!F273 -> 22
B37: =DataLink!B178 -> 2014 | C37: =IF(DataLink!F298>19,DataLink!E298,NA()) -> 930 | D37: =DataLink!F298 -> 1002 | E37: =IF(DataLink!F178>19,DataLink!E178,NA()) -> 700 | F37: =DataLink!F178 -> 54 | G37: =IF(DataLink!F202>19,DataLink!E202,NA()) -> 777 | H37: =DataLink!F202 -> 379 | I37: =IF(DataLink!F226>19,DataLink!E226,NA()) -> 1053 | J37: =DataLink!F226 -> 428 | K37: =IF(DataLink!F250>19,DataLink!E250,NA()) -> 1267 | L37: =DataLink!F250 -> 110 | M37: =IF(DataLink!F274>19,DataLink!E274,NA()) -> 1587 | N37: =DataLink!F274 -> 31
B38: =DataLink!B179 -> 2013 | C38: =IF(DataLink!F299>19,DataLink!E299,NA()) -> 902 | D38: =DataLink!F299 -> 982 | E38: =IF(DataLink!F179>19,DataLink!E179,NA()) -> 650 | F38: =DataLink!F179 -> 55 | G38: =IF(DataLink!F203>19,DataLink!E203,NA()) -> 737 | H38: =DataLink!F203 -> 371 | I38: =IF(DataLink!F227>19,DataLink!E227,NA()) -> 985 | J38: =DataLink!F227 -> 399 | K38: =IF(DataLink!F251>19,DataLink!E251,NA()) -> 1242 | L38: =DataLink!F251 -> 123 | M38: =IF(DataLink!F275>19,DataLink!E275,NA()) -> 1459 | N38: =DataLink!F275 -> 34
B39: =DataLink!B180 -> 2012 | C39: =IF(DataLink!F300>19,DataLink!E300,NA()) -> 925 | D39: =DataLink!F300 -> 892 | E39: =IF(DataLink!F180>19,DataLink!E180,NA()) -> 700 | F39: =DataLink!F180 -> 45 | G39: =IF(DataLink!F204>19,DataLink!E204,NA()) -> 758 | H39: =DataLink!F204 -> 327 | I39: =IF(DataLink!F228>19,DataLink!E228,NA()) -> 1022 | J39: =DataLink!F228 -> 403 | K39: =IF(DataLink!F252>19,DataLink!E252,NA()) -> 1247 | L39: =DataLink!F252 -> 94 | M39: =IF(DataLink!F276>19,DataLink!E276,NA()) -> 1378 | N39: =DataLink!F276 -> 23
B40: =DataLink!B181 -> 2011 | C40: =IF(DataLink!F301>19,DataLink!E301,NA()) -> 841 | D40: =DataLink!F301 -> 791 | E40: =IF(DataLink!F181>19,DataLink!E181,NA()) -> 571 | F40: =DataLink!F181 -> 61 | G40: =IF(DataLink!F205>19,DataLink!E205,NA()) -> 729 | H40: =DataLink!F205 -> 269 | I40: =IF(DataLink!F229>19,DataLink!E229,NA()) -> 909 | J40: =DataLink!F229 -> 374 | K40: =IF(DataLink!F253>19,DataLink!E253,NA()) -> 1228 | L40: =DataLink!F253 -> 71 | M40: =IF(DataLink!F277>19,DataLink!E277,NA()) ->  | N40: =DataLink!F277 -> 16
B41: =DataLink!B182 -> 2010 | C41: =IF(DataLink!F302>19,DataLink!E302,NA()) -> 821 | D41: =DataLink!F302 -> 835 | E41: =IF(DataLink!F182>19,DataLink!E182,NA()) -> 615 | F41: =DataLink!F182 -> 27 | G41: =IF(DataLink!F206>19,DataLink!E206,NA()) -> 660 | H41: =DataLink!F206 -> 309 | I41: =IF(DataLink!F230>19,DataLink!E230,NA()) -> 934 | J41: =DataLink!F230 -> 403 | K41: =IF(DataLink!F254>19,DataLink!E254,NA()) -> 1174 | L41: =DataLink!F254 -> 80 | M41: =IF(DataLink!F278>19,DataLink!E278,NA()) ->  | N41: =DataLink!F278 -> 16
B42: =DataLink!B183 -> 2009 | C42: =IF(DataLink!F303>19,DataLink!E303,NA()) -> 822 | D42: =DataLink!F303 -> 918 | E42: =IF(DataLink!F183>19,DataLink!E183,NA()) -> 609 | F42: =DataLink!F183 -> 38 | G42: =IF(DataLink!F207>19,DataLink!E207,NA()) -> 650 | H42: =DataLink!F207 -> 338 | I42: =IF(DataLink!F231>19,DataLink!E231,NA()) -> 922 | J42: =DataLink!F231 -> 430 | K42: =IF(DataLink!F255>19,DataLink!E255,NA()) -> 1122 | L42: =DataLink!F255 -> 86 | M42: =IF(DataLink!F279>19,DataLink!E279,NA()) -> 1315 | N42: =DataLink!F279 -> 26
B43: =DataLink!B184 -> 2008 | C43: =IF(DataLink!F304>19,DataLink!E304,NA()) -> 795 | D43: =DataLink!F304 -> 756 | E43: =IF(DataLink!F184>19,DataLink!E184,NA()) -> 533 | F43: =DataLink!F184 -> 46 | G43: =IF(DataLink!F208>19,DataLink!E208,NA()) -> 647 | H43: =DataLink!F208 -> 282 | I43: =IF(DataLink!F232>19,DataLink!E232,NA()) -> 871 | J43: =DataLink!F232 -> 324 | K43: =IF(DataLink!F256>19,DataLink!E256,NA()) -> 1151 | L43: =DataLink!F256 -> 82 | M43: =IF(DataLink!F280>19,DataLink!E280,NA()) -> 1360 | N43: =DataLink!F280 -> 22
B44: =DataLink!B185 -> 2007 | C44: =IF(DataLink!F305>19,DataLink!E305,NA()) -> 780 | D44: =DataLink!F305 -> 789 | E44: =IF(DataLink!F185>19,DataLink!E185,NA()) -> 500 | F44: =DataLink!F185 -> 25 | G44: =IF(DataLink!F209>19,DataLink!E209,NA()) -> 621 | H44: =DataLink!F209 -> 283 | I44: =IF(DataLink!F233>19,DataLink!E233,NA()) -> 855 | J44: =DataLink!F233 -> 378 | K44: =IF(DataLink!F257>19,DataLink!E257,NA()) -> 1052 | L44: =DataLink!F257 -> 81 | M44: =IF(DataLink!F281>19,DataLink!E281,NA()) -> 1349 | N44: =DataLink!F281 -> 22
B45: =DataLink!B186 -> 2006 | C45: =IF(DataLink!F306>19,DataLink!E306,NA()) -> 744 | D45: =DataLink!F306 -> 707 | E45: =IF(DataLink!F186>19,DataLink!E186,NA()) -> 520 | F45: =DataLink!F186 -> 54 | G45: =IF(DataLink!F210>19,DataLink!E210,NA()) -> 600 | H45: =DataLink!F210 -> 272 | I45: =IF(DataLink!F234>19,DataLink!E234,NA()) -> 829 | J45: =DataLink!F234 -> 294 | K45: =IF(DataLink!F258>19,DataLink!E258,NA()) -> 1098 | L45: =DataLink!F258 -> 72 | M45: =IF(DataLink!F282>19,DataLink!E282,NA()) ->  | N45: =DataLink!F282 -> 15
B46: =DataLink!B187 -> 2005 | C46: =IF(DataLink!F307>19,DataLink!E307,NA()) -> 718 | D46: =DataLink!F307 -> 682 | E46: =IF(DataLink!F187>19,DataLink!E187,NA()) -> 500 | F46: =DataLink!F187 -> 22 | G46: =IF(DataLink!F211>19,DataLink!E211,NA()) -> 592 | H46: =DataLink!F211 -> 272 | I46: =IF(DataLink!F235>19,DataLink!E235,NA()) -> 769 | J46: =DataLink!F235 -> 310 | K46: =IF(DataLink!F259>19,DataLink!E259,NA()) -> 962 | L46: =DataLink!F259 -> 69 | M46: =IF(DataLink!F283>19,DataLink!E283,NA()) ->  | N46: =DataLink!F283 -> 9
B47: =DataLink!B188 -> 2004 | C47: =IF(DataLink!F308>19,DataLink!E308,NA()) -> 690 | D47: =DataLink!F308 -> 588 | E47: =IF(DataLink!F188>19,DataLink!E188,NA()) -> 510 | F47: =DataLink!F188 -> 21 | G47: =IF(DataLink!F212>19,DataLink!E212,NA()) -> 596 | H47: =DataLink!F212 -> 262 | I47: =IF(DataLink!F236>19,DataLink!E236,NA()) -> 786 | J47: =DataLink!F236 -> 244 | K47: =IF(DataLink!F260>19,DataLink!E260,NA()) -> 1012 | L47: =DataLink!F260 -> 51 | M47: =IF(DataLink!F284>19,DataLink!E284,NA()) ->  | N47: =DataLink!F284 -> 10
B48: =DataLink!B189 -> 2003 | C48: =IF(DataLink!F309>19,DataLink!E309,NA()) -> 654 | D48: =DataLink!F309 -> 626 | E48: =IF(DataLink!F189>19,DataLink!E189,NA()) -> 355 | F48: =DataLink!F189 -> 21 | G48: =IF(DataLink!F213>19,DataLink!E213,NA()) -> 528 | H48: =DataLink!F213 -> 232 | I48: =IF(DataLink!F237>19,DataLink!E237,NA()) -> 733 | J48: =DataLink!F237 -> 316 | K48: =IF(DataLink!F261>19,DataLink!E261,NA()) -> 920 | L48: =DataLink!F261 -> 48 | M48: =IF(DataLink!F285>19,DataLink!E285,NA()) ->  | N48: =DataLink!F285 -> 9
B49: =DataLink!B190 -> 2002 | C49: =IF(DataLink!F310>19,DataLink!E310,NA()) -> 628 | D49: =DataLink!F310 -> 550 | E49: =IF(DataLink!F190>19,DataLink!E190,NA()) ->  | F49: =DataLink!F190 -> 17 | G49: =IF(DataLink!F214>19,DataLink!E214,NA()) -> 528 | H49: =DataLink!F214 -> 218 | I49: =IF(DataLink!F238>19,DataLink!E238,NA()) -> 694 | J49: =DataLink!F238 -> 263 | K49: =IF(DataLink!F262>19,DataLink!E262,NA()) -> 798 | L49: =DataLink!F262 -> 45 | M49: =IF(DataLink!F286>19,DataLink!E286,NA()) ->  | N49: =DataLink!F286 -> 7
B50: =DataLink!B191 -> 2001 | C50: =IF(DataLink!F311>19,DataLink!E311,NA()) -> 585 | D50: =DataLink!F311 -> 589 | E50: =IF(DataLink!F191>19,DataLink!E191,NA()) -> 398 | F50: =DataLink!F191 -> 27 | G50: =IF(DataLink!F215>19,DataLink!E215,NA()) -> 484 | H50: =DataLink!F215 -> 242 | I50: =IF(DataLink!F239>19,DataLink!E239,NA()) -> 693 | J50: =DataLink!F239 -> 275 | K50: =IF(DataLink!F263>19,DataLink!E263,NA()) -> 919 | L50: =DataLink!F263 -> 40 | M50: =IF(DataLink!F287>19,DataLink!E287,NA()) ->  | N50: =DataLink!F287 -> 5
B51: =DataLink!B192 -> 2000 | C51: =IF(DataLink!F312>19,DataLink!E312,NA()) -> 537 | D51: =DataLink!F312 -> 669 | E51: =IF(DataLink!F192>19,DataLink!E192,NA()) -> 331 | F51: =DataLink!F192 -> 34 | G51: =IF(DataLink!F216>19,DataLink!E216,NA()) -> 462 | H51: =DataLink!F216 -> 280 | I51: =IF(DataLink!F240>19,DataLink!E240,NA()) -> 631 | J51: =DataLink!F240 -> 308 | K51: =IF(DataLink!F264>19,DataLink!E264,NA()) -> 700 | L51: =DataLink!F264 -> 42 | M51: =IF(DataLink!F288>19,DataLink!E288,NA()) ->  | N51: =DataLink!F288 -> 5
C52: Source: NHHFA Residential Rental Cost Survey
C53: Note: Calculations based on a sample size of less than 20 are highly volatile and not considered valid.
B56: Percent Change in Median Gross Rental Cost
C58: All Units | E58: 0-Bedroom Units | G58: 1-Bedroom Units | I58: 2-Bedroom Units | K58: 3-Bedroom Units | M58: 4+-Bedroom Units
B60: 2014 to 23 | C60: =(C28-C37)/C37 -> 0.6516129032 | E60: =(E28-E37)/E37 ->  | G60: =(G28-G37)/G37 ->  | I60: =(I28-I37)/I37 -> 0.9762583096 | K60: =(K28-K37)/K37 -> 0.5351223362 | M60: =(M28-M37)/M37 -> 0.3654694392
B61: Avg /Year | C61: =C60/10 -> 0.06516129032 | E61: =E60/10 ->  | G61: =G60/10 ->  | I61: =I60/10 -> 0.09762583096 | K61: =K60/10 -> 0.05351223362 | M61: =M60/10 -> 0.03654694392
B63: 2022 to 23 | C63: =(C28-C29)/C29 -> 0.01453104359 | E63: =(E28-E29)/E29 ->  | G63: =(G28-G29)/G29 ->  | I63: =(I28-I29)/I29 -> 0.2291789722 | K63: =(K28-K29)/K29 -> 0.08963585434 | M63: =(M28-M29)/M29 -> 0.1351492928
B64: 2021 to 22 | C64: =(C29-C30)/C30 -> 0.3096885813 | G64: 0.2024169184 | I64: 0.158002736 | K64: 0.02586206897 | M64: 0.0635097493
B65: 2020 to 21 | C65: 0.05282331512 | E65: 0.05050505051 | G65: -0.6467449306 | I65: 0.1185921959 | K65: 0.07407407407
B66: 2019 to 20 | C66: 0.01572617946 | E66: 0.03125 | G66: 0.003211991435 | I66: 0.07395234182 | K66: 0.09607577808
B67: 2018 to 19 | C67: 0.1087179487 | E67: 0 | G67: 0.08857808858 | I67: 0.06195462478 | K67: -0.0531710442
B68: 2017 to 18 | C68: -0.025 | E68: 0 | G68: 0.001166861144 | I68: -0.0008718395815 | K68: 0.1369264385
B69: 2016 to 17 | C69: -0.003984063745 | E69: -0.06925207756 | G69: 0.02757793765 | I69: 0.0114638448 | K69: -0.005792903693 | M69: -0.09488139825
B70: 2015 to 16 | C70: 0.009045226131 | E70: 0.03438395415 | G70: 0.0425 | I70: 0.05 | K70: 0.05098934551 | M70: 0.07661290323
B71: 2014 to 15 | C71: 0.06989247312 | E71: =(E36-E37)/E37 -> -0.002857142857 | G71: =(G36-G37)/G37 -> 0.0296010296 | I71: =(I36-I37)/I37 -> 0.02564102564 | K71: =(K36-K37)/K37 -> 0.03709550118 | M71: =(M36-M37)/M37 -> -0.06238185255
B72: 2013 to 14 | C72: =(C37-C38)/C38 -> 0.0310421286 | E72: 0.07692307692 | G72: 0.05427408412 | I72: 0.06903553299 | K72: 0.02012882448 | M72: 0.08773132282
B73: 2012 to 13 | C73: -0.02486486486 | E73: -0.07142857143 | G73: -0.02770448549 | I73: -0.0362035225 | K73: -0.004009623095 | M73: 0.0587808418
B74: 2011 to 12 | C74: 0.09988109394 | E74: 0.2259194396 | G74: 0.03978052126 | I74: 0.1243124312 | K74: 0.0154723127
B75: 2010 to 11 | C75: 0.02436053593 | E75: -0.07154471545 | G75: 0.1045454545 | I75: -0.02676659529 | K75: 0.04599659284
B76: 2009 to 10 | C76: -0.001216545012 | E76: 0.009852216749 | G76: 0.01538461538 | I76: 0.01301518438 | K76: 0.04634581105
B77: 2008 to 09 | C77: 0.03396226415 | E77: 0.1425891182 | G77: 0.004636785162 | I77: 0.05855338691 | K77: -0.02519548219 | M77: -0.03308823529
B78: 2007 to 08 | C78: 0.01923076923 | E78: 0.066 | G78: 0.04186795491 | I78: 0.01871345029 | K78: 0.09410646388 | M78: 0.008154188288
B79: 2006 to 07 | C79: 0.04838709677 | E79: -0.03846153846 | G79: 0.035 | I79: 0.03136308806 | K79: -0.04189435337
B80: 2005 to 06 | C80: 0.03621169916 | E80: 0.04 | G80: 0.01351351351 | I80: 0.07802340702 | K80: 0.1413721414
B81: 2004 to 05 | C81: 0.04057971014 | E81: -0.01960784314 | G81: -0.006711409396 | I81: -0.02162849873 | K81: -0.04940711462
B82: 2003 to 04 | C82: 0.05504587156 | E82: 0.4366197183 | G82: 0.1287878788 | I82: 0.07230559345 | K82: 0.1
B83: 2002 to 03 | C83: 0.04140127389 | G83: 0 | I83: 0.05619596542 | K83: 0.1528822055
B84: 2001 to 02 | C84: 0.0735042735 | G84: 0.09090909091 | I84: 0.001443001443 | K84: -0.1316648531
B85: 2000 to 01 | C85: 0.08938547486 | E85: 0.2024169184 | G85: 0.04761904762 | I85: 0.09825673534 | K85: 0.3128571429
E116: All Units | G116: 2-Bedroom Units
D117: Year | E117: Vacancy Rate | F117: Sample Size | G117: Vacancy Rate | H117: Sample Size | J117: =IF(DataLink!A165="Carroll County","The Vacancy Rate for 2017 and 2018 should be used with caution, because of the small sample size", "") -> 
D118: =DataLink!B289 -> 2023 | E118: =IF(DataLink!F289>19,DataLink!I289,NA()) -> 0.02131782946 | F118: =DataLink!F289 -> 471 | G118: =IF(DataLink!F217>19,DataLink!I217,NA()) -> 0.01129943503 | H118: =DataLink!F217 -> 204
D119: =DataLink!B290 -> 2022 | E119: =IF(DataLink!F290>19,DataLink!I290,NA()) -> 0.002754820937 | F119: =DataLink!F290 -> 525 | G119: =IF(DataLink!F218>19,DataLink!I218,NA()) -> 0 | H119: =DataLink!F218 -> 234
D120: =DataLink!B291 -> 2021 | E120: =IF(DataLink!F291>19,DataLink!I291,NA()) -> 0.01139962001 | F120: =DataLink!F291 -> 753 | G120: =IF(DataLink!F219>19,DataLink!I219,NA()) -> 0.004571428571 | H120: =DataLink!F219 -> 335
D121: =DataLink!B292 -> 2020 | E121: =IF(DataLink!F292>19,DataLink!I292,NA()) -> 0.02770330652 | F121: =DataLink!F292 -> 549 | G121: =IF(DataLink!F220>19,DataLink!I220,NA()) -> 0.02398523985 | H121: =DataLink!F220 -> 228
D122: =DataLink!B293 -> 2019 | E122: =IF(DataLink!F293>19,DataLink!I293,NA()) -> 0.002516778523 | F122: =DataLink!F293 -> 647 | G122: =IF(DataLink!F221>19,DataLink!I221,NA()) -> 0.003220611916 | H122: =DataLink!F221 -> 279
D123: =DataLink!B294 -> 2018 | E123: =IF(DataLink!F294>19,DataLink!I294,NA()) -> 0.03949044586 | F123: =DataLink!F294 -> 474 | G123: =IF(DataLink!F222>19,DataLink!I222,NA()) -> 0.03888888889 | H123: =DataLink!F222 -> 197
D124: =DataLink!B295 -> 2017 | E124: =IF(DataLink!F295>19,DataLink!I295,NA()) -> 0.032993 | F124: =DataLink!F295 -> 720 | G124: =IF(DataLink!F223>19,DataLink!I223,NA()) -> 0.029641 | H124: =DataLink!F223 -> 308
D125: =DataLink!B296 -> 2016 | E125: =IF(DataLink!F296>19,DataLink!I296,NA()) -> 0.032333 | F125: =DataLink!F296 -> 1047 | G125: =IF(DataLink!F224>19,DataLink!I224,NA()) -> 0.030338 | H125: =DataLink!F224 -> 432
D126: =DataLink!B297 -> 2015 | E126: =IF(DataLink!F297>19,DataLink!I297,NA()) -> 0.037279 | F126: =DataLink!F297 -> 878 | G126: =IF(DataLink!F225>19,DataLink!I225,NA()) -> 0.026684 | H126: =DataLink!F225 -> 399
D127: =DataLink!B298 -> 2014 | E127: =IF(DataLink!F298>19,DataLink!I298,NA()) -> 0.042079 | F127: =DataLink!F298 -> 1002 | G127: =IF(DataLink!F226>19,DataLink!I226,NA()) -> 0.038961 | H127: =DataLink!F226 -> 428
D128: =DataLink!B299 -> 2013 | E128: =IF(DataLink!F299>19,DataLink!I299,NA()) -> 0.037991 | F128: =DataLink!F299 -> 982 | G128: =IF(DataLink!F227>19,DataLink!I227,NA()) -> 0.029674 | H128: =DataLink!F227 -> 399
D129: =DataLink!B300 -> 2012 | E129: =IF(DataLink!F300>19,DataLink!I300,NA()) -> 0.057923 | F129: =DataLink!F300 -> 892 | G129: =IF(DataLink!F228>19,DataLink!I228,NA()) -> 0.074667 | H129: =DataLink!F228 -> 403
D130: =DataLink!B301 -> 2011 | E130: =IF(DataLink!F301>19,DataLink!I301,NA()) -> 0.073345 | F130: =DataLink!F301 -> 791 | G130: =IF(DataLink!F229>19,DataLink!I229,NA()) -> 0.075758 | H130: =DataLink!F229 -> 374
D131: =DataLink!B302 -> 2010 | E131: =IF(DataLink!F302>19,DataLink!I302,NA()) -> 0.070401 | F131: =DataLink!F302 -> 835 | G131: =IF(DataLink!F230>19,DataLink!I230,NA()) -> 0.070175 | H131: =DataLink!F230 -> 403
D132: =DataLink!B303 -> 2009 | E132: =IF(DataLink!F303>19,DataLink!I303,NA()) -> 0.068067 | F132: =DataLink!F303 -> 918 | G132: =IF(DataLink!F231>19,DataLink!I231,NA()) -> 0.068436 | H132: =DataLink!F231 -> 430
D133: =DataLink!B304 -> 2008 | E133: =IF(DataLink!F304>19,DataLink!I304,NA()) -> 0.046443 | F133: =DataLink!F304 -> 756 | G133: =IF(DataLink!F232>19,DataLink!I232,NA()) -> 0.020225 | H133: =DataLink!F232 -> 324
D134: =DataLink!B305 -> 2007 | E134: =IF(DataLink!F305>19,DataLink!I305,NA()) -> 0.047107 | F134: =DataLink!F305 -> 789 | G134: =IF(DataLink!F233>19,DataLink!I233,NA()) -> 0.030912 | H134: =DataLink!F233 -> 378
D135: =DataLink!B306 -> 2006 | E135: =IF(DataLink!F306>19,DataLink!I306,NA()) -> 0.051973 | F135: =DataLink!F306 -> 707 | G135: =IF(DataLink!F234>19,DataLink!I234,NA()) -> 0.036446 | H135: =DataLink!F234 -> 294
D136: =DataLink!B307 -> 2005 | E136: =IF(DataLink!F307>19,DataLink!I307,NA()) -> 0.041889 | F136: =DataLink!F307 -> 682 | G136: =IF(DataLink!F235>19,DataLink!I235,NA()) -> 0.028829 | H136: =DataLink!F235 -> 310
D137: =DataLink!B308 -> 2004 | E137: =IF(DataLink!F308>19,DataLink!I308,NA()) -> 0.021968 | F137: =DataLink!F308 -> 588 | G137: =IF(DataLink!F236>19,DataLink!I236,NA()) -> 0.015152 | H137: =DataLink!F236 -> 244
D138: =DataLink!B309 -> 2003 | E138: =IF(DataLink!F309>19,DataLink!I309,NA()) -> 0.033569 | F138: =DataLink!F309 -> 626 | G138: =IF(DataLink!F237>19,DataLink!I237,NA()) -> 0.023564 | H138: =DataLink!F237 -> 316
D139: =DataLink!B310 -> 2002 | E139: =IF(DataLink!F310>19,DataLink!I310,NA()) -> 0.013333 | F139: =DataLink!F310 -> 550 | G139: =IF(DataLink!F238>19,DataLink!I238,NA()) -> 0.005964 | H139: =DataLink!F238 -> 263
D140: =DataLink!B311 -> 2001 | E140: =IF(DataLink!F311>19,DataLink!I311,NA()) -> 0.008681 | F140: =DataLink!F311 -> 589 | G140: =IF(DataLink!F239>19,DataLink!I239,NA()) -> 0.003289 | H140: =DataLink!F239 -> 275
D141: =DataLink!B312 -> 2000 | E141: =IF(DataLink!F312>19,DataLink!I312,NA()) -> 0.028448 | F141: =DataLink!F312 -> 669 | G141: =IF(DataLink!F240>19,DataLink!I240,NA()) -> 0.017065 | H141: =DataLink!F240 -> 308
D143: Source: NHHFA Residential Rental Cost Survey
D145: Note: Calculations based on a sample size of less than 20 are highly
D146: volatile and not considered valid.
D148: Caution should be used in interpreting these numbers since the
D149: survey methods used may underestimate the real rate of vacancy.

Sheet StateChartAndTable (hidden)
B2: =DataLink!A5 -> State of New Hampshire
C26: All Units | E26: 0-Bedroom Units | G26: 1-Bedroom Units | I26: 2-Bedroom Units | K26: 3-Bedroom Units | M26: 4+-Bedroom Units
B27: Year | C27: Median Gross Rental Cost | D27: Sample Size | E27: Median Gross Rental Cost | F27: Sample Size | G27: Median Gross Rental Cost | H27: Sample Size | I27: Median Gross Rental Cost | J27: Sample Size | K27: Median Gross Rental Cost | L27: Sample Size | M27: Median Gross Rental Cost | N27: Sample Size
B28: =DataLink!B8 -> 2023 | C28: =IF(DataLink!F128>19,DataLink!E128,NA()) -> 1644 | D28: =DataLink!F128 -> 8255 | E28: =IF(DataLink!F8>19,DataLink!E8,NA()) -> 1138 | F28: =DataLink!F8 -> 305 | G28: =IF(DataLink!F32>19,DataLink!E32,NA()) -> 1362 | H28: =DataLink!F32 -> 2461 | I28: =IF(DataLink!F56>19,DataLink!E56,NA()) -> 1764 | J28: =DataLink!F56 -> 4080 | K28: =IF(DataLink!F80>19,DataLink!E80,NA()) -> 1869 | L28: =DataLink!F80 -> 1177 | M28: =IF(DataLink!F97>19,DataLink!E104,NA()) -> 2067 | N28: =DataLink!F104 -> 232
B29: =DataLink!B9 -> 2022 | C29: =IF(DataLink!F129>19,DataLink!E129,NA()) -> 1510 | D29: =DataLink!F129 -> 9662 | E29: =IF(DataLink!F9>19,DataLink!E9,NA()) -> 1082 | F29: =DataLink!F9 -> 433 | G29: =IF(DataLink!F33>19,DataLink!E33,NA()) -> 1248 | H29: =DataLink!F33 -> 2980 | I29: =IF(DataLink!F57>19,DataLink!E57,NA()) -> 1584 | J29: =DataLink!F57 -> 4633 | K29: =IF(DataLink!F81>19,DataLink!E81,NA()) -> 1620 | L29: =DataLink!F81 -> 1344 | M29: =IF(DataLink!F98>19,DataLink!E105,NA()) -> 1828 | N29: =DataLink!F105 -> 272
B30: =DataLink!B10 -> 2021 | C30: =IF(DataLink!F130>19,DataLink!E130,NA()) -> 1373 | D30: =DataLink!F130 -> 10874 | E30: =IF(DataLink!F10>19,DataLink!E10,NA()) -> 876 | F30: =DataLink!F10 -> 452 | G30: =IF(DataLink!F34>19,DataLink!E34,NA()) -> 1118 | H30: =DataLink!F34 -> 3298 | I30: =IF(DataLink!F58>19,DataLink!E58,NA()) -> 1498 | J30: =DataLink!F58 -> 5492 | K30: =IF(DataLink!F82>19,DataLink!E82,NA()) -> 1506 | L30: =DataLink!F82 -> 1393 | M30: =IF(DataLink!F99>19,DataLink!E106,NA()) -> 1781 | N30: =DataLink!F106 -> 239
B31: =DataLink!B11 -> 2020 | C31: =IF(DataLink!F131>19,DataLink!E131,NA()) -> 1283 | D31: =DataLink!F131 -> 9773 | E31: =IF(DataLink!F11>19,DataLink!E11,NA()) -> 900 | F31: =DataLink!F11 -> 499 | G31: =IF(DataLink!F35>19,DataLink!E35,NA()) -> 1094 | H31: =DataLink!F35 -> 2972 | I31: =IF(DataLink!F59>19,DataLink!E59,NA()) -> 1413 | J31: =DataLink!F59 -> 4851 | K31: =IF(DataLink!F83>19,DataLink!E83,NA()) -> 1475 | L31: =DataLink!F83 -> 1210 | M31: =IF(DataLink!F100>19,DataLink!E107,NA()) -> 1580 | N31: =DataLink!F107 -> 241
B32: =DataLink!B12 -> 2019 | C32: =IF(DataLink!F132>19,DataLink!E132,NA()) -> 1251 | D32: =DataLink!F132 -> 9700 | E32: =IF(DataLink!F12>19,DataLink!E12,NA()) -> 891 | F32: =DataLink!F12 -> 390 | G32: =IF(DataLink!F36>19,DataLink!E36,NA()) -> 1055 | H32: =DataLink!F36 -> 2948 | I32: =IF(DataLink!F60>19,DataLink!E60,NA()) -> 1347 | J32: =DataLink!F60 -> 5002 | K32: =IF(DataLink!F84>19,DataLink!E84,NA()) -> 1466 | L32: =DataLink!F84 -> 1137 | M32: =IF(DataLink!F101>19,DataLink!E108,NA()) -> 1700 | N32: =DataLink!F108 -> 223
B33: =DataLink!B13 -> 2018 | C33: =IF(DataLink!F133>19,DataLink!E133,NA()) -> 1177 | D33: =DataLink!F133 -> 8962 | E33: =IF(DataLink!F13>19,DataLink!E13,NA()) -> 751 | F33: =DataLink!F13 -> 339 | G33: =IF(DataLink!F37>19,DataLink!E37,NA()) -> 978 | H33: =DataLink!F37 -> 2864 | I33: =IF(DataLink!F61>19,DataLink!E61,NA()) -> 1296 | J33: =DataLink!F61 -> 4645 | K33: =IF(DataLink!F85>19,DataLink!E85,NA()) -> 1424 | L33: =DataLink!F85 -> 907 | M33: =IF(DataLink!F102>19,DataLink!E109,NA()) -> 1579 | N33: =DataLink!F109 -> 207
B34: =DataLink!B14 -> 2017 | C34: =IF(DataLink!F134>19,DataLink!E134,NA()) -> 1143 | D34: =DataLink!F134 -> 10830 | E34: =IF(DataLink!F14>19,DataLink!E14,NA()) -> 697 | F34: =DataLink!F14 -> 462 | G34: =IF(DataLink!F38>19,DataLink!E38,NA()) -> 937 | H34: =DataLink!F38 -> 3358 | I34: =IF(DataLink!F62>19,DataLink!E62,NA()) -> 1259 | J34: =DataLink!F62 -> 5504 | K34: =IF(DataLink!F86>19,DataLink!E86,NA()) -> 1400 | L34: =DataLink!F86 -> 1244 | M34: =IF(DataLink!F103>19,DataLink!E110,NA()) -> 1627 | N34: =DataLink!F110 -> 262
B35: =DataLink!B15 -> 2016 | C35: =IF(DataLink!F135>19,DataLink!E135,NA()) -> 1113 | D35: =DataLink!F135 -> 13650 | E35: =IF(DataLink!F15>19,DataLink!E15,NA()) -> 700 | F35: =DataLink!F15 -> 646 | G35: =IF(DataLink!F39>19,DataLink!E39,NA()) -> 924 | H35: =DataLink!F39 -> 4310 | I35: =IF(DataLink!F63>19,DataLink!E63,NA()) -> 1206 | J35: =DataLink!F63 -> 6742 | K35: =IF(DataLink!F87>19,DataLink!E87,NA()) -> 1351 | L35: =DataLink!F87 -> 1636 | M35: =IF(DataLink!F109>19,DataLink!E111,NA()) -> 1595 | N35: =DataLink!F111 -> 316
B36: =DataLink!B16 -> 2015 | C36: =IF(DataLink!F136>19,DataLink!E136,NA()) -> 1069 | D36: =DataLink!F136 -> 14559 | E36: =IF(DataLink!F16>19,DataLink!E16,NA()) -> 701 | F36: =DataLink!F16 -> 597 | G36: =IF(DataLink!F40>19,DataLink!E40,NA()) -> 892 | H36: =DataLink!F40 -> 4477 | I36: =IF(DataLink!F64>19,DataLink!E64,NA()) -> 1157 | J36: =DataLink!F64 -> 7393 | K36: =IF(DataLink!F88>19,DataLink!E88,NA()) -> 1310 | L36: =DataLink!F88 -> 1752 | M36: =IF(DataLink!F110>19,DataLink!E112,NA()) -> 1587 | N36: =DataLink!F112 -> 340
B37: =DataLink!B17 -> 2014 | C37: =IF(DataLink!F137>19,DataLink!E137,NA()) -> 1037 | D37: =DataLink!F137 -> 14208 | E37: =IF(DataLink!F17>19,DataLink!E17,NA()) -> 679 | F37: =DataLink!F17 -> 653 | G37: =IF(DataLink!F41>19,DataLink!E41,NA()) -> 862 | H37: =DataLink!F41 -> 4459 | I37: =IF(DataLink!F65>19,DataLink!E65,NA()) -> 1108 | J37: =DataLink!F65 -> 7041 | K37: =IF(DataLink!F89>19,DataLink!E89,NA()) -> 1307 | L37: =DataLink!F89 -> 1749 | M37: =IF(DataLink!F111>19,DataLink!E113,NA()) -> 1600 | N37: =DataLink!F113 -> 306
B38: =DataLink!B18 -> 2013 | C38: =IF(DataLink!F138>19,DataLink!E138,NA()) -> 1018 | D38: =DataLink!F138 -> 14620 | E38: =IF(DataLink!F18>19,DataLink!E18,NA()) -> 670 | F38: =DataLink!F18 -> 655 | G38: =IF(DataLink!F42>19,DataLink!E42,NA()) -> 852 | H38: =DataLink!F42 -> 4626 | I38: =IF(DataLink!F66>19,DataLink!E66,NA()) -> 1076 | J38: =DataLink!F66 -> 7165 | K38: =IF(DataLink!F90>19,DataLink!E90,NA()) -> 1279 | L38: =DataLink!F90 -> 1840 | M38: =IF(DataLink!F112>19,DataLink!E114,NA()) -> 1487 | N38: =DataLink!F114 -> 334
B39: =DataLink!B19 -> 2012 | C39: =IF(DataLink!F139>19,DataLink!E139,NA()) -> 1005 | D39: =DataLink!F139 -> 14413 | E39: =IF(DataLink!F19>19,DataLink!E19,NA()) -> 645 | F39: =DataLink!F19 -> 651 | G39: =IF(DataLink!F43>19,DataLink!E43,NA()) -> 848 | H39: =DataLink!F43 -> 4548 | I39: =IF(DataLink!F67>19,DataLink!E67,NA()) -> 1085 | J39: =DataLink!F67 -> 7054 | K39: =IF(DataLink!F91>19,DataLink!E91,NA()) -> 1282 | L39: =DataLink!F91 -> 1847 | M39: =IF(DataLink!F113>19,DataLink!E115,NA()) -> 1490 | N39: =DataLink!F115 -> 313
B40: =DataLink!B20 -> 2011 | C40: =IF(DataLink!F140>19,DataLink!E140,NA()) -> 983 | D40: =DataLink!F140 -> 13607 | E40: =IF(DataLink!F20>19,DataLink!E20,NA()) -> 644 | F40: =DataLink!F20 -> 614 | G40: =IF(DataLink!F44>19,DataLink!E44,NA()) -> 825 | H40: =DataLink!F44 -> 4316 | I40: =IF(DataLink!F68>19,DataLink!E68,NA()) -> 1048 | J40: =DataLink!F68 -> 6733 | K40: =IF(DataLink!F92>19,DataLink!E92,NA()) -> 1262 | L40: =DataLink!F92 -> 1702 | M40: =IF(DataLink!F114>19,DataLink!E116,NA()) -> 1433 | N40: =DataLink!F116 -> 242
B41: =DataLink!B21 -> 2010 | C41: =IF(DataLink!F141>19,DataLink!E141,NA()) -> 980 | D41: =DataLink!F141 -> 14071 | E41: =IF(DataLink!F21>19,DataLink!E21,NA()) -> 637 | F41: =DataLink!F21 -> 675 | G41: =IF(DataLink!F45>19,DataLink!E45,NA()) -> 815 | H41: =DataLink!F45 -> 4411 | I41: =IF(DataLink!F69>19,DataLink!E69,NA()) -> 1056 | J41: =DataLink!F69 -> 6922 | K41: =IF(DataLink!F93>19,DataLink!E93,NA()) -> 1213 | L41: =DataLink!F93 -> 1821 | M41: =IF(DataLink!F115>19,DataLink!E117,NA()) -> 1439 | N41: =DataLink!F117 -> 242
B42: =DataLink!B22 -> 2009 | C42: =IF(DataLink!F142>19,DataLink!E142,NA()) -> 969 | D42: =DataLink!F142 -> 15062 | E42: =IF(DataLink!F22>19,DataLink!E22,NA()) -> 650 | F42: =DataLink!F22 -> 736 | G42: =IF(DataLink!F46>19,DataLink!E46,NA()) -> 808 | H42: =DataLink!F46 -> 4719 | I42: =IF(DataLink!F70>19,DataLink!E70,NA()) -> 1041 | J42: =DataLink!F70 -> 7335 | K42: =IF(DataLink!F94>19,DataLink!E94,NA()) -> 1212 | L42: =DataLink!F94 -> 1969 | M42: =IF(DataLink!F116>19,DataLink!E118,NA()) -> 1433 | N42: =DataLink!F118 -> 303
B43: =DataLink!B23 -> 2008 | C43: =IF(DataLink!F143>19,DataLink!E143,NA()) -> 969 | D43: =DataLink!F143 -> 13128 | E43: =IF(DataLink!F23>19,DataLink!E23,NA()) -> 615 | F43: =DataLink!F23 -> 642 | G43: =IF(DataLink!F47>19,DataLink!E47,NA()) -> 800 | H43: =DataLink!F47 -> 4005 | I43: =IF(DataLink!F71>19,DataLink!E71,NA()) -> 1044 | J43: =DataLink!F71 -> 6473 | K43: =IF(DataLink!F95>19,DataLink!E95,NA()) -> 1200 | L43: =DataLink!F95 -> 1752 | M43: =IF(DataLink!F117>19,DataLink!E119,NA()) -> 1466 | N43: =DataLink!F119 -> 256
B44: =DataLink!B24 -> 2007 | C44: =IF(DataLink!F144>19,DataLink!E144,NA()) -> 946 | D44: =DataLink!F144 -> 13501 | E44: =IF(DataLink!F24>19,DataLink!E24,NA()) -> 634 | F44: =DataLink!F24 -> 653 | G44: =IF(DataLink!F48>19,DataLink!E48,NA()) -> 778 | H44: =DataLink!F48 -> 4138 | I44: =IF(DataLink!F72>19,DataLink!E72,NA()) -> 1029 | J44: =DataLink!F72 -> 6800 | K44: =IF(DataLink!F96>19,DataLink!E96,NA()) -> 1195 | L44: =DataLink!F96 -> 1655 | M44: =IF(DataLink!F118>19,DataLink!E120,NA()) -> 1437 | N44: =DataLink!F120 -> 255
B45: =DataLink!B25 -> 2006 | C45: =IF(DataLink!F145>19,DataLink!E145,NA()) -> 928 | D45: =DataLink!F145 -> 13760 | E45: =IF(DataLink!F25>19,DataLink!E25,NA()) -> 600 | F45: =DataLink!F25 -> 656 | G45: =IF(DataLink!F49>19,DataLink!E49,NA()) -> 794 | H45: =DataLink!F49 -> 4323 | I45: =IF(DataLink!F73>19,DataLink!E73,NA()) -> 1003 | J45: =DataLink!F73 -> 6924 | K45: =IF(DataLink!F97>19,DataLink!E97,NA()) -> 1194 | L45: =DataLink!F97 -> 1580 | M45: =IF(DataLink!F119>19,DataLink!E121,NA()) -> 1400 | N45: =DataLink!F121 -> 277
B46: =DataLink!B26 -> 2005 | C46: =IF(DataLink!F146>19,DataLink!E146,NA()) -> 901 | D46: =DataLink!F146 -> 13157 | E46: =IF(DataLink!F26>19,DataLink!E26,NA()) -> 585 | F46: =DataLink!F26 -> 547 | G46: =IF(DataLink!F50>19,DataLink!E50,NA()) -> 750 | H46: =DataLink!F50 -> 4129 | I46: =IF(DataLink!F74>19,DataLink!E74,NA()) -> 989 | J46: =DataLink!F74 -> 6793 | K46: =IF(DataLink!F98>19,DataLink!E98,NA()) -> 1116 | L46: =DataLink!F98 -> 1451 | M46: =IF(DataLink!F120>19,DataLink!E122,NA()) -> 1335 | N46: =DataLink!F122 -> 237
B47: =DataLink!B27 -> 2004 | C47: =IF(DataLink!F147>19,DataLink!E147,NA()) -> 896 | D47: =DataLink!F147 -> 12266 | E47: =IF(DataLink!F27>19,DataLink!E27,NA()) -> 592 | F47: =DataLink!F27 -> 404 | G47: =IF(DataLink!F51>19,DataLink!E51,NA()) -> 754 | H47: =DataLink!F51 -> 3811 | I47: =IF(DataLink!F75>19,DataLink!E75,NA()) -> 978 | J47: =DataLink!F75 -> 6581 | K47: =IF(DataLink!F99>19,DataLink!E99,NA()) -> 1094 | L47: =DataLink!F99 -> 1284 | M47: =IF(DataLink!F121>19,DataLink!E123,NA()) -> 1274 | N47: =DataLink!F123 -> 186
B48: =DataLink!B28 -> 2003 | C48: =IF(DataLink!F148>19,DataLink!E148,NA()) -> 854 | D48: =DataLink!F148 -> 13166 | E48: =IF(DataLink!F28>19,DataLink!E28,NA()) -> 550 | F48: =DataLink!F28 -> 494 | G48: =IF(DataLink!F52>19,DataLink!E52,NA()) -> 736 | H48: =DataLink!F52 -> 4194 | I48: =IF(DataLink!F76>19,DataLink!E76,NA()) -> 932 | J48: =DataLink!F76 -> 7171 | K48: =IF(DataLink!F100>19,DataLink!E100,NA()) -> 1025 | L48: =DataLink!F100 -> 1159 | M48: =IF(DataLink!F122>19,DataLink!E124,NA()) -> 1200 | N48: =DataLink!F124 -> 148
B49: =DataLink!B29 -> 2002 | C49: =IF(DataLink!F149>19,DataLink!E149,NA()) -> 810 | D49: =DataLink!F149 -> 10783 | E49: =IF(DataLink!F29>19,DataLink!E29,NA()) -> 530 | F49: =DataLink!F29 -> 432 | G49: =IF(DataLink!F53>19,DataLink!E53,NA()) -> 690 | H49: =DataLink!F53 -> 3511 | I49: =IF(DataLink!F77>19,DataLink!E77,NA()) -> 884 | J49: =DataLink!F77 -> 5776 | K49: =IF(DataLink!F101>19,DataLink!E101,NA()) -> 961 | L49: =DataLink!F101 -> 951 | M49: =IF(DataLink!F123>19,DataLink!E125,NA()) -> 1003 | N49: =DataLink!F125 -> 113
B50: =DataLink!B30 -> 2001 | C50: =IF(DataLink!F150>19,DataLink!E150,NA()) -> 738 | D50: =DataLink!F150 -> 9376 | E50: =IF(DataLink!F30>19,DataLink!E30,NA()) -> 475 | F50: =DataLink!F30 -> 387 | G50: =IF(DataLink!F54>19,DataLink!E54,NA()) -> 619 | H50: =DataLink!F54 -> 3053 | I50: =IF(DataLink!F78>19,DataLink!E78,NA()) -> 818 | J50: =DataLink!F78 -> 5038 | K50: =IF(DataLink!F102>19,DataLink!E102,NA()) -> 876 | L50: =DataLink!F102 -> 807 | M50: =IF(DataLink!F124>19,DataLink!E126,NA()) -> 997 | N50: =DataLink!F126 -> 91
B51: =DataLink!B31 -> 2000 | C51: =IF(DataLink!F151>19,DataLink!E151,NA()) -> 697 | D51: =DataLink!F151 -> 10643 | E51: =IF(DataLink!F31>19,DataLink!E31,NA()) -> 450 | F51: =DataLink!F31 -> 504 | G51: =IF(DataLink!F55>19,DataLink!E55,NA()) -> 587 | H51: =DataLink!F55 -> 3342 | I51: =IF(DataLink!F79>19,DataLink!E79,NA()) -> 774 | J51: =DataLink!F79 -> 5815 | K51: =IF(DataLink!F103>19,DataLink!E103,NA()) -> 813 | L51: =DataLink!F103 -> 890 | M51: =IF(DataLink!F125>19,DataLink!E127,NA()) -> 918 | N51: =DataLink!F127 -> 92
C52: Source: NHHFA Residential Rental Cost Survey
C53: Note: Calculations based on a sample size of less than 20 are highly volatile and not considered valid.
B56: Percent Change in Median Gross Rental Cost
C58: All Units | E58: 0-Bedroom Units | G58: 1-Bedroom Units | I58: 2-Bedroom Units | K58: 3-Bedroom Units | M58: 4+Bedroom Units
B60: 2014 to 23 | C60: =(C28-C37)/C37 -> 0.5853423337 | E60: =(E28-E37)/E37 -> 0.675994109 | G60: =(G28-G37)/G37 -> 0.5800464037 | I60: =(I28-I37)/I37 -> 0.5920577617 | K60: =(K28-K37)/K37 -> 0.4299923489 | M60: =(M28-M37)/M37 -> 0.291875
B61: Avg /Year | C61: =C60/10 -> 0.05853423337 | E61: =E60/10 -> 0.0675994109 | G61: =G60/10 -> 0.05800464037 | I61: =I60/10 -> 0.05920577617 | K61: =K60/10 -> 0.04299923489 | M61: =M60/10 -> 0.0291875
B63: 2022 to 23 | C63: =(C28-C29)/C29 -> 0.08874172185 | E63: =(E28-E29)/E29 -> 0.05175600739 | G63: =(G28-G29)/G29 -> 0.09134615385 | I63: =(I28-I29)/I29 -> 0.1136363636 | K63: =(K28-K29)/K29 -> 0.1537037037 | M63: =(M28-M29)/M29 -> 0.1307439825
B64: 2021 to 22 | C64: =(C29-C30)/C30 -> 0.09978150036 | E64: =(E29-E30)/E30 -> 0.2351598174 | G64: =(G29-G30)/G30 -> 0.1162790698 | I64: =(I29-I30)/I30 -> 0.05740987984 | K64: =(K29-K30)/K30 -> 0.07569721116 | M64: =(M29-M30)/M30 -> 0.02638966873
B65: 2020 to 21 | C65: =(C30-C31)/C31 -> 0.07014809041 | E65: =(E30-E31)/E31 -> -0.02666666667 | G65: =(G30-G31)/G31 -> 0.02193784278 | I65: =(I30-I31)/I31 -> 0.0601556971 | K65: =(K30-K31)/K31 -> 0.02101694915 | M65: =(M30-M31)/M31 -> 0.1272151899
B66: 2019 to 20 | C66: =(C31-C32)/C32 -> 0.02557953637 | E66: =(E31-E32)/E32 -> 0.0101010101 | G66: =(G31-G32)/G32 -> 0.03696682464 | I66: =(I31-I32)/I32 -> 0.04899777283 | K66: =(K31-K32)/K32 -> 0.006139154161 | M66: =(M31-M32)/M32 -> -0.07058823529
B67: 2018 to 19 | C67: =(C32-C33)/C33 -> 0.06287170773 | E67: =(E32-E33)/E33 -> 0.1864181092 | G67: =(G32-G33)/G33 -> 0.07873210634 | I67: =(I32-I33)/I33 -> 0.03935185185 | K67: =(K32-K33)/K33 -> 0.02949438202 | M67: =(M32-M33)/M33 -> 0.07663077897
B68: 2017 to 18 | C68: =(C33-C34)/C34 -> 0.02974628171 | E68: =(E33-E34)/E34 -> 0.0774748924 | G68: =(G33-G34)/G34 -> 0.04375667022 | I68: =(I33-I34)/I34 -> 0.02938840349 | K68: =(K33-K34)/K34 -> 0.01714285714 | M68: =(M33-M34)/M34 -> -0.0295021512
B69: 2016 to 17 | C69: 0.0269541779 | E69: -0.004285714286 | G69: 0.01406926407 | I69: 0.04394693201 | K69: 0.03626943005 | M69: 0.02006269592
B70: 2015 to 16 | C70: 0.04115996258 | E70: -0.001426533524 | G70: 0.03587443946 | I70: 0.04235090752 | K70: 0.03129770992 | M70: 0.005040957782
B71: 2014 to 15 | C71: 0.03085824494 | E71: 0.0324005891 | G71: 0.03480278422 | I71: 0.04422382671 | K71: 0.002295332823 | M71: -0.008125
B72: 2013 to 14 | C72: 0.01866404715 | E72: 0.01343283582 | G72: 0.0117370892 | I72: 0.02973977695 | K72: 0.02189210321 | M72: 0.07599193006
B73: 2012 to 13 | C73: 0.01293532338 | E73: 0.03875968992 | G73: 0.004716981132 | I73: -0.008294930876 | K73: -0.002340093604 | M73: -0.002013422819
B74: 2011 to 12 | C74: 0.02238046796 | E74: 0.001552795031 | G74: 0.02787878788 | I74: 0.03530534351 | K74: 0.01584786054 | M74: 0.03977669225
B75: 2010 to 11 | C75: 0.00306122449 | E75: 0.01098901099 | G75: 0.01226993865 | I75: -0.007575757576 | K75: 0.04039571311 | M75: -0.004169562196
B76: 2009 to 10 | C76: 0.01135190918 | E76: -0.02 | G76: 0.008663366337 | I76: 0.0144092219 | K76: 0.0008250825083 | M76: 0.004187020237
B77: 2008 to 09 | C77: 0 | E77: 0.05691056911 | G77: 0.01 | I77: -0.002873563218 | K77: 0.01 | M77: -0.02251023192
B78: 2007 to 08 | C78: 0.02431289641 | E78: -0.02996845426 | G78: 0.02827763496 | I78: 0.01457725948 | K78: 0.004184100418 | M78: 0.0201809325
B79: 2006 to 07 | C79: 0.01939655172 | E79: 0.05666666667 | G79: -0.0201511335 | I79: 0.0259222333 | K79: 0.000837520938 | M79: 0.02642857143
B80: 2005 to 06 | C80: 0.02996670366 | E80: 0.02564102564 | G80: 0.05866666667 | I80: 0.01415571284 | K80: 0.06989247312 | M80: 0.04868913858
B81: 2004 to 05 | C81: 0.005580357143 | E81: -0.01182432432 | G81: -0.005305039788 | I81: 0.01124744376 | K81: 0.02010968921 | M81: 0.04788069074
B82: 2003 to 04 | C82: 0.04918032787 | E82: 0.07636363636 | G82: 0.02445652174 | I82: 0.04935622318 | K82: 0.06731707317 | M82: 0.06166666667
B83: 2002 to 03 | C83: 0.05432098765 | E83: 0.03773584906 | G83: 0.06666666667 | I83: 0.05429864253 | K83: 0.06659729448 | M83: 0.1964107677
B84: 2001 to 02 | C84: 0.09756097561 | E84: 0.1157894737 | G84: 0.1147011309 | I84: 0.08068459658 | K84: 0.09703196347 | M84: 0.006018054162
B85: 2000 to 01 | C85: 0.05882352941 | E85: 0.05555555556 | G85: 0.05451448041 | I85: 0.05684754522 | K85: 0.07749077491 | M85: 0.08605664488
E113: All Units | G113: 2-Bedroom Units
D114: Year | E114: Vacancy Rate | F114: Sample Size | G114: Vacancy Rate | H114: Sample Size
D115: =DataLink!B128 -> 2023 | E115: =IF(DataLink!F128>19,DataLink!I128,NA()) -> 0.007697279511 | F115: =DataLink!F128 -> 8255 | G115: =IF(DataLink!F56>19,DataLink!I56,NA()) -> 0.006303418803 | H115: =DataLink!F56 -> 4080
D116: =DataLink!B129 -> 2022 | E116: =IF(DataLink!F129>19,DataLink!I129,NA()) -> 0.004539527696 | F116: =DataLink!F129 -> 9662 | G116: =IF(DataLink!F57>19,DataLink!I57,NA()) -> 0.003124442064 | H116: =DataLink!F57 -> 4633
D117: =DataLink!B130 -> 2021 | E117: =IF(DataLink!F130>19,DataLink!I130,NA()) -> 0.008531846596 | F117: =DataLink!F130 -> 10874 | G117: =IF(DataLink!F58>19,DataLink!I58,NA()) -> 0.005619661322 | H117: =DataLink!F58 -> 5492
D118: =DataLink!B131 -> 2020 | E118: =IF(DataLink!F131>19,DataLink!I131,NA()) -> 0.01821561338 | F118: =DataLink!F131 -> 9773 | G118: =IF(DataLink!F59>19,DataLink!I59,NA()) -> 0.01693086563 | H118: =DataLink!F59 -> 4851
D119: =DataLink!B132 -> 2019 | E119: =IF(DataLink!F132>19,DataLink!I132,NA()) -> 0.008119843682 | F119: =DataLink!F132 -> 9700 | G119: =IF(DataLink!F60>19,DataLink!I60,NA()) -> 0.00753920386 | H119: =DataLink!F60 -> 5002
D120: =DataLink!B133 -> 2018 | E120: =IF(DataLink!F133>19,DataLink!I133,NA()) -> 0.02095395644 | F120: =DataLink!F133 -> 8962 | G120: =IF(DataLink!F61>19,DataLink!I61,NA()) -> 0.01963648166 | H120: =DataLink!F61 -> 4645
D121: =DataLink!B134 -> 2017 | E121: =IF(DataLink!F134>19,DataLink!I134,NA()) -> 0.016863 | F121: =DataLink!F134 -> 10830 | G121: =IF(DataLink!F62>19,DataLink!I62,NA()) -> 0.013973 | H121: =DataLink!F62 -> 5504
D122: =DataLink!B135 -> 2016 | E122: =IF(DataLink!F135>19,DataLink!I135,NA()) -> 0.017911 | F122: =DataLink!F135 -> 13650 | G122: =IF(DataLink!F63>19,DataLink!I63,NA()) -> 0.014581 | H122: =DataLink!F63 -> 6742
D123: =DataLink!B136 -> 2015 | E123: =IF(DataLink!F136>19,DataLink!I136,NA()) -> 0.02763 | F123: =DataLink!F136 -> 14559 | G123: =IF(DataLink!F64>19,DataLink!I64,NA()) -> 0.022349 | H123: =DataLink!F64 -> 7393
D124: =DataLink!B137 -> 2014 | E124: =IF(DataLink!F137>19,DataLink!I137,NA()) -> 0.026725 | F124: =DataLink!F137 -> 14208 | G124: =IF(DataLink!F65>19,DataLink!I65,NA()) -> 0.024631 | H124: =DataLink!F65 -> 7041
D125: =DataLink!B138 -> 2013 | E125: =IF(DataLink!F138>19,DataLink!I138,NA()) -> 0.034497 | F125: =DataLink!F138 -> 14620 | G125: =IF(DataLink!F66>19,DataLink!I66,NA()) -> 0.032616 | H125: =DataLink!F66 -> 7165
D126: =DataLink!B139 -> 2012 | E126: =IF(DataLink!F139>19,DataLink!I139,NA()) -> 0.032391 | F126: =DataLink!F139 -> 14413 | G126: =IF(DataLink!F67>19,DataLink!I67,NA()) -> 0.032314 | H126: =DataLink!F67 -> 7054
D127: =DataLink!B140 -> 2011 | E127: =IF(DataLink!F140>19,DataLink!I140,NA()) -> 0.03918 | F127: =DataLink!F140 -> 13607 | G127: =IF(DataLink!F68>19,DataLink!I68,NA()) -> 0.035326 | H127: =DataLink!F68 -> 6733
D128: =DataLink!B141 -> 2010 | E128: =IF(DataLink!F141>19,DataLink!I141,NA()) -> 0.050359 | F128: =DataLink!F141 -> 14071 | G128: =IF(DataLink!F69>19,DataLink!I69,NA()) -> 0.043917 | H128: =DataLink!F69 -> 6922
D129: =DataLink!B142 -> 2009 | E129: =IF(DataLink!F142>19,DataLink!I142,NA()) -> 0.052636 | F129: =DataLink!F142 -> 15062 | G129: =IF(DataLink!F70>19,DataLink!I70,NA()) -> 0.047233 | H129: =DataLink!F70 -> 7335
D130: =DataLink!B143 -> 2008 | E130: =IF(DataLink!F143>19,DataLink!I143,NA()) -> 0.039893 | F130: =DataLink!F143 -> 13128 | G130: =IF(DataLink!F71>19,DataLink!I71,NA()) -> 0.037359 | H130: =DataLink!F71 -> 6473
D131: =DataLink!B144 -> 2007 | E131: =IF(DataLink!F144>19,DataLink!I144,NA()) -> 0.041528 | F131: =DataLink!F144 -> 13501 | G131: =IF(DataLink!F72>19,DataLink!I72,NA()) -> 0.034239 | H131: =DataLink!F72 -> 6800
D132: =DataLink!B145 -> 2006 | E132: =IF(DataLink!F145>19,DataLink!I145,NA()) -> 0.033832 | F132: =DataLink!F145 -> 13760 | G132: =IF(DataLink!F73>19,DataLink!I73,NA()) -> 0.026238 | H132: =DataLink!F73 -> 6924
D133: =DataLink!B146 -> 2005 | E133: =IF(DataLink!F146>19,DataLink!I146,NA()) -> 0.03127 | F133: =DataLink!F146 -> 13157 | G133: =IF(DataLink!F74>19,DataLink!I74,NA()) -> 0.028406 | H133: =DataLink!F74 -> 6793
D134: =DataLink!B147 -> 2004 | E134: =IF(DataLink!F147>19,DataLink!I147,NA()) -> 0.025905 | F134: =DataLink!F147 -> 12266 | G134: =IF(DataLink!F75>19,DataLink!I75,NA()) -> 0.023949 | H134: =DataLink!F75 -> 6581
D135: =DataLink!B148 -> 2003 | E135: =IF(DataLink!F148>19,DataLink!I148,NA()) -> 0.018984 | F135: =DataLink!F148 -> 13166 | G135: =IF(DataLink!F76>19,DataLink!I76,NA()) -> 0.017527 | H135: =DataLink!F76 -> 7171
D136: =DataLink!B149 -> 2002 | E136: =IF(DataLink!F149>19,DataLink!I149,NA()) -> 0.010984 | F136: =DataLink!F149 -> 10783 | G136: =IF(DataLink!F77>19,DataLink!I77,NA()) -> 0.008836 | H136: =DataLink!F77 -> 5776
D137: =DataLink!B150 -> 2001 | E137: =IF(DataLink!F150>19,DataLink!I150,NA()) -> 0.010066 | F137: =DataLink!F150 -> 9376 | G137: =IF(DataLink!F78>19,DataLink!I78,NA()) -> 0.009041 | H137: =DataLink!F78 -> 5038
D138: =DataLink!B151 -> 2000 | E138: =IF(DataLink!F151>19,DataLink!I151,NA()) -> 0.010226 | F138: =DataLink!F151 -> 10643 | G138: =IF(DataLink!F79>19,DataLink!I79,NA()) -> 0.006701 | H138: =DataLink!F79 -> 5815
D140: Source: NHHFA Residential Rental Cost Survey
D142: Note: Calculations based on a sample size of less than 20 are highly
D143: volatile and not considered valid.
D145: Caution should be used in interpreting these numbers since the
D146: survey methods used may underestimate the real rate of vacancy.

Sheet StateFrequency (hidden)
B2: =DataLink!A5 -> State of New Hampshire
B82: =DataLink2!A57 -> Output for Freq Chart
B83: =DataLink2!A58 -> State of New Hampshire
B84: =DataLink2!C302 -> Year | C84: =DataLink2!E302 -> Bedroom | D84: Median Rent | E84: =DataLink2!G302 -> 400 | F84: =DataLink2!H302 -> 500 | G84: =DataLink2!I302 -> 600 | H84: =DataLink2!J302 -> 700 | I84: =DataLink2!K302 -> 800 | J84: =DataLink2!L302 -> 900 | K84: =DataLink2!M302 -> 1000 | L84: =DataLink2!N302 -> 1100 | M84: =DataLink2!O302 -> 1200 | N84: =DataLink2!P302 -> 1300 | O84: =DataLink2!Q302 -> 1400 | P84: =DataLink2!R302 -> 1500 | Q84: =DataLink2!S302 -> 1600 | R84: =DataLink2!T302 -> 1700 | S84: =DataLink2!U302 -> 1800 | T84: =DataLink2!V302 -> 1900 | U84: =DataLink2!W302 -> 2000 | V84: =DataLink2!X302 -> 2100 | W84: =DataLink2!Y302 -> 2200 | X84: =DataLink2!Z302 -> 2300 | Y84: =DataLink2!AA302 -> 2400 | Z84: =DataLink2!AB302 -> 2500 | AA84: =DataLink2!AC302 -> 2600 | AB84: =DataLink2!AD302 -> 2700 | AC84: =DataLink2!AE302 -> 2800 | AD84: =DataLink2!AF302 -> 2900 | AE84: =DataLink2!AG302 -> 3000 | AF84: =DataLink2!AH302 -> 3100 | AG84: =DataLink2!AI302 -> 3200 | AH84: =DataLink2!AJ302 -> 3300 | AI84: =DataLink2!AK302 -> 3400 | AJ84: =DataLink2!AL302 -> 3500 | AK84: =DataLink2!AM302 -> 3600 | AL84: =DataLink2!AN302 -> 3700 | AM84: =DataLink2!AO302 -> 3800 | AN84: =DataLink2!AP302 -> 3900 | AO84: =DataLink2!AQ302 -> 4000 | AP84: =DataLink2!AR302 -> 4100 | AQ84: =DataLink2!AS302 -> 4200 | AR84: =DataLink2!AT302 -> 4300 | AS84: =DataLink2!AU302 -> 4400
B85: =DataLink2!C60 -> 2023 | C85: =DataLink2!E60 -> 2 Bedroom Units | D85: =DataLink2!F60 -> 1764 | E85: =DataLink2!G60 -> 0 | F85: =DataLink2!H60 -> 2 | G85: =DataLink2!I60 -> 3 | H85: =DataLink2!J60 -> 10 | I85: =DataLink2!K60 -> 41 | J85: =DataLink2!L60 -> 85 | K85: =DataLink2!M60 -> 101 | L85: =DataLink2!N60 -> 146 | M85: =DataLink2!O60 -> 220 | N85: =DataLink2!P60 -> 232 | O85: =DataLink2!Q60 -> 274 | P85: =DataLink2!S60 -> 298 | Q85: =DataLink2!T60 -> 271 | R85: =DataLink2!U60 -> 191 | S85: =DataLink2!V60 -> 283 | T85: =DataLink2!W60 -> 204 | U85: =DataLink2!X60 -> 393 | V85: =DataLink2!Y60 -> 129 | W85: =DataLink2!Z60 -> 223 | X85: =DataLink2!AA60 -> 142 | Y85: =DataLink2!AB60 -> 52 | Z85: =DataLink2!AC60 -> 134 | AA85: =DataLink2!AD60 -> 87 | AB85: =DataLink2!AE60 -> 42 | AC85: =DataLink2!AF60 -> 75 | AD85: =DataLink2!AG60 -> 1 | AE85: =DataLink2!AH60 -> 34 | AF85: =DataLink2!AI60 -> 2 | AG85: =DataLink2!AJ60 -> 1 | AH85: =DataLink2!AK60 -> 0 | AI85: =DataLink2!AL60 -> 2 | AJ85: =DataLink2!AM60 -> 0 | AK85: =DataLink2!AN60 -> 0 | AL85: =DataLink2!AO60 -> 0 | AM85: =DataLink2!AP60 -> 0 | AN85: =DataLink2!AQ60 -> 0 | AO85: =DataLink2!AR60 -> 0 | AP85: =DataLink2!AS60 -> 1 | AQ85: =DataLink2!AT60 -> 0 | AR85: =DataLink2!AU60 -> 0 | AS85: =DataLink2!AV60 -> 0
B86: =DataLink2!C61 -> 2023 | C86: =DataLink2!E61 -> All Units | D86: =DataLink2!F61 -> 1644 | E86: =DataLink2!G61 -> 3 | F86: =DataLink2!H61 -> 5 | G86: =DataLink2!I61 -> 28 | H86: =DataLink2!J61 -> 77 | I86: =DataLink2!K61 -> 214 | J86: =DataLink2!L61 -> 357 | K86: =DataLink2!M61 -> 357 | L86: =DataLink2!N61 -> 437 | M86: =DataLink2!O61 -> 551 | N86: =DataLink2!P61 -> 530 | O86: =DataLink2!Q61 -> 580 | P86: =DataLink2!S61 -> 534 | Q86: =DataLink2!T61 -> 515 | R86: =DataLink2!U61 -> 482 | S86: =DataLink2!V61 -> 604 | T86: =DataLink2!W61 -> 349 | U86: =DataLink2!X61 -> 529 | V86: =DataLink2!Y61 -> 242 | W86: =DataLink2!Z61 -> 313 | X86: =DataLink2!AA61 -> 218 | Y86: =DataLink2!AB61 -> 73 | Z86: =DataLink2!AC61 -> 160 | AA86: =DataLink2!AD61 -> 131 | AB86: =DataLink2!AE61 -> 63 | AC86: =DataLink2!AF61 -> 86 | AD86: =DataLink2!AG61 -> 14 | AE86: =DataLink2!AH61 -> 38 | AF86: =DataLink2!AI61 -> 6 | AG86: =DataLink2!AJ61 -> 10 | AH86: =DataLink2!AK61 -> 3 | AI86: =DataLink2!AL61 -> 5 | AJ86: =DataLink2!AM61 -> 0 | AK86: =DataLink2!AN61 -> 0 | AL86: =DataLink2!AO61 -> 3 | AM86: =DataLink2!AP61 -> 0 | AN86: =DataLink2!AQ61 -> 1 | AO86: =DataLink2!AR61 -> 0 | AP86: =DataLink2!AS61 -> 1 | AQ86: =DataLink2!AT61 -> 1 | AR86: =DataLink2!AU61 -> 3 | AS86: =DataLink2!AV61 -> 0
B88: =B85 -> 2023 | C88: 2 Bedroom Units | E88: =IF($D$85>(E84-50), IF($D$85<(E84+50), $D85, " "), " ") ->  | O88: =IF($D$85>(O84-50), IF($D$85<(O84+50), $D85, " "), " ") ->  | S88: 1764
B89: =B86 -> 2023 | C89: All Units | E89: =IF($D$86>(E84-50), IF($D$86<(E84+50), $D86, " "), " ") ->  | F89: =IF($D$86>(F84-50), IF($D$86<(F84+50), $D86, " "), " ") ->  | N89: =IF($D$86>(N84-50), IF($D$86<(N84+50), $D86, " "), " ") ->  | O89: =IF($D$86>(O84-50), IF($D$86<(O84+50), $D86, " "), " ") ->  | Q89: 1644

Sheet CountyFrequency (hidden)
B2: =DataLink!A165 -> Grafton County
B82: =DataLink2!A119 -> Output for Freq Chart
B83: =DataLink2!A120 -> Grafton County
B84: =DataLink2!C122 -> Year | C84: Bedroom | D84: =DataLink2!F122 -> MedianRent | E84: =DataLink2!G122 -> 400 | F84: =DataLink2!H122 -> 500 | G84: =DataLink2!I122 -> 600 | H84: =DataLink2!J122 -> 700 | I84: =DataLink2!K122 -> 800 | J84: =DataLink2!L122 -> 900 | K84: =DataLink2!M122 -> 1000 | L84: =DataLink2!N122 -> 1100 | M84: =DataLink2!O122 -> 1200 | N84: =DataLink2!P122 -> 1300 | O84: =DataLink2!Q122 -> 1400 | P84: =DataLink2!R122 -> 1500 | Q84: =DataLink2!S122 -> 1600 | R84: =DataLink2!T122 -> 1700 | S84: =DataLink2!U122 -> 1800 | T84: =DataLink2!V122 -> 1900 | U84: =DataLink2!W122 -> 2000 | V84: =DataLink2!X122 -> 2100 | W84: =DataLink2!Y122 -> 2200 | X84: =DataLink2!Z122 -> 2300 | Y84: =DataLink2!AA122 -> 2400 | Z84: =DataLink2!AB122 -> 2500 | AA84: =DataLink2!AC122 -> 2600 | AB84: =DataLink2!AD122 -> 2700 | AC84: =DataLink2!AE122 -> 2800 | AD84: =DataLink2!AF122 -> 2900 | AE84: =DataLink2!AG122 -> 3000 | AF84: =DataLink2!AH122 -> 3100 | AG84: =DataLink2!AI122 -> 3200 | AH84: =DataLink2!AJ122 -> 3300 | AI84: =DataLink2!AK122 -> 3400 | AJ84: =DataLink2!AL122 -> 3500 | AK84: =DataLink2!AM122 -> 3600 | AL84: =DataLink2!AN122 -> 3700 | AM84: =DataLink2!AO122 -> 3800 | AN84: =DataLink2!AP122 -> 3900 | AO84: =DataLink2!AQ122 -> 4000 | AP84: =DataLink2!AR122 -> 4100 | AQ84: =DataLink2!AS122 -> 4200 | AR84: =DataLink2!AT122 -> 4300 | AS84: =DataLink2!AU122 -> 4400
B85: =DataLink2!C123 -> 2023 | C85: =DataLink2!E123 -> 2 Bedroom Units | D85: =DataLink2!F123 -> 2081 | E85: =DataLink2!G123 -> 0 | F85: =DataLink2!H123 -> 0 | G85: =DataLink2!I123 -> 3 | H85: =DataLink2!J123 -> 1 | I85: =DataLink2!K123 -> 3 | J85: =DataLink2!L123 -> 5 | K85: =DataLink2!M123 -> 9 | L85: =DataLink2!N123 -> 17 | M85: =DataLink2!O123 -> 24 | N85: =DataLink2!P123 -> 10 | O85: =DataLink2!Q123 -> 2 | P85: =DataLink2!R123 -> 4 | Q85: =DataLink2!S123 -> 7 | R85: =DataLink2!T123 -> 1 | S85: =DataLink2!U123 -> 3 | T85: =DataLink2!V123 -> 11 | U85: =DataLink2!W123 -> 2 | V85: =DataLink2!X123 -> 1 | W85: =DataLink2!Y123 -> 0 | X85: =DataLink2!Z123 -> 0 | Y85: =DataLink2!AA123 -> 40 | Z85: =DataLink2!AB123 -> 0 | AA85: =DataLink2!AC123 -> 4 | AB85: =DataLink2!AD123 -> 25 | AC85: =DataLink2!AE123 -> 0 | AD85: =DataLink2!AF123 -> 0 | AE85: =DataLink2!AG123 -> 0 | AF85: =DataLink2!AH123 -> 32 | AG85: =DataLink2!AI123 -> 0 | AH85: =DataLink2!AJ123 -> 0 | AI85: =DataLink2!AK123 -> 0 | AJ85: =DataLink2!AL123 -> 0 | AK85: =DataLink2!AM123 -> 0 | AL85: =DataLink2!AN123 -> 0 | AM85: =DataLink2!AO123 -> 0 | AN85: =DataLink2!AP123 -> 0 | AO85: =DataLink2!AQ123 -> 0 | AP85: =DataLink2!AR123 -> 0 | AQ85: =DataLink2!AS123 -> 0 | AR85: =DataLink2!AT123 -> 0 | AS85: =DataLink2!AU123 -> 0
B86: =DataLink2!C124 -> 2023 | C86: =DataLink2!E124 -> All Units | D86: =DataLink2!F124 -> 1536 | E86: =DataLink2!G124 -> 3 | F86: =DataLink2!H124 -> 0 | G86: =DataLink2!I124 -> 8 | H86: =DataLink2!J124 -> 15 | I86: =DataLink2!K124 -> 32 | J86: =DataLink2!L124 -> 26 | K86: =DataLink2!M124 -> 28 | L86: =DataLink2!N124 -> 37 | M86: =DataLink2!O124 -> 36 | N86: =DataLink2!P124 -> 32 | O86: =DataLink2!Q124 -> 8 | P86: =DataLink2!R124 -> 12 | Q86: =DataLink2!S124 -> 11 | R86: =DataLink2!T124 -> 7 | S86: =DataLink2!U124 -> 11 | T86: =DataLink2!V124 -> 19 | U86: =DataLink2!W124 -> 6 | V86: =DataLink2!X124 -> 7 | W86: =DataLink2!Y124 -> 9 | X86: =DataLink2!Z124 -> 11 | Y86: =DataLink2!AA124 -> 68 | Z86: =DataLink2!AB124 -> 0 | AA86: =DataLink2!AC124 -> 6 | AB86: =DataLink2!AD124 -> 27 | AC86: =DataLink2!AE124 -> 3 | AD86: =DataLink2!AF124 -> 0 | AE86: =DataLink2!AG124 -> 0 | AF86: =DataLink2!AH124 -> 34 | AG86: =DataLink2!AI124 -> 1 | AH86: =DataLink2!AJ124 -> 4 | AI86: =DataLink2!AK124 -> 1 | AJ86: =DataLink2!AL124 -> 1 | AK86: =DataLink2!AM124 -> 0 | AL86: =DataLink2!AN124 -> 0 | AM86: =DataLink2!AO124 -> 0 | AN86: =DataLink2!AP124 -> 0 | AO86: =DataLink2!AQ124 -> 0 | AP86: =DataLink2!AR124 -> 0 | AQ86: =DataLink2!AS124 -> 0 | AR86: =DataLink2!AT124 -> 0 | AS86: =DataLink2!AU124 -> 1
B88: =B85 -> 2023 | C88: 2 Bedroom Units | E88: =IF($D$85>(E84-50), IF($D$85<(E84+50), $D85, " "), " ") ->  | O88: =IF($D$85>(O84-50), IF($D$85<(O84+50), $D85, " "), " ") ->  | V88: 2081
B89: 2023 | C89: All Units | E89: =IF($D$86>(E84-50), IF($D$86<(E84+50), $D86, " "), " ") ->  | F89: =IF($D$86>(F84-50), IF($D$86<(F84+50), $D86, " "), " ") ->  | N89: =IF($D$86>(N84-50), IF($D$86<(N84+50), $D86, " "), " ") ->  | O89: =IF($D$86>(O84-50), IF($D$86<(O84+50), $D86, " "), " ") ->  | P89: 1536

Sheet LMA_NECTAChartAndTable (hidden)
B2: =DataLink!A328 -> Nashua NH Metropolitan NECTA
C26: All Units | E26: 0-Bedroom Units | G26: 1-Bedroom Units | I26: 2-Bedroom Units | K26: 3-Bedroom Units | M26: 4+-Bedroom Units
B27: Year | C27: Median Gross Rental Cost | D27: Sample Size | E27: Median Gross Rental Cost | F27: Sample Size | G27: Median Gross Rental Cost | H27: Sample Size | I27: Median Gross Rental Cost | J27: Sample Size | K27: Median Gross Rental Cost | L27: Sample Size | M27: Median Gross Rental Cost | N27: Sample Size
B28: =DataLink!B450 -> 2023 | C28: =IF(DataLink!F450>19,DataLink!E450,NA()) -> 1897 | D28: =DataLink!F450 -> 1591 | E28: =IF(DataLink!F331>19,DataLink!E331,NA()) -> 1519 | F28: =DataLink!F331 -> 34 | G28: =IF(DataLink!F355>19,DataLink!E355,NA()) -> 1505 | H28: =DataLink!F355 -> 410 | I28: =IF(DataLink!F379>19,DataLink!E379,NA()) -> 2008 | J28: =DataLink!F379 -> 927 | K28: =IF(DataLink!F403>19,DataLink!E403,NA()) -> 1897 | L28: =DataLink!F403 -> 208 | M28: =IF(DataLink!F426>19,DataLink!E426,NA()) ->  | N28: =DataLink!F426 -> 12
B29: =DataLink!B451 -> 2022 | C29: =IF(DataLink!F451>19,DataLink!E451,NA()) -> 1858 | D29: =DataLink!F451 -> 2150 | E29: =IF(DataLink!F332>19,DataLink!E332,NA()) -> 1525 | F29: =DataLink!F332 -> 38 | G29: =IF(DataLink!F356>19,DataLink!E356,NA()) -> 1826 | H29: =DataLink!F356 -> 613 | I29: =IF(DataLink!F380>19,DataLink!E380,NA()) -> 1858 | J29: =DataLink!F380 -> 1280 | K29: =IF(DataLink!F404>19,DataLink!E404,NA()) -> 1876 | L29: =DataLink!F404 -> 193 | M29: =IF(DataLink!F427>19,DataLink!E427,NA()) -> 2295 | N29: =DataLink!F427 -> 26
B30: =DataLink!B452 -> 2021 | C30: =IF(DataLink!F452>19,DataLink!E452,NA()) -> 1556 | D30: =DataLink!F452 -> 2146 | E30: =IF(DataLink!F333>19,DataLink!E333,NA()) -> 1131 | F30: =DataLink!F333 -> 58 | G30: =IF(DataLink!F357>19,DataLink!E357,NA()) -> 1331 | H30: =DataLink!F357 -> 475 | I30: =IF(DataLink!F381>19,DataLink!E381,NA()) -> 1684 | J30: =DataLink!F381 -> 1357 | K30: =IF(DataLink!F405>19,DataLink!E405,NA()) -> 1802 | L30: =DataLink!F405 -> 227 | M30: =IF(DataLink!F428>19,DataLink!E428,NA()) -> 2059 | N30: =DataLink!F428 -> 29
B31: =DataLink!B453 -> 2020 | C31: =IF(DataLink!F453>19,DataLink!E453,NA()) -> 1512 | D31: =DataLink!F453 -> 1894 | E31: =IF(DataLink!F334>19,DataLink!E334,NA()) -> 953 | F31: =DataLink!F334 -> 52 | G31: =IF(DataLink!F358>19,DataLink!E358,NA()) -> 1260 | H31: =DataLink!F358 -> 540 | I31: =IF(DataLink!F382>19,DataLink!E382,NA()) -> 1566 | J31: =DataLink!F382 -> 1047 | K31: =IF(DataLink!F406>19,DataLink!E406,NA()) -> 1825 | L31: =DataLink!F406 -> 225 | M31: =IF(DataLink!F429>19,DataLink!E429,NA()) -> 2064 | N31: =DataLink!F429 -> 30
B32: =DataLink!B454 -> 2019 | C32: =IF(DataLink!F454>19,DataLink!E454,NA()) -> 1456 | D32: =DataLink!F454 -> 1950 | E32: =IF(DataLink!F335>19,DataLink!E335,NA()) -> 1043 | F32: =DataLink!F335 -> 34 | G32: =IF(DataLink!F359>19,DataLink!E359,NA()) -> 1220 | H32: =DataLink!F359 -> 534 | I32: =IF(DataLink!F383>19,DataLink!E383,NA()) -> 1500 | J32: =DataLink!F383 -> 1128 | K32: =IF(DataLink!F407>19,DataLink!E407,NA()) -> 1723 | L32: =DataLink!F407 -> 224 | M32: =IF(DataLink!F430>19,DataLink!E430,NA()) -> 2057 | N32: =DataLink!F430 -> 30
B33: =DataLink!B455 -> 2018 | C33: =IF(DataLink!F455>19,DataLink!E455,NA()) -> 1390 | D33: =DataLink!F455 -> 2324 | E33: =IF(DataLink!F336>19,DataLink!E336,NA()) -> 850 | F33: =DataLink!F336 -> 52 | G33: =IF(DataLink!F360>19,DataLink!E360,NA()) -> 1208 | H33: =DataLink!F360 -> 721 | I33: =IF(DataLink!F384>19,DataLink!E384,NA()) -> 1480 | J33: =DataLink!F384 -> 1345 | K33: =IF(DataLink!F408>19,DataLink!E408,NA()) -> 1594 | L33: =DataLink!F408 -> 175 | M33: =IF(DataLink!F431>19,DataLink!E431,NA()) -> 2035 | N33: =DataLink!F431 -> 31
B34: =DataLink!B456 -> 2017 | C34: =IF(DataLink!F456>19,DataLink!E456,NA()) -> 1344 | D34: =DataLink!F456 -> 2418 | E34: =IF(DataLink!F337>19,DataLink!E337,NA()) -> 720 | F34: =DataLink!F337 -> 94 | G34: =IF(DataLink!F361>19,DataLink!E361,NA()) -> 1107 | H34: =DataLink!F361 -> 775 | I34: =IF(DataLink!F385>19,DataLink!E385,NA()) -> 1433 | J34: =DataLink!F385 -> 1309 | K34: =IF(DataLink!F409>19,DataLink!E409,NA()) -> 1565 | L34: =DataLink!F409 -> 215 | M34: =IF(DataLink!F432>19,DataLink!E432,NA()) -> 1942 | N34: =DataLink!F432 -> 25
B35: =DataLink!B457 -> 2016 | C35: =IF(DataLink!F457>19,DataLink!E457,NA()) -> 1240 | D35: =DataLink!F457 -> 3046 | E35: =IF(DataLink!F338>19,DataLink!E338,NA()) -> 712 | F35: =DataLink!F338 -> 99 | G35: =IF(DataLink!F362>19,DataLink!E362,NA()) -> 1079 | H35: =DataLink!F362 -> 961 | I35: =IF(DataLink!F386>19,DataLink!E386,NA()) -> 1301 | J35: =DataLink!F386 -> 1705 | K35: =IF(DataLink!F410>19,DataLink!E410,NA()) -> 1518 | L35: =DataLink!F410 -> 253 | M35: =IF(DataLink!F433>19,DataLink!E433,NA()) -> 1579 | N35: =DataLink!F433 -> 28
B36: =DataLink!B458 -> 2015 | C36: =IF(DataLink!F458>19,DataLink!E458,NA()) -> 1169 | D36: =DataLink!F458 -> 3254 | E36: =IF(DataLink!F339>19,DataLink!E339,NA()) -> 700 | F36: =DataLink!F339 -> 129 | G36: =IF(DataLink!F363>19,DataLink!E363,NA()) -> 983 | H36: =DataLink!F363 -> 975 | I36: =IF(DataLink!F387>19,DataLink!E387,NA()) -> 1304 | J36: =DataLink!F387 -> 1797 | K36: =IF(DataLink!F411>19,DataLink!E411,NA()) -> 1519 | L36: =DataLink!F411 -> 307 | M36: =IF(DataLink!F434>19,DataLink!E434,NA()) -> 1747 | N36: =DataLink!F434 -> 46
B37: =DataLink!B459 -> 2014 | C37: =IF(DataLink!F459>19,DataLink!E459,NA()) -> 1113 | D37: =DataLink!F459 -> 2940 | E37: =IF(DataLink!F340>19,DataLink!E340,NA()) -> 672 | F37: =DataLink!F340 -> 132 | G37: =IF(DataLink!F364>19,DataLink!E364,NA()) -> 985 | H37: =DataLink!F364 -> 947 | I37: =IF(DataLink!F388>19,DataLink!E388,NA()) -> 1209 | J37: =DataLink!F388 -> 1507 | K37: =IF(DataLink!F412>19,DataLink!E412,NA()) -> 1488 | L37: =DataLink!F412 -> 318 | M37: =IF(DataLink!F435>19,DataLink!E435,NA()) -> 1803 | N37: =DataLink!F435 -> 36
B38: =DataLink!B460 -> 2013 | C38: =IF(DataLink!F460>19,DataLink!E460,NA()) -> 1107 | D38: =DataLink!F460 -> 3188 | E38: =IF(DataLink!F341>19,DataLink!E341,NA()) -> 680 | F38: =DataLink!F341 -> 119 | G38: =IF(DataLink!F365>19,DataLink!E365,NA()) -> 960 | H38: =DataLink!F365 -> 1036 | I38: =IF(DataLink!F389>19,DataLink!E389,NA()) -> 1165 | J38: =DataLink!F389 -> 1652 | K38: =IF(DataLink!F413>19,DataLink!E413,NA()) -> 1410 | L38: =DataLink!F413 -> 337 | M38: =IF(DataLink!F436>19,DataLink!E436,NA()) -> 1499 | N38: =DataLink!F436 -> 44
B39: =DataLink!B461 -> 2012 | C39: =IF(DataLink!F461>19,DataLink!E461,NA()) -> 1105 | D39: =DataLink!F461 -> 3344 | E39: =IF(DataLink!F342>19,DataLink!E342,NA()) -> 670 | F39: =DataLink!F342 -> 146 | G39: =IF(DataLink!F366>19,DataLink!E366,NA()) -> 928 | H39: =DataLink!F366 -> 1069 | I39: =IF(DataLink!F390>19,DataLink!E390,NA()) -> 1167 | J39: =DataLink!F390 -> 1727 | K39: =IF(DataLink!F414>19,DataLink!E414,NA()) -> 1433 | L39: =DataLink!F414 -> 347 | M39: =IF(DataLink!F437>19,DataLink!E437,NA()) -> 1677 | N39: =DataLink!F437 -> 55
B40: =DataLink!B462 -> 2011 | C40: =IF(DataLink!F462>19,DataLink!E462,NA()) -> 1084 | D40: =DataLink!F462 -> 3216 | E40: =IF(DataLink!F343>19,DataLink!E343,NA()) -> 650 | F40: =DataLink!F343 -> 116 | G40: =IF(DataLink!F367>19,DataLink!E367,NA()) -> 918 | H40: =DataLink!F367 -> 1019 | I40: =IF(DataLink!F391>19,DataLink!E391,NA()) -> 1147 | J40: =DataLink!F391 -> 1696 | K40: =IF(DataLink!F415>19,DataLink!E415,NA()) -> 1434 | L40: =DataLink!F415 -> 350 | M40: =IF(DataLink!F438>19,DataLink!E438,NA()) -> 1569 | N40: =DataLink!F438 -> 35
B41: =DataLink!B463 -> 2010 | C41: =IF(DataLink!F463>19,DataLink!E463,NA()) -> 1090 | D41: =DataLink!F463 -> 2961 | E41: =IF(DataLink!F344>19,DataLink!E344,NA()) -> 648 | F41: =DataLink!F344 -> 139 | G41: =IF(DataLink!F368>19,DataLink!E368,NA()) -> 881 | H41: =DataLink!F368 -> 856 | I41: =IF(DataLink!F392>19,DataLink!E392,NA()) -> 1189 | J41: =DataLink!F392 -> 1519 | K41: =IF(DataLink!F416>19,DataLink!E416,NA()) -> 1429 | L41: =DataLink!F416 -> 408 | M41: =IF(DataLink!F439>19,DataLink!E439,NA()) -> 1499 | N41: =DataLink!F439 -> 39
B42: =DataLink!B464 -> 2009 | C42: =IF(DataLink!F464>19,DataLink!E464,NA()) -> 1082 | D42: =DataLink!F464 -> 3465 | E42: =IF(DataLink!F345>19,DataLink!E345,NA()) -> 654 | F42: =DataLink!F345 -> 134 | G42: =IF(DataLink!F369>19,DataLink!E369,NA()) -> 890 | H42: =DataLink!F369 -> 1034 | I42: =IF(DataLink!F393>19,DataLink!E393,NA()) -> 1176 | J42: =DataLink!F393 -> 1841 | K42: =IF(DataLink!F417>19,DataLink!E417,NA()) -> 1475 | L42: =DataLink!F417 -> 409 | M42: =IF(DataLink!F440>19,DataLink!E440,NA()) -> 1569 | N42: =DataLink!F440 -> 47
B43: =DataLink!B465 -> 2008 | C43: =IF(DataLink!F465>19,DataLink!E465,NA()) -> 1080 | D43: =DataLink!F465 -> 3225 | E43: =IF(DataLink!F346>19,DataLink!E346,NA()) -> 650 | F43: =DataLink!F346 -> 133 | G43: =IF(DataLink!F370>19,DataLink!E370,NA()) -> 882 | H43: =DataLink!F370 -> 919 | I43: =IF(DataLink!F394>19,DataLink!E394,NA()) -> 1153 | J43: =DataLink!F394 -> 1709 | K43: =IF(DataLink!F418>19,DataLink!E418,NA()) -> 1443 | L43: =DataLink!F418 -> 410 | M43: =IF(DataLink!F441>19,DataLink!E441,NA()) -> 1483 | N43: =DataLink!F441 -> 54
B44: =DataLink!B466 -> 2007 | C44: =IF(DataLink!F466>19,DataLink!E466,NA()) -> 1058 | D44: =DataLink!F466 -> 3396 | E44: =IF(DataLink!F347>19,DataLink!E347,NA()) -> 650 | F44: =DataLink!F347 -> 125 | G44: =IF(DataLink!F371>19,DataLink!E371,NA()) -> 858 | H44: =DataLink!F371 -> 990 | I44: =IF(DataLink!F395>19,DataLink!E395,NA()) -> 1123 | J44: =DataLink!F395 -> 1840 | K44: =IF(DataLink!F419>19,DataLink!E419,NA()) -> 1386 | L44: =DataLink!F419 -> 394 | M44: =IF(DataLink!F442>19,DataLink!E442,NA()) -> 1521 | N44: =DataLink!F442 -> 47
B45: =DataLink!B467 -> 2006 | C45: =IF(DataLink!F467>19,DataLink!E467,NA()) -> 1046 | D45: =DataLink!F467 -> 3469 | E45: =IF(DataLink!F348>19,DataLink!E348,NA()) -> 664 | F45: =DataLink!F348 -> 127 | G45: =IF(DataLink!F372>19,DataLink!E372,NA()) -> 898 | H45: =DataLink!F372 -> 1029 | I45: =IF(DataLink!F396>19,DataLink!E396,NA()) -> 1103 | J45: =DataLink!F396 -> 1921 | K45: =IF(DataLink!F420>19,DataLink!E420,NA()) -> 1417 | L45: =DataLink!F420 -> 344 | M45: =IF(DataLink!F443>19,DataLink!E443,NA()) -> 1533 | N45: =DataLink!F443 -> 48
B46: =DataLink!B468 -> 2005 | C46: =IF(DataLink!F468>19,DataLink!E468,NA()) -> 1008 | D46: =DataLink!F468 -> 3067 | E46: =IF(DataLink!F349>19,DataLink!E349,NA()) -> 609 | F46: =DataLink!F349 -> 95 | G46: =IF(DataLink!F373>19,DataLink!E373,NA()) -> 835 | H46: =DataLink!F373 -> 868 | I46: =IF(DataLink!F397>19,DataLink!E397,NA()) -> 1078 | J46: =DataLink!F397 -> 1776 | K46: =IF(DataLink!F421>19,DataLink!E421,NA()) -> 1356 | L46: =DataLink!F421 -> 293 | M46: =IF(DataLink!F444>19,DataLink!E444,NA()) -> 1500 | N46: =DataLink!F444 -> 35
B47: =DataLink!B469 -> 2004 | C47: =IF(DataLink!F469>19,DataLink!E469,NA()) -> 1021 | D47: =DataLink!F469 -> 3029 | E47: =IF(DataLink!F350>19,DataLink!E350,NA()) -> 648 | F47: =DataLink!F350 -> 64 | G47: =IF(DataLink!F374>19,DataLink!E374,NA()) -> 860 | H47: =DataLink!F374 -> 826 | I47: =IF(DataLink!F398>19,DataLink!E398,NA()) -> 1046 | J47: =DataLink!F398 -> 1832 | K47: =IF(DataLink!F422>19,DataLink!E422,NA()) -> 1300 | L47: =DataLink!F422 -> 286 | M47: =IF(DataLink!F445>19,DataLink!E445,NA()) -> 1479 | N47: =DataLink!F445 -> 21
B48: =DataLink!B470 -> 2003 | C48: =IF(DataLink!F470>19,DataLink!E470,NA()) -> 968 | D48: =DataLink!F470 -> 2987 | E48: =IF(DataLink!F351>19,DataLink!E351,NA()) -> 585 | F48: =DataLink!F351 -> 76 | G48: =IF(DataLink!F375>19,DataLink!E375,NA()) -> 842 | H48: =DataLink!F375 -> 817 | I48: =IF(DataLink!F399>19,DataLink!E399,NA()) -> 1019 | J48: =DataLink!F399 -> 1843 | K48: =IF(DataLink!F423>19,DataLink!E423,NA()) -> 1280 | L48: =DataLink!F423 -> 235 | M48: =IF(DataLink!F446>19,DataLink!E446,NA()) ->  | N48: =DataLink!F446 -> 16
B49: =DataLink!B471 -> 2002 | C49: =IF(DataLink!F471>19,DataLink!E471,NA()) -> 959 | D49: =DataLink!F471 -> 2408 | E49: =IF(DataLink!F352>19,DataLink!E352,NA()) -> 547 | F49: =DataLink!F352 -> 53 | G49: =IF(DataLink!F376>19,DataLink!E376,NA()) -> 831 | H49: =DataLink!F376 -> 586 | I49: =IF(DataLink!F400>19,DataLink!E400,NA()) -> 1001 | J49: =DataLink!F400 -> 1531 | K49: =IF(DataLink!F424>19,DataLink!E424,NA()) -> 1160 | L49: =DataLink!F424 -> 226 | M49: =IF(DataLink!F447>19,DataLink!E447,NA()) ->  | N49: =DataLink!F447 -> 12
B50: =DataLink!B472 -> 2001 | C50: =IF(DataLink!F472>19,DataLink!E472,NA()) -> 923 | D50: =DataLink!F472 -> 1987 | E50: =IF(DataLink!F353>19,DataLink!E353,NA()) -> 495 | F50: =DataLink!F353 -> 45 | G50: =IF(DataLink!F377>19,DataLink!E377,NA()) -> 779 | H50: =DataLink!F377 -> 510 | I50: =IF(DataLink!F401>19,DataLink!E401,NA()) -> 953 | J50: =DataLink!F401 -> 1265 | K50: =IF(DataLink!F425>19,DataLink!E425,NA()) -> 1115 | L50: =DataLink!F425 -> 160 | M50: =IF(DataLink!F448>19,DataLink!E448,NA()) ->  | N50: =DataLink!F448 -> 7
B51: =DataLink!B473 -> 2000 | C51: =IF(DataLink!F473>19,DataLink!E473,NA()) -> 817 | D51: =DataLink!F473 -> 2632 | E51: =IF(DataLink!F354>19,DataLink!E354,NA()) -> 583 | F51: =DataLink!F354 -> 93 | G51: =IF(DataLink!F378>19,DataLink!E378,NA()) -> 699 | H51: =DataLink!F378 -> 700 | I51: =IF(DataLink!F402>19,DataLink!E402,NA()) -> 874 | J51: =DataLink!F402 -> 1625 | K51: =IF(DataLink!F430>19,DataLink!E430,NA()) -> 2057 | L51: =DataLink!F430 -> 30 | M51: =IF(DataLink!F449>19,DataLink!E449,NA()) ->  | N51: =DataLink!F449 -> 11
C52: Source: NHHFA Residential Rental Cost Survey
C53: Note: Calculations based on a sample size of less than 20 are highly volatile and not considered valid.
B56: Percent Change in Median Gross Rental Cost
C58: All Units | E58: 0-Bedroom Units | G58: 1-Bedroom Units | I58: 2-Bedroom Units | K58: 3-Bedroom Units | M58: 4+-Bedroom Units
B60: 2014 to 23 | C60: =(C28-C37)/C37 -> 0.7044025157 | E60: =(E28-E37)/E37 -> 1.260416667 | G60: =(G28-G37)/G37 -> 0.5279187817 | I60: =(I28-I37)/I37 -> 0.6608767577 | K60: =(K28-K37)/K37 -> 0.2748655914 | M60: =(M28-M37)/M37 -> 
B61: Avg /Year | C61: =C60/10 -> 0.07044025157 | E61: =E60/10 -> 0.1260416667 | G61: =G60/10 -> 0.05279187817 | I61: =I60/10 -> 0.06608767577 | K61: =K60/10 -> 0.02748655914 | M61: =M60/10 -> 
B63: 2021 to 22 | C63: =(C29-C30)/C30 -> 0.1940874036 | E63: =(E29-E30)/E30 -> 0.3483642794 | G63: =(G29-G30)/G30 -> 0.3719008264 | I63: =(I29-I30)/I30 -> 0.1033254157 | K63: =(K29-K30)/K30 -> 0.0410654828 | M63: =(M29-M30)/M30 -> 0.114618747
B64: 2020 to 21 | C64: =(C30-C31)/C31 -> 0.0291005291 | E64: =(E30-E31)/E31 -> 0.1867785939 | G64: =(G30-G31)/G31 -> 0.05634920635 | I64: =(I30-I31)/I31 -> 0.07535121328 | K64: =(K30-K31)/K31 -> -0.01260273973 | M64: =(M30-M31)/M31 -> -0.00242248062
B65: 2019 to 20 | C65: =(C31-C32)/C32 -> 0.03846153846 | E65: =(E31-E32)/E32 -> -0.08628954938 | G65: =(G31-G32)/G32 -> 0.03278688525 | I65: =(I31-I32)/I32 -> 0.044 | K65: =(K31-K32)/K32 -> 0.05919907139 | M65: =(M31-M32)/M32 -> 0.003403014098
B66: 2018 to 19 | C66: =(C32-C33)/C33 -> 0.04748201439 | E66: =(E32-E33)/E33 -> 0.2270588235 | G66: =(G32-G33)/G33 -> 0.009933774834 | I66: =(I32-I33)/I33 -> 0.01351351351 | K66: =(K32-K33)/K33 -> 0.08092848181 | M66: =(M32-M33)/M33 -> 0.01081081081
B67: 2017 to 18 | C67: =(C32-C34)/C34 -> 0.08333333333 | E67: =(E32-E34)/E34 -> 0.4486111111 | G67: =(G32-G34)/G34 -> 0.1020776874 | I67: =(I32-I34)/I34 -> 0.04675505932 | K67: =(K32-K34)/K34 -> 0.1009584665 | M67: =(M32-M34)/M34 -> 0.05921730175
B68: 2016 to 17 | C68: =(C34-C35)/C35 -> 0.08387096774 | E68: =(E34-E35)/E35 -> 0.01123595506 | G68: =(G34-G35)/G35 -> 0.02594995366 | I68: =(I34-I35)/I35 -> 0.1014604151 | K68: =(K34-K35)/K35 -> 0.03096179183 | M68: =(M34-M35)/M35 -> 0.2298923369
B69: 2015 to 16 | C69: 0.06073567151 | E69: 0.01714285714 | G69: 0.0976602238 | I69: -0.002300613497 | K69: -0.0006583278473 | M69: -0.09616485404
B70: 2014 to 15 | C70: 0.05031446541 | E70: 0.04166666667 | G70: -0.002030456853 | I70: 0.07857733664 | K70: 0.02083333333 | M70: -0.03105934554
B71: 2013 to 14 | C71: 0.005420054201 | E71: -0.01176470588 | G71: 0.02604166667 | I71: 0.03776824034 | K71: 0.05531914894 | M71: 0.2028018679
B72: 2012 to 13 | C72: 0.001809954751 | E72: 0.01492537313 | G72: 0.03448275862 | I72: -0.001713796058 | K72: -0.01605024424 | M72: -0.1061419201
B73: 2011 to 12 | C73: 0.01937269373 | E73: 0.03076923077 | G73: 0.01089324619 | I73: 0.01743679163 | K73: -0.0006973500697 | M73: 0.06883365201
B74: 2010 to 11 | C74: -0.005504587156 | E74: 0.003086419753 | G74: 0.04199772985 | I74: -0.03532380151 | K74: 0.003498950315 | M74: 0.04669779853
B75: 2009 to 10 | C75: 0.007393715342 | E75: -0.009174311927 | G75: -0.01011235955 | I75: 0.01105442177 | K75: -0.03118644068 | M75: -0.04461440408
B76: 2008 to 09 | C76: 0.001851851852 | E76: 0.006153846154 | G76: 0.009070294785 | I76: 0.01994796184 | K76: 0.02217602218 | M76: 0.05799055968
B77: 2007 to 08 | C77: 0.02079395085 | E77: 0 | G77: 0.02797202797 | I77: 0.0267141585 | K77: 0.04112554113 | M77: -0.02498356345
B78: 2006 to 07 | C78: 0.01147227533 | E78: -0.02108433735 | G78: -0.04454342984 | I78: 0.01813236627 | K78: -0.02187720536 | M78: -0.00782778865
B79: 2005 to 06 | C79: 0.0376984127 | E79: 0.09031198686 | G79: 0.0754491018 | I79: 0.02319109462 | K79: 0.04498525074 | M79: 0.022
B80: 2004 to 05 | C80: -0.01273261508 | E80: -0.06018518519 | G80: -0.02906976744 | I80: 0.03059273423 | K80: 0.04307692308 | M80: 0.01419878296
B81: 2003 to 04 | C81: 0.05475206612 | E81: 0.1076923077 | G81: 0.02137767221 | I81: 0.02649656526 | K81: 0.015625
B82: 2002 to 03 | C82: 0.009384775808 | E82: 0.06946983547 | G82: 0.01323706378 | I82: 0.01798201798 | K82: 0.1034482759
B83: 2001 to 02 | C83: 0.03900325027 | E83: 0.1050505051 | G83: 0.06675224647 | I83: 0.05036726128 | K83: 0.04035874439
B84: 2000 to 01 | C84: 0.1297429621 | E84: -0.1509433962 | G84: 0.1144492132 | I84: 0.09038901602 | K84: -0.4579484686
E114: All Units | G114: 2-Bedroom Units
D115: Year | E115: Vacancy Rate | F115: Sample Size | G115: Vacancy Rate | H115: Sample Size
D116: =DataLink!B450 -> 2023 | E116: =IF(DataLink!F450>19,DataLink!I450,NA()) -> 0.0068878 | F116: =DataLink!F450 -> 1591 | G116: =IF(DataLink!F379>19,DataLink!I379,NA()) -> 0.0082192 | H116: =DataLink!F379 -> 927
D117: =DataLink!B451 -> 2022 | E117: =IF(DataLink!F451>19,DataLink!I451,NA()) -> 0.0023054 | F117: =DataLink!F451 -> 2150 | G117: =IF(DataLink!F380>19,DataLink!I380,NA()) -> 0.0025496 | H117: =DataLink!F380 -> 1280
D118: =DataLink!B452 -> 2021 | E118: =IF(DataLink!F452>19,DataLink!I452,NA()) -> 0.003861 | F118: =DataLink!F452 -> 2146 | G118: =IF(DataLink!F381>19,DataLink!I381,NA()) -> 0.0023732 | H118: =DataLink!F381 -> 1357
D119: =DataLink!B453 -> 2020 | E119: =IF(DataLink!F453>19,DataLink!I453,NA()) -> 0.0182556 | F119: =DataLink!F453 -> 1894 | G119: =IF(DataLink!F382>19,DataLink!I382,NA()) -> 0.0156631 | H119: =DataLink!F382 -> 1047
D120: =DataLink!B454 -> 2019 | E120: =IF(DataLink!F454>19,DataLink!I454,NA()) -> 0.0055623 | F120: =DataLink!F454 -> 1950 | G120: =IF(DataLink!F383>19,DataLink!I383,NA()) -> 0.0050167 | H120: =DataLink!F383 -> 1128
D121: =DataLink!B455 -> 2018 | E121: =IF(DataLink!F455>19,DataLink!I455,NA()) -> 0.0148903 | F121: =DataLink!F455 -> 2324 | G121: =IF(DataLink!F384>19,DataLink!I384,NA()) -> 0.0196028 | H121: =DataLink!F384 -> 1345
D122: =DataLink!B456 -> 2017 | E122: =IF(DataLink!F456>19,DataLink!I456,NA()) -> 0.008089 | F122: =DataLink!F456 -> 2418 | G122: =IF(DataLink!F385>19,DataLink!I385,NA()) -> 0.007305 | H122: =DataLink!F385 -> 1309
D123: =DataLink!B457 -> 2016 | E123: =IF(DataLink!F457>19,DataLink!I457,NA()) -> 0.005584 | F123: =DataLink!F457 -> 3046 | G123: =IF(DataLink!F386>19,DataLink!I386,NA()) -> 0.004978 | H123: =DataLink!F386 -> 1705
D124: =DataLink!B458 -> 2015 | E124: =IF(DataLink!F458>19,DataLink!I458,NA()) -> 0.022725 | F124: =DataLink!F458 -> 3254 | G124: =IF(DataLink!F387>19,DataLink!I387,NA()) -> 0.016295 | H124: =DataLink!F387 -> 1797
D125: =DataLink!B459 -> 2014 | E125: =IF(DataLink!F459>19,DataLink!I459,NA()) -> 0.014384 | F125: =DataLink!F459 -> 2940 | G125: =IF(DataLink!F388>19,DataLink!I388,NA()) -> 0.011744 | H125: =DataLink!F388 -> 1507
D126: =DataLink!B460 -> 2013 | E126: =IF(DataLink!F460>19,DataLink!I460,NA()) -> 0.017357 | F126: =DataLink!F460 -> 3188 | G126: =IF(DataLink!F389>19,DataLink!I389,NA()) -> 0.016529 | H126: =DataLink!F389 -> 1652
D127: =DataLink!B461 -> 2012 | E127: =IF(DataLink!F461>19,DataLink!I461,NA()) -> 0.018206 | F127: =DataLink!F461 -> 3344 | G127: =IF(DataLink!F390>19,DataLink!I390,NA()) -> 0.020544 | H127: =DataLink!F390 -> 1727
D128: =DataLink!B462 -> 2011 | E128: =IF(DataLink!F462>19,DataLink!I462,NA()) -> 0.022997 | F128: =DataLink!F462 -> 3216 | G128: =IF(DataLink!F391>19,DataLink!I391,NA()) -> 0.020319 | H128: =DataLink!F391 -> 1696
D129: =DataLink!B463 -> 2010 | E129: =IF(DataLink!F463>19,DataLink!I463,NA()) -> 0.026393 | F129: =DataLink!F463 -> 2961 | G129: =IF(DataLink!F392>19,DataLink!I392,NA()) -> 0.020449 | H129: =DataLink!F392 -> 1519
D130: =DataLink!B464 -> 2009 | E130: =IF(DataLink!F464>19,DataLink!I464,NA()) -> 0.044442 | F130: =DataLink!F464 -> 3465 | G130: =IF(DataLink!F393>19,DataLink!I393,NA()) -> 0.039362 | H130: =DataLink!F393 -> 1841
D131: =DataLink!B465 -> 2008 | E131: =IF(DataLink!F465>19,DataLink!I465,NA()) -> 0.042237 | F131: =DataLink!F465 -> 3225 | G131: =IF(DataLink!F394>19,DataLink!I394,NA()) -> 0.04528 | H131: =DataLink!F394 -> 1709
D132: =DataLink!B466 -> 2007 | E132: =IF(DataLink!F466>19,DataLink!I466,NA()) -> 0.036409 | F132: =DataLink!F466 -> 3396 | G132: =IF(DataLink!F395>19,DataLink!I395,NA()) -> 0.031026 | H132: =DataLink!F395 -> 1840
D133: =DataLink!B467 -> 2006 | E133: =IF(DataLink!F467>19,DataLink!I467,NA()) -> 0.023968 | F133: =DataLink!F467 -> 3469 | G133: =IF(DataLink!F396>19,DataLink!I396,NA()) -> 0.017652 | H133: =DataLink!F396 -> 1921
D134: =DataLink!B468 -> 2005 | E134: =IF(DataLink!F468>19,DataLink!I468,NA()) -> 0.022183 | F134: =DataLink!F468 -> 3067 | G134: =IF(DataLink!F397>19,DataLink!I397,NA()) -> 0.022115 | H134: =DataLink!F397 -> 1776
D135: =DataLink!B469 -> 2004 | E135: =IF(DataLink!F469>19,DataLink!I469,NA()) -> 0.020046 | F135: =DataLink!F469 -> 3029 | G135: =IF(DataLink!F398>19,DataLink!I398,NA()) -> 0.021181 | H135: =DataLink!F398 -> 1832
D136: =DataLink!B470 -> 2003 | E136: =IF(DataLink!F470>19,DataLink!I470,NA()) -> 0.016802 | F136: =DataLink!F470 -> 2987 | G136: =IF(DataLink!F399>19,DataLink!I399,NA()) -> 0.016614 | H136: =DataLink!F399 -> 1843
D137: =DataLink!B471 -> 2002 | E137: =IF(DataLink!F471>19,DataLink!I471,NA()) -> 0.008796 | F137: =DataLink!F471 -> 2408 | G137: =IF(DataLink!F400>19,DataLink!I400,NA()) -> 0.007016 | H137: =DataLink!F400 -> 1531
D138: =DataLink!B472 -> 2001 | E138: =IF(DataLink!F472>19,DataLink!I472,NA()) -> 0.003914 | F138: =DataLink!F472 -> 1987 | G138: =IF(DataLink!F401>19,DataLink!I401,NA()) -> 0.003333 | H138: =DataLink!F401 -> 1265
D139: =DataLink!B473 -> 2000 | E139: =IF(DataLink!F473>19,DataLink!I473,NA()) -> 0.0043 | F139: =DataLink!F473 -> 2632 | G139: =IF(DataLink!F402>19,DataLink!I402,NA()) -> 0.004249 | H139: =DataLink!F402 -> 1625
D141: Source: NHHFA Residential Rental Cost Survey
D143: Note: Calculations based on a sample size of less than 20 are highly
D144: volatile and not considered valid.
D146: Caution should be used in interpreting these numbers since the
D147: survey methods used may underestimate the real rate of vacancy.

Sheet LMA_NECTAFrequency (hidden)
B2: =DataLink2!A300 -> Nashua NH Metropolitan NECTA
B81: =DataLink2!A299 -> Output for Freq Chart
B82: =DataLink2!A300 -> Nashua NH Metropolitan NECTA
B84: =DataLink2!C302 -> Year | C84: =DataLink2!E302 -> Bedroom | D84: =DataLink2!F302 -> MedianRent | E84: =DataLink2!G302 -> 400 | F84: =DataLink2!H302 -> 500 | G84: =DataLink2!I302 -> 600 | H84: =DataLink2!J302 -> 700 | I84: =DataLink2!K302 -> 800 | J84: =DataLink2!L302 -> 900 | K84: =DataLink2!M302 -> 1000 | L84: =DataLink2!N302 -> 1100 | M84: =DataLink2!O302 -> 1200 | N84: =DataLink2!P302 -> 1300 | O84: =DataLink2!Q302 -> 1400 | P84: =DataLink2!R302 -> 1500 | Q84: =DataLink2!S302 -> 1600 | R84: =DataLink2!T302 -> 1700 | S84: =DataLink2!U302 -> 1800 | T84: =DataLink2!V302 -> 1900 | U84: =DataLink2!W302 -> 2000 | V84: =DataLink2!X302 -> 2100 | W84: =DataLink2!Y302 -> 2200 | X84: =DataLink2!Z302 -> 2300 | Y84: =DataLink2!AA302 -> 2400 | Z84: =DataLink2!AB302 -> 2500 | AA84: =DataLink2!AC302 -> 2600 | AB84: =DataLink2!AD302 -> 2700 | AC84: =DataLink2!AE302 -> 2800 | AD84: =DataLink2!AF302 -> 2900 | AE84: =DataLink2!AG302 -> 3000 | AF84: =DataLink2!AH302 -> 3100 | AG84: =DataLink2!AI302 -> 3200 | AH84: =DataLink2!AJ302 -> 3300 | AI84: =DataLink2!AK302 -> 3400 | AJ84: =DataLink2!AL302 -> 3500 | AK84: =DataLink2!AM302 -> 3600 | AL84: =DataLink2!AN302 -> 3700 | AM84: =DataLink2!AO302 -> 3800 | AN84: =DataLink2!AP302 -> 3900 | AO84: =DataLink2!AQ302 -> 4000 | AP84: =DataLink2!AR302 -> 4100 | AQ84: =DataLink2!AS302 -> 4200 | AR84: =DataLink2!AT302 -> 4300 | AS84: =DataLink2!AU302 -> 4400
B85: =DataLink2!C303 -> 2022 | C85: =DataLink2!E303 -> 2 Bedroom Units | D85: =DataLink2!F303 -> 1858 | E85: =DataLink2!G303 -> 0 | F85: =DataLink2!H303 -> 0 | G85: =DataLink2!I303 -> 1 | H85: =DataLink2!J303 -> 1 | I85: =DataLink2!K303 -> 10 | J85: =DataLink2!L303 -> 16 | K85: =DataLink2!M303 -> 28 | L85: =DataLink2!N303 -> 37 | M85: =DataLink2!O303 -> 41 | N85: =DataLink2!P303 -> 47 | O85: =DataLink2!Q303 -> 89 | P85: =DataLink2!R303 -> 149 | Q85: =DataLink2!S303 -> 43 | R85: =DataLink2!T303 -> 99 | S85: =DataLink2!U303 -> 145 | T85: =DataLink2!V303 -> 106 | U85: =DataLink2!W303 -> 96 | V85: =DataLink2!X303 -> 110 | W85: =DataLink2!Y303 -> 1 | X85: =DataLink2!Z303 -> 35 | Y85: =DataLink2!AA303 -> 8 | Z85: =DataLink2!AB303 -> 0 | AA85: =DataLink2!AC303 -> 162 | AB85: =DataLink2!AD303 -> 16 | AC85: =DataLink2!AE303 -> 0 | AD85: =DataLink2!AF303 -> 36 | AE85: =DataLink2!AG303 -> 0 | AF85: =DataLink2!AH303 -> 2 | AG85: =DataLink2!AI303 -> 0 | AH85: =DataLink2!AJ303 -> 2 | AI85: =DataLink2!AK303 -> 0 | AJ85: =DataLink2!AL303 -> 0 | AK85: =DataLink2!AM303 -> 0 | AL85: =DataLink2!AN303 -> 0 | AM85: =DataLink2!AO303 -> 0 | AN85: =DataLink2!AP303 -> 0 | AO85: =DataLink2!AQ303 -> 0 | AP85: =DataLink2!AR303 -> 0 | AQ85: =DataLink2!AS303 -> 0 | AR85: =DataLink2!AT303 -> 0 | AS85: =DataLink2!AU303 -> 0
B86: =DataLink2!C304 -> 2023 | C86: =DataLink2!E304 -> All Units | D86: =DataLink2!F304 -> 1897 | E86: =DataLink2!G304 -> 0 | F86: =DataLink2!H304 -> 0 | G86: =DataLink2!I304 -> 0 | H86: =DataLink2!J304 -> 1 | I86: =DataLink2!K304 -> 18 | J86: =DataLink2!L304 -> 40 | K86: =DataLink2!M304 -> 48 | L86: =DataLink2!N304 -> 44 | M86: =DataLink2!O304 -> 56 | N86: =DataLink2!P304 -> 71 | O86: =DataLink2!Q304 -> 73 | P86: =DataLink2!R304 -> 139 | Q86: =DataLink2!S304 -> 107 | R86: =DataLink2!T304 -> 114 | S86: =DataLink2!U304 -> 141 | T86: =DataLink2!V304 -> 81 | U86: =DataLink2!W304 -> 138 | V86: =DataLink2!X304 -> 200 | W86: =DataLink2!Y304 -> 12 | X86: =DataLink2!Z304 -> 119 | Y86: =DataLink2!AA304 -> 18 | Z86: =DataLink2!AB304 -> 14 | AA86: =DataLink2!AC304 -> 68 | AB86: =DataLink2!AD304 -> 35 | AC86: =DataLink2!AE304 -> 4 | AD86: =DataLink2!AF304 -> 40 | AE86: =DataLink2!AG304 -> 7 | AF86: =DataLink2!AH304 -> 0 | AG86: =DataLink2!AI304 -> 0 | AH86: =DataLink2!AJ304 -> 0 | AI86: =DataLink2!AK304 -> 0 | AJ86: =DataLink2!AL304 -> 2 | AK86: =DataLink2!AM304 -> 0 | AL86: =DataLink2!AN304 -> 0 | AM86: =DataLink2!AO304 -> 1 | AN86: =DataLink2!AP304 -> 0 | AO86: =DataLink2!AQ304 -> 0 | AP86: =DataLink2!AR304 -> 0 | AQ86: =DataLink2!AS304 -> 0 | AR86: =DataLink2!AT304 -> 0 | AS86: =DataLink2!AU304 -> 0
B88: =B85 -> 2022 | C88: 2 Bedroom Units | E88: =IF($D$85>(E84-50), IF($D$85<(E84+50), $D85, " "), " ") ->  | O88: =IF($D$85>(O84-50), IF($D$85<(O84+50), $D85, " "), " ") ->  | T88: 1858
B89: 2023 | C89: All Units | E89: =IF($D$86>(E84-50), IF($D$86<(E84+50), $D86, " "), " ") ->  | F89: =IF($D$86>(F84-50), IF($D$86<(F84+50), $D86, " "), " ") ->  | N89: =IF($D$86>(N84-50), IF($D$86<(N84+50), $D86, " "), " ") ->  | O89: =IF($D$86>(O84-50), IF($D$86<(O84+50), $D86, " "), " ") ->  | T89: 1897

Sheet HUD_MetroNonMetChartAndTable (hidden)
B2: =DataLink!A489 -> Portsmouth-Rochester, NH HMFA
C26: All Units | E26: 0-Bedroom Units | G26: 1-Bedroom Units | I26: 2-Bedroom Units | K26: 3-Bedroom Units | M26: 4+-Bedroom Units
B27: Year | C27: Median Gross Rental Cost | D27: Sample Size | E27: Median Gross Rental Cost | F27: Sample Size | G27: Median Gross Rental Cost | H27: Sample Size | I27: Median Gross Rental Cost | J27: Sample Size | K27: Median Gross Rental Cost | L27: Sample Size | M27: Median Gross Rental Cost | N27: Sample Size
B28: =DataLink!B609 -> 2023 | C28: =IF(DataLink!F609>19,DataLink!E609,NA()) -> 1738 | D28: =DataLink!F609 -> 1363 | E28: =IF(DataLink!F492>19,DataLink!E492,NA()) -> 1138 | F28: =DataLink!F492 -> 30 | G28: =IF(DataLink!F513>19,DataLink!E513,NA()) -> 1484 | H28: =DataLink!F513 -> 275 | I28: =IF(DataLink!F537>19,DataLink!E537,NA()) -> 1911 | J28: =DataLink!F537 -> 818 | K28: =IF(DataLink!F561>19,DataLink!E561,NA()) -> 1752 | L28: =DataLink!F561 -> 191 | M28: =IF(DataLink!F585>19,DataLink!E585,NA()) -> 1891 | N28: =DataLink!F585 -> 49
B29: =DataLink!B610 -> 2022 | C29: =IF(DataLink!F610>19,DataLink!E610,NA()) -> 1586 | D29: =DataLink!F610 -> 1614 | E29: =IF(DataLink!F493>19,DataLink!E493,NA()) -> 1204 | F29: =DataLink!F493 -> 59 | G29: =IF(DataLink!F514>19,DataLink!E514,NA()) -> 1358 | H29: =DataLink!F514 -> 447 | I29: =IF(DataLink!F538>19,DataLink!E538,NA()) -> 1646 | J29: =DataLink!F538 -> 833 | K29: =IF(DataLink!F562>19,DataLink!E562,NA()) -> 1847 | L29: =DataLink!F562 -> 211 | M29: =IF(DataLink!F586>19,DataLink!E586,NA()) -> 1882 | N29: =DataLink!F586 -> 64
B30: =DataLink!B611 -> 2021 | C30: =IF(DataLink!F611>19,DataLink!E611,NA()) -> 1486 | D30: =DataLink!F611 -> 1979 | E30: =IF(DataLink!F494>19,DataLink!E494,NA()) -> 942 | F30: =DataLink!F494 -> 40 | G30: =IF(DataLink!F515>19,DataLink!E515,NA()) -> 1180 | H30: =DataLink!F515 -> 505 | I30: =IF(DataLink!F539>19,DataLink!E539,NA()) -> 1554 | J30: =DataLink!F539 -> 1181 | K30: =IF(DataLink!F563>19,DataLink!E563,NA()) -> 1587 | L30: =DataLink!F563 -> 223 | M30: =IF(DataLink!F587>19,DataLink!E587,NA()) -> 2117 | N30: =DataLink!F587 -> 30
B31: =DataLink!B612 -> 2020 | C31: =IF(DataLink!F612>19,DataLink!E612,NA()) -> 1425 | D31: =DataLink!F612 -> 1780 | E31: =IF(DataLink!F495>19,DataLink!E495,NA()) -> 886 | F31: =DataLink!F495 -> 104 | G31: =IF(DataLink!F516>19,DataLink!E516,NA()) -> 1154 | H31: =DataLink!F516 -> 451 | I31: =IF(DataLink!F540>19,DataLink!E540,NA()) -> 1562 | J31: =DataLink!F540 -> 973 | K31: =IF(DataLink!F564>19,DataLink!E564,NA()) -> 1591 | L31: =DataLink!F564 -> 189 | M31: =IF(DataLink!F588>19,DataLink!E588,NA()) -> 1513 | N31: =DataLink!F588 -> 63
B32: =DataLink!B613 -> 2019 | C32: =IF(DataLink!F613>19,DataLink!E613,NA()) -> 1371 | D32: =DataLink!F613 -> 1829 | E32: =IF(DataLink!F496>19,DataLink!E496,NA()) -> 951 | F32: =DataLink!F496 -> 52 | G32: =IF(DataLink!F517>19,DataLink!E517,NA()) -> 1055 | H32: =DataLink!F517 -> 496 | I32: =IF(DataLink!F541>19,DataLink!E541,NA()) -> 1478 | J32: =DataLink!F541 -> 998 | K32: =IF(DataLink!F565>19,DataLink!E565,NA()) -> 1580 | L32: =DataLink!F565 -> 214 | M32: =IF(DataLink!F589>19,DataLink!E589,NA()) -> 1865 | N32: =DataLink!F589 -> 69
B33: =DataLink!B614 -> 2018 | C33: =IF(DataLink!F614>19,DataLink!E614,NA()) -> 1221 | D33: =DataLink!F614 -> 1694 | E33: =IF(DataLink!F497>19,DataLink!E497,NA()) -> 825 | F33: =DataLink!F497 -> 43 | G33: =IF(DataLink!F518>19,DataLink!E518,NA()) -> 968 | H33: =DataLink!F518 -> 445 | I33: =IF(DataLink!F542>19,DataLink!E542,NA()) -> 1355 | J33: =DataLink!F542 -> 922 | K33: =IF(DataLink!F566>19,DataLink!E566,NA()) -> 1445 | L33: =DataLink!F566 -> 198 | M33: =IF(DataLink!F590>19,DataLink!E590,NA()) -> 1128 | N33: =DataLink!F590 -> 86
B34: =DataLink!B615 -> 2017 | C34: =IF(DataLink!F615>19,DataLink!E615,NA()) -> 1225 | D34: =DataLink!F615 -> 2192 | E34: =IF(DataLink!F498>19,DataLink!E498,NA()) -> 750 | F34: =DataLink!F498 -> 89 | G34: =IF(DataLink!F519>19,DataLink!E519,NA()) -> 941 | H34: =DataLink!F519 -> 600 | I34: =IF(DataLink!F543>19,DataLink!E543,NA()) -> 1363 | J34: =DataLink!F543 -> 1150 | K34: =IF(DataLink!F567>19,DataLink!E567,NA()) -> 1529 | L34: =DataLink!F567 -> 245 | M34: =IF(DataLink!F591>19,DataLink!E591,NA()) -> 1958 | N34: =DataLink!F591 -> 108
B35: =DataLink!B616 -> 2016 | C35: =IF(DataLink!F616>19,DataLink!E616,NA()) -> 1221 | D35: =DataLink!F616 -> 2456 | E35: =IF(DataLink!F499>19,DataLink!E499,NA()) -> 796 | F35: =DataLink!F499 -> 141 | G35: =IF(DataLink!F520>19,DataLink!E520,NA()) -> 950 | H35: =DataLink!F520 -> 710 | I35: =IF(DataLink!F544>19,DataLink!E544,NA()) -> 1321 | J35: =DataLink!F544 -> 1208 | K35: =IF(DataLink!F568>19,DataLink!E568,NA()) -> 1505 | L35: =DataLink!F568 -> 283 | M35: =IF(DataLink!F592>19,DataLink!E592,NA()) -> 2022 | N35: =DataLink!F592 -> 114
B36: =DataLink!B617 -> 2015 | C36: =IF(DataLink!F617>19,DataLink!E617,NA()) -> 1112 | D36: =DataLink!F617 -> 2701 | E36: =IF(DataLink!F500>19,DataLink!E500,NA()) -> 818 | F36: =DataLink!F500 -> 124 | G36: =IF(DataLink!F521>19,DataLink!E521,NA()) -> 922 | H36: =DataLink!F521 -> 778 | I36: =IF(DataLink!F545>19,DataLink!E545,NA()) -> 1194 | J36: =DataLink!F545 -> 1421 | K36: =IF(DataLink!F569>19,DataLink!E569,NA()) -> 1481 | L36: =DataLink!F569 -> 292 | M36: =IF(DataLink!F593>19,DataLink!E593,NA()) -> 2038 | N36: =DataLink!F593 -> 86
B37: =DataLink!B618 -> 2014 | C37: =IF(DataLink!F618>19,DataLink!E618,NA()) -> 1080 | D37: =DataLink!F618 -> 2576 | E37: =IF(DataLink!F501>19,DataLink!E501,NA()) -> 794 | F37: =DataLink!F501 -> 85 | G37: =IF(DataLink!F522>19,DataLink!E522,NA()) -> 877 | H37: =DataLink!F522 -> 739 | I37: =IF(DataLink!F546>19,DataLink!E546,NA()) -> 1162 | J37: =DataLink!F546 -> 1395 | K37: =IF(DataLink!F570>19,DataLink!E570,NA()) -> 1443 | L37: =DataLink!F570 -> 280 | M37: =IF(DataLink!F594>19,DataLink!E594,NA()) -> 1883 | N37: =DataLink!F594 -> 77
B38: =DataLink!B619 -> 2013 | C38: =IF(DataLink!F619>19,DataLink!E619,NA()) -> 1052 | D38: =DataLink!F619 -> 2413 | E38: =IF(DataLink!F502>19,DataLink!E502,NA()) -> 824 | F38: =DataLink!F502 -> 112 | G38: =IF(DataLink!F523>19,DataLink!E523,NA()) -> 869 | H38: =DataLink!F523 -> 729 | I38: =IF(DataLink!F547>19,DataLink!E547,NA()) -> 1114 | J38: =DataLink!F547 -> 1218 | K38: =IF(DataLink!F571>19,DataLink!E571,NA()) -> 1475 | L38: =DataLink!F571 -> 289 | M38: =IF(DataLink!F595>19,DataLink!E595,NA()) -> 1896 | N38: =DataLink!F595 -> 65
B39: =DataLink!B620 -> 2012 | C39: =IF(DataLink!F620>19,DataLink!E620,NA()) -> 1048 | D39: =DataLink!F620 -> 2221 | E39: =IF(DataLink!F503>19,DataLink!E503,NA()) -> 750 | F39: =DataLink!F503 -> 91 | G39: =IF(DataLink!F524>19,DataLink!E524,NA()) -> 886 | H39: =DataLink!F524 -> 657 | I39: =IF(DataLink!F548>19,DataLink!E548,NA()) -> 1114 | J39: =DataLink!F548 -> 1158 | K39: =IF(DataLink!F572>19,DataLink!E572,NA()) -> 1473 | L39: =DataLink!F572 -> 278 | M39: =IF(DataLink!F596>19,DataLink!E596,NA()) -> 1654 | N39: =DataLink!F596 -> 37
B40: =DataLink!B621 -> 2011 | C40: =IF(DataLink!F621>19,DataLink!E621,NA()) -> 1040 | D40: =DataLink!F621 -> 2184 | E40: =IF(DataLink!F504>19,DataLink!E504,NA()) -> 759 | F40: =DataLink!F504 -> 102 | G40: =IF(DataLink!F525>19,DataLink!E525,NA()) -> 867 | H40: =DataLink!F525 -> 652 | I40: =IF(DataLink!F549>19,DataLink!E549,NA()) -> 1115 | J40: =DataLink!F549 -> 1148 | K40: =IF(DataLink!F573>19,DataLink!E573,NA()) -> 1462 | L40: =DataLink!F573 -> 244 | M40: =IF(DataLink!F597>19,DataLink!E597,NA()) -> 1567 | N40: =DataLink!F597 -> 38
B41: =DataLink!B622 -> 2010 | C41: =IF(DataLink!F622>19,DataLink!E622,NA()) -> 1046 | D41: =DataLink!F622 -> 2372 | E41: =IF(DataLink!F505>19,DataLink!E505,NA()) -> 717 | F41: =DataLink!F505 -> 104 | G41: =IF(DataLink!F526>19,DataLink!E526,NA()) -> 866 | H41: =DataLink!F526 -> 677 | I41: =IF(DataLink!F550>19,DataLink!E550,NA()) -> 1112 | J41: =DataLink!F550 -> 1275 | K41: =IF(DataLink!F574>19,DataLink!E574,NA()) -> 1417 | L41: =DataLink!F574 -> 280 | M41: =IF(DataLink!F598>19,DataLink!E598,NA()) -> 1722 | N41: =DataLink!F598 -> 36
B42: =DataLink!B623 -> 2009 | C42: =IF(DataLink!F623>19,DataLink!E623,NA()) -> 1007 | D42: =DataLink!F623 -> 2569 | E42: =IF(DataLink!F506>19,DataLink!E506,NA()) -> 709 | F42: =DataLink!F506 -> 125 | G42: =IF(DataLink!F527>19,DataLink!E527,NA()) -> 850 | H42: =DataLink!F527 -> 734 | I42: =IF(DataLink!F551>19,DataLink!E551,NA()) -> 1055 | J42: =DataLink!F551 -> 1362 | K42: =IF(DataLink!F575>19,DataLink!E575,NA()) -> 1358 | L42: =DataLink!F575 -> 306 | M42: =IF(DataLink!F599>19,DataLink!E599,NA()) -> 1602 | N42: =DataLink!F599 -> 42
B43: =DataLink!B624 -> 2008 | C43: =IF(DataLink!F624>19,DataLink!E624,NA()) -> 1010 | D43: =DataLink!F624 -> 1935 | E43: =IF(DataLink!F507>19,DataLink!E507,NA()) -> 714 | F43: =DataLink!F507 -> 91 | G43: =IF(DataLink!F528>19,DataLink!E528,NA()) -> 861 | H43: =DataLink!F528 -> 579 | I43: =IF(DataLink!F552>19,DataLink!E552,NA()) -> 1072 | J43: =DataLink!F552 -> 971 | K43: =IF(DataLink!F576>19,DataLink!E576,NA()) -> 1374 | L43: =DataLink!F576 -> 257 | M43: =IF(DataLink!F600>19,DataLink!E600,NA()) -> 1751 | N43: =DataLink!F600 -> 37
B44: =DataLink!B625 -> 2007 | C44: =IF(DataLink!F625>19,DataLink!E625,NA()) -> 989 | D44: =DataLink!F625 -> 2115 | E44: =IF(DataLink!F508>19,DataLink!E508,NA()) -> 690 | F44: =DataLink!F508 -> 122 | G44: =IF(DataLink!F529>19,DataLink!E529,NA()) -> 819 | H44: =DataLink!F529 -> 599 | I44: =IF(DataLink!F553>19,DataLink!E553,NA()) -> 1039 | J44: =DataLink!F553 -> 1105 | K44: =IF(DataLink!F577>19,DataLink!E577,NA()) -> 1335 | L44: =DataLink!F577 -> 248 | M44: =IF(DataLink!F601>19,DataLink!E601,NA()) -> 1712 | N44: =DataLink!F601 -> 41
B45: =DataLink!B626 -> 2006 | C45: =IF(DataLink!F626>19,DataLink!E626,NA()) -> 938 | D45: =DataLink!F626 -> 2213 | E45: =IF(DataLink!F509>19,DataLink!E509,NA()) -> 666 | F45: =DataLink!F509 -> 112 | G45: =IF(DataLink!F530>19,DataLink!E530,NA()) -> 812 | H45: =DataLink!F530 -> 677 | I45: =IF(DataLink!F554>19,DataLink!E554,NA()) -> 996 | J45: =DataLink!F554 -> 1123 | K45: =IF(DataLink!F578>19,DataLink!E578,NA()) -> 1281 | L45: =DataLink!F578 -> 246 | M45: =IF(DataLink!F602>19,DataLink!E602,NA()) -> 1598 | N45: =DataLink!F602 -> 55
B46: =DataLink!B627 -> 2005 | C46: =IF(DataLink!F627>19,DataLink!E627,NA()) -> 924 | D46: =DataLink!F627 -> 2370 | E46: =IF(DataLink!F510>19,DataLink!E510,NA()) -> 594 | F46: =DataLink!F510 -> 108 | G46: =IF(DataLink!F531>19,DataLink!E531,NA()) -> 787 | H46: =DataLink!F531 -> 665 | I46: =IF(DataLink!F555>19,DataLink!E555,NA()) -> 976 | J46: =DataLink!F555 -> 1259 | K46: =IF(DataLink!F579>19,DataLink!E579,NA()) -> 1181 | L46: =DataLink!F579 -> 288 | M46: =IF(DataLink!F603>19,DataLink!E603,NA()) -> 1563 | N46: =DataLink!F603 -> 50
B47: =DataLink!B628 -> 2004 | C47: =IF(DataLink!F628>19,DataLink!E628,NA()) -> 909 | D47: =DataLink!F628 -> 2190 | E47: =IF(DataLink!F511>19,DataLink!E511,NA()) -> 602 | F47: =DataLink!F511 -> 86 | G47: =IF(DataLink!F532>19,DataLink!E532,NA()) -> 782 | H47: =DataLink!F532 -> 632 | I47: =IF(DataLink!F556>19,DataLink!E556,NA()) -> 947 | J47: =DataLink!F556 -> 1187 | K47: =IF(DataLink!F580>19,DataLink!E580,NA()) -> 1150 | L47: =DataLink!F580 -> 244 | M47: =IF(DataLink!F604>19,DataLink!E604,NA()) -> 1446 | N47: =DataLink!F604 -> 41
B48: =DataLink!B629 -> 2003 | C48: =IF(DataLink!F629>19,DataLink!E629,NA()) -> 844 | D48: =DataLink!F629 -> 2298 | E48: =IF(DataLink!F512>19,DataLink!E512,NA()) -> 563 | F48: =DataLink!F512 -> 84 | G48: =IF(DataLink!F533>19,DataLink!E533,NA()) -> 731 | H48: =DataLink!F533 -> 730 | I48: =IF(DataLink!F557>19,DataLink!E557,NA()) -> 899 | J48: =DataLink!F557 -> 1206 | K48: =IF(DataLink!F581>19,DataLink!E581,NA()) -> 1148 | L48: =DataLink!F581 -> 244 | M48: =IF(DataLink!F605>19,DataLink!E605,NA()) -> 1430 | N48: =DataLink!F605 -> 34
B49: =DataLink!B630 -> 2002 | C49: =IF(DataLink!F630>19,DataLink!E630,NA()) -> 819 | D49: =DataLink!F630 -> 2193 | E49: =IF(DataLink!F518>19,DataLink!E518,NA()) -> 968 | F49: =DataLink!F518 -> 445 | G49: =IF(DataLink!F534>19,DataLink!E534,NA()) -> 725 | H49: =DataLink!F534 -> 715 | I49: =IF(DataLink!F558>19,DataLink!E558,NA()) -> 875 | J49: =DataLink!F558 -> 1141 | K49: =IF(DataLink!F582>19,DataLink!E582,NA()) -> 1141 | L49: =DataLink!F582 -> 199 | M49: =IF(DataLink!F606>19,DataLink!E606,NA()) -> 1197 | N49: =DataLink!F606 -> 29
B50: =DataLink!B631 -> 2001 | C50: =IF(DataLink!F631>19,DataLink!E631,NA()) -> 771 | D50: =DataLink!F631 -> 1684 | E50: =IF(DataLink!F519>19,DataLink!E519,NA()) -> 941 | F50: =DataLink!F519 -> 600 | G50: =IF(DataLink!F535>19,DataLink!E535,NA()) -> 659 | H50: =DataLink!F535 -> 506 | I50: =IF(DataLink!F559>19,DataLink!E559,NA()) -> 818 | J50: =DataLink!F559 -> 898 | K50: =IF(DataLink!F583>19,DataLink!E583,NA()) -> 1094 | L50: =DataLink!F583 -> 158 | M50: =IF(DataLink!F607>19,DataLink!E607,NA()) -> 1306 | N50: =DataLink!F607 -> 28
B51: =DataLink!B632 -> 2000 | C51: =IF(DataLink!F632>19,DataLink!E632,NA()) -> 717 | D51: =DataLink!F632 -> 2003 | E51: =IF(DataLink!F520>19,DataLink!E520,NA()) -> 950 | F51: =DataLink!F520 -> 710 | G51: =IF(DataLink!F536>19,DataLink!E536,NA()) -> 614 | H51: =DataLink!F536 -> 632 | I51: =IF(DataLink!F560>19,DataLink!E560,NA()) -> 746 | J51: =DataLink!F560 -> 1049 | K51: =IF(DataLink!F584>19,DataLink!E584,NA()) -> 953 | L51: =DataLink!F584 -> 171 | M51: =IF(DataLink!F608>19,DataLink!E608,NA()) -> 1019 | N51: =DataLink!F608 -> 24
C52: Source: NHHFA Residential Rental Cost Survey
C53: Note: Calculations based on a sample size of less than 20 are highly volatile and not considered valid.
B56: Percent Change in Median Gross Rental Cost
C58: All Units | E58: 0-Bedroom Units | G58: 1-Bedroom Units | I58: 2-Bedroom Units | K58: 3-Bedroom Units | M58: 4+-Bedroom Units
B60: 2014 to 23 | C60: =(C28-C37)/C37 -> 0.6092592593 | E60: =(E28-E37)/E37 -> 0.4332493703 | G60: =(G28-G37)/G37 -> 0.6921322691 | I60: =(I28-I37)/I37 -> 0.6445783133 | K60: =(K28-K37)/K37 -> 0.2141372141 | M60: =(M28-M37)/M37 -> 0.004248539565
B61: Avg /Year | C61: =C60/10 -> 0.06092592593 | E61: =E60/10 -> 0.04332493703 | G61: =G60/10 -> 0.06921322691 | I61: =I60/10 -> 0.06445783133 | K61: =K60/10 -> 0.02141372141 | M61: =M60/10 -> 0.0004248539565
B63: 2022 to 23 | C63: =(C28-C29)/C29 -> 0.09583858764 | E63: =(E28-E29)/E29 -> -0.05481727575 | G63: =(G28-G29)/G29 -> 0.09278350515 | I63: =(I28-I29)/I29 -> 0.1609963548 | K63: =(K28-K29)/K29 -> -0.05143475907 | M63: =(M28-M29)/M29 -> 0.004782146652
B64: 2021 to 22 | C64: =(C29-C30)/C30 -> 0.06729475101 | E64: 0.2781316348 | G64: 0.1508474576 | I64: 0.0592020592 | K64: 0.1638311279 | M64: -0.1110061408
B65: 2020 to 21 | C65: =(C30-C31)/C31 -> 0.04280701754 | E65: 0.06320541761 | G65: 0.02253032929 | I65: -0.005121638924 | K65: -0.002514142049 | M65: 0.3992068738
B66: 2019 to 20 | C66: 0.03938730853 | E66: -0.0683491062 | G66: 0.09383886256 | I66: 0.05683355886 | K66: 0.006962025316 | M66: -0.1887399464
B67: 2018 to 19 | C67: 0.1228501229 | E67: 0.1527272727 | G67: 0.08987603306 | I67: 0.09077490775 | K67: 0.09342560554 | M67: 0.6533687943
B68: 2017 to 18 | C68: -0.003265306122 | E68: 0.1 | G68: 0.02869287991 | I68: -0.005869405723 | K68: -0.05493786789 | M68: -0.4239019408
B69: 2016 to 17 | C69: 0.003276003276 | E69: -0.05778894472 | G69: -0.009473684211 | I69: 0.03179409538 | K69: 0.01594684385 | M69: =(M34-M35)/M35 -> -0.03165182987
B70: 2015 to 16 | C70: 0.09802158273 | E70: -0.02689486553 | G70: 0.03036876356 | I70: 0.1063651591 | K70: 0.01620526671 | M70: -0.007850834151
B71: 2014 to 15 | C71: 0.02962962963 | E71: 0.03022670025 | G71: 0.05131128848 | I71: 0.02753872633 | K71: 0.02633402633 | M71: 0.08231545406
B72: 2013 to 14 | C72: 0.02661596958 | E72: -0.03640776699 | G72: 0.00920598389 | I72: 0.04308797127 | K72: -0.02169491525 | M72: -0.006856540084
B73: 2012 to 13 | C73: 0.003816793893 | E73: 0.09866666667 | G73: -0.01918735892 | I73: 0 | K73: 0.001357773252 | M73: 0.146311971
B74: 2011 to 12 | C74: 0.007692307692 | E74: -0.01185770751 | G74: 0.02191464821 | I74: -0.0008968609865 | K74: 0.007523939808 | M74: 0.05552010211
B75: 2010 to 11 | C75: -0.005736137667 | E75: 0.05857740586 | G75: 0.001154734411 | I75: 0.002697841727 | K75: 0.03175723359 | M75: -0.0900116144
B76: 2009 to 10 | C76: 0.03872889772 | E76: 0.01128349788 | G76: 0.01882352941 | I76: 0.05402843602 | K76: 0.04344624448 | M76: 0.07490636704
B77: 2008 to 09 | C77: -0.00297029703 | E77: -0.00700280112 | G77: -0.01277584204 | I77: -0.01585820896 | K77: -0.01164483261 | M77: -0.08509423187
B78: 2007 to 08 | C78: 0.02123356926 | E78: 0.0347826087 | G78: 0.05128205128 | I78: 0.03176130895 | K78: 0.02921348315 | M78: 0.02278037383
B79: 2006 to 07 | C79: 0.05437100213 | E79: 0.03603603604 | G79: 0.008620689655 | I79: 0.04317269076 | K79: 0.04215456674 | M79: 0.07133917397
B80: 2005 to 06 | C80: 0.01515151515 | E80: 0.1212121212 | G80: 0.03176620076 | I80: 0.02049180328 | K80: 0.08467400508 | M80: 0.02239283429
B81: 2004 to 05 | C81: 0.01650165017 | E81: -0.01328903654 | G81: 0.006393861893 | I81: 0.03062302006 | K81: 0.02695652174 | M81: 0.08091286307
B82: 2003 to 04 | C82: 0.07701421801 | E82: 0.06927175844 | G82: 0.06976744186 | I82: 0.05339265851 | K82: 0.001742160279 | M82: 0.01118881119
B83: 2002 to 03 | C83: 0.03052503053 | E83: -0.4183884298 | G83: 0.008275862069 | I83: 0.02742857143 | K83: 0.006134969325 | M83: 0.1946532999
B84: 2001 to 02 | C84: 0.06225680934 | E84: 0.02869287991 | G84: 0.1001517451 | I84: 0.06968215159 | K84: 0.04296160878 | M84: -0.08346094946
B85: 2000 to 01 | C85: 0.07531380753 | E85: -0.009473684211 | G85: 0.07328990228 | I85: 0.09651474531 | K85: 0.14795383 | M85: 0.2816486752
E114: All Units | G114: 2-Bedroom Units
D115: Year | E115: Vacancy Rate | F115: Sample Size | G115: Vacancy Rate | H115: Sample Size
D116: =DataLink!B609 -> 2023 | E116: =IF(DataLink!F609>19,DataLink!I609,NA()) -> 0.005730659026 | F116: =DataLink!F609 -> 1363 | G116: =IF(DataLink!F537>19,DataLink!I537,NA()) -> 0.004830917874 | H116: =DataLink!F537 -> 818
D117: =DataLink!B610 -> 2022 | E117: =IF(DataLink!F610>19,DataLink!I610,NA()) -> 0.004387096774 | F117: =DataLink!F610 -> 1614 | G117: =IF(DataLink!F538>19,DataLink!I538,NA()) -> 0.002799813346 | H117: =DataLink!F538 -> 833
D118: =DataLink!B611 -> 2021 | E118: =IF(DataLink!F611>19,DataLink!I611,NA()) -> 0.008343763037 | F118: =DataLink!F611 -> 1979 | G118: =IF(DataLink!F539>19,DataLink!I539,NA()) -> 0.006641366224 | H118: =DataLink!F539 -> 1181
D119: =DataLink!B612 -> 2020 | E119: =IF(DataLink!F612>19,DataLink!I612,NA()) -> 0.01432349052 | F119: =DataLink!F612 -> 1780 | G119: =IF(DataLink!F540>19,DataLink!I540,NA()) -> 0.01508242722 | H119: =DataLink!F540 -> 973
D120: =DataLink!B613 -> 2019 | E120: =IF(DataLink!F613>19,DataLink!I613,NA()) -> 0.005874947545 | F120: =DataLink!F613 -> 1829 | G120: =IF(DataLink!F541>19,DataLink!I541,NA()) -> 0.006455997282 | H120: =DataLink!F541 -> 998
D121: =DataLink!B614 -> 2018 | E121: =IF(DataLink!F614>19,DataLink!I614,NA()) -> 0.02685018051 | F121: =DataLink!F614 -> 1694 | G121: =IF(DataLink!F542>19,DataLink!I542,NA()) -> 0.0162601626 | H121: =DataLink!F542 -> 922
D122: =DataLink!B615 -> 2017 | E122: =IF(DataLink!F615>19,DataLink!I615,NA()) -> 0.014866 | F122: =DataLink!F615 -> 2192 | G122: =IF(DataLink!F543>19,DataLink!I543,NA()) -> 0.012944 | H122: =DataLink!F543 -> 1150
D123: =DataLink!B616 -> 2016 | E123: =IF(DataLink!F616>19,DataLink!I616,NA()) -> 0.011763 | F123: =DataLink!F616 -> 2456 | G123: =IF(DataLink!F544>19,DataLink!I544,NA()) -> 0.008249 | H123: =DataLink!F544 -> 1208
D124: =DataLink!B617 -> 2015 | E124: =IF(DataLink!F617>19,DataLink!I617,NA()) -> 0.031295 | F124: =DataLink!F617 -> 2701 | G124: =IF(DataLink!F545>19,DataLink!I545,NA()) -> 0.02237 | H124: =DataLink!F545 -> 1421
D125: =DataLink!B618 -> 2014 | E125: =IF(DataLink!F618>19,DataLink!I618,NA()) -> 0.017442 | F125: =DataLink!F618 -> 2576 | G125: =IF(DataLink!F546>19,DataLink!I546,NA()) -> 0.017351 | H125: =DataLink!F546 -> 1395
D126: =DataLink!B619 -> 2013 | E126: =IF(DataLink!F619>19,DataLink!I619,NA()) -> 0.041982 | F126: =DataLink!F619 -> 2413 | G126: =IF(DataLink!F547>19,DataLink!I547,NA()) -> 0.041461 | H126: =DataLink!F547 -> 1218
D127: =DataLink!B620 -> 2012 | E127: =IF(DataLink!F620>19,DataLink!I620,NA()) -> 0.043127 | F127: =DataLink!F620 -> 2221 | G127: =IF(DataLink!F548>19,DataLink!I548,NA()) -> 0.041808 | H127: =DataLink!F548 -> 1158
D128: =DataLink!B621 -> 2011 | E128: =IF(DataLink!F621>19,DataLink!I621,NA()) -> 0.027557 | F128: =DataLink!F621 -> 2184 | G128: =IF(DataLink!F549>19,DataLink!I549,NA()) -> 0.022915 | H128: =DataLink!F549 -> 1148
D129: =DataLink!B622 -> 2010 | E129: =IF(DataLink!F622>19,DataLink!I622,NA()) -> 0.041217 | F129: =DataLink!F622 -> 2372 | G129: =IF(DataLink!F550>19,DataLink!I550,NA()) -> 0.029336 | H129: =DataLink!F550 -> 1275
D130: =DataLink!B623 -> 2009 | E130: =IF(DataLink!F623>19,DataLink!I623,NA()) -> 0.042428 | F130: =DataLink!F623 -> 2569 | G130: =IF(DataLink!F551>19,DataLink!I551,NA()) -> 0.039838 | H130: =DataLink!F551 -> 1362
D131: =DataLink!B624 -> 2008 | E131: =IF(DataLink!F624>19,DataLink!I624,NA()) -> 0.027175 | F131: =DataLink!F624 -> 1935 | G131: =IF(DataLink!F552>19,DataLink!I552,NA()) -> 0.02404 | H131: =DataLink!F552 -> 971
D132: =DataLink!B625 -> 2007 | E132: =IF(DataLink!F625>19,DataLink!I625,NA()) -> 0.033529 | F132: =DataLink!F625 -> 2115 | G132: =IF(DataLink!F553>19,DataLink!I553,NA()) -> 0.02973 | H132: =DataLink!F553 -> 1105
D133: =DataLink!B626 -> 2006 | E133: =IF(DataLink!F626>19,DataLink!I626,NA()) -> 0.030303 | F133: =DataLink!F626 -> 2213 | G133: =IF(DataLink!F554>19,DataLink!I554,NA()) -> 0.028659 | H133: =DataLink!F554 -> 1123
D134: =DataLink!B627 -> 2005 | E134: =IF(DataLink!F627>19,DataLink!I627,NA()) -> 0.031456 | F134: =DataLink!F627 -> 2370 | G134: =IF(DataLink!F555>19,DataLink!I555,NA()) -> 0.032057 | H134: =DataLink!F555 -> 1259
D135: =DataLink!B628 -> 2004 | E135: =IF(DataLink!F628>19,DataLink!I628,NA()) -> 0.01417 | F135: =DataLink!F628 -> 2190 | G135: =IF(DataLink!F556>19,DataLink!I556,NA()) -> 0.013889 | H135: =DataLink!F556 -> 1187
D136: =DataLink!B629 -> 2003 | E136: =IF(DataLink!F629>19,DataLink!I629,NA()) -> 0.017342 | F136: =DataLink!F629 -> 2298 | G136: =IF(DataLink!F557>19,DataLink!I557,NA()) -> 0.015371 | H136: =DataLink!F557 -> 1206
D137: =DataLink!B630 -> 2002 | E137: =IF(DataLink!F630>19,DataLink!I630,NA()) -> 0.008087 | F137: =DataLink!F630 -> 2193 | G137: =IF(DataLink!F558>19,DataLink!I558,NA()) -> 0.008071 | H137: =DataLink!F558 -> 1141
D138: =DataLink!B631 -> 2001 | E138: =IF(DataLink!F631>19,DataLink!I631,NA()) -> 0.01879 | F138: =DataLink!F631 -> 1684 | G138: =IF(DataLink!F559>19,DataLink!I559,NA()) -> 0.02439 | H138: =DataLink!F559 -> 898
D139: =DataLink!B632 -> 2000 | E139: =IF(DataLink!F632>19,DataLink!I632,NA()) -> 0.00708 | F139: =DataLink!F632 -> 2003 | G139: =IF(DataLink!F560>19,DataLink!I560,NA()) -> 0.004467 | H139: =DataLink!F560 -> 1049
D141: Source: NHHFA Residential Rental Cost Survey
D143: Note: Calculations based on a sample size of less than 20 are highly
D144: volatile and not considered valid.
D146: Caution should be used in interpreting these numbers since the
D147: survey methods used may underestimate the real rate of vacancy.

Sheet MetroNonMetFrequency (hidden)
B2: =DataLink2!A238 -> Portsmouth-Rochester, NH HMFA
B82: =DataLink2!A237 -> Output for Freq Chart
B83: =DataLink2!A238 -> Portsmouth-Rochester, NH HMFA
B84: =DataLink2!C240 -> Year | C84: =DataLink2!E240 -> Bedroom | D84: Median | E84: =DataLink2!G240 -> 400 | F84: =DataLink2!H240 -> 500 | G84: =DataLink2!I240 -> 600 | H84: =DataLink2!J240 -> 700 | I84: =DataLink2!K240 -> 800 | J84: =DataLink2!L240 -> 900 | K84: =DataLink2!M240 -> 1000 | L84: =DataLink2!N240 -> 1100 | M84: =DataLink2!O240 -> 1200 | N84: =DataLink2!P240 -> 1300 | O84: =DataLink2!Q240 -> 1400 | P84: =DataLink2!R240 -> 1500 | Q84: =DataLink2!S240 -> 1600 | R84: =DataLink2!T240 -> 1700 | S84: =DataLink2!U240 -> 1800 | T84: =DataLink2!V240 -> 1900 | U84: =DataLink2!W240 -> 2000 | V84: =DataLink2!X240 -> 2100 | W84: =DataLink2!Y240 -> 2200 | X84: =DataLink2!Z240 -> 2300 | Y84: =DataLink2!AA240 -> 2400 | Z84: =DataLink2!AB240 -> 2500 | AA84: =DataLink2!AC240 -> 2600 | AB84: =DataLink2!AD240 -> 2700 | AC84: =DataLink2!AE240 -> 2800 | AD84: =DataLink2!AF240 -> 2900 | AE84: =DataLink2!AG240 -> 3000 | AF84: =DataLink2!AH240 -> 3100 | AG84: =DataLink2!AI240 -> 3200 | AH84: =DataLink2!AJ240 -> 3300 | AI84: =DataLink2!AK240 -> 3400 | AJ84: =DataLink2!AL240 -> 3500 | AK84: =DataLink2!AM240 -> 3600 | AL84: =DataLink2!AN240 -> 3700 | AM84: =DataLink2!AO240 -> 3800 | AN84: =DataLink2!AP240 -> 3900 | AO84: =DataLink2!AQ240 -> 4000 | AP84: =DataLink2!AR240 -> 4100 | AQ84: =DataLink2!AS240 -> 4200 | AR84: =DataLink2!AT240 -> 4300 | AS84: =DataLink2!AU240 -> 4400
B85: =DataLink2!C242 -> 2023 | C85: =DataLink2!E241 -> 2 Bedroom Units | D85: =DataLink2!F241 -> 1911 | E85: =DataLink2!G241 -> 0 | F85: =DataLink2!H241 -> 0 | G85: =DataLink2!I241 -> 0 | H85: =DataLink2!J241 -> 0 | I85: =DataLink2!K241 -> 29 | J85: =DataLink2!L241 -> 44 | K85: =DataLink2!M241 -> 6 | L85: =DataLink2!N241 -> 5 | M85: =DataLink2!O241 -> 18 | N85: =DataLink2!P241 -> 15 | O85: =DataLink2!Q241 -> 31 | P85: =DataLink2!R241 -> 112 | Q85: =DataLink2!S241 -> 37 | R85: =DataLink2!T241 -> 50 | S85: =DataLink2!U241 -> 42 | T85: =DataLink2!V241 -> 117 | U85: =DataLink2!W241 -> 47 | V85: =DataLink2!X241 -> 18 | W85: =DataLink2!Y241 -> 80 | X85: =DataLink2!Z241 -> 76 | Y85: =DataLink2!AA241 -> 48 | Z85: =DataLink2!AB241 -> 34 | AA85: =DataLink2!AC241 -> 5 | AB85: =DataLink2!AD241 -> 1 | AC85: =DataLink2!AE241 -> 1 | AD85: =DataLink2!AF241 -> 1 | AE85: =DataLink2!AG241 -> 0 | AF85: =DataLink2!AH241 -> 0 | AG85: =DataLink2!AI241 -> 0 | AH85: =DataLink2!AJ241 -> 0 | AI85: =DataLink2!AK241 -> 0 | AJ85: =DataLink2!AL241 -> 0 | AK85: =DataLink2!AM241 -> 0 | AL85: =DataLink2!AN241 -> 0 | AM85: =DataLink2!AO241 -> 0 | AN85: =DataLink2!AP241 -> 0 | AO85: =DataLink2!AQ241 -> 0 | AP85: =DataLink2!AR241 -> 0 | AQ85: =DataLink2!AS241 -> 1 | AR85: =DataLink2!AT241 -> 0 | AS85: =DataLink2!AU241 -> 0
B86: =DataLink2!C242 -> 2023 | C86: =DataLink2!E242 -> All Units | D86: =DataLink2!F242 -> 1738 | E86: =DataLink2!G242 -> 0 | F86: =DataLink2!H242 -> 0 | G86: =DataLink2!I242 -> 0 | H86: =DataLink2!J242 -> 2 | I86: =DataLink2!K242 -> 36 | J86: =DataLink2!L242 -> 89 | K86: =DataLink2!M242 -> 49 | L86: =DataLink2!N242 -> 35 | M86: =DataLink2!O242 -> 51 | N86: =DataLink2!P242 -> 56 | O86: =DataLink2!Q242 -> 91 | P86: =DataLink2!R242 -> 158 | Q86: =DataLink2!S242 -> 81 | R86: =DataLink2!T242 -> 87 | S86: =DataLink2!U242 -> 62 | T86: =DataLink2!V242 -> 145 | U86: =DataLink2!W242 -> 70 | V86: =DataLink2!X242 -> 43 | W86: =DataLink2!Y242 -> 108 | X86: =DataLink2!Z242 -> 78 | Y86: =DataLink2!AA242 -> 53 | Z86: =DataLink2!AB242 -> 39 | AA86: =DataLink2!AC242 -> 11 | AB86: =DataLink2!AD242 -> 5 | AC86: =DataLink2!AE242 -> 4 | AD86: =DataLink2!AF242 -> 3 | AE86: =DataLink2!AG242 -> 0 | AF86: =DataLink2!AH242 -> 0 | AG86: =DataLink2!AI242 -> 2 | AH86: =DataLink2!AJ242 -> 2 | AI86: =DataLink2!AK242 -> 0 | AJ86: =DataLink2!AL242 -> 1 | AK86: =DataLink2!AM242 -> 0 | AL86: =DataLink2!AN242 -> 0 | AM86: =DataLink2!AO242 -> 0 | AN86: =DataLink2!AP242 -> 0 | AO86: =DataLink2!AQ242 -> 0 | AP86: =DataLink2!AR242 -> 0 | AQ86: =DataLink2!AS242 -> 1 | AR86: =DataLink2!AT242 -> 0 | AS86: =DataLink2!AU242 -> 1
B88: =B85 -> 2023 | C88: 2 Bedroom Units | E88: =IF($D$85>(E84-50), IF($D$85<(E84+50), $D85, " "), " ") ->  | O88: =IF($D$85>(O84-50), IF($D$85<(O84+50), $D85, " "), " ") ->  | T88: 1911
B89: 2023 | C89: All Units | E89: =IF($D$86>(E84-50), IF($D$86<(E84+50), $D86, " "), " ") ->  | F89: =IF($D$86>(F84-50), IF($D$86<(F84+50), $D86, " "), " ") ->  | N89: =IF($D$86>(N84-50), IF($D$86<(N84+50), $D86, " "), " ") ->  | O89: =IF($D$86>(O84-50), IF($D$86<(O84+50), $D86, " "), " ") ->  | R89: 1738

Sheet CityChartAndTable (hidden)
B2: =DataLink!A648 -> City of Nashua
C26: All Units | E26: 0-Bedroom Units | G26: 1-Bedroom Units | I26: 2-Bedroom Units | K26: 3-Bedroom Units | M26: 4+-Bedroom Units
B27: Year | C27: Median Gross Rental Cost | D27: Sample Size | E27: Median Gross Rental Cost | F27: Sample Size | G27: Median Gross Rental Cost | H27: Sample Size | I27: Median Gross Rental Cost | J27: Sample Size | K27: Median Gross Rental Cost | L27: Sample Size | M27: Median Gross Rental Cost | N27: Sample Size
B28: 2023 | C28: =IF(DataLink!F771>19,DataLink!E771,NA()) -> 2008 | D28: =DataLink!F771 -> 852 | E28: =IF(DataLink!F651>19,DataLink!E651,NA()) -> 978 | F28: =DataLink!F651 -> 20 | G28: =IF(DataLink!F675>19,DataLink!E675,NA()) -> 1877 | H28: =DataLink!F675 -> 205 | I28: =IF(DataLink!F699>19,DataLink!E699,NA()) -> 2141 | J28: =DataLink!F699 -> 467 | K28: =IF(DataLink!F723>19,DataLink!E723,NA()) -> 1897 | L28: =DataLink!F723 -> 151 | M28: =IF(DataLink!F747>19,DataLink!E747,NA()) -> 1023 | N28: =DataLink!F747 -> 113
B29: 2022 | C29: =IF(DataLink!F772>19,DataLink!E772,NA()) -> 1944 | D29: =DataLink!F772 -> 1343 | E29: =IF(DataLink!F652>19,DataLink!E652,NA()) -> 1263 | F29: =DataLink!F652 -> 20 | G29: =IF(DataLink!F676>19,DataLink!E676,NA()) -> 1863 | H29: =DataLink!F676 -> 439 | I29: =IF(DataLink!F700>19,DataLink!E700,NA()) -> 1980 | J29: =DataLink!F700 -> 738 | K29: =IF(DataLink!F724>19,DataLink!E724,NA()) -> 1985 | L29: =DataLink!F724 -> 123 | M29: =IF(DataLink!F748>19,DataLink!E748,NA()) -> 2132 | N29: =DataLink!F748 -> 23
B30: 2021 | C30: =IF(DataLink!F773>19,DataLink!E773,NA()) -> 1652 | D30: =DataLink!F773 -> 1215 | E30: =IF(DataLink!F653>19,DataLink!E653,NA()) -> 1244 | F30: =DataLink!F653 -> 27 | G30: =IF(DataLink!F677>19,DataLink!E677,NA()) -> 1402 | H30: =DataLink!F677 -> 281 | I30: =IF(DataLink!F701>19,DataLink!E701,NA()) -> 1742 | J30: =DataLink!F701 -> 758 | K30: =IF(DataLink!F725>19,DataLink!E725,NA()) -> 1877 | L30: =DataLink!F725 -> 126 | M30: =IF(DataLink!F749>19,DataLink!E749,NA()) -> 1789 | N30: =DataLink!F749 -> 23
B31: 2020 | C31: =IF(DataLink!F774>19,DataLink!E774,NA()) -> 1631 | D31: =DataLink!F774 -> 1281 | E31: =IF(DataLink!F654>19,DataLink!E654,NA()) -> 1170 | F31: =DataLink!F654 -> 33 | G31: =IF(DataLink!F678>19,DataLink!E678,NA()) -> 1422 | H31: =DataLink!F678 -> 362 | I31: =IF(DataLink!F702>19,DataLink!E702,NA()) -> 1712 | J31: =DataLink!F702 -> 707 | K31: =IF(DataLink!F726>19,DataLink!E726,NA()) -> 1891 | L31: =DataLink!F726 -> 157 | M31: =IF(DataLink!F750>19,DataLink!E750,NA()) -> 2043 | N31: =DataLink!F750 -> 22
B32: 2019 | C32: =IF(DataLink!F775>19,DataLink!E775,NA()) -> 1473 | D32: =DataLink!F775 -> 1282 | E32: =IF(DataLink!F655>19,DataLink!E655,NA()) -> 1126 | F32: =DataLink!F655 -> 21 | G32: =IF(DataLink!F679>19,DataLink!E679,NA()) -> 1330 | H32: =DataLink!F679 -> 349 | I32: =IF(DataLink!F703>19,DataLink!E703,NA()) -> 1506 | J32: =DataLink!F703 -> 744 | K32: =IF(DataLink!F727>19,DataLink!E727,NA()) -> 1690 | L32: =DataLink!F727 -> 142 | M32: =IF(DataLink!F751>19,DataLink!E751,NA()) -> 2057 | N32: =DataLink!F751 -> 26
B33: 2018 | C33: =IF(DataLink!F776>19,DataLink!E776,NA()) -> 1473 | D33: =DataLink!F776 -> 1691 | E33: =IF(DataLink!F656>19,DataLink!E656,NA()) -> 1111 | F33: =DataLink!F656 -> 27 | G33: =IF(DataLink!F680>19,DataLink!E680,NA()) -> 1314 | H33: =DataLink!F680 -> 547 | I33: =IF(DataLink!F704>19,DataLink!E704,NA()) -> 1566 | J33: =DataLink!F704 -> 974 | K33: =IF(DataLink!F728>19,DataLink!E728,NA()) -> 1592 | L33: =DataLink!F728 -> 116 | M33: =IF(DataLink!F752>19,DataLink!E752,NA()) -> 1885 | N33: =DataLink!F752 -> 27
B34: 2017 | C34: =IF(DataLink!F777>19,DataLink!E777,NA()) -> 1395 | D34: =DataLink!F777 -> 1610 | E34: =IF(DataLink!F657>19,DataLink!E657,NA()) -> 722 | F34: =DataLink!F657 -> 70 | G34: =IF(DataLink!F681>19,DataLink!E681,NA()) -> 1195 | H34: =DataLink!F681 -> 564 | I34: =IF(DataLink!F705>19,DataLink!E705,NA()) -> 1559 | J34: =DataLink!F705 -> 825 | K34: =IF(DataLink!F729>19,DataLink!E729,NA()) -> 1522 | L34: =DataLink!F729 -> 132 | M34: =IF(DataLink!F753>19,DataLink!E753,NA()) ->  | N34: =DataLink!F753 -> 19
B35: 2016 | C35: =IF(DataLink!F778>19,DataLink!E778,NA()) -> 1285 | D35: =DataLink!F778 -> 2229 | E35: =IF(DataLink!F658>19,DataLink!E658,NA()) -> 697 | F35: =DataLink!F658 -> 65 | G35: =IF(DataLink!F682>19,DataLink!E682,NA()) -> 1119 | H35: =DataLink!F682 -> 732 | I35: =IF(DataLink!F706>19,DataLink!E706,NA()) -> 1415 | J35: =DataLink!F706 -> 1243 | K35: =IF(DataLink!F730>19,DataLink!E730,NA()) -> 1493 | L35: =DataLink!F730 -> 170 | M35: =IF(DataLink!F754>19,DataLink!E754,NA()) ->  | N35: =DataLink!F754 -> 19
B36: 2015 | C36: =IF(DataLink!F779>19,DataLink!E779,NA()) -> 1214 | D36: =DataLink!F779 -> 2276 | E36: =IF(DataLink!F659>19,DataLink!E659,NA()) -> 689 | F36: =DataLink!F659 -> 76 | G36: =IF(DataLink!F683>19,DataLink!E683,NA()) -> 1053 | H36: =DataLink!F683 -> 706 | I36: =IF(DataLink!F707>19,DataLink!E707,NA()) -> 1310 | J36: =DataLink!F707 -> 1241 | K36: =IF(DataLink!F731>19,DataLink!E731,NA()) -> 1500 | L36: =DataLink!F731 -> 222 | M36: =IF(DataLink!F755>19,DataLink!E755,NA()) -> 1542 | N36: =DataLink!F755 -> 31
B37: 2014 | C37: =IF(DataLink!F780>19,DataLink!E780,NA()) -> 1132 | D37: =DataLink!F780 -> 2073 | E37: =IF(DataLink!F660>19,DataLink!E660,NA()) -> 672 | F37: =DataLink!F660 -> 92 | G37: =IF(DataLink!F684>19,DataLink!E684,NA()) -> 1027 | H37: =DataLink!F684 -> 705 | I37: =IF(DataLink!F708>19,DataLink!E708,NA()) -> 1222 | J37: =DataLink!F708 -> 1016 | K37: =IF(DataLink!F732>19,DataLink!E732,NA()) -> 1461 | L37: =DataLink!F732 -> 235 | M37: =IF(DataLink!F756>19,DataLink!E756,NA()) -> 1505 | N37: =DataLink!F756 -> 25
B38: 2013 | C38: =IF(DataLink!F781>19,DataLink!E781,NA()) -> 1139 | D38: =DataLink!F781 -> 2105 | E38: =IF(DataLink!F661>19,DataLink!E661,NA()) -> 650 | F38: =DataLink!F661 -> 70 | G38: =IF(DataLink!F685>19,DataLink!E685,NA()) -> 1013 | H38: =DataLink!F685 -> 719 | I38: =IF(DataLink!F709>19,DataLink!E709,NA()) -> 1199 | J38: =DataLink!F709 -> 1045 | K38: =IF(DataLink!F733>19,DataLink!E733,NA()) -> 1318 | L38: =DataLink!F733 -> 237 | M38: =IF(DataLink!F757>19,DataLink!E757,NA()) -> 1402 | N38: =DataLink!F757 -> 34
B39: 2012 | C39: =IF(DataLink!F782>19,DataLink!E782,NA()) -> 1114 | D39: =DataLink!F782 -> 2136 | E39: =IF(DataLink!F662>19,DataLink!E662,NA()) -> 650 | F39: =DataLink!F662 -> 102 | G39: =IF(DataLink!F686>19,DataLink!E686,NA()) -> 982 | H39: =DataLink!F686 -> 720 | I39: =IF(DataLink!F710>19,DataLink!E710,NA()) -> 1225 | J39: =DataLink!F710 -> 1031 | K39: =IF(DataLink!F734>19,DataLink!E734,NA()) -> 1417 | L39: =DataLink!F734 -> 248 | M39: =IF(DataLink!F758>19,DataLink!E758,NA()) -> 1432 | N39: =DataLink!F758 -> 35
B40: 2011 | C40: =IF(DataLink!F783>19,DataLink!E783,NA()) -> 1095 | D40: =DataLink!F783 -> 2083 | E40: =IF(DataLink!F663>19,DataLink!E663,NA()) -> 612 | F40: =DataLink!F663 -> 70 | G40: =IF(DataLink!F687>19,DataLink!E687,NA()) -> 948 | H40: =DataLink!F687 -> 687 | I40: =IF(DataLink!F711>19,DataLink!E711,NA()) -> 1164 | J40: =DataLink!F711 -> 1062 | K40: =IF(DataLink!F735>19,DataLink!E735,NA()) -> 1434 | L40: =DataLink!F735 -> 239 | M40: =IF(DataLink!F759>19,DataLink!E759,NA()) -> 1502 | N40: =DataLink!F759 -> 25
B41: 2010 | C41: =IF(DataLink!F784>19,DataLink!E784,NA()) -> 1090 | D41: =DataLink!F784 -> 1898 | E41: =IF(DataLink!F664>19,DataLink!E664,NA()) -> 628 | F41: =DataLink!F664 -> 97 | G41: =IF(DataLink!F688>19,DataLink!E688,NA()) -> 883 | H41: =DataLink!F688 -> 615 | I41: =IF(DataLink!F712>19,DataLink!E712,NA()) -> 1142 | J41: =DataLink!F712 -> 890 | K41: =IF(DataLink!F736>19,DataLink!E736,NA()) -> 1376 | L41: =DataLink!F736 -> 271 | M41: =IF(DataLink!F760>19,DataLink!E760,NA()) -> 1400 | N41: =DataLink!F760 -> 25
B42: 2009 | C42: =IF(DataLink!F785>19,DataLink!E785,NA()) -> 1077 | D42: =DataLink!F785 -> 1824 | E42: =IF(DataLink!F665>19,DataLink!E665,NA()) -> 650 | F42: =DataLink!F665 -> 85 | G42: =IF(DataLink!F689>19,DataLink!E689,NA()) -> 949 | H42: =DataLink!F689 -> 640 | I42: =IF(DataLink!F713>19,DataLink!E713,NA()) -> 1088 | J42: =DataLink!F713 -> 808 | K42: =IF(DataLink!F737>19,DataLink!E737,NA()) -> 1424 | L42: =DataLink!F737 -> 260 | M42: =IF(DataLink!F761>19,DataLink!E761,NA()) -> 1502 | N42: =DataLink!F761 -> 31
B43: 2008 | C43: =IF(DataLink!F786>19,DataLink!E786,NA()) -> 1082 | D43: =DataLink!F786 -> 1961 | E43: =IF(DataLink!F666>19,DataLink!E666,NA()) -> 650 | F43: =DataLink!F666 -> 100 | G43: =IF(DataLink!F690>19,DataLink!E690,NA()) -> 887 | H43: =DataLink!F690 -> 598 | I43: =IF(DataLink!F714>19,DataLink!E714,NA()) -> 1085 | J43: =DataLink!F714 -> 953 | K43: =IF(DataLink!F738>19,DataLink!E738,NA()) -> 1392 | L43: =DataLink!F738 -> 273 | M43: =IF(DataLink!F762>19,DataLink!E762,NA()) -> 1426 | N43: =DataLink!F762 -> 37
B44: 2007 | C44: =IF(DataLink!F787>19,DataLink!E787,NA()) -> 1061 | D44: =DataLink!F787 -> 1931 | E44: =IF(DataLink!F667>19,DataLink!E667,NA()) -> 642 | F44: =DataLink!F667 -> 87 | G44: =IF(DataLink!F691>19,DataLink!E691,NA()) -> 881 | H44: =DataLink!F691 -> 611 | I44: =IF(DataLink!F715>19,DataLink!E715,NA()) -> 1088 | J44: =DataLink!F715 -> 950 | K44: =IF(DataLink!F739>19,DataLink!E739,NA()) -> 1349 | L44: =DataLink!F739 -> 251 | M44: =IF(DataLink!F763>19,DataLink!E763,NA()) -> 1437 | N44: =DataLink!F763 -> 32
B45: 2006 | C45: =IF(DataLink!F788>19,DataLink!E788,NA()) -> 1053 | D45: =DataLink!F788 -> 1982 | E45: =IF(DataLink!F668>19,DataLink!E668,NA()) -> 687 | F45: =DataLink!F668 -> 97 | G45: =IF(DataLink!F692>19,DataLink!E692,NA()) -> 901 | H45: =DataLink!F692 -> 633 | I45: =IF(DataLink!F716>19,DataLink!E716,NA()) -> 1080 | J45: =DataLink!F716 -> 1005 | K45: =IF(DataLink!F740>19,DataLink!E740,NA()) -> 1397 | L45: =DataLink!F740 -> 216 | M45: =IF(DataLink!F764>19,DataLink!E764,NA()) -> 1447 | N45: =DataLink!F764 -> 31
B46: 2005 | C46: =IF(DataLink!F789>19,DataLink!E789,NA()) -> 1024 | D46: =DataLink!F789 -> 1841 | E46: =IF(DataLink!F669>19,DataLink!E669,NA()) -> 625 | F46: =DataLink!F669 -> 67 | G46: =IF(DataLink!F693>19,DataLink!E693,NA()) -> 859 | H46: =DataLink!F693 -> 548 | I46: =IF(DataLink!F717>19,DataLink!E717,NA()) -> 1056 | J46: =DataLink!F717 -> 1011 | K46: =IF(DataLink!F741>19,DataLink!E741,NA()) -> 1344 | L46: =DataLink!F741 -> 189 | M46: =IF(DataLink!F765>19,DataLink!E765,NA()) -> 1461 | N46: =DataLink!F765 -> 26
B47: 2004 | C47: =IF(DataLink!F790>19,DataLink!E790,NA()) -> 1041 | D47: =DataLink!F790 -> 1786 | E47: =IF(DataLink!F670>19,DataLink!E670,NA()) -> 676 | F47: =DataLink!F670 -> 40 | G47: =IF(DataLink!F694>19,DataLink!E694,NA()) -> 904 | H47: =DataLink!F694 -> 530 | I47: =IF(DataLink!F718>19,DataLink!E718,NA()) -> 1086 | J47: =DataLink!F718 -> 1036 | K47: =IF(DataLink!F742>19,DataLink!E742,NA()) -> 1281 | L47: =DataLink!F742 -> 164 | M47: =IF(DataLink!F766>19,DataLink!E766,NA()) ->  | N47: =DataLink!F766 -> 16
B48: 2003 | C48: =IF(DataLink!F791>19,DataLink!E791,NA()) -> 1012 | D48: =DataLink!F791 -> 1832 | E48: =IF(DataLink!F671>19,DataLink!E671,NA()) -> 580 | F48: =DataLink!F671 -> 46 | G48: =IF(DataLink!F695>19,DataLink!E695,NA()) -> 886 | H48: =DataLink!F695 -> 543 | I48: =IF(DataLink!F719>19,DataLink!E719,NA()) -> 1024 | J48: =DataLink!F719 -> 1066 | K48: =IF(DataLink!F743>19,DataLink!E743,NA()) -> 1259 | L48: =DataLink!F743 -> 165 | M48: =IF(DataLink!F767>19,DataLink!E767,NA()) ->  | N48: =DataLink!F767 -> 12
B49: 2002 | C49: =IF(DataLink!F792>19,DataLink!E792,NA()) -> 969 | D49: =DataLink!F792 -> 1405 | E49: =IF(DataLink!F672>19,DataLink!E672,NA()) -> 593 | F49: =DataLink!F672 -> 33 | G49: =IF(DataLink!F696>19,DataLink!E696,NA()) -> 858 | H49: =DataLink!F696 -> 390 | I49: =IF(DataLink!F720>19,DataLink!E720,NA()) -> 1019 | J49: =DataLink!F720 -> 830 | K49: =IF(DataLink!F744>19,DataLink!E744,NA()) -> 1160 | L49: =DataLink!F744 -> 142 | M49: =IF(DataLink!F768>19,DataLink!E768,NA()) ->  | N49: =DataLink!F768 -> 10
B50: 2001 | C50: =IF(DataLink!F793>19,DataLink!E793,NA()) -> 966 | D50: =DataLink!F793 -> 1044 | E50: =IF(DataLink!F673>19,DataLink!E673,NA()) ->  | F50: =DataLink!F673 -> 17 | G50: =IF(DataLink!F697>19,DataLink!E697,NA()) -> 859 | H50: =DataLink!F697 -> 276 | I50: =IF(DataLink!F721>19,DataLink!E721,NA()) -> 977 | J50: =DataLink!F721 -> 651 | K50: =IF(DataLink!F745>19,DataLink!E745,NA()) -> 1139 | L50: =DataLink!F745 -> 97 | M50: =IF(DataLink!F769>19,DataLink!E769,NA()) ->  | N50: =DataLink!F769 -> 3
B51: 2000 | C51: =IF(DataLink!F794>19,DataLink!E794,NA()) -> 874 | D51: =DataLink!F794 -> 1423 | E51: =IF(DataLink!F674>19,DataLink!E674,NA()) -> 585 | F51: =DataLink!F674 -> 50 | G51: =IF(DataLink!F698>19,DataLink!E698,NA()) -> 769 | H51: =DataLink!F698 -> 401 | I51: =IF(DataLink!F722>19,DataLink!E722,NA()) -> 896 | J51: =DataLink!F722 -> 856 | K51: =IF(DataLink!F747>19,DataLink!E747,NA()) -> 1023 | L51: =DataLink!F747 -> 113 | M51: =IF(DataLink!F770>19,DataLink!E770,NA()) ->  | N51: =DataLink!F770 -> 3
C52: Source: NHHFA Residential Rental Cost Survey
C53: Note: Calculations based on a sample size of less than 20 are highly volatile and not considered valid.
B56: Percent Change in Median Gross Rental Cost
C58: All Units | E58: 0-Bedroom Units | G58: 1-Bedroom Units | I58: 2-Bedroom Units | K58: 3-Bedroom Units | M58: 4+-Bedroom Units
B60: 2013 to 23 | C60: =(C28-C38)/C38 -> 0.7629499561 | E60: =(E28-E38)/E38 -> 0.5046153846 | G60: =(G28-G38)/G38 -> 0.8529121422 | I60: =(I28-I38)/I38 -> 0.7856547123 | K60: =(K28-K38)/K38 -> 0.4393019727 | M60: =(M28-M38)/M38 -> -0.2703281027
B61: Avg /Year | C61: =C60/10 -> 0.07629499561 | E61: =E60/10 -> 0.05046153846 | G61: =G60/10 -> 0.08529121422 | I61: =I60/10 -> 0.07856547123 | K61: =K60/10 -> 0.04393019727 | M61: =M60/10 -> -0.02703281027
B64: 2022 to 23 | C64: =(C28-C29)/C29 -> 0.0329218107 | E64: =(E28-E29)/E29 -> -0.2256532067 | G64: =(G28-G29)/G29 -> 0.007514761138 | I64: =(I28-I29)/I29 -> 0.08131313131 | K64: =(K28-K29)/K29 -> -0.0443324937 | M64: =(M28-M29)/M29 -> -0.5201688555
B65: 2021 to 22 | C65: =(C29-C30)/C30 -> 0.1767554479 | E65: =(E29-E30)/E30 -> 0.0152733119 | G65: =(G29-G30)/G30 -> 0.3288159772 | I65: =(I29-I30)/I30 -> 0.1366245695 | K65: =(K29-K30)/K30 -> 0.05753862547 | M65: =(M29-M30)/M30 -> 0.1917272219
B66: 2020 to 21 | C66: =(C30-C31)/C31 -> 0.01287553648 | E66: =(E30-E31)/E31 -> 0.06324786325 | G66: =(G30-G31)/G31 -> -0.01406469761 | I66: =(I30-I31)/I31 -> 0.01752336449 | K66: =(K30-K31)/K31 -> -0.007403490217 | M66: =(M30-M31)/M31 -> -0.1243269701
B67: 2019 to 20 | C67: =(C31-C32)/C32 -> 0.1072640869 | E67: =(E31-E32)/E32 -> 0.03907637655 | G67: =(G31-G32)/G32 -> 0.06917293233 | I67: =(I31-I32)/I32 -> 0.1367861886 | K67: =(K31-K32)/K32 -> 0.1189349112 | M67: =(M31-M32)/M32 -> -0.006806028196
B68: 2018 to 19 | C68: =(C32-C33)/C33 -> 0 | E68: =(E32-E33)/E33 -> 0.01350135014 | G68: =(G32-G33)/G33 -> 0.01217656012 | I68: =(I32-I33)/I33 -> -0.03831417625 | K68: =(K32-K33)/K33 -> 0.06155778894 | M68: =(M32-M33)/M33 -> 0.09124668435
B69: 2017 to 18 | C69: 0.05591397849 | E69: 0.5387811634 | G69: 0.09958158996 | I69: 0.004490057729 | K69: 0.04599211564
B70: 2016 to 17 | C70: 0.08560311284 | E70: 0.03586800574 | G70: 0.06791778374 | I70: 0.1017667845 | K70: 0.01942397857
B71: 2015 to 16 | C71: 0.05848434926 | E71: 0.01161103048 | G71: 0.06267806268 | I71: 0.08015267176 | K71: -0.004666666667
B72: 2014 to 15 | C72: 0.07243816254 | E72: 0.02529761905 | G72: 0.0253164557 | I72: 0.07201309329 | K72: 0.02669404517 | M72: 0.02458471761
B73: 2013 to 14 | C73: -0.006145741879 | E73: 0.03384615385 | G73: 0.01382033564 | I73: 0.01918265221 | K73: 0.1084977238 | M73: 0.07346647646
B74: 2012 to 13 | C74: 0.02244165171 | E74: 0 | G74: 0.03156822811 | I74: -0.0212244898 | K74: -0.0698659139 | M74: -0.02094972067
B75: 2011 to 12 | C75: 0.01735159817 | E75: 0.06209150327 | G75: 0.0358649789 | I75: 0.05240549828 | K75: -0.01185495119 | M75: -0.0466045273
B76: 2010 to 11 | C76: 0.004587155963 | E76: -0.02547770701 | G76: 0.07361268403 | I76: 0.01926444834 | K76: 0.04215116279 | M76: 0.07285714286
B77: 2009 to 10 | C77: 0.01207056639 | E77: -0.03384615385 | G77: -0.06954689146 | I77: 0.04963235294 | K77: -0.03370786517 | M77: -0.06790945406
B78: 2008 to 09 | C78: -0.004621072089 | E78: 0 | G78: 0.06989853439 | I78: 0.002764976959 | K78: 0.02298850575 | M78: 0.05329593268
B79: 2007 to 08 | C79: 0.01979264844 | E79: 0.01246105919 | G79: 0.006810442679 | I79: -0.002757352941 | K79: 0.03187546331 | M79: -0.007654836465
B80: 2006 to 07 | C80: 0.007597340931 | E80: -0.06550218341 | G80: -0.02219755827 | I80: 0.007407407407 | K80: -0.03435934145 | M80: -0.006910850035
B81: 2005 to 06 | C81: 0.0283203125 | E81: 0.0992 | G81: 0.04889406286 | I81: 0.02272727273 | K81: 0.03943452381 | M81: -0.009582477755
B82: 2004 to 05 | C82: -0.01633045149 | E82: -0.07544378698 | G82: -0.04977876106 | I82: -0.02762430939 | K82: 0.04918032787
B83: 2003 to 04 | C83: 0.02865612648 | E83: 0.1655172414 | G83: 0.02031602709 | I83: 0.060546875 | K83: 0.01747418586
B84: 2002 to 03 | C84: 0.04437564499 | E84: -0.02192242833 | G84: 0.03263403263 | I84: 0.004906771344 | K84: 0.08534482759
B85: 2001 to 02 | C85: 0.003105590062 | G85: -0.001164144354 | I85: 0.04298874104 | K85: 0.01843722564
B86: 2000 to 01 | C86: 0.1052631579 | G86: 0.1170351105 | I86: 0.09040178571 | K86: 0.1133919844
E114: All Units | G114: 2-Bedroom Units
D115: Year | E115: Vacancy Rate | F115: Sample Size | G115: Vacancy Rate | H115: Sample Size
D116: 2023 | E116: =IF(DataLink!F771>19,DataLink!I771,NA()) -> 0.003511509949 | F116: =DataLink!F771 -> 852 | G116: =IF(DataLink!F699>19,DataLink!I699,NA()) -> 0.004146510021 | H116: =DataLink!F699 -> 467
D117: 2022 | E117: =IF(DataLink!F772>19,DataLink!I772,NA()) -> 0.002212933366 | F117: =DataLink!F772 -> 1343 | G117: =IF(DataLink!F700>19,DataLink!I700,NA()) -> 0.002778880508 | H117: =DataLink!F700 -> 738
D118: 2021 | E118: =IF(DataLink!F773>19,DataLink!I773,NA()) -> 0.003087285995 | F118: =DataLink!F773 -> 1215 | G118: =IF(DataLink!F701>19,DataLink!I701,NA()) -> 0.0008396305626 | H118: =DataLink!F701 -> 758
D119: 2020 | E119: =IF(DataLink!F774>19,DataLink!I774,NA()) -> 0.006393861893 | F119: =DataLink!F774 -> 1281 | G119: =IF(DataLink!F702>19,DataLink!I702,NA()) -> 0.003442340792 | H119: =DataLink!F702 -> 707
D120: 2019 | E120: =IF(DataLink!F775>19,DataLink!I775,NA()) -> 0.004321728691 | F120: =DataLink!F775 -> 1282 | G120: =IF(DataLink!F703>19,DataLink!I703,NA()) -> 0.003414264036 | H120: =DataLink!F703 -> 744
D121: 2018 | E121: =IF(DataLink!F776>19,DataLink!I776,NA()) -> 0.01553968921 | F121: =DataLink!F776 -> 1691 | G121: =IF(DataLink!F704>19,DataLink!I704,NA()) -> 0.02151283831 | H121: =DataLink!F704 -> 974
D122: 2017 | E122: =IF(DataLink!F777>19,DataLink!I777,NA()) -> 0.006718 | F122: =DataLink!F777 -> 1610 | G122: =IF(DataLink!F705>19,DataLink!I705,NA()) -> 0.005004 | H122: =DataLink!F705 -> 825
D123: 2016 | E123: =IF(DataLink!F778>19,DataLink!I778,NA()) -> 0.003568 | F123: =DataLink!F778 -> 2229 | G123: =IF(DataLink!F706>19,DataLink!I706,NA()) -> 0.003886 | H123: =DataLink!F706 -> 1243
D124: 2015 | E124: =IF(DataLink!F779>19,DataLink!I779,NA()) -> 0.024635 | F124: =DataLink!F779 -> 2276 | G124: =IF(DataLink!F707>19,DataLink!I707,NA()) -> 0.017884 | H124: =DataLink!F707 -> 1241
D125: 2014 | E125: =IF(DataLink!F780>19,DataLink!I780,NA()) -> 0.01423 | F125: =DataLink!F780 -> 2073 | G125: =IF(DataLink!F708>19,DataLink!I708,NA()) -> 0.011754 | H125: =DataLink!F708 -> 1016
D126: 2013 | E126: =IF(DataLink!F781>19,DataLink!I781,NA()) -> 0.018377 | F126: =DataLink!F781 -> 2105 | G126: =IF(DataLink!F709>19,DataLink!I709,NA()) -> 0.016163 | H126: =DataLink!F709 -> 1045
D127: 2012 | E127: =IF(DataLink!F782>19,DataLink!I782,NA()) -> 0.019103 | F127: =DataLink!F782 -> 2136 | G127: =IF(DataLink!F710>19,DataLink!I710,NA()) -> 0.019524 | H127: =DataLink!F710 -> 1031
D128: 2011 | E128: =IF(DataLink!F783>19,DataLink!I783,NA()) -> 0.021314 | F128: =DataLink!F783 -> 2083 | G128: =IF(DataLink!F711>19,DataLink!I711,NA()) -> 0.01683 | H128: =DataLink!F711 -> 1062
D129: 2010 | E129: =IF(DataLink!F784>19,DataLink!I784,NA()) -> 0.021205 | F129: =DataLink!F784 -> 1898 | G129: =IF(DataLink!F712>19,DataLink!I712,NA()) -> 0.011175 | H129: =DataLink!F712 -> 890
D130: 2009 | E130: =IF(DataLink!F785>19,DataLink!I785,NA()) -> 0.036741 | F130: =DataLink!F785 -> 1824 | G130: =IF(DataLink!F713>19,DataLink!I713,NA()) -> 0.028169 | H130: =DataLink!F713 -> 808
D131: 2008 | E131: =IF(DataLink!F786>19,DataLink!I786,NA()) -> 0.040319 | F131: =DataLink!F786 -> 1961 | G131: =IF(DataLink!F714>19,DataLink!I714,NA()) -> 0.04121 | H131: =DataLink!F714 -> 953
D132: 2007 | E132: =IF(DataLink!F787>19,DataLink!I787,NA()) -> 0.028622 | F132: =DataLink!F787 -> 1931 | G132: =IF(DataLink!F715>19,DataLink!I715,NA()) -> 0.0242 | H132: =DataLink!F715 -> 950
D133: 2006 | E133: =IF(DataLink!F788>19,DataLink!I788,NA()) -> 0.025163 | F133: =DataLink!F788 -> 1982 | G133: =IF(DataLink!F716>19,DataLink!I716,NA()) -> 0.017818 | H133: =DataLink!F716 -> 1005
D134: 2005 | E134: =IF(DataLink!F789>19,DataLink!I789,NA()) -> 0.019791 | F134: =DataLink!F789 -> 1841 | G134: =IF(DataLink!F717>19,DataLink!I717,NA()) -> 0.016991 | H134: =DataLink!F717 -> 1011
D135: 2004 | E135: =IF(DataLink!F790>19,DataLink!I790,NA()) -> 0.013532 | F135: =DataLink!F790 -> 1786 | G135: =IF(DataLink!F718>19,DataLink!I718,NA()) -> 0.016384 | H135: =DataLink!F718 -> 1036
D136: 2003 | E136: =IF(DataLink!F791>19,DataLink!I791,NA()) -> 0.016048 | F136: =DataLink!F791 -> 1832 | G136: =IF(DataLink!F719>19,DataLink!I719,NA()) -> 0.017219 | H136: =DataLink!F719 -> 1066
D137: 2002 | E137: =IF(DataLink!F792>19,DataLink!I792,NA()) -> 0.004398 | F137: =DataLink!F792 -> 1405 | G137: =IF(DataLink!F720>19,DataLink!I720,NA()) -> 0.00234 | H137: =DataLink!F720 -> 830
D138: 2001 | E138: =IF(DataLink!F793>19,DataLink!I793,NA()) -> 0.000261 | F138: =DataLink!F793 -> 1044 | G138: =IF(DataLink!F721>19,DataLink!I721,NA()) -> 0 | H138: =DataLink!F721 -> 651
D139: 2000 | E139: =IF(DataLink!F794>19,DataLink!I794,NA()) -> 0.001972 | F139: =DataLink!F794 -> 1423 | G139: =IF(DataLink!F722>19,DataLink!I722,NA()) -> 0.002205 | H139: =DataLink!F722 -> 856
D141: Source: NHHFA Residential Rental Cost Survey
D143: Note: Calculations based on a sample size of less than 20 are highly
D144: volatile and not considered valid.
D146: Caution should be used in interpreting these numbers since the
D147: survey methods used may underestimate the real rate of vacancy.

Sheet RPCChartAndTable (hidden)
B2: =DataLink!A808 -> Lakes Region Planning Commission
C26: All Units | E26: 0-Bedroom Units | G26: 1-Bedroom Units | I26: 2-Bedroom Units | K26: 3-Bedroom Units | M26: 4+-Bedroom Units
B27: Year | C27: Median Gross Rental Cost | D27: Sample Size | E27: Median Gross Rental Cost | F27: Sample Size | G27: Median Gross Rental Cost | H27: Sample Size | I27: Median Gross Rental Cost | J27: Sample Size | K27: Median Gross Rental Cost | L27: Sample Size | M27: Median Gross Rental Cost | N27: Sample Size
B28: 2023 | C28: =IF(DataLink!F931>19,DataLink!E931,NA()) -> 1326 | D28: =DataLink!F931 -> 424 | E28: =IF(DataLink!F811>19,DataLink!E811,NA()) -> 914 | F28: =DataLink!F811 -> 25 | G28: =IF(DataLink!F835>19,DataLink!E835,NA()) -> 1119 | H28: =DataLink!F835 -> 154 | I28: =IF(DataLink!F859>19,DataLink!E859,NA()) -> 1423 | J28: =DataLink!F859 -> 199 | K28: =IF(DataLink!F883>19,DataLink!E883,NA()) -> 1632 | L28: =DataLink!F883 -> 37 | M28: =IF(DataLink!F907>19,DataLink!E907,NA()) -> 715 | N28: =DataLink!F907 -> 118
B29: 2022 | C29: =IF(DataLink!F932>19,DataLink!E932,NA()) -> 1109 | D29: =DataLink!F932 -> 407 | E29: =IF(DataLink!F812>19,DataLink!E812,NA()) -> 616 | F29: =DataLink!F812 -> 20 | G29: =IF(DataLink!F836>19,DataLink!E836,NA()) -> 964 | H29: =DataLink!F836 -> 149 | I29: =IF(DataLink!F860>19,DataLink!E860,NA()) -> 1135 | J29: =DataLink!F860 -> 182 | K29: =IF(DataLink!F884>19,DataLink!E884,NA()) -> 1554 | L29: =DataLink!F884 -> 48 | M29: =IF(DataLink!F908>19,DataLink!E908,NA()) ->  | N29: =DataLink!F908 -> 8
B30: 2021 | C30: =IF(DataLink!F933>19,DataLink!E933,NA()) -> 1019 | D30: =DataLink!F933 -> 498 | E30: =IF(DataLink!F813>19,DataLink!E813,NA()) -> 581 | F30: =DataLink!F813 -> 26 | G30: =IF(DataLink!F837>19,DataLink!E837,NA()) -> 886 | H30: =DataLink!F837 -> 180 | I30: =IF(DataLink!F861>19,DataLink!E861,NA()) -> 1094 | J30: =DataLink!F861 -> 202 | K30: =IF(DataLink!F885>19,DataLink!E885,NA()) -> 1326 | L30: =DataLink!F885 -> 77 | M30: =IF(DataLink!F909>19,DataLink!E909,NA()) ->  | N30: =DataLink!F909 -> 13
B31: 2020 | C31: =IF(DataLink!F934>19,DataLink!E934,NA()) -> 1060 | D31: =DataLink!F934 -> 544 | E31: =IF(DataLink!F814>19,DataLink!E814,NA()) -> 695 | F31: =DataLink!F814 -> 26 | G31: =IF(DataLink!F838>19,DataLink!E838,NA()) -> 835 | H31: =DataLink!F838 -> 164 | I31: =IF(DataLink!F862>19,DataLink!E862,NA()) -> 1073 | J31: =DataLink!F862 -> 250 | K31: =IF(DataLink!F886>19,DataLink!E886,NA()) -> 1287 | L31: =DataLink!F886 -> 82 | M31: =IF(DataLink!F910>19,DataLink!E910,NA()) -> 1504 | N31: =DataLink!F910 -> 22
B32: 2019 | C32: =IF(DataLink!F935>19,DataLink!E935,NA()) -> 1018 | D32: =DataLink!F935 -> 662 | E32: =IF(DataLink!F815>19,DataLink!E815,NA()) -> 750 | F32: =DataLink!F815 -> 35 | G32: =IF(DataLink!F839>19,DataLink!E839,NA()) -> 885 | H32: =DataLink!F839 -> 190 | I32: =IF(DataLink!F863>19,DataLink!E863,NA()) -> 1040 | J32: =DataLink!F863 -> 295 | K32: =IF(DataLink!F887>19,DataLink!E887,NA()) -> 1344 | L32: =DataLink!F887 -> 120 | M32: =IF(DataLink!F911>19,DataLink!E911,NA()) -> 1552 | N32: =DataLink!F911 -> 22
B33: 2018 | C33: =IF(DataLink!F936>19,DataLink!E936,NA()) -> 999 | D33: =DataLink!F936 -> 475 | E33: =IF(DataLink!F816>19,DataLink!E816,NA()) -> 675 | F33: =DataLink!F816 -> 24 | G33: =IF(DataLink!F840>19,DataLink!E840,NA()) -> 858 | H33: =DataLink!F840 -> 154 | I33: =IF(DataLink!F864>19,DataLink!E864,NA()) -> 1040 | J33: =DataLink!F864 -> 215 | K33: =IF(DataLink!F888>19,DataLink!E888,NA()) -> 1283 | L33: =DataLink!F888 -> 64 | M33: =IF(DataLink!F912>19,DataLink!E912,NA()) ->  | N33: =DataLink!F912 -> 18
B34: 2017 | C34: =IF(DataLink!F937>19,DataLink!E937,NA()) -> 988 | D34: =DataLink!F937 -> 690 | E34: =IF(DataLink!F817>19,DataLink!E817,NA()) -> 650 | F34: =DataLink!F817 -> 29 | G34: =IF(DataLink!F841>19,DataLink!E841,NA()) -> 807 | H34: =DataLink!F841 -> 219 | I34: =IF(DataLink!F865>19,DataLink!E865,NA()) -> 1018 | J34: =DataLink!F865 -> 307 | K34: =IF(DataLink!F889>19,DataLink!E889,NA()) -> 1281 | L34: =DataLink!F889 -> 109 | M34: =IF(DataLink!F913>19,DataLink!E913,NA()) -> 1372 | N34: =DataLink!F913 -> 26
B35: 2016 | C35: =IF(DataLink!F938>19,DataLink!E938,NA()) -> 950 | D35: =DataLink!F938 -> 957 | E35: =IF(DataLink!F818>19,DataLink!E818,NA()) -> 600 | F35: =DataLink!F818 -> 61 | G35: =IF(DataLink!F842>19,DataLink!E842,NA()) -> 775 | H35: =DataLink!F842 -> 299 | I35: =IF(DataLink!F866>19,DataLink!E866,NA()) -> 986 | J35: =DataLink!F866 -> 399 | K35: =IF(DataLink!F890>19,DataLink!E890,NA()) -> 1228 | L35: =DataLink!F890 -> 165 | M35: =IF(DataLink!F914>19,DataLink!E914,NA()) -> 1442 | N35: =DataLink!F914 -> 33
B36: 2015 | C36: =IF(DataLink!F939>19,DataLink!E939,NA()) -> 969 | D36: =DataLink!F939 -> 953 | E36: =IF(DataLink!F819>19,DataLink!E819,NA()) -> 668 | F36: =DataLink!F819 -> 40 | G36: =IF(DataLink!F843>19,DataLink!E843,NA()) -> 801 | H36: =DataLink!F843 -> 291 | I36: =IF(DataLink!F867>19,DataLink!E867,NA()) -> 994 | J36: =DataLink!F867 -> 426 | K36: =IF(DataLink!F891>19,DataLink!E891,NA()) -> 1231 | L36: =DataLink!F891 -> 161 | M36: =IF(DataLink!F915>19,DataLink!E915,NA()) -> 1369 | N36: =DataLink!F915 -> 35
B37: 2014 | C37: =IF(DataLink!F940>19,DataLink!E940,NA()) -> 936 | D37: =DataLink!F940 -> 910 | E37: =IF(DataLink!F820>19,DataLink!E820,NA()) -> 636 | F37: =DataLink!F820 -> 39 | G37: =IF(DataLink!F844>19,DataLink!E844,NA()) -> 756 | H37: =DataLink!F844 -> 267 | I37: =IF(DataLink!F868>19,DataLink!E868,NA()) -> 962 | J37: =DataLink!F868 -> 401 | K37: =IF(DataLink!F892>19,DataLink!E892,NA()) -> 1223 | L37: =DataLink!F892 -> 170 | M37: =IF(DataLink!F916>19,DataLink!E916,NA()) -> 1462 | N37: =DataLink!F916 -> 33
B38: 2013 | C38: =IF(DataLink!F941>19,DataLink!E941,NA()) -> 920 | D38: =DataLink!F941 -> 956 | E38: =IF(DataLink!F821>19,DataLink!E821,NA()) -> 645 | F38: =DataLink!F821 -> 39 | G38: =IF(DataLink!F845>19,DataLink!E845,NA()) -> 753 | H38: =DataLink!F845 -> 285 | I38: =IF(DataLink!F869>19,DataLink!E869,NA()) -> 953 | J38: =DataLink!F869 -> 440 | K38: =IF(DataLink!F893>19,DataLink!E893,NA()) -> 1212 | L38: =DataLink!F893 -> 155 | M38: =IF(DataLink!F917>19,DataLink!E917,NA()) -> 1340 | N38: =DataLink!F917 -> 37
B39: 2012 | C39: =IF(DataLink!F942>19,DataLink!E942,NA()) -> 915 | D39: =DataLink!F942 -> 1023 | E39: =IF(DataLink!F822>19,DataLink!E822,NA()) -> 585 | F39: =DataLink!F822 -> 64 | G39: =IF(DataLink!F846>19,DataLink!E846,NA()) -> 728 | H39: =DataLink!F846 -> 297 | I39: =IF(DataLink!F870>19,DataLink!E870,NA()) -> 945 | J39: =DataLink!F870 -> 461 | K39: =IF(DataLink!F894>19,DataLink!E894,NA()) -> 1175 | L39: =DataLink!F894 -> 163 | M39: =IF(DataLink!F918>19,DataLink!E918,NA()) -> 1407 | N39: =DataLink!F918 -> 38
B40: 2011 | C40: =IF(DataLink!F943>19,DataLink!E943,NA()) -> 915 | D40: =DataLink!F943 -> 929 | E40: =IF(DataLink!F823>19,DataLink!E823,NA()) -> 585 | F40: =DataLink!F823 -> 32 | G40: =IF(DataLink!F847>19,DataLink!E847,NA()) -> 746 | H40: =DataLink!F847 -> 281 | I40: =IF(DataLink!F871>19,DataLink!E871,NA()) -> 940 | J40: =DataLink!F871 -> 418 | K40: =IF(DataLink!F895>19,DataLink!E895,NA()) -> 1170 | L40: =DataLink!F895 -> 162 | M40: =IF(DataLink!F919>19,DataLink!E919,NA()) -> 1417 | N40: =DataLink!F919 -> 36
B41: 2010 | C41: =IF(DataLink!F944>19,DataLink!E944,NA()) -> 873 | D41: =DataLink!F944 -> 963 | E41: =IF(DataLink!F824>19,DataLink!E824,NA()) -> 585 | F41: =DataLink!F824 -> 58 | G41: =IF(DataLink!F848>19,DataLink!E848,NA()) -> 701 | H41: =DataLink!F848 -> 326 | I41: =IF(DataLink!F872>19,DataLink!E872,NA()) -> 925 | J41: =DataLink!F872 -> 390 | K41: =IF(DataLink!F896>19,DataLink!E896,NA()) -> 1145 | L41: =DataLink!F896 -> 163 | M41: =IF(DataLink!F920>19,DataLink!E920,NA()) -> 1336 | N41: =DataLink!F920 -> 26
B42: 2009 | C42: =IF(DataLink!F945>19,DataLink!E945,NA()) -> 867 | D42: =DataLink!F945 -> 936 | E42: =IF(DataLink!F825>19,DataLink!E825,NA()) -> 585 | F42: =DataLink!F825 -> 56 | G42: =IF(DataLink!F849>19,DataLink!E849,NA()) -> 722 | H42: =DataLink!F849 -> 316 | I42: =IF(DataLink!F873>19,DataLink!E873,NA()) -> 911 | J42: =DataLink!F873 -> 393 | K42: =IF(DataLink!F897>19,DataLink!E897,NA()) -> 1105 | L42: =DataLink!F897 -> 147 | M42: =IF(DataLink!F921>19,DataLink!E921,NA()) -> 1293 | N42: =DataLink!F921 -> 24
B43: 2008 | C43: =IF(DataLink!F946>19,DataLink!E946,NA()) -> 888 | D43: =DataLink!F946 -> 849 | E43: =IF(DataLink!F826>19,DataLink!E826,NA()) -> 590 | F43: =DataLink!F826 -> 49 | G43: =IF(DataLink!F850>19,DataLink!E850,NA()) -> 700 | H43: =DataLink!F850 -> 263 | I43: =IF(DataLink!F874>19,DataLink!E874,NA()) -> 914 | J43: =DataLink!F874 -> 371 | K43: =IF(DataLink!F898>19,DataLink!E898,NA()) -> 1131 | L43: =DataLink!F898 -> 142 | M43: =IF(DataLink!F922>19,DataLink!E922,NA()) -> 1395 | N43: =DataLink!F922 -> 24
B44: 2007 | C44: =IF(DataLink!F947>19,DataLink!E947,NA()) -> 823 | D44: =DataLink!F947 -> 811 | E44: =IF(DataLink!F827>19,DataLink!E827,NA()) -> 585 | F44: =DataLink!F827 -> 50 | G44: =IF(DataLink!F851>19,DataLink!E851,NA()) -> 674 | H44: =DataLink!F851 -> 260 | I44: =IF(DataLink!F875>19,DataLink!E875,NA()) -> 867 | J44: =DataLink!F875 -> 354 | K44: =IF(DataLink!F899>19,DataLink!E899,NA()) -> 1027 | L44: =DataLink!F899 -> 123 | M44: =IF(DataLink!F923>19,DataLink!E923,NA()) -> 1278 | N44: =DataLink!F923 -> 24
B45: 2006 | C45: =IF(DataLink!F948>19,DataLink!E948,NA()) -> 793 | D45: =DataLink!F948 -> 987 | E45: =IF(DataLink!F828>19,DataLink!E828,NA()) -> 575 | F45: =DataLink!F828 -> 62 | G45: =IF(DataLink!F852>19,DataLink!E852,NA()) -> 650 | H45: =DataLink!F852 -> 306 | I45: =IF(DataLink!F876>19,DataLink!E876,NA()) -> 857 | J45: =DataLink!F876 -> 437 | K45: =IF(DataLink!F900>19,DataLink!E900,NA()) -> 1050 | L45: =DataLink!F900 -> 157 | M45: =IF(DataLink!F924>19,DataLink!E924,NA()) -> 1276 | N45: =DataLink!F924 -> 25
B46: 2005 | C46: =IF(DataLink!F949>19,DataLink!E949,NA()) -> 731 | D46: =DataLink!F949 -> 856 | E46: =IF(DataLink!F829>19,DataLink!E829,NA()) -> 542 | F46: =DataLink!F829 -> 53 | G46: =IF(DataLink!F853>19,DataLink!E853,NA()) -> 604 | H46: =DataLink!F853 -> 296 | I46: =IF(DataLink!F877>19,DataLink!E877,NA()) -> 799 | J46: =DataLink!F877 -> 369 | K46: =IF(DataLink!F901>19,DataLink!E901,NA()) -> 957 | L46: =DataLink!F901 -> 122 | M46: =IF(DataLink!F925>19,DataLink!E925,NA()) ->  | N46: =DataLink!F925 -> 16
B47: 2004 | C47: =IF(DataLink!F950>19,DataLink!E950,NA()) -> 702 | D47: =DataLink!F950 -> 867 | E47: =IF(DataLink!F830>19,DataLink!E830,NA()) -> 480 | F47: =DataLink!F830 -> 39 | G47: =IF(DataLink!F854>19,DataLink!E854,NA()) -> 600 | H47: =DataLink!F854 -> 327 | I47: =IF(DataLink!F878>19,DataLink!E878,NA()) -> 786 | J47: =DataLink!F878 -> 357 | K47: =IF(DataLink!F902>19,DataLink!E902,NA()) -> 906 | L47: =DataLink!F902 -> 130 | M47: =IF(DataLink!F926>19,DataLink!E926,NA()) ->  | N47: =DataLink!F926 -> 14
B48: 2003 | C48: =IF(DataLink!F951>19,DataLink!E951,NA()) -> 668 | D48: =DataLink!F951 -> 940 | E48: =IF(DataLink!F831>19,DataLink!E831,NA()) -> 472 | F48: =DataLink!F831 -> 52 | G48: =IF(DataLink!F855>19,DataLink!E855,NA()) -> 561 | H48: =DataLink!F855 -> 367 | I48: =IF(DataLink!F879>19,DataLink!E879,NA()) -> 733 | J48: =DataLink!F879 -> 387 | K48: =IF(DataLink!F903>19,DataLink!E903,NA()) -> 866 | L48: =DataLink!F903 -> 118 | M48: =IF(DataLink!F927>19,DataLink!E927,NA()) ->  | N48: =DataLink!F927 -> 16
B49: 2002 | C49: =IF(DataLink!F952>19,DataLink!E952,NA()) -> 636 | D49: =DataLink!F952 -> 859 | E49: =IF(DataLink!F832>19,DataLink!E832,NA()) -> 440 | F49: =DataLink!F832 -> 49 | G49: =IF(DataLink!F856>19,DataLink!E856,NA()) -> 536 | H49: =DataLink!F856 -> 318 | I49: =IF(DataLink!F880>19,DataLink!E880,NA()) -> 694 | J49: =DataLink!F880 -> 369 | K49: =IF(DataLink!F904>19,DataLink!E904,NA()) -> 774 | L49: =DataLink!F904 -> 105 | M49: =IF(DataLink!F928>19,DataLink!E928,NA()) ->  | N49: =DataLink!F928 -> 18
B50: 2001 | C50: =IF(DataLink!F953>19,DataLink!E953,NA()) -> 598 | D50: =DataLink!F953 -> 894 | E50: =IF(DataLink!F833>19,DataLink!E833,NA()) -> 434 | F50: =DataLink!F833 -> 48 | G50: =IF(DataLink!F857>19,DataLink!E857,NA()) -> 509 | H50: =DataLink!F857 -> 325 | I50: =IF(DataLink!F881>19,DataLink!E881,NA()) -> 648 | J50: =DataLink!F881 -> 386 | K50: =IF(DataLink!F905>19,DataLink!E905,NA()) -> 766 | L50: =DataLink!F905 -> 115 | M50: =IF(DataLink!F929>19,DataLink!E929,NA()) -> 897 | N50: =DataLink!F929 -> 20
B51: 2000 | C51: =IF(DataLink!F954>19,DataLink!E954,NA()) -> 585 | D51: =DataLink!F954 -> 918 | E51: =IF(DataLink!F834>19,DataLink!E834,NA()) -> 394 | F51: =DataLink!F834 -> 47 | G51: =IF(DataLink!F858>19,DataLink!E858,NA()) -> 470 | H51: =DataLink!F858 -> 323 | I51: =IF(DataLink!F882>19,DataLink!E882,NA()) -> 626 | J51: =DataLink!F882 -> 408 | K51: =IF(DataLink!F907>19,DataLink!E907,NA()) -> 715 | L51: =DataLink!F907 -> 118 | M51: =IF(DataLink!F930>19,DataLink!E930,NA()) -> 875 | N51: =DataLink!F930 -> 22
C52: Source: NHHFA Residential Rental Cost Survey
C53: Note: Calculations based on a sample size of less than 20 are highly volatile and not considered valid.
B56: Percent Change in Median Gross Rental Cost
C58: All Units | E58: 0-Bedroom Units | G58: 1-Bedroom Units | I58: 2-Bedroom Units | K58: 3-Bedroom Units | M58: 4+-Bedroom Units
B60: 2014 to 23 | C60: =(C28-C37)/C37 -> 0.4166666667 | E60: =(E28-E37)/E37 -> 0.4371069182 | G60: =(G28-G37)/G37 -> 0.4801587302 | I60: =(I28-I37)/I37 -> 0.4792099792 | K60: =(K28-K37)/K37 -> 0.3344235487 | M60: =(M28-M37)/M37 -> -0.5109439124
B61: Avg /Year | C61: =C60/10 -> 0.04166666667 | E61: =E60/10 -> 0.04371069182 | G61: =G60/10 -> 0.04801587302 | I61: =I60/10 -> 0.04792099792 | K61: =K60/10 -> 0.03344235487 | M61: =M60/10 -> -0.05109439124
B63: 2022 to 23 | C63: =(C28-C29)/C29 -> 0.1956717764 | E63: =(E28-E29)/E29 -> 0.4837662338 | G63: =(G28-G29)/G29 -> 0.1607883817 | I63: =(I28-I29)/I29 -> 0.2537444934 | K63: =(K28-K29)/K29 -> 0.05019305019 | M63: =(M28-M29)/M29 -> 
B64: 2021 to 22 | C64: =(C29-C30)/C30 -> 0.0883218842 | E64: 0.06024096386 | G64: 0.08803611738 | I64: 0.03747714808 | K64: 0.1719457014
B65: 2020 to 21 | C65: =(C30-C31)/C31 -> -0.03867924528 | E65: -0.164028777 | G65: 0.06107784431 | I65: 0.01957129543 | K65: 0.0303030303
B66: 2019 to 20 | C66: =(C31-C32)/C32 -> 0.04125736739 | E66: -0.07333333333 | G66: -0.05649717514 | I66: 0.03173076923 | K66: -0.04241071429 | M66: -0.03092783505
B67: 2018 to 19 | C67: =(C32-C33)/C33 -> 0.01901901902 | E67: 0.1111111111 | G67: 0.03146853147 | I67: 0 | K67: 0.04754481684
B68: 2017 to 18 | C68: =(C33-C34)/C34 -> 0.01113360324 | E68: 0.03846153846 | G68: 0.06319702602 | I68: 0.02161100196 | K68: 0.00156128025
B69: 2016 to 17 | C69: 0.04 | E69: 0.08333333333 | G69: 0.04129032258 | I69: 0.03245436105 | K69: 0.04315960912 | M69: -0.04854368932
B70: 2015 to 16 | C70: -0.01960784314 | E70: -0.1017964072 | G70: -0.03245942572 | I70: -0.008048289738 | K70: -0.002437043054 | M70: 0.05332359386
B71: 2014 to 15 | C71: 0.03525641026 | E71: 0.05031446541 | G71: 0.05952380952 | I71: 0.03326403326 | K71: 0.006541291905 | M71: -0.06361149111
B72: 2013 to 14 | C72: 0.01739130435 | E72: -0.01395348837 | G72: 0.003984063745 | I72: 0.00944386149 | K72: 0.009075907591 | M72: 0.09104477612
B73: 2012 to 13 | C73: 0.005464480874 | E73: 0.1025641026 | G73: 0.03434065934 | I73: 0.008465608466 | K73: 0.0314893617 | M73: -0.04761904762
B74: 2011 to 12 | C74: 0 | E74: 0 | G74: -0.02412868633 | I74: 0.005319148936 | K74: 0.004273504274 | M74: -0.00705716302
B75: 2010 to 11 | C75: 0.04810996564 | E75: 0 | G75: 0.06419400856 | I75: 0.01621621622 | K75: 0.02183406114 | M75: 0.06062874251
B76: 2009 to 10 | C76: 0.006920415225 | E76: 0 | G76: -0.02908587258 | I76: 0.01536772777 | K76: 0.03619909502 | M76: 0.03325599381
B77: 2008 to 09 | C77: -0.02364864865 | E77: -0.008474576271 | G77: 0.03142857143 | I77: -0.003282275711 | K77: -0.02298850575 | M77: -0.07311827957
B78: 2007 to 08 | C78: 0.07897934386 | E78: 0.008547008547 | G78: 0.03857566766 | I78: 0.05420991926 | K78: 0.1012658228 | M78: 0.09154929577
B79: 2006 to 07 | C79: 0.03783102144 | E79: 0.01739130435 | G79: 0.03692307692 | I79: 0.01166861144 | K79: -0.0219047619 | M79: 0.001567398119
B80: 2005 to 06 | C80: 0.08481532148 | E80: 0.06088560886 | G80: 0.0761589404 | I80: 0.07259073842 | K80: 0.09717868339
B81: 2004 to 05 | C81: 0.04131054131 | E81: 0.1291666667 | G81: 0.006666666667 | I81: 0.0165394402 | K81: 0.05629139073
B82: 2003 to 04 | C82: 0.05089820359 | E82: 0.01694915254 | G82: 0.06951871658 | I82: 0.07230559345 | K82: 0.04618937644
B83: 2002 to 03 | C83: 0.05031446541 | E83: 0.07272727273 | G83: 0.04664179104 | I83: 0.05619596542 | K83: 0.1188630491
B84: 2001 to 02 | C84: 0.0635451505 | E84: 0.01382488479 | G84: 0.05304518664 | I84: 0.07098765432 | K84: 0.01044386423
B85: 2000 to 01 | C85: 0.02222222222 | E85: 0.1015228426 | G85: 0.0829787234 | I85: 0.03514376997 | K85: 0.07132867133 | M85: 0.02514285714
E114: All Units | G114: 2-Bedroom Units
D115: Year | E115: Vacancy Rate | F115: Sample Size | G115: Vacancy Rate | H115: Sample Size
D116: 2023 | E116: =IF(DataLink!$F$945>19,DataLink!$I931,NA()) -> 0.01178451178 | F116: =DataLink!$F931 -> 424 | G116: =IF(DataLink!$F$873>19,DataLink!$I859,NA()) -> 0.006993006993 | H116: =DataLink!$F859 -> 199
D117: 2022 | E117: =IF(DataLink!$F$945>19,DataLink!$I932,NA()) -> 0.01142857143 | F117: =DataLink!$F932 -> 407 | G117: =IF(DataLink!$F$873>19,DataLink!$I860,NA()) -> 0.005633802817 | H117: =DataLink!$F860 -> 182
D118: 2021 | E118: =IF(DataLink!$F$945>19,DataLink!$I933,NA()) -> 0.01024327785 | F118: =DataLink!$F933 -> 498 | G118: =IF(DataLink!$F$873>19,DataLink!$I861,NA()) -> 0.008310249307 | H118: =DataLink!$F861 -> 202
D119: 2020 | E119: =IF(DataLink!$F$945>19,DataLink!$I934,NA()) -> 0.01509433962 | F119: =DataLink!$F934 -> 544 | G119: =IF(DataLink!$F$873>19,DataLink!$I862,NA()) -> 0.0117370892 | H119: =DataLink!$F862 -> 250
D120: 2019 | E120: =IF(DataLink!$F$945>19,DataLink!$I935,NA()) -> 0.01860920666 | F120: =DataLink!$F935 -> 662 | G120: =IF(DataLink!$F$873>19,DataLink!$I863,NA()) -> 0.01727447217 | H120: =DataLink!$F863 -> 295
D121: 2018 | E121: =IF(DataLink!$F$945>19,DataLink!$I936,NA()) -> 0.06683168317 | F121: =DataLink!$F936 -> 475 | G121: =IF(DataLink!$F$873>19,DataLink!$I864,NA()) -> 0.07042253521 | H121: =DataLink!$F864 -> 215
D122: 2017 | E122: =IF(DataLink!$F$945>19,DataLink!$I937,NA()) -> 0.044534 | F122: =DataLink!$F937 -> 690 | G122: =IF(DataLink!$F$873>19,DataLink!$I865,NA()) -> 0.036072 | H122: =DataLink!$F865 -> 307
D123: 2016 | E123: =IF(DataLink!$F$945>19,DataLink!$I938,NA()) -> 0.050536 | F123: =DataLink!$F938 -> 957 | G123: =IF(DataLink!$F$873>19,DataLink!$I866,NA()) -> 0.034843 | H123: =DataLink!$F866 -> 399
D124: 2015 | E124: =IF(DataLink!$F$945>19,DataLink!$I939,NA()) -> 0.044162 | F124: =DataLink!$F939 -> 953 | G124: =IF(DataLink!$F$873>19,DataLink!$I867,NA()) -> 0.029595 | H124: =DataLink!$F867 -> 426
D125: 2014 | E125: =IF(DataLink!$F$945>19,DataLink!$I940,NA()) -> 0.05538 | F125: =DataLink!$F940 -> 910 | G125: =IF(DataLink!$F$873>19,DataLink!$I868,NA()) -> 0.052805 | H125: =DataLink!$F868 -> 401
D126: 2013 | E126: =IF(DataLink!$F$945>19,DataLink!$I941,NA()) -> 0.059243 | F126: =DataLink!$F941 -> 956 | G126: =IF(DataLink!$F$873>19,DataLink!$I869,NA()) -> 0.073276 | H126: =DataLink!$F869 -> 440
D127: 2012 | E127: =IF(DataLink!$F$945>19,DataLink!$I942,NA()) -> 0.044669 | F127: =DataLink!$F942 -> 1023 | G127: =IF(DataLink!$F$873>19,DataLink!$I870,NA()) -> 0.041193 | H127: =DataLink!$F870 -> 461
D128: 2011 | E128: =IF(DataLink!$F$945>19,DataLink!$I943,NA()) -> 0.09582689 | F128: =DataLink!$F943 -> 929 | G128: =IF(DataLink!$F$873>19,DataLink!$I871,NA()) -> 0.08868501 | H128: =DataLink!$F871 -> 418
D129: 2010 | E129: =IF(DataLink!$F$945>19,DataLink!$I944,NA()) -> 0.092209 | F129: =DataLink!$F944 -> 963 | G129: =IF(DataLink!$F$873>19,DataLink!$I872,NA()) -> 0.08453 | H129: =DataLink!$F872 -> 390
D130: 2009 | E130: =IF(DataLink!$F$945>19,DataLink!$I945,NA()) -> 0.092623 | F130: =DataLink!$F945 -> 936 | G130: =IF(DataLink!$F$873>19,DataLink!$I873,NA()) -> 0.075885 | H130: =DataLink!$F873 -> 393
D131: 2008 | E131: =IF(DataLink!$F$946>19,DataLink!$I$946,NA()) -> 0.05744337 | F131: =DataLink!$F$946 -> 849 | G131: =IF(DataLink!$F$874>19,DataLink!$I$874,NA()) -> 0.06289309 | H131: =DataLink!$F$874 -> 371
D132: 2007 | E132: =IF(DataLink!$F$947>19,DataLink!$I$947,NA()) -> 0.058244 | F132: =DataLink!$F$947 -> 811 | G132: =IF(DataLink!$F$875>19,DataLink!$I$875,NA()) -> 0.045959 | H132: =DataLink!$F$875 -> 354
D133: 2006 | E133: =IF(DataLink!$F$948>19,DataLink!$I$948,NA()) -> 0.051013 | F133: =DataLink!$F$948 -> 987 | G133: =IF(DataLink!$F$876>19,DataLink!$I$876,NA()) -> 0.04607 | H133: =DataLink!$F$876 -> 437
D134: 2005 | E134: =IF(DataLink!$F$949>19,DataLink!$I$949,NA()) -> 0.055787 | F134: =DataLink!$F$949 -> 856 | G134: =IF(DataLink!$F$877>19,DataLink!$I$877,NA()) -> 0.028814 | H134: =DataLink!$F$877 -> 369
D135: 2004 | E135: =IF(DataLink!$F$950>19,DataLink!$I$950,NA()) -> 0.023547 | F135: =DataLink!$F$950 -> 867 | G135: =IF(DataLink!$F$878>19,DataLink!$I$878,NA()) -> 0.017378 | H135: =DataLink!$F$878 -> 357
D136: 2003 | E136: =IF(DataLink!$F$951>19,DataLink!$I$951,NA()) -> 0.034297 | F136: =DataLink!$F$951 -> 940 | G136: =IF(DataLink!$F$879>19,DataLink!$I$879,NA()) -> 0.023578 | H136: =DataLink!$F$879 -> 387
D137: 2002 | E137: =IF(DataLink!$F$952>19,DataLink!$I$952,NA()) -> 0.019564 | F137: =DataLink!$F$952 -> 859 | G137: =IF(DataLink!$F$880>19,DataLink!$I$880,NA()) -> 0.014815 | H137: =DataLink!$F$880 -> 369
D138: 2001 | E138: =IF(DataLink!$F$953>19,DataLink!$I$953,NA()) -> 0.024911 | F138: =DataLink!$F$953 -> 894 | G138: =IF(DataLink!$F$881>19,DataLink!$I$881,NA()) -> 0.014225 | H138: =DataLink!$F$881 -> 386
D139: 2000 | E139: =IF(DataLink!$F$954>19,DataLink!$I$954,NA()) -> 0.026786 | F139: =DataLink!$F$954 -> 918 | G139: =IF(DataLink!$F$882>19,DataLink!$I$882,NA()) -> 0.009186 | H139: =DataLink!$F$882 -> 408
D141: Source: NHHFA Residential Rental Cost Survey
D143: Note: Calculations based on a sample size of less than 20 are highly
D144: volatile and not considered valid.
D146: Caution should be used in interpreting these numbers since the
D147: survey methods used may underestimate the real rate of vacancy.

Sheet RPCFrequency (hidden)
B2: =DataLink2!A426 -> Lakes Region Planning Commission
B82: =DataLink2!A426 -> Lakes Region Planning Commission
B84: =DataLink2!C302 -> Year | C84: =DataLink2!E302 -> Bedroom | D84: Median Rent | E84: =DataLink2!G302 -> 400 | F84: =DataLink2!H302 -> 500 | G84: =DataLink2!I302 -> 600 | H84: =DataLink2!J302 -> 700 | I84: =DataLink2!K302 -> 800 | J84: =DataLink2!L302 -> 900 | K84: =DataLink2!M302 -> 1000 | L84: =DataLink2!N302 -> 1100 | M84: =DataLink2!O302 -> 1200 | N84: =DataLink2!P302 -> 1300 | O84: =DataLink2!Q302 -> 1400 | P84: =DataLink2!R302 -> 1500 | Q84: =DataLink2!S302 -> 1600 | R84: =DataLink2!T302 -> 1700 | S84: =DataLink2!U302 -> 1800 | T84: =DataLink2!V302 -> 1900 | U84: =DataLink2!W302 -> 2000 | V84: =DataLink2!X302 -> 2100 | W84: =DataLink2!Y302 -> 2200 | X84: =DataLink2!Z302 -> 2300 | Y84: =DataLink2!AA302 -> 2400 | Z84: =DataLink2!AB302 -> 2500 | AA84: =DataLink2!AC302 -> 2600 | AB84: =DataLink2!AD302 -> 2700 | AC84: =DataLink2!AE302 -> 2800 | AD84: =DataLink2!AF302 -> 2900 | AE84: =DataLink2!AG302 -> 3000 | AF84: =DataLink2!AH302 -> 3100 | AG84: =DataLink2!AI302 -> 3200 | AH84: =DataLink2!AJ302 -> 3300 | AI84: =DataLink2!AK302 -> 3400 | AJ84: =DataLink2!AL302 -> 3500 | AK84: =DataLink2!AM302 -> 3600 | AL84: =DataLink2!AN302 -> 3700 | AM84: =DataLink2!AO302 -> 3800 | AN84: =DataLink2!AP302 -> 3900 | AO84: =DataLink2!AQ302 -> 4000 | AP84: =DataLink2!AR302 -> 4100 | AQ84: =DataLink2!AS302 -> 4200 | AR84: =DataLink2!AT302 -> 4300 | AS84: =DataLink2!AU302 -> 4400
B85: =DataLink2!C$429 -> 2023 | C85: =DataLink2!E$429 -> 2 Bedroom Units | D85: =DataLink2!F$429 -> 1423 | E85: =DataLink2!G$429 -> 0 | F85: =DataLink2!H$429 -> 0 | G85: =DataLink2!I$429 -> 0 | H85: =DataLink2!J$429 -> 0 | I85: =DataLink2!K$429 -> 1 | J85: =DataLink2!L$429 -> 5 | K85: =DataLink2!M$429 -> 9 | L85: =DataLink2!N$429 -> 14 | M85: =DataLink2!O$429 -> 37 | N85: =DataLink2!P$429 -> 16 | O85: =DataLink2!Q$429 -> 37 | P85: =DataLink2!R$429 -> 33 | Q85: =DataLink2!S$429 -> 10 | R85: =DataLink2!T$429 -> 7 | S85: =DataLink2!U$429 -> 4 | T85: =DataLink2!V$429 -> 8 | U85: =DataLink2!W$429 -> 10 | V85: =DataLink2!X$429 -> 6 | W85: =DataLink2!Y$429 -> 2 | X85: =DataLink2!Z$429 -> 0 | Y85: =DataLink2!AA$429 -> 0 | Z85: =DataLink2!AB$429 -> 0 | AA85: =DataLink2!AC$429 -> 0 | AB85: =DataLink2!AD$429 -> 0 | AC85: =DataLink2!AE$429 -> 0 | AD85: =DataLink2!AF$429 -> 0 | AE85: =DataLink2!AG$429 -> 0 | AF85: =DataLink2!AH$429 -> 0 | AG85: =DataLink2!AI$429 -> 0 | AH85: =DataLink2!AJ$429 -> 0 | AI85: =DataLink2!AK$429 -> 0 | AJ85: =DataLink2!AL$429 -> 0 | AK85: =DataLink2!AM$429 -> 0 | AL85: =DataLink2!AN$429 -> 0 | AM85: =DataLink2!AO$429 -> 0 | AN85: =DataLink2!AP$429 -> 0 | AO85: =DataLink2!AQ$429 -> 0 | AP85: =DataLink2!AR$429 -> 0 | AQ85: =DataLink2!AS$429 -> 0 | AR85: =DataLink2!AT$429 -> 0 | AS85: =DataLink2!AU$429 -> 0
B86: =DataLink2!C$430 -> 2023 | C86: =DataLink2!E$430 -> All Units | D86: =DataLink2!F$430 -> 1326 | E86: =DataLink2!G$430 -> 0 | F86: =DataLink2!H$430 -> 1 | G86: =DataLink2!I$430 -> 11 | H86: =DataLink2!J$430 -> 7 | I86: =DataLink2!K$430 -> 16 | J86: =DataLink2!L$430 -> 31 | K86: =DataLink2!M$430 -> 27 | L86: =DataLink2!N$430 -> 42 | M86: =DataLink2!O$430 -> 55 | N86: =DataLink2!P$430 -> 33 | O86: =DataLink2!Q$430 -> 50 | P86: =DataLink2!R$430 -> 47 | Q86: =DataLink2!S$430 -> 21 | R86: =DataLink2!T$430 -> 17 | S86: =DataLink2!U$430 -> 11 | T86: =DataLink2!V$430 -> 14 | U86: =DataLink2!W$430 -> 11 | V86: =DataLink2!X$430 -> 12 | W86: =DataLink2!Y$430 -> 2 | X86: =DataLink2!Z$430 -> 0 | Y86: =DataLink2!AA$430 -> 2 | Z86: =DataLink2!AB$430 -> 0 | AA86: =DataLink2!AC$430 -> 1 | AB86: =DataLink2!AD$430 -> 0 | AC86: =DataLink2!AE$430 -> 0 | AD86: =DataLink2!AF$430 -> 0 | AE86: =DataLink2!AG$430 -> 1 | AF86: =DataLink2!AH$430 -> 1 | AG86: =DataLink2!AI$430 -> 1 | AH86: =DataLink2!AJ$430 -> 1 | AI86: =DataLink2!AK$430 -> 0 | AJ86: =DataLink2!AL$430 -> 0 | AK86: =DataLink2!AM$430 -> 0 | AL86: =DataLink2!AN$430 -> 0 | AM86: =DataLink2!AO$430 -> 0 | AN86: =DataLink2!AP$430 -> 0 | AO86: =DataLink2!AQ$430 -> 0 | AP86: =DataLink2!AR$430 -> 0 | AQ86: =DataLink2!AS$430 -> 0 | AR86: =DataLink2!AT$430 -> 0 | AS86: =DataLink2!AU$430 -> 0
B88: 2020 | C88: 2 Bedroom Units | E88: =IF($D$85>(E84-50), IF($D$85<(E84+50), $D85, " "), " ") ->  | O88: =IF($D$85>(O84-50), IF($D$85<(O84+50), $D85, " "), " ") -> 1423 | P88: =IF($D$85>(P84-50), IF($D$85<(P84+50), $D85, " "), " ") -> 
B89: 2020 | C89: All Units | E89: =IF($D$86>(E84-50), IF($D$86<(E84+50), $D86, " "), " ") ->  | F89: =IF($D$86>(F84-50), IF($D$86<(F84+50), $D86, " "), " ") ->  | N89: =IF($D$86>(N84-50), IF($D$86<(N84+50), $D86, " "), " ") -> 1326 | O89: =IF($D$86>(O84-50), IF($D$86<(O84+50), $D86, " "), " ") -> 

Sheet CityFrequency (hidden)
B2: =DataLink2!A364 -> City of Nashua
B82: =DataLink2!A364 -> City of Nashua
B84: =DataLink2!C366 -> Year | C84: =DataLink2!E366 -> Bedroom | D84: Median Rent | E84: =DataLink2!G366 -> 400 | F84: =DataLink2!H366 -> 500 | G84: =DataLink2!I366 -> 600 | H84: =DataLink2!J366 -> 700 | I84: =DataLink2!K366 -> 800 | J84: =DataLink2!L366 -> 900 | K84: =DataLink2!M366 -> 1000 | L84: =DataLink2!N366 -> 1100 | M84: =DataLink2!O366 -> 1200 | N84: =DataLink2!P366 -> 1300 | O84: =DataLink2!Q366 -> 1400 | P84: =DataLink2!R366 -> 1500 | Q84: =DataLink2!S366 -> 1600 | R84: =DataLink2!T366 -> 1700 | S84: =DataLink2!U366 -> 1800 | T84: =DataLink2!V366 -> 1900 | U84: =DataLink2!W366 -> 2000 | V84: =DataLink2!X366 -> 2100 | W84: =DataLink2!Y366 -> 2200 | X84: =DataLink2!Z366 -> 2300 | Y84: =DataLink2!AA366 -> 2400 | Z84: =DataLink2!AB366 -> 2500 | AA84: =DataLink2!AC366 -> 2600 | AB84: =DataLink2!AD366 -> 2700 | AC84: =DataLink2!AE366 -> 2800 | AD84: =DataLink2!AF366 -> 2900 | AE84: =DataLink2!AG366 -> 3000 | AF84: =DataLink2!AH366 -> 3100 | AG84: =DataLink2!AI366 -> 3200 | AH84: =DataLink2!AJ366 -> 3300 | AI84: =DataLink2!AK366 -> 3400 | AJ84: =DataLink2!AL366 -> 3500 | AK84: =DataLink2!AM366 -> 3600 | AL84: =DataLink2!AN366 -> 3700 | AM84: =DataLink2!AO366 -> 3800 | AN84: =DataLink2!AP366 -> 3900 | AO84: =DataLink2!AQ366 -> 4000 | AP84: =DataLink2!AR366 -> 4100 | AQ84: =DataLink2!AS366 -> 4200 | AR84: =DataLink2!AT366 -> 4300 | AS84: =DataLink2!AU366 -> 4400
B85: =DataLink2!C367 -> 2023 | C85: =DataLink2!E367 -> 2 Bedroom Units | D85: =DataLink2!F367 -> 2141 | E85: =DataLink2!G367 -> 0 | F85: =DataLink2!H367 -> 0 | G85: =DataLink2!I367 -> 0 | H85: =DataLink2!J367 -> 0 | I85: =DataLink2!K367 -> 0 | J85: =DataLink2!L367 -> 3 | K85: =DataLink2!M367 -> 3 | L85: =DataLink2!N367 -> 9 | M85: =DataLink2!O367 -> 18 | N85: =DataLink2!P367 -> 11 | O85: =DataLink2!Q367 -> 24 | P85: =DataLink2!R367 -> 32 | Q85: =DataLink2!S367 -> 5 | R85: =DataLink2!T367 -> 5 | S85: =DataLink2!U367 -> 6 | T85: =DataLink2!V367 -> 6 | U85: =DataLink2!W367 -> 100 | V85: =DataLink2!X367 -> 82 | W85: =DataLink2!Y367 -> 1 | X85: =DataLink2!Z367 -> 64 | Y85: =DataLink2!AA367 -> 0 | Z85: =DataLink2!AB367 -> 9 | AA85: =DataLink2!AC367 -> 56 | AB85: =DataLink2!AD367 -> 33 | AC85: =DataLink2!AE367 -> 0 | AD85: =DataLink2!AF367 -> 0 | AE85: =DataLink2!AG367 -> 0 | AF85: =DataLink2!AH367 -> 0 | AG85: =DataLink2!AI367 -> 0 | AH85: =DataLink2!AJ367 -> 0 | AI85: =DataLink2!AK367 -> 0 | AJ85: =DataLink2!AL367 -> 0 | AK85: =DataLink2!AM367 -> 0 | AL85: =DataLink2!AN367 -> 0 | AM85: =DataLink2!AO367 -> 0 | AN85: =DataLink2!AP367 -> 0 | AO85: =DataLink2!AQ367 -> 0 | AP85: =DataLink2!AR367 -> 0 | AQ85: =DataLink2!AS367 -> 0 | AR85: =DataLink2!AT367 -> 0 | AS85: =DataLink2!AU367 -> 0
B86: =DataLink2!C368 -> 2023 | C86: =DataLink2!E368 -> All Units | D86: =DataLink2!F368 -> 2008 | E86: =DataLink2!G368 -> 0 | F86: =DataLink2!H368 -> 0 | G86: =DataLink2!I368 -> 0 | H86: =DataLink2!J368 -> 1 | I86: =DataLink2!K368 -> 13 | J86: =DataLink2!L368 -> 23 | K86: =DataLink2!M368 -> 23 | L86: =DataLink2!N368 -> 15 | M86: =DataLink2!O368 -> 30 | N86: =DataLink2!P368 -> 24 | O86: =DataLink2!Q368 -> 36 | P86: =DataLink2!R368 -> 37 | Q86: =DataLink2!S368 -> 16 | R86: =DataLink2!T368 -> 35 | S86: =DataLink2!U368 -> 98 | T86: =DataLink2!V368 -> 65 | U86: =DataLink2!W368 -> 101 | V86: =DataLink2!X368 -> 130 | W86: =DataLink2!Y368 -> 3 | X86: =DataLink2!Z368 -> 82 | Y86: =DataLink2!AA368 -> 2 | Z86: =DataLink2!AB368 -> 9 | AA86: =DataLink2!AC368 -> 66 | AB86: =DataLink2!AD368 -> 34 | AC86: =DataLink2!AE368 -> 4 | AD86: =DataLink2!AF368 -> 0 | AE86: =DataLink2!AG368 -> 5 | AF86: =DataLink2!AH368 -> 0 | AG86: =DataLink2!AI368 -> 0 | AH86: =DataLink2!AJ368 -> 0 | AI86: =DataLink2!AK368 -> 0 | AJ86: =DataLink2!AL368 -> 0 | AK86: =DataLink2!AM368 -> 0 | AL86: =DataLink2!AN368 -> 0 | AM86: =DataLink2!AO368 -> 0 | AN86: =DataLink2!AP368 -> 0 | AO86: =DataLink2!AQ368 -> 0 | AP86: =DataLink2!AR368 -> 0 | AQ86: =DataLink2!AS368 -> 0 | AR86: =DataLink2!AT368 -> 0 | AS86: =DataLink2!AU368 -> 0
B88: =B85 -> 2023 | C88: 2 Bedroom Units | E88: =IF($D$85>(E84-50), IF($D$85<(E84+50), $D85, " "), " ") ->  | O88: =IF($D$85>(O84-50), IF($D$85<(O84+50), $D85, " "), " ") ->  | V88: 2141
B89: 2023 | C89: All Units | E89: =IF($D$86>(E84-50), IF($D$86<(E84+50), $D86, " "), " ") ->  | F89: =IF($D$86>(F84-50), IF($D$86<(F84+50), $D86, " "), " ") ->  | N89: =IF($D$86>(N84-50), IF($D$86<(N84+50), $D86, " "), " ") ->  | O89: =IF($D$86>(O84-50), IF($D$86<(O84+50), $D86, " "), " ") ->  | U89: 2008

Sheet VacancyRateSummary (hidden)
B5: Vacancy Rates By County for Market Rate Rental Housing
B7: Source: New Hampshire Housing Residential Rental Cost Survey 2013 to 2023
B9: All Units
B10: Area | C10: 2023 | D10: 2022 | E10: =D10-1 -> 2021 | F10: =E10-1 -> 2020 | G10: =F10-1 -> 2019 | H10: =G10-1 -> 2018 | I10: =H10-1 -> 2017 | J10: =I10-1 -> 2016 | K10: =J10-1 -> 2015 | L10: =K10-1 -> 2014 | M10: =L10-1 -> 2013
B11: Belknap County | C11: =VLOOKUP(LookUpSheet!$G$11,'RC2023'!$B$2:$BH$552,10,FALSE) -> 0 | D11: =VLOOKUP(LookUpSheet!$G$11,'RC2022'!$B$2:$BH$552,10,FALSE) -> 0.006756756757 | E11: =VLOOKUP(LookUpSheet!$G$11,'RC2021'!$B$2:$BH$552,10,FALSE) -> 0.01196172249 | F11: =VLOOKUP(LookUpSheet!$G$11,'RC2020'!$B$2:$BH$552,10,FALSE) -> 0.01017811705 | G11: =VLOOKUP(LookUpSheet!$G$11,'RC2019'!$B$2:$BH$552,10,FALSE) -> 0.01671732523 | H11: =VLOOKUP(LookUpSheet!$G$11,'RC2018'!$B$2:$BH$552,10,FALSE) -> 0.05140186916 | I11: =VLOOKUP(LookUpSheet!$G$11,'RC2017'!$B$2:$BH$552,10,FALSE) -> 0.046901 | J11: =VLOOKUP(LookUpSheet!$G$11,'RC2016'!$B$2:$BH$339,10,FALSE) -> 0.062849 | K11: =VLOOKUP(LookUpSheet!$G$11,'RC2015'!$B$2:$BH$552,10,FALSE) -> 0.036827 | L11: =VLOOKUP(LookUpSheet!$G$11,'RC2014'!$B$2:$BH$337,10,FALSE) -> 0.048476 | M11: =VLOOKUP(LookUpSheet!$G$11,'RC2013'!$B$2:$BH$337,10,FALSE) -> 0.046854
B12: Carroll County | C12: =VLOOKUP(LookUpSheet!$G$12,'RC2023'!$B$2:$BH$552,10,FALSE) -> 0 | D12: =VLOOKUP(LookUpSheet!$G$12,'RC2022'!$B$2:$BH$552,10,FALSE) -> 0.02325581395 | E12: =VLOOKUP(LookUpSheet!$G$12,'RC2021'!$B$2:$BH$552,10,FALSE) -> 0.007407407407 | F12: =VLOOKUP(LookUpSheet!$G$12,'RC2020'!$B$2:$BH$552,10,FALSE) -> 0.02684563758 | G12: =VLOOKUP(LookUpSheet!$G$12,'RC2019'!$B$2:$BH$552,10,FALSE) -> 0.03311258278 | H12: =VLOOKUP(LookUpSheet!$G$12,'RC2018'!$B$2:$BH$552,10,FALSE) -> 0.04147465438 | I12: =VLOOKUP(LookUpSheet!$G$12,'RC2017'!$B$2:$BH$552,10,FALSE) -> 0.011299 | J12: =VLOOKUP(LookUpSheet!$G$12,'RC2016'!$B$2:$BH$339,10,FALSE) -> 0.033557 | K12: =VLOOKUP(LookUpSheet!$G$12,'RC2015'!$B$2:$BH$552,10,FALSE) -> 0.05042 | L12: =VLOOKUP(LookUpSheet!$G$12,'RC2014'!$B$2:$BH$337,10,FALSE) -> 0.044068 | M12: =VLOOKUP(LookUpSheet!$G$12,'RC2013'!$B$2:$BH$337,10,FALSE) -> 0.035806
B13: Cheshire County | C13: =VLOOKUP(LookUpSheet!$G$13,'RC2023'!$B$2:$BH$552,10,FALSE) -> 0.01795142555 | D13: =VLOOKUP(LookUpSheet!$G$13,'RC2022'!$B$2:$BH$552,10,FALSE) -> 0.00622406639 | E13: =VLOOKUP(LookUpSheet!$G$13,'RC2021'!$B$2:$BH$552,10,FALSE) -> 0.01681415929 | F13: =VLOOKUP(LookUpSheet!$G$13,'RC2020'!$B$2:$BH$552,10,FALSE) -> 0.01929530201 | G13: =VLOOKUP(LookUpSheet!$G$13,'RC2019'!$B$2:$BH$552,10,FALSE) -> 0.008968609865 | H13: =VLOOKUP(LookUpSheet!$G$13,'RC2018'!$B$2:$BH$552,10,FALSE) -> 0.04295051354 | I13: =VLOOKUP(LookUpSheet!$G$13,'RC2017'!$B$2:$BH$552,10,FALSE) -> 0.021 | J13: =VLOOKUP(LookUpSheet!$G$13,'RC2016'!$B$2:$BH$339,10,FALSE) -> 0.049107 | K13: =VLOOKUP(LookUpSheet!$G$13,'RC2015'!$B$2:$BH$552,10,FALSE) -> 0.040872 | L13: =VLOOKUP(LookUpSheet!$G$13,'RC2014'!$B$2:$BH$337,10,FALSE) -> 0.042202 | M13: =VLOOKUP(LookUpSheet!$G$13,'RC2013'!$B$2:$BH$337,10,FALSE) -> 0.02737
B14: Coos County | C14: =VLOOKUP(LookUpSheet!$G$14,'RC2023'!$B$2:$BH$552,10,FALSE) -> 0.0125 | D14: =VLOOKUP(LookUpSheet!$G$14,'RC2022'!$B$2:$BH$552,10,FALSE) -> 0.02711864407 | E14: =VLOOKUP(LookUpSheet!$G$14,'RC2021'!$B$2:$BH$552,10,FALSE) -> 0.006024096386 | F14: =VLOOKUP(LookUpSheet!$G$14,'RC2020'!$B$2:$BH$552,10,FALSE) -> 0.01680672269 | G14: =VLOOKUP(LookUpSheet!$G$14,'RC2019'!$B$2:$BH$552,10,FALSE) -> 0.01428571429 | H14: =VLOOKUP(LookUpSheet!$G$14,'RC2018'!$B$2:$BH$552,10,FALSE) -> 0.04968944099 | I14: =VLOOKUP(LookUpSheet!$G$14,'RC2017'!$B$2:$BH$552,10,FALSE) -> 0.107023 | J14: =VLOOKUP(LookUpSheet!$G$14,'RC2016'!$B$2:$BH$339,10,FALSE) -> 0.058282 | K14: =VLOOKUP(LookUpSheet!$G$14,'RC2015'!$B$2:$BH$552,10,FALSE) -> 0.067961 | L14: =VLOOKUP(LookUpSheet!$G$14,'RC2014'!$B$2:$BH$337,10,FALSE) -> 0.078078 | M14: =VLOOKUP(LookUpSheet!$G$14,'RC2013'!$B$2:$BH$337,10,FALSE) -> 0.105121
B15: Grafton County | C15: =VLOOKUP(LookUpSheet!$G$15,'RC2023'!$B$2:$BH$552,10,FALSE) -> 0.02131782946 | D15: =VLOOKUP(LookUpSheet!$G$15,'RC2022'!$B$2:$BH$552,10,FALSE) -> 0.002754820937 | E15: =VLOOKUP(LookUpSheet!$G$15,'RC2021'!$B$2:$BH$552,10,FALSE) -> 0.01139962001 | F15: =VLOOKUP(LookUpSheet!$G$15,'RC2020'!$B$2:$BH$552,10,FALSE) -> 0.02770330652 | G15: =VLOOKUP(LookUpSheet!$G$15,'RC2019'!$B$2:$BH$552,10,FALSE) -> 0.002516778523 | H15: =VLOOKUP(LookUpSheet!$G$15,'RC2018'!$B$2:$BH$552,10,FALSE) -> 0.03949044586 | I15: =VLOOKUP(LookUpSheet!$G$15,'RC2017'!$B$2:$BH$552,10,FALSE) -> 0.032993 | J15: =VLOOKUP(LookUpSheet!$G$15,'RC2016'!$B$2:$BH$339,10,FALSE) -> 0.032333 | K15: =VLOOKUP(LookUpSheet!$G$15,'RC2015'!$B$2:$BH$552,10,FALSE) -> 0.037279 | L15: =VLOOKUP(LookUpSheet!$G$15,'RC2014'!$B$2:$BH$337,10,FALSE) -> 0.042079 | M15: =VLOOKUP(LookUpSheet!$G$15,'RC2013'!$B$2:$BH$337,10,FALSE) -> 0.037991
B16: Hillsborough County | C16: =VLOOKUP(LookUpSheet!$G$16,'RC2023'!$B$2:$BH$552,10,FALSE) -> 0.006302250804 | D16: =VLOOKUP(LookUpSheet!$G$16,'RC2022'!$B$2:$BH$552,10,FALSE) -> 0.004230201672 | E16: =VLOOKUP(LookUpSheet!$G$16,'RC2021'!$B$2:$BH$552,10,FALSE) -> 0.008520685761 | F16: =VLOOKUP(LookUpSheet!$G$16,'RC2020'!$B$2:$BH$552,10,FALSE) -> 0.02274922202 | G16: =VLOOKUP(LookUpSheet!$G$16,'RC2019'!$B$2:$BH$552,10,FALSE) -> 0.009480626546 | H16: =VLOOKUP(LookUpSheet!$G$16,'RC2018'!$B$2:$BH$552,10,FALSE) -> 0.01444291609 | I16: =VLOOKUP(LookUpSheet!$G$16,'RC2017'!$B$2:$BH$552,10,FALSE) -> 0.01407 | J16: =VLOOKUP(LookUpSheet!$G$16,'RC2016'!$B$2:$BH$339,10,FALSE) -> 0.011755 | K16: =VLOOKUP(LookUpSheet!$G$16,'RC2015'!$B$2:$BH$552,10,FALSE) -> 0.026013 | L16: =VLOOKUP(LookUpSheet!$G$16,'RC2014'!$B$2:$BH$337,10,FALSE) -> 0.024626 | M16: =VLOOKUP(LookUpSheet!$G$16,'RC2013'!$B$2:$BH$337,10,FALSE) -> 0.028587
B17: Merrimack County | C17: =VLOOKUP(LookUpSheet!$G$17,'RC2023'!$B$2:$BH$552,10,FALSE) -> 0.007222222222 | D17: =VLOOKUP(LookUpSheet!$G$17,'RC2022'!$B$2:$BH$552,10,FALSE) -> 0.002829654782 | E17: =VLOOKUP(LookUpSheet!$G$17,'RC2021'!$B$2:$BH$552,10,FALSE) -> 0.004012345679 | F17: =VLOOKUP(LookUpSheet!$G$17,'RC2020'!$B$2:$BH$552,10,FALSE) -> 0.01194704553 | G17: =VLOOKUP(LookUpSheet!$G$17,'RC2019'!$B$2:$BH$552,10,FALSE) -> 0.007909215956 | H17: =VLOOKUP(LookUpSheet!$G$17,'RC2018'!$B$2:$BH$552,10,FALSE) -> 0.026710403 | I17: =VLOOKUP(LookUpSheet!$G$17,'RC2017'!$B$2:$BH$552,10,FALSE) -> 0.014104 | J17: =VLOOKUP(LookUpSheet!$G$17,'RC2016'!$B$2:$BH$339,10,FALSE) -> 0.016039 | K17: =VLOOKUP(LookUpSheet!$G$17,'RC2015'!$B$2:$BH$552,10,FALSE) -> 0.018205 | L17: =VLOOKUP(LookUpSheet!$G$17,'RC2014'!$B$2:$BH$337,10,FALSE) -> 0.02743 | M17: =VLOOKUP(LookUpSheet!$G$17,'RC2013'!$B$2:$BH$337,10,FALSE) -> 0.041992
B18: Rockingham County | C18: =VLOOKUP(LookUpSheet!$G$18,'RC2023'!$B$2:$BH$552,10,FALSE) -> 0.003912618194 | D18: =VLOOKUP(LookUpSheet!$G$18,'RC2022'!$B$2:$BH$552,10,FALSE) -> 0.003891050584 | E18: =VLOOKUP(LookUpSheet!$G$18,'RC2021'!$B$2:$BH$552,10,FALSE) -> 0.008027522936 | F18: =VLOOKUP(LookUpSheet!$G$18,'RC2020'!$B$2:$BH$552,10,FALSE) -> 0.008849557522 | G18: =VLOOKUP(LookUpSheet!$G$18,'RC2019'!$B$2:$BH$552,10,FALSE) -> 0.004230960677 | H18: =VLOOKUP(LookUpSheet!$G$18,'RC2018'!$B$2:$BH$552,10,FALSE) -> 0.007818052594 | I18: =VLOOKUP(LookUpSheet!$G$18,'RC2017'!$B$2:$BH$552,10,FALSE) -> 0.010601 | J18: =VLOOKUP(LookUpSheet!$G$18,'RC2016'!$B$2:$BH$339,10,FALSE) -> 0.012867 | K18: =VLOOKUP(LookUpSheet!$G$18,'RC2015'!$B$2:$BH$552,10,FALSE) -> 0.019891 | L18: =VLOOKUP(LookUpSheet!$G$18,'RC2014'!$B$2:$BH$337,10,FALSE) -> 0.018402 | M18: =VLOOKUP(LookUpSheet!$G$18,'RC2013'!$B$2:$BH$337,10,FALSE) -> 0.031043
B19: Strafford County | C19: =VLOOKUP(LookUpSheet!$G$19,'RC2023'!$B$2:$BH$552,10,FALSE) -> 0.008830022075 | D19: =VLOOKUP(LookUpSheet!$G$19,'RC2022'!$B$2:$BH$552,10,FALSE) -> 0.004617752694 | E19: =VLOOKUP(LookUpSheet!$G$19,'RC2021'!$B$2:$BH$552,10,FALSE) -> 0.009193480986 | F19: =VLOOKUP(LookUpSheet!$G$19,'RC2020'!$B$2:$BH$552,10,FALSE) -> 0.02101416172 | G19: =VLOOKUP(LookUpSheet!$G$19,'RC2019'!$B$2:$BH$552,10,FALSE) -> 0.007291286912 | H19: =VLOOKUP(LookUpSheet!$G$19,'RC2018'!$B$2:$BH$552,10,FALSE) -> 0.04416403785 | I19: =VLOOKUP(LookUpSheet!$G$19,'RC2017'!$B$2:$BH$552,10,FALSE) -> 0.016702 | J19: =VLOOKUP(LookUpSheet!$G$19,'RC2016'!$B$2:$BH$339,10,FALSE) -> 0.013458 | K19: =VLOOKUP(LookUpSheet!$G$19,'RC2015'!$B$2:$BH$552,10,FALSE) -> 0.042212 | L19: =VLOOKUP(LookUpSheet!$G$19,'RC2014'!$B$2:$BH$337,10,FALSE) -> 0.021659 | M19: =VLOOKUP(LookUpSheet!$G$19,'RC2013'!$B$2:$BH$337,10,FALSE) -> 0.047378
B20: Sullivan County | C20: =VLOOKUP(LookUpSheet!$G$20,'RC2023'!$B$2:$BH$552,10,FALSE) -> 0.006976744186 | D20: =VLOOKUP(LookUpSheet!$G$20,'RC2022'!$B$2:$BH$552,10,FALSE) -> 0.004728132388 | E20: =VLOOKUP(LookUpSheet!$G$20,'RC2021'!$B$2:$BH$552,10,FALSE) -> 0.01149425287 | F20: =VLOOKUP(LookUpSheet!$G$20,'RC2020'!$B$2:$BH$552,10,FALSE) -> 0 | G20: =VLOOKUP(LookUpSheet!$G$20,'RC2019'!$B$2:$BH$552,10,FALSE) -> 0.009063444109 | H20: =VLOOKUP(LookUpSheet!$G$20,'RC2018'!$B$2:$BH$552,10,FALSE) -> 0.008163265306 | I20: =VLOOKUP(LookUpSheet!$G$20,'RC2017'!$B$2:$BH$552,10,FALSE) -> 0.024658 | J20: =VLOOKUP(LookUpSheet!$G$20,'RC2016'!$B$2:$BH$339,10,FALSE) -> 0.071594 | K20: =VLOOKUP(LookUpSheet!$G$20,'RC2015'!$B$2:$BH$552,10,FALSE) -> 0.046358 | L20: =VLOOKUP(LookUpSheet!$G$20,'RC2014'!$B$2:$BH$337,10,FALSE) -> 0.056604 | M20: =VLOOKUP(LookUpSheet!$G$20,'RC2013'!$B$2:$BH$337,10,FALSE) -> 0.059382
B22: New Hampshire | C22: =VLOOKUP(LookUpSheet!$G$5,'RC2023'!$B$2:$BH$552,10,FALSE) -> 0.007697279511 | D22: =VLOOKUP(LookUpSheet!$G$5,'RC2022'!$B$2:$BH$552,10,FALSE) -> 0.004539527696 | E22: =VLOOKUP(LookUpSheet!$G$5,'RC2021'!$B$2:$BH$552,10,FALSE) -> 0.008531846596 | F22: =VLOOKUP(LookUpSheet!$G$5,'RC2020'!$B$2:$BH$552,10,FALSE) -> 0.01821561338 | G22: =VLOOKUP(LookUpSheet!$G$5,'RC2019'!$B$2:$BH$552,10,FALSE) -> 0.008119843682 | H22: =VLOOKUP(LookUpSheet!$G$5,'RC2018'!$B$2:$BH$552,10,FALSE) -> 0.02095395644 | I22: =VLOOKUP(LookUpSheet!$G$5,'RC2017'!$B$2:$BH$552,10,FALSE) -> 0.016863 | J22: =VLOOKUP(LookUpSheet!$G$5,'RC2016'!$B$2:$BH$339,10,FALSE) -> 0.017911 | K22: =VLOOKUP(LookUpSheet!$G$5,'RC2015'!$B$2:$BH$552,10,FALSE) -> 0.02763 | L22: =VLOOKUP(LookUpSheet!$G$5,'RC2014'!$B$2:$BH$337,10,FALSE) -> 0.026725 | M22: =VLOOKUP(LookUpSheet!$G$5,'RC2013'!$B$2:$BH$337,10,FALSE) -> 0.034497
B26: 2-Bedroom Units
B27: Area | C27: 2023 | D27: 2022 | E27: =D27-1 -> 2021 | F27: =E27-1 -> 2020 | G27: =F27-1 -> 2019 | H27: =G27-1 -> 2018 | I27: =H27-1 -> 2017 | J27: =I27-1 -> 2016 | K27: =J27-1 -> 2015 | L27: =K27-1 -> 2014 | M27: =L27-1 -> 2013
B28: Belknap County | C28: =VLOOKUP(LookUpSheet!$D$11,'RC2023'!$B$2:$BH$552,10,FALSE) -> 0 | D28: =VLOOKUP(LookUpSheet!$D$11,'RC2022'!$B$2:$BH$552,10,FALSE) -> 0 | E28: =VLOOKUP(LookUpSheet!$D$11,'RC2021'!$B$2:$BH$552,10,FALSE) -> 0.009302325581 | F28: =VLOOKUP(LookUpSheet!$D$11,'RC2020'!$B$2:$BH$552,10,FALSE) -> 0.009756097561 | G28: =VLOOKUP(LookUpSheet!$D$11,'RC2019'!$B$2:$BH$552,10,FALSE) -> 0.01973684211 | H28: =VLOOKUP(LookUpSheet!$D$11,'RC2018'!$B$2:$BH$552,10,FALSE) -> 0.04032258065 | I28: =VLOOKUP(LookUpSheet!$D$11,'RC2017'!$B$2:$BH$552,10,FALSE) -> 0.046263 | J28: =VLOOKUP(LookUpSheet!$D$11,'RC2016'!$B$2:$BH$339,10,FALSE) -> 0.048872 | K28: =VLOOKUP(LookUpSheet!$D$11,'RC2015'!$B$2:$BH$552,10,FALSE) -> 0.01194 | L28: =VLOOKUP(LookUpSheet!$D$11,'RC2014'!$B$2:$BH$337,10,FALSE) -> 0.052795 | M28: =VLOOKUP(LookUpSheet!$D$11,'RC2013'!$B$2:$BH$337,10,FALSE) -> 0.075067
B29: Carroll County | C29: =VLOOKUP(LookUpSheet!$D$12,'RC2023'!$B$2:$BH$552,10,FALSE) -> 0 | D29: =VLOOKUP(LookUpSheet!$D$12,'RC2022'!$B$2:$BH$552,10,FALSE) -> 0.025 | E29: =VLOOKUP(LookUpSheet!$D$12,'RC2021'!$B$2:$BH$552,10,FALSE) -> 0 | F29: =VLOOKUP(LookUpSheet!$D$12,'RC2020'!$B$2:$BH$552,10,FALSE) -> 0.01612903226 | G29: =VLOOKUP(LookUpSheet!$D$12,'RC2019'!$B$2:$BH$552,10,FALSE) -> 0.03703703704 | H29: =VLOOKUP(LookUpSheet!$D$12,'RC2018'!$B$2:$BH$552,10,FALSE) -> 0.06862745098 | I29: =VLOOKUP(LookUpSheet!$D$12,'RC2017'!$B$2:$BH$552,10,FALSE) -> 0 | J29: =VLOOKUP(LookUpSheet!$D$12,'RC2016'!$B$2:$BH$339,10,FALSE) -> 0.014286 | K29: =VLOOKUP(LookUpSheet!$D$12,'RC2015'!$B$2:$BH$552,10,FALSE) -> 0.039216 | L29: =VLOOKUP(LookUpSheet!$D$12,'RC2014'!$B$2:$BH$337,10,FALSE) -> 0.036232 | M29: =VLOOKUP(LookUpSheet!$D$12,'RC2013'!$B$2:$BH$337,10,FALSE) -> 0.03125
B30: Cheshire County | C30: =VLOOKUP(LookUpSheet!$D$13,'RC2023'!$B$2:$BH$552,10,FALSE) -> 0.01983002833 | D30: =VLOOKUP(LookUpSheet!$D$13,'RC2022'!$B$2:$BH$552,10,FALSE) -> 0 | E30: =VLOOKUP(LookUpSheet!$D$13,'RC2021'!$B$2:$BH$552,10,FALSE) -> 0.007444168734 | F30: =VLOOKUP(LookUpSheet!$D$13,'RC2020'!$B$2:$BH$552,10,FALSE) -> 0.02355460385 | G30: =VLOOKUP(LookUpSheet!$D$13,'RC2019'!$B$2:$BH$552,10,FALSE) -> 0.008941877794 | H30: =VLOOKUP(LookUpSheet!$D$13,'RC2018'!$B$2:$BH$552,10,FALSE) -> 0.01727115717 | I30: =VLOOKUP(LookUpSheet!$D$13,'RC2017'!$B$2:$BH$552,10,FALSE) -> 0.009634 | J30: =VLOOKUP(LookUpSheet!$D$13,'RC2016'!$B$2:$BH$339,10,FALSE) -> 0.04461 | K30: =VLOOKUP(LookUpSheet!$D$13,'RC2015'!$B$2:$BH$552,10,FALSE) -> 0.031653 | L30: =VLOOKUP(LookUpSheet!$D$13,'RC2014'!$B$2:$BH$337,10,FALSE) -> 0.036836 | M30: =VLOOKUP(LookUpSheet!$D$13,'RC2013'!$B$2:$BH$337,10,FALSE) -> 0.024972
B31: Coos County | C31: =VLOOKUP(LookUpSheet!$D$14,'RC2023'!$B$2:$BH$552,10,FALSE) -> 0 | D31: =VLOOKUP(LookUpSheet!$D$14,'RC2022'!$B$2:$BH$552,10,FALSE) -> 0.007936507937 | E31: =VLOOKUP(LookUpSheet!$D$14,'RC2021'!$B$2:$BH$552,10,FALSE) -> 0 | F31: =VLOOKUP(LookUpSheet!$D$14,'RC2020'!$B$2:$BH$552,10,FALSE) -> 0.0198019802 | G31: =VLOOKUP(LookUpSheet!$D$14,'RC2019'!$B$2:$BH$552,10,FALSE) -> 0.009615384615 | H31: =VLOOKUP(LookUpSheet!$D$14,'RC2018'!$B$2:$BH$552,10,FALSE) -> 0.03658536585 | I31: =VLOOKUP(LookUpSheet!$D$14,'RC2017'!$B$2:$BH$552,10,FALSE) -> 0.10687 | J31: =VLOOKUP(LookUpSheet!$D$14,'RC2016'!$B$2:$BH$339,10,FALSE) -> 0.068966 | K31: =VLOOKUP(LookUpSheet!$D$14,'RC2015'!$B$2:$BH$552,10,FALSE) -> 0.092437 | L31: =VLOOKUP(LookUpSheet!$D$14,'RC2014'!$B$2:$BH$337,10,FALSE) -> 0.079365 | M31: =VLOOKUP(LookUpSheet!$D$14,'RC2013'!$B$2:$BH$337,10,FALSE) -> 0.094937
B32: Grafton County | C32: =VLOOKUP(LookUpSheet!$D$15,'RC2023'!$B$2:$BH$552,10,FALSE) -> 0.01129943503 | D32: =VLOOKUP(LookUpSheet!$D$15,'RC2022'!$B$2:$BH$552,10,FALSE) -> 0 | E32: =VLOOKUP(LookUpSheet!$D$15,'RC2021'!$B$2:$BH$552,10,FALSE) -> 0.004571428571 | F32: =VLOOKUP(LookUpSheet!$D$15,'RC2020'!$B$2:$BH$552,10,FALSE) -> 0.02398523985 | G32: =VLOOKUP(LookUpSheet!$D$15,'RC2019'!$B$2:$BH$552,10,FALSE) -> 0.003220611916 | H32: =VLOOKUP(LookUpSheet!$D$15,'RC2018'!$B$2:$BH$552,10,FALSE) -> 0.03888888889 | I32: =VLOOKUP(LookUpSheet!$D$15,'RC2017'!$B$2:$BH$552,10,FALSE) -> 0.029641 | J32: =VLOOKUP(LookUpSheet!$D$15,'RC2016'!$B$2:$BH$339,10,FALSE) -> 0.030338 | K32: =VLOOKUP(LookUpSheet!$D$15,'RC2015'!$B$2:$BH$552,10,FALSE) -> 0.026684 | L32: =VLOOKUP(LookUpSheet!$D$15,'RC2014'!$B$2:$BH$337,10,FALSE) -> 0.038961 | M32: =VLOOKUP(LookUpSheet!$D$15,'RC2013'!$B$2:$BH$337,10,FALSE) -> 0.029674
B33: Hillsborough County | C33: =VLOOKUP(LookUpSheet!$D$16,'RC2023'!$B$2:$BH$552,10,FALSE) -> 0.006153088851 | D33: =VLOOKUP(LookUpSheet!$D$16,'RC2022'!$B$2:$BH$552,10,FALSE) -> 0.003401360544 | E33: =VLOOKUP(LookUpSheet!$D$16,'RC2021'!$B$2:$BH$552,10,FALSE) -> 0.005745062837 | F33: =VLOOKUP(LookUpSheet!$D$16,'RC2020'!$B$2:$BH$552,10,FALSE) -> 0.0198019802 | G33: =VLOOKUP(LookUpSheet!$D$16,'RC2019'!$B$2:$BH$552,10,FALSE) -> 0.009834274267 | H33: =VLOOKUP(LookUpSheet!$D$16,'RC2018'!$B$2:$BH$552,10,FALSE) -> 0.01849930844 | I33: =VLOOKUP(LookUpSheet!$D$16,'RC2017'!$B$2:$BH$552,10,FALSE) -> 0.011981 | J33: =VLOOKUP(LookUpSheet!$D$16,'RC2016'!$B$2:$BH$339,10,FALSE) -> 0.008884 | K33: =VLOOKUP(LookUpSheet!$D$16,'RC2015'!$B$2:$BH$552,10,FALSE) -> 0.022913 | L33: =VLOOKUP(LookUpSheet!$D$16,'RC2014'!$B$2:$BH$337,10,FALSE) -> 0.020743 | M33: =VLOOKUP(LookUpSheet!$D$16,'RC2013'!$B$2:$BH$337,10,FALSE) -> 0.025745
B34: Merrimack County | C34: =VLOOKUP(LookUpSheet!$D$17,'RC2023'!$B$2:$BH$552,10,FALSE) -> 0.008154943935 | D34: =VLOOKUP(LookUpSheet!$D$17,'RC2022'!$B$2:$BH$552,10,FALSE) -> 0.001934235977 | E34: =VLOOKUP(LookUpSheet!$D$17,'RC2021'!$B$2:$BH$552,10,FALSE) -> 0.002883506344 | F34: =VLOOKUP(LookUpSheet!$D$17,'RC2020'!$B$2:$BH$552,10,FALSE) -> 0.01272727273 | G34: =VLOOKUP(LookUpSheet!$D$17,'RC2019'!$B$2:$BH$552,10,FALSE) -> 0.005214368482 | H34: =VLOOKUP(LookUpSheet!$D$17,'RC2018'!$B$2:$BH$552,10,FALSE) -> 0.02535925613 | I34: =VLOOKUP(LookUpSheet!$D$17,'RC2017'!$B$2:$BH$552,10,FALSE) -> 0.010765 | J34: =VLOOKUP(LookUpSheet!$D$17,'RC2016'!$B$2:$BH$339,10,FALSE) -> 0.011936 | K34: =VLOOKUP(LookUpSheet!$D$17,'RC2015'!$B$2:$BH$552,10,FALSE) -> 0.016575 | L34: =VLOOKUP(LookUpSheet!$D$17,'RC2014'!$B$2:$BH$337,10,FALSE) -> 0.025221 | M34: =VLOOKUP(LookUpSheet!$D$17,'RC2013'!$B$2:$BH$337,10,FALSE) -> 0.032805
B35: Rockingham County | C35: =VLOOKUP(LookUpSheet!$D$18,'RC2023'!$B$2:$BH$552,10,FALSE) -> 0.002756086357 | D35: =VLOOKUP(LookUpSheet!$D$18,'RC2022'!$B$2:$BH$552,10,FALSE) -> 0.004928315412 | E35: =VLOOKUP(LookUpSheet!$D$18,'RC2021'!$B$2:$BH$552,10,FALSE) -> 0.005513981883 | F35: =VLOOKUP(LookUpSheet!$D$18,'RC2020'!$B$2:$BH$552,10,FALSE) -> 0.009536194192 | G35: =VLOOKUP(LookUpSheet!$D$18,'RC2019'!$B$2:$BH$552,10,FALSE) -> 0.002894954508 | H35: =VLOOKUP(LookUpSheet!$D$18,'RC2018'!$B$2:$BH$552,10,FALSE) -> 0.01021276596 | I35: =VLOOKUP(LookUpSheet!$D$18,'RC2017'!$B$2:$BH$552,10,FALSE) -> 0.0111 | J35: =VLOOKUP(LookUpSheet!$D$18,'RC2016'!$B$2:$BH$339,10,FALSE) -> 0.009876 | K35: =VLOOKUP(LookUpSheet!$D$18,'RC2015'!$B$2:$BH$552,10,FALSE) -> 0.019279 | L35: =VLOOKUP(LookUpSheet!$D$18,'RC2014'!$B$2:$BH$337,10,FALSE) -> 0.021071 | M35: =VLOOKUP(LookUpSheet!$D$18,'RC2013'!$B$2:$BH$337,10,FALSE) -> 0.034412
B36: Strafford County | C36: =VLOOKUP(LookUpSheet!$D$19,'RC2023'!$B$2:$BH$552,10,FALSE) -> 0.007604562738 | D36: =VLOOKUP(LookUpSheet!$D$19,'RC2022'!$B$2:$BH$552,10,FALSE) -> 0.0009813542689 | E36: =VLOOKUP(LookUpSheet!$D$19,'RC2021'!$B$2:$BH$552,10,FALSE) -> 0.008663366337 | F36: =VLOOKUP(LookUpSheet!$D$19,'RC2020'!$B$2:$BH$552,10,FALSE) -> 0.02225755167 | G36: =VLOOKUP(LookUpSheet!$D$19,'RC2019'!$B$2:$BH$552,10,FALSE) -> 0.007831325301 | H36: =VLOOKUP(LookUpSheet!$D$19,'RC2018'!$B$2:$BH$552,10,FALSE) -> 0.02583979328 | I36: =VLOOKUP(LookUpSheet!$D$19,'RC2017'!$B$2:$BH$552,10,FALSE) -> 0.012485 | J36: =VLOOKUP(LookUpSheet!$D$19,'RC2016'!$B$2:$BH$339,10,FALSE) -> 0.013946 | K36: =VLOOKUP(LookUpSheet!$D$19,'RC2015'!$B$2:$BH$552,10,FALSE) -> 0.022955 | L36: =VLOOKUP(LookUpSheet!$D$19,'RC2014'!$B$2:$BH$337,10,FALSE) -> 0.021114 | M36: =VLOOKUP(LookUpSheet!$D$19,'RC2013'!$B$2:$BH$337,10,FALSE) -> 0.048557
B37: Sullivan County | C37: =VLOOKUP(LookUpSheet!$D$20,'RC2023'!$B$2:$BH$552,10,FALSE) -> 0.00406504065 | D37: =VLOOKUP(LookUpSheet!$D$20,'RC2022'!$B$2:$BH$552,10,FALSE) -> 0 | E37: =VLOOKUP(LookUpSheet!$D$20,'RC2021'!$B$2:$BH$552,10,FALSE) -> 0.00495049505 | F37: =VLOOKUP(LookUpSheet!$D$20,'RC2020'!$B$2:$BH$552,10,FALSE) -> 0 | G37: =VLOOKUP(LookUpSheet!$D$20,'RC2019'!$B$2:$BH$552,10,FALSE) -> 0 | H37: =VLOOKUP(LookUpSheet!$D$20,'RC2018'!$B$2:$BH$552,10,FALSE) -> 0.009433962264 | I37: =VLOOKUP(LookUpSheet!$D$20,'RC2017'!$B$2:$BH$552,10,FALSE) -> 0.022472 | J37: =VLOOKUP(LookUpSheet!$D$20,'RC2016'!$B$2:$BH$339,10,FALSE) -> 0.063758 | K37: =VLOOKUP(LookUpSheet!$D$20,'RC2015'!$B$2:$BH$552,10,FALSE) -> 0.027119 | L37: =VLOOKUP(LookUpSheet!$D$20,'RC2014'!$B$2:$BH$337,10,FALSE) -> 0.057762 | M37: =VLOOKUP(LookUpSheet!$D$20,'RC2013'!$B$2:$BH$337,10,FALSE) -> 0.073171
B39: New Hampshire | C39: =VLOOKUP(LookUpSheet!$D$5,'RC2023'!$B$2:$BH$552,10,FALSE) -> 0.006303418803 | D39: =VLOOKUP(LookUpSheet!$D$5,'RC2022'!$B$2:$BH$552,10,FALSE) -> 0.003124442064 | E39: =VLOOKUP(LookUpSheet!$D$5,'RC2021'!$B$2:$BH$552,10,FALSE) -> 0.005619661322 | F39: =VLOOKUP(LookUpSheet!$D$5,'RC2020'!$B$2:$BH$552,10,FALSE) -> 0.01693086563 | G39: =VLOOKUP(LookUpSheet!$D$5,'RC2019'!$B$2:$BH$552,10,FALSE) -> 0.00753920386 | H39: =VLOOKUP(LookUpSheet!$D$5,'RC2018'!$B$2:$BH$552,10,FALSE) -> 0.01963648166 | I39: =VLOOKUP(LookUpSheet!$D$5,'RC2017'!$B$2:$BH$552,10,FALSE) -> 0.013973 | J39: =VLOOKUP(LookUpSheet!$D$5,'RC2016'!$B$2:$BH$339,10,FALSE) -> 0.014581 | K39: =VLOOKUP(LookUpSheet!$D$5,'RC2015'!$B$2:$BH$337,10,FALSE) -> 0.022349 | L39: =VLOOKUP(LookUpSheet!$D$5,'RC2014'!$B$2:$BH$337,10,FALSE) -> 0.024631 | M39: =VLOOKUP(LookUpSheet!$D$5,'RC2013'!$B$2:$BH$555,10,FALSE) -> 0.032616
B46: 2-Bedroom Units
B47: Area | E47: 2016 | F47: 2015 | G47: 2014 | H47: 2013 | I47: 2012 | J47: 2011 | K47: 2010 | L47: 2009 | M47: 2008
B48: Belknap County
B49: Carroll County
B50: Cheshire County
B51: Coos County
B52: Grafton County
B53: Hillsborough County
B54: Merrimack County
B55: Rockingham County
B56: Strafford County
B57: Sullivan County
B59: New Hampshire

Sheet CountyComparison (hidden)
A28: Change in Median Monthly Gross Rent for Two Bedroom Units
C29: 2023 | E29: 2022 | G29: 2021 | I29: 2020 | K29: 2019 | M29: 2018 | O29: 2017 | Q29: 2016 | S29: 2015 | U29: 2014 | W29: 2013 | Y29: 2012 | AA29: 2011 | AC29: 2010 | AE29: 2009 | AG29: 2008 | AI29: =AG29-1 -> 2007 | AK29: =AI29-1 -> 2006 | AM29: =AK29-1 -> 2005 | AO29: =AM29-1 -> 2004 | AQ29: =AO29-1 -> 2003
B30: Change 2013 to 2023 | C30: Median Rent | D30: Change from Prior Year | E30: Median Rent | F30: Change from Prior Year | G30: Median Rent | H30: Change from Prior Year | I30: Median Rent | J30: Change from Prior Year | K30: Median Rent | L30: Change from Prior Year | M30: Median Rent | N30: Change from Prior Year | O30: Median Rent | P30: Change from Prior Year | Q30: Median Rent | R30: Change from Prior Year | S30: Median Rent | T30: Change from Prior Year | U30: Median Rent | V30: Change from Prior Year | W30: Median Rent | X30: Change from Prior Year | Y30: Median Rent | Z30: Change from Prior Year | AA30: Median Rent | AB30: Change from Prior Year | AC30: Median Rent | AD30: Change from Prior Year | AE30: Median Rent | AF30: Change from Prior Year | AG30: Median Rent | AH30: Change from Prior Year | AI30: Median Rent | AJ30: Change from Prior Year | AK30: Median Rent | AL30: Change from Prior Year | AM30: Median Rent | AN30: Change from Prior Year | AO30: Median Rent | AP30: Change from Prior Year | AQ30: Median Rent
A31: Belknap County | B31: =(C31-W31)/W31 -> 0.5482587065 | C31: =VLOOKUP(LookUpSheet!$D$11,'RC2023'!$B$2:$BH$552,7,FALSE) -> 1556 | D31: =(C31-E31)/E31 -> 0.2203921569 | E31: =VLOOKUP(LookUpSheet!$D$11,'RC2022'!$B$2:$BH$552,7,FALSE) -> 1275 | F31: =(E31-G31)/G31 -> 0.04938271605 | G31: =VLOOKUP(LookUpSheet!$D$11,'RC2021'!$B$2:$BH$552,7,FALSE) -> 1215 | H31: =(G31-I31)/I31 -> 0.06113537118 | I31: =VLOOKUP(LookUpSheet!$D$11,'RC2020'!$B$2:$BH$552,7,FALSE) -> 1145 | J31: =(I31-K31)/K31 -> 0.08325449385 | K31: =VLOOKUP(LookUpSheet!$D$11,'RC2019'!$B$2:$BH$552,7,FALSE) -> 1057 | L31: =(K31-M31)/M31 -> -0.01307189542 | M31: =VLOOKUP(LookUpSheet!$D$11,'RC2018'!$B$2:$BH$552,7,FALSE) -> 1071 | N31: =(M31-O31)/O31 -> 0.04182879377 | O31: =VLOOKUP(LookUpSheet!$D$11,'RC2017'!$B$2:$BH$552,7,FALSE) -> 1028 | P31: =(O31-Q31)/Q31 -> 0.03212851406 | Q31: =VLOOKUP(LookUpSheet!$D$11,'RC2016'!$B$2:$BH$339,7,FALSE) -> 996 | R31: =(Q31-S31)/S31 -> -0.001003009027 | S31: =VLOOKUP(LookUpSheet!$D$11,'RC2015'!$B$2:$BH$552,7,FALSE) -> 997 | T31: =(S31-U31)/U31 -> 0 | U31: =VLOOKUP(LookUpSheet!$D$11,'RC2014'!$B$2:$BH$337,7,FALSE) -> 997 | V31: =(U31-W31)/W31 -> -0.007960199005 | W31: =VLOOKUP(LookUpSheet!$D$11,'RC2013'!$B$2:$BH$337,7,FALSE) -> 1005 | X31: =(W31-Y31)/Y31 -> 0.03076923077 | Y31: =VLOOKUP(LookUpSheet!$D$11,'RC2012'!$B$2:$BH$337,7,FALSE) -> 975 | Z31: =(Y31-AA31)/AA31 -> 0.0103626943 | AA31: =VLOOKUP(LookUpSheet!$D$11,'RC2011'!$B$2:$BH$555,7,FALSE) -> 965 | AB31: =(AA31-AC31)/AC31 -> 0.01900739176 | AC31: =VLOOKUP(LookUpSheet!$D$11,'RC2010'!$B$2:$BH$342,7,FALSE) -> 947 | AD31: =(AC31-AE31)/AE31 -> 0.01937567277 | AE31: =VLOOKUP(LookUpSheet!$D$11,'RC2009'!$B$2:$BH$343,7,FALSE) -> 929 | AF31: =(AE31-AG31)/AG31 -> 0.002157497303 | AG31: =VLOOKUP(LookUpSheet!$D$11,'RC2008'!$B$2:$BH$339,7,FALSE) -> 927 | AH31: =(AG31-AI31)/AI31 -> 0.06920415225 | AI31: =VLOOKUP(LookUpSheet!$D$11,'RC2007'!$B$2:$BH$341,7,FALSE) -> 867 | AJ31: =(AI31-AK31)/AK31 -> 0.01285046729 | AK31: =VLOOKUP(LookUpSheet!$D$11,'RC2006'!$B$2:$BH$336,7,FALSE) -> 856 | AL31: =(AK31-AM31)/AM31 -> 0.06866416979 | AM31: =VLOOKUP(LookUpSheet!$D$11,'RC2005'!$B$2:$BH$336,7,FALSE) -> 801 | AN31: =(AM31-AO31)/AO31 -> 0.01908396947 | AO31: =VLOOKUP(LookUpSheet!$D$11,'RC2004'!$B$2:$BH$337,7,FALSE) -> 786 | AP31: =(AO31-AQ31)/AQ31 -> 0.06648575305 | AQ31: =VLOOKUP(LookUpSheet!$D$11,'RC2003'!$B$2:$BH$518,7,FALSE) -> 737
A32: Carroll County | B32: =(C32-W32)/W32 -> 0.4782157676 | C32: =VLOOKUP(LookUpSheet!$D$12,'RC2023'!$B$2:$BH$552,7,FALSE) -> 1425 | D32: =(C32-E32)/E32 -> 0.139088729 | E32: =VLOOKUP(LookUpSheet!$D$12,'RC2022'!$B$2:$BH$552,7,FALSE) -> 1251 | F32: =(E32-G32)/G32 -> 0.165890028 | G32: =VLOOKUP(LookUpSheet!$D$12,'RC2021'!$B$2:$BH$552,7,FALSE) -> 1073 | H32: =(G32-I32)/I32 -> 0.006566604128 | I32: =VLOOKUP(LookUpSheet!$D$12,'RC2020'!$B$2:$BH$552,7,FALSE) -> 1066 | J32: =(I32-K32)/K32 -> -0.01751152074 | K32: =VLOOKUP(LookUpSheet!$D$12,'RC2019'!$B$2:$BH$552,7,FALSE) -> 1085 | L32: 0.007428040854 | M32: =VLOOKUP(LookUpSheet!$D$12,'RC2018'!$B$2:$BH$552,7,FALSE) -> 1077 | N32: 0.03557692308 | O32: =VLOOKUP(LookUpSheet!$D$12,'RC2017'!$B$2:$BH$552,7,FALSE) -> 1040 | P32: 0.05476673428 | Q32: =VLOOKUP(LookUpSheet!$D$12,'RC2016'!$B$2:$BH$339,7,FALSE) -> 986 | R32: -0.02376237624 | S32: =VLOOKUP(LookUpSheet!$D$12,'RC2015'!$B$2:$BH$552,7,FALSE) -> 1010 | T32: =(S32-U32)/U32 -> 0.008991008991 | U32: =VLOOKUP(LookUpSheet!$D$12,'RC2014'!$B$2:$BH$337,7,FALSE) -> 1001 | V32: =(U32-W32)/W32 -> 0.03838174274 | W32: =VLOOKUP(LookUpSheet!$D$12,'RC2013'!$B$2:$BH$337,7,FALSE) -> 964 | X32: 0 | Y32: =VLOOKUP(LookUpSheet!$D$12,'RC2012'!$B$2:$BH$337,7,FALSE) -> 964 | Z32: 0.02553191489 | AA32: =VLOOKUP(LookUpSheet!$D$12,'RC2011'!$B$2:$BH$555,7,FALSE) -> 940 | AB32: 0.05617977528 | AC32: =VLOOKUP(LookUpSheet!$D$12,'RC2010'!$B$2:$BH$342,7,FALSE) -> 890 | AD32: -0.01439645626 | AE32: =VLOOKUP(LookUpSheet!$D$12,'RC2009'!$B$2:$BH$343,7,FALSE) -> 903 | AF32: -0.03422459893 | AG32: =VLOOKUP(LookUpSheet!$D$12,'RC2008'!$B$2:$BH$339,7,FALSE) -> 935 | AH32: =(AG32-AI32)/AI32 -> 0.1065088757 | AI32: =VLOOKUP(LookUpSheet!$D$12,'RC2007'!$B$2:$BH$341,7,FALSE) -> 845 | AJ32: =(AI32-AK32)/AK32 -> -0.04303510759 | AK32: =VLOOKUP(LookUpSheet!$D$12,'RC2006'!$B$2:$BH$336,7,FALSE) -> 883 | AL32: 0.10375 | AM32: =VLOOKUP(LookUpSheet!$D$12,'RC2005'!$B$2:$BH$336,7,FALSE) -> 800 | AN32: -0.01356350185 | AO32: =VLOOKUP(LookUpSheet!$D$12,'RC2004'!$B$2:$BH$337,7,FALSE) -> 811 | AP32: 0.1124828532 | AQ32: =VLOOKUP(LookUpSheet!$D$12,'RC2003'!$B$2:$BH$518,7,FALSE) -> 729
A33: Cheshire County | B33: 0.3869104909 | C33: =VLOOKUP(LookUpSheet!$D$13,'RC2023'!$B$2:$BH$552,7,FALSE) -> 1441 | D33: 0.1686942417 | E33: =VLOOKUP(LookUpSheet!$D$13,'RC2022'!$B$2:$BH$552,7,FALSE) -> 1233 | F33: 0.1209090909 | G33: =VLOOKUP(LookUpSheet!$D$13,'RC2021'!$B$2:$BH$552,7,FALSE) -> 1100 | H33: -0.01610017889 | I33: =VLOOKUP(LookUpSheet!$D$13,'RC2020'!$B$2:$BH$552,7,FALSE) -> 1118 | J33: -0.0008936550492 | K33: =VLOOKUP(LookUpSheet!$D$13,'RC2019'!$B$2:$BH$552,7,FALSE) -> 1119 | L33: 0.04775280899 | M33: =VLOOKUP(LookUpSheet!$D$13,'RC2018'!$B$2:$BH$552,7,FALSE) -> 1068 | N33: 0.004703668862 | O33: =VLOOKUP(LookUpSheet!$D$13,'RC2017'!$B$2:$BH$552,7,FALSE) -> 1063 | P33: 0.01722488038 | Q33: =VLOOKUP(LookUpSheet!$D$13,'RC2016'!$B$2:$BH$339,7,FALSE) -> 1045 | R33: -0.02245088868 | S33: =VLOOKUP(LookUpSheet!$D$13,'RC2015'!$B$2:$BH$552,7,FALSE) -> 1069 | T33: =(S33-U33)/U33 -> 0.02394636015 | U33: =VLOOKUP(LookUpSheet!$D$13,'RC2014'!$B$2:$BH$337,7,FALSE) -> 1044 | V33: =(U33-W33)/W33 -> 0.004812319538 | W33: =VLOOKUP(LookUpSheet!$D$13,'RC2013'!$B$2:$BH$337,7,FALSE) -> 1039 | X33: 0 | Y33: =VLOOKUP(LookUpSheet!$D$13,'RC2012'!$B$2:$BH$337,7,FALSE) -> 1039 | Z33: 0.005808325266 | AA33: =VLOOKUP(LookUpSheet!$D$13,'RC2011'!$B$2:$BH$555,7,FALSE) -> 1033 | AB33: 0.005842259007 | AC33: =VLOOKUP(LookUpSheet!$D$13,'RC2010'!$B$2:$BH$342,7,FALSE) -> 1027 | AD33: 0 | AE33: =VLOOKUP(LookUpSheet!$D$13,'RC2009'!$B$2:$BH$343,7,FALSE) -> 1027 | AF33: -0.02376425856 | AG33: =VLOOKUP(LookUpSheet!$D$13,'RC2008'!$B$2:$BH$339,7,FALSE) -> 1052 | AH33: 0.07786885246 | AI33: =VLOOKUP(LookUpSheet!$D$13,'RC2007'!$B$2:$BH$341,7,FALSE) -> 976 | AJ33: 0.01666666667 | AK33: =VLOOKUP(LookUpSheet!$D$13,'RC2006'!$B$2:$BH$336,7,FALSE) -> 960 | AL33: 0.04008667389 | AM33: =VLOOKUP(LookUpSheet!$D$13,'RC2005'!$B$2:$BH$336,7,FALSE) -> 923 | AN33: 0.135301353 | AO33: =VLOOKUP(LookUpSheet!$D$13,'RC2004'!$B$2:$BH$337,7,FALSE) -> 813 | AP33: 0.03041825095 | AQ33: =VLOOKUP(LookUpSheet!$D$13,'RC2003'!$B$2:$BH$518,7,FALSE) -> 789
A34: Coos County | B34: 0.6788432268 | C34: =VLOOKUP(LookUpSheet!$D$14,'RC2023'!$B$2:$BH$552,7,FALSE) -> 1103 | D34: 0.1561844864 | E34: =VLOOKUP(LookUpSheet!$D$14,'RC2022'!$B$2:$BH$552,7,FALSE) -> 954 | F34: 0.08532423208 | G34: =VLOOKUP(LookUpSheet!$D$14,'RC2021'!$B$2:$BH$552,7,FALSE) -> 879 | H34: -0.01013513514 | I34: =VLOOKUP(LookUpSheet!$D$14,'RC2020'!$B$2:$BH$552,7,FALSE) -> 888 | J34: 0.08292682927 | K34: =VLOOKUP(LookUpSheet!$D$14,'RC2019'!$B$2:$BH$552,7,FALSE) -> 820 | L34: -0.04761904762 | M34: =VLOOKUP(LookUpSheet!$D$14,'RC2018'!$B$2:$BH$552,7,FALSE) -> 861 | N34: 0.05256723716 | O34: =VLOOKUP(LookUpSheet!$D$14,'RC2017'!$B$2:$BH$552,7,FALSE) -> 818 | P34: 0.03544303797 | Q34: =VLOOKUP(LookUpSheet!$D$14,'RC2016'!$B$2:$BH$339,7,FALSE) -> 790 | R34: 0 | S34: =VLOOKUP(LookUpSheet!$D$14,'RC2015'!$B$2:$BH$552,7,FALSE) -> 790 | T34: =(S34-U34)/U34 -> 0.1126760563 | U34: =VLOOKUP(LookUpSheet!$D$14,'RC2014'!$B$2:$BH$337,7,FALSE) -> 710 | V34: =(U34-W34)/W34 -> 0.08066971081 | W34: =VLOOKUP(LookUpSheet!$D$14,'RC2013'!$B$2:$BH$337,7,FALSE) -> 657 | X34: -0.01054216867 | Y34: =VLOOKUP(LookUpSheet!$D$14,'RC2012'!$B$2:$BH$337,7,FALSE) -> 664 | Z34: -0.001503759398 | AA34: =VLOOKUP(LookUpSheet!$D$14,'RC2011'!$B$2:$BH$555,7,FALSE) -> 665 | AB34: -0.03202328967 | AC34: =VLOOKUP(LookUpSheet!$D$14,'RC2010'!$B$2:$BH$342,7,FALSE) -> 687 | AD34: 0.01029411765 | AE34: =VLOOKUP(LookUpSheet!$D$14,'RC2009'!$B$2:$BH$343,7,FALSE) -> 680 | AF34: 0.0641627543 | AG34: =VLOOKUP(LookUpSheet!$D$14,'RC2008'!$B$2:$BH$339,7,FALSE) -> 639 | AH34: 0.05445544554 | AI34: =VLOOKUP(LookUpSheet!$D$14,'RC2007'!$B$2:$BH$341,7,FALSE) -> 606 | AJ34: 0.02538071066 | AK34: =VLOOKUP(LookUpSheet!$D$14,'RC2006'!$B$2:$BH$336,7,FALSE) -> 591 | AL34: 0.07650273224 | AM34: =VLOOKUP(LookUpSheet!$D$14,'RC2005'!$B$2:$BH$336,7,FALSE) -> 549 | AN34: 0.098 | AO34: =VLOOKUP(LookUpSheet!$D$14,'RC2004'!$B$2:$BH$337,7,FALSE) -> 500 | AP34: 0.04821802935 | AQ34: =VLOOKUP(LookUpSheet!$D$14,'RC2003'!$B$2:$BH$518,7,FALSE) -> 477
A35: Grafton County | B35: 1.112690355 | C35: =VLOOKUP(LookUpSheet!$D$15,'RC2023'!$B$2:$BH$552,7,FALSE) -> 2081 | D35: 0.2291789722 | E35: =VLOOKUP(LookUpSheet!$D$15,'RC2022'!$B$2:$BH$552,7,FALSE) -> 1693 | F35: 0.158002736 | G35: =VLOOKUP(LookUpSheet!$D$15,'RC2021'!$B$2:$BH$552,7,FALSE) -> 1462 | H35: 0.1185921959 | I35: =VLOOKUP(LookUpSheet!$D$15,'RC2020'!$B$2:$BH$552,7,FALSE) -> 1307 | J35: 0.07395234182 | K35: =VLOOKUP(LookUpSheet!$D$15,'RC2019'!$B$2:$BH$552,7,FALSE) -> 1217 | L35: 0.06195462478 | M35: =VLOOKUP(LookUpSheet!$D$15,'RC2018'!$B$2:$BH$552,7,FALSE) -> 1146 | N35: -0.0008718395815 | O35: =VLOOKUP(LookUpSheet!$D$15,'RC2017'!$B$2:$BH$552,7,FALSE) -> 1147 | P35: 0.0114638448 | Q35: =VLOOKUP(LookUpSheet!$D$15,'RC2016'!$B$2:$BH$339,7,FALSE) -> 1134 | R35: 0.05 | S35: =VLOOKUP(LookUpSheet!$D$15,'RC2015'!$B$2:$BH$552,7,FALSE) -> 1080 | T35: =(S35-U35)/U35 -> 0.02564102564 | U35: =VLOOKUP(LookUpSheet!$D$15,'RC2014'!$B$2:$BH$337,7,FALSE) -> 1053 | V35: =(U35-W35)/W35 -> 0.06903553299 | W35: =VLOOKUP(LookUpSheet!$D$15,'RC2013'!$B$2:$BH$337,7,FALSE) -> 985 | X35: -0.0362035225 | Y35: =VLOOKUP(LookUpSheet!$D$15,'RC2012'!$B$2:$BH$337,7,FALSE) -> 1022 | Z35: 0.1243124312 | AA35: =VLOOKUP(LookUpSheet!$D$15,'RC2011'!$B$2:$BH$555,7,FALSE) -> 909 | AB35: -0.02676659529 | AC35: =VLOOKUP(LookUpSheet!$D$15,'RC2010'!$B$2:$BH$342,7,FALSE) -> 934 | AD35: 0.01301518438 | AE35: =VLOOKUP(LookUpSheet!$D$15,'RC2009'!$B$2:$BH$343,7,FALSE) -> 922 | AF35: 0.05855338691 | AG35: =VLOOKUP(LookUpSheet!$D$15,'RC2008'!$B$2:$BH$339,7,FALSE) -> 871 | AH35: 0.01871345029 | AI35: =VLOOKUP(LookUpSheet!$D$15,'RC2007'!$B$2:$BH$341,7,FALSE) -> 855 | AJ35: 0.03136308806 | AK35: =VLOOKUP(LookUpSheet!$D$15,'RC2006'!$B$2:$BH$336,7,FALSE) -> 829 | AL35: 0.07802340702 | AM35: =VLOOKUP(LookUpSheet!$D$15,'RC2005'!$B$2:$BH$336,7,FALSE) -> 769 | AN35: -0.02162849873 | AO35: =VLOOKUP(LookUpSheet!$D$15,'RC2004'!$B$2:$BH$337,7,FALSE) -> 786 | AP35: 0.07230559345 | AQ35: =VLOOKUP(LookUpSheet!$D$15,'RC2003'!$B$2:$BH$518,7,FALSE) -> 733
A36: Hillsborough County | B36: 0.7506538797 | C36: =VLOOKUP(LookUpSheet!$D$16,'RC2023'!$B$2:$BH$552,7,FALSE) -> 2008 | D36: 0.08073196986 | E36: =VLOOKUP(LookUpSheet!$D$16,'RC2022'!$B$2:$BH$552,7,FALSE) -> 1858 | F36: 0.1308581862 | G36: =VLOOKUP(LookUpSheet!$D$16,'RC2021'!$B$2:$BH$552,7,FALSE) -> 1643 | H36: 0.07105606258 | I36: =VLOOKUP(LookUpSheet!$D$16,'RC2020'!$B$2:$BH$552,7,FALSE) -> 1534 | J36: 0.05357142857 | K36: =VLOOKUP(LookUpSheet!$D$16,'RC2019'!$B$2:$BH$552,7,FALSE) -> 1456 | L36: 0.06432748538 | M36: =VLOOKUP(LookUpSheet!$D$16,'RC2018'!$B$2:$BH$552,7,FALSE) -> 1368 | N36: -0.01156069364 | O36: =VLOOKUP(LookUpSheet!$D$16,'RC2017'!$B$2:$BH$552,7,FALSE) -> 1384 | P36: 0.08294209703 | Q36: =VLOOKUP(LookUpSheet!$D$16,'RC2016'!$B$2:$BH$339,7,FALSE) -> 1278 | R36: 0.04840032814 | S36: =VLOOKUP(LookUpSheet!$D$16,'RC2015'!$B$2:$BH$552,7,FALSE) -> 1219 | T36: =(S36-U36)/U36 -> 0.0544982699 | U36: =VLOOKUP(LookUpSheet!$D$16,'RC2014'!$B$2:$BH$337,7,FALSE) -> 1156 | V36: 0.007846556234 | W36: =VLOOKUP(LookUpSheet!$D$16,'RC2013'!$B$2:$BH$337,7,FALSE) -> 1147 | X36: 0.007023705004 | Y36: =VLOOKUP(LookUpSheet!$D$16,'RC2012'!$B$2:$BH$337,7,FALSE) -> 1139 | Z36: 0.04495412844 | AA36: =VLOOKUP(LookUpSheet!$D$16,'RC2011'!$B$2:$BH$555,7,FALSE) -> 1090 | AB36: 0.0009182736455 | AC36: =VLOOKUP(LookUpSheet!$D$16,'RC2010'!$B$2:$BH$342,7,FALSE) -> 1089 | AD36: 0.01114206128 | AE36: =VLOOKUP(LookUpSheet!$D$16,'RC2009'!$B$2:$BH$343,7,FALSE) -> 1077 | AF36: -0.004621072089 | AG36: =VLOOKUP(LookUpSheet!$D$16,'RC2008'!$B$2:$BH$339,7,FALSE) -> 1082 | AH36: 0.02268431002 | AI36: =VLOOKUP(LookUpSheet!$D$16,'RC2007'!$B$2:$BH$341,7,FALSE) -> 1058 | AJ36: -0.001886792453 | AK36: =VLOOKUP(LookUpSheet!$D$16,'RC2006'!$B$2:$BH$336,7,FALSE) -> 1060 | AL36: 0.01338432122 | AM36: =VLOOKUP(LookUpSheet!$D$16,'RC2005'!$B$2:$BH$336,7,FALSE) -> 1046 | AN36: 0.009652509653 | AO36: =VLOOKUP(LookUpSheet!$D$16,'RC2004'!$B$2:$BH$337,7,FALSE) -> 1036 | AP36: 0.02879841112 | AQ36: =VLOOKUP(LookUpSheet!$D$16,'RC2003'!$B$2:$BH$518,7,FALSE) -> 1007
A37: Merrimack County | B37: 0.4097744361 | C37: =VLOOKUP(LookUpSheet!$D$17,'RC2023'!$B$2:$BH$552,7,FALSE) -> 1500 | D37: 0.1380880121 | E37: =VLOOKUP(LookUpSheet!$D$17,'RC2022'!$B$2:$BH$552,7,FALSE) -> 1318 | F37: -0.01568334578 | G37: =VLOOKUP(LookUpSheet!$D$17,'RC2021'!$B$2:$BH$552,7,FALSE) -> 1339 | H37: 0.05184603299 | I37: =VLOOKUP(LookUpSheet!$D$17,'RC2020'!$B$2:$BH$552,7,FALSE) -> 1273 | J37: 0.05555555556 | K37: =VLOOKUP(LookUpSheet!$D$17,'RC2019'!$B$2:$BH$552,7,FALSE) -> 1206 | L37: 0.03965517241 | M37: =VLOOKUP(LookUpSheet!$D$17,'RC2018'!$B$2:$BH$552,7,FALSE) -> 1160 | N37: -0.01360544218 | O37: =VLOOKUP(LookUpSheet!$D$17,'RC2017'!$B$2:$BH$552,7,FALSE) -> 1176 | P37: 0.05 | Q37: =VLOOKUP(LookUpSheet!$D$17,'RC2016'!$B$2:$BH$339,7,FALSE) -> 1120 | R37: 0.006289308176 | S37: =VLOOKUP(LookUpSheet!$D$17,'RC2015'!$B$2:$BH$552,7,FALSE) -> 1113 | T37: 0.03151065802 | U37: =VLOOKUP(LookUpSheet!$D$17,'RC2014'!$B$2:$BH$337,7,FALSE) -> 1079 | V37: 0.01409774436 | W37: =VLOOKUP(LookUpSheet!$D$17,'RC2013'!$B$2:$BH$337,7,FALSE) -> 1064 | X37: 0.01818181818 | Y37: =VLOOKUP(LookUpSheet!$D$17,'RC2012'!$B$2:$BH$337,7,FALSE) -> 1045 | Z37: 0.02753195674 | AA37: =VLOOKUP(LookUpSheet!$D$17,'RC2011'!$B$2:$BH$555,7,FALSE) -> 1017 | AB37: 0 | AC37: =VLOOKUP(LookUpSheet!$D$17,'RC2010'!$B$2:$BH$342,7,FALSE) -> 1017 | AD37: 0.00792864222 | AE37: =VLOOKUP(LookUpSheet!$D$17,'RC2009'!$B$2:$BH$343,7,FALSE) -> 1009 | AF37: -0.009813542689 | AG37: =VLOOKUP(LookUpSheet!$D$17,'RC2008'!$B$2:$BH$339,7,FALSE) -> 1019 | AH37: -0.0009803921569 | AI37: =VLOOKUP(LookUpSheet!$D$17,'RC2007'!$B$2:$BH$341,7,FALSE) -> 1020 | AJ37: 0.07368421053 | AK37: =VLOOKUP(LookUpSheet!$D$17,'RC2006'!$B$2:$BH$336,7,FALSE) -> 950 | AL37: 0.00422832981 | AM37: =VLOOKUP(LookUpSheet!$D$17,'RC2005'!$B$2:$BH$336,7,FALSE) -> 946 | AN37: 0.01176470588 | AO37: =VLOOKUP(LookUpSheet!$D$17,'RC2004'!$B$2:$BH$337,7,FALSE) -> 935 | AP37: 0.01741022851 | AQ37: =VLOOKUP(LookUpSheet!$D$17,'RC2003'!$B$2:$BH$518,7,FALSE) -> 919
A38: Rockingham County | B38: 0.5882352941 | C38: =VLOOKUP(LookUpSheet!$D$18,'RC2023'!$B$2:$BH$552,7,FALSE) -> 1944 | D38: 0.1381733021 | E38: =VLOOKUP(LookUpSheet!$D$18,'RC2022'!$B$2:$BH$552,7,FALSE) -> 1708 | F38: 0.02153110048 | G38: =VLOOKUP(LookUpSheet!$D$18,'RC2021'!$B$2:$BH$552,7,FALSE) -> 1672 | H38: 0.03019100431 | I38: =VLOOKUP(LookUpSheet!$D$18,'RC2020'!$B$2:$BH$552,7,FALSE) -> 1623 | J38: 0.03507653061 | K38: =VLOOKUP(LookUpSheet!$D$18,'RC2019'!$B$2:$BH$552,7,FALSE) -> 1568 | L38: 0.07692307692 | M38: =VLOOKUP(LookUpSheet!$D$18,'RC2018'!$B$2:$BH$552,7,FALSE) -> 1456 | N38: 0.03335699077 | O38: =VLOOKUP(LookUpSheet!$D$18,'RC2017'!$B$2:$BH$552,7,FALSE) -> 1409 | P38: 0.06661619985 | Q38: =VLOOKUP(LookUpSheet!$D$18,'RC2016'!$B$2:$BH$339,7,FALSE) -> 1321 | R38: 0.04015748031 | S38: =VLOOKUP(LookUpSheet!$D$18,'RC2015'!$B$2:$BH$552,7,FALSE) -> 1270 | T38: 0.03336045566 | U38: =VLOOKUP(LookUpSheet!$D$18,'RC2014'!$B$2:$BH$337,7,FALSE) -> 1229 | V38: 0.00408496732 | W38: =VLOOKUP(LookUpSheet!$D$18,'RC2013'!$B$2:$BH$337,7,FALSE) -> 1224 | X38: 0.04974271012 | Y38: =VLOOKUP(LookUpSheet!$D$18,'RC2012'!$B$2:$BH$337,7,FALSE) -> 1166 | Z38: -0.02833333333 | AA38: =VLOOKUP(LookUpSheet!$D$18,'RC2011'!$B$2:$BH$555,7,FALSE) -> 1200 | AB38: -0.004149377593 | AC38: =VLOOKUP(LookUpSheet!$D$18,'RC2010'!$B$2:$BH$342,7,FALSE) -> 1205 | AD38: 0.01430976431 | AE38: =VLOOKUP(LookUpSheet!$D$18,'RC2009'!$B$2:$BH$343,7,FALSE) -> 1188 | AF38: 0.005076142132 | AG38: =VLOOKUP(LookUpSheet!$D$18,'RC2008'!$B$2:$BH$339,7,FALSE) -> 1182 | AH38: 0.06871609403 | AI38: =VLOOKUP(LookUpSheet!$D$18,'RC2007'!$B$2:$BH$341,7,FALSE) -> 1106 | AJ38: 0.01841620626 | AK38: =VLOOKUP(LookUpSheet!$D$18,'RC2006'!$B$2:$BH$336,7,FALSE) -> 1086 | AL38: 0.02646502836 | AM38: =VLOOKUP(LookUpSheet!$D$18,'RC2005'!$B$2:$BH$336,7,FALSE) -> 1058 | AN38: 0.01147227533 | AO38: =VLOOKUP(LookUpSheet!$D$18,'RC2004'!$B$2:$BH$337,7,FALSE) -> 1046 | AP38: 0.03666997027 | AQ38: =VLOOKUP(LookUpSheet!$D$18,'RC2003'!$B$2:$BH$518,7,FALSE) -> 1009
A39: Strafford County | B39: 0.6442405708 | C39: =VLOOKUP(LookUpSheet!$D$19,'RC2023'!$B$2:$BH$552,7,FALSE) -> 1613 | D39: 0.02608142494 | E39: =VLOOKUP(LookUpSheet!$D$19,'RC2022'!$B$2:$BH$552,7,FALSE) -> 1572 | F39: 0.1276901004 | G39: =VLOOKUP(LookUpSheet!$D$19,'RC2021'!$B$2:$BH$552,7,FALSE) -> 1394 | H39: 0.07978311387 | I39: =VLOOKUP(LookUpSheet!$D$19,'RC2020'!$B$2:$BH$552,7,FALSE) -> 1291 | J39: -0.04157386785 | K39: =VLOOKUP(LookUpSheet!$D$19,'RC2019'!$B$2:$BH$552,7,FALSE) -> 1347 | L39: 0.1473594549 | M39: =VLOOKUP(LookUpSheet!$D$19,'RC2018'!$B$2:$BH$552,7,FALSE) -> 1174 | N39: 0.01557093426 | O39: =VLOOKUP(LookUpSheet!$D$19,'RC2017'!$B$2:$BH$552,7,FALSE) -> 1156 | P39: 0.06740535549 | Q39: =VLOOKUP(LookUpSheet!$D$19,'RC2016'!$B$2:$BH$339,7,FALSE) -> 1083 | R39: 0.05555555556 | S39: =VLOOKUP(LookUpSheet!$D$19,'RC2015'!$B$2:$BH$552,7,FALSE) -> 1026 | T39: 0.01383399209 | U39: =VLOOKUP(LookUpSheet!$D$19,'RC2014'!$B$2:$BH$337,7,FALSE) -> 1012 | V39: 0.03160040775 | W39: =VLOOKUP(LookUpSheet!$D$19,'RC2013'!$B$2:$BH$337,7,FALSE) -> 981 | X39: 0.002042900919 | Y39: =VLOOKUP(LookUpSheet!$D$19,'RC2012'!$B$2:$BH$337,7,FALSE) -> 979 | Z39: 0.006166495375 | AA39: =VLOOKUP(LookUpSheet!$D$19,'RC2011'!$B$2:$BH$555,7,FALSE) -> 973 | AB39: 0.002059732235 | AC39: =VLOOKUP(LookUpSheet!$D$19,'RC2010'!$B$2:$BH$342,7,FALSE) -> 971 | AD39: 0.01040582726 | AE39: =VLOOKUP(LookUpSheet!$D$19,'RC2009'!$B$2:$BH$343,7,FALSE) -> 961 | AF39: -0.00414507772 | AG39: =VLOOKUP(LookUpSheet!$D$19,'RC2008'!$B$2:$BH$339,7,FALSE) -> 965 | AH39: 0.009414225941 | AI39: =VLOOKUP(LookUpSheet!$D$19,'RC2007'!$B$2:$BH$341,7,FALSE) -> 956 | AJ39: 0.02906350915 | AK39: =VLOOKUP(LookUpSheet!$D$19,'RC2006'!$B$2:$BH$336,7,FALSE) -> 929 | AL39: 0.03337041157 | AM39: =VLOOKUP(LookUpSheet!$D$19,'RC2005'!$B$2:$BH$336,7,FALSE) -> 899 | AN39: -0.00332594235 | AO39: =VLOOKUP(LookUpSheet!$D$19,'RC2004'!$B$2:$BH$337,7,FALSE) -> 902 | AP39: 0.05250875146 | AQ39: =VLOOKUP(LookUpSheet!$D$19,'RC2003'!$B$2:$BH$518,7,FALSE) -> 857
A40: Sullivan County | B40: 0.4227027027 | C40: =VLOOKUP(LookUpSheet!$D$20,'RC2023'!$B$2:$BH$552,7,FALSE) -> 1316 | D40: 0.07516339869 | E40: =VLOOKUP(LookUpSheet!$D$20,'RC2022'!$B$2:$BH$552,7,FALSE) -> 1224 | F40: 0.09383378016 | G40: =VLOOKUP(LookUpSheet!$D$20,'RC2021'!$B$2:$BH$552,7,FALSE) -> 1119 | H40: 0.04775280899 | I40: =VLOOKUP(LookUpSheet!$D$20,'RC2020'!$B$2:$BH$552,7,FALSE) -> 1068 | J40: 0.04500978474 | K40: =VLOOKUP(LookUpSheet!$D$20,'RC2019'!$B$2:$BH$552,7,FALSE) -> 1022 | L40: 0.05252317199 | M40: =VLOOKUP(LookUpSheet!$D$20,'RC2018'!$B$2:$BH$552,7,FALSE) -> 971 | N40: 0.003099173554 | O40: =VLOOKUP(LookUpSheet!$D$20,'RC2017'!$B$2:$BH$552,7,FALSE) -> 968 | P40: 0.00310880829 | Q40: =VLOOKUP(LookUpSheet!$D$20,'RC2016'!$B$2:$BH$339,7,FALSE) -> 965 | R40: 0.001037344398 | S40: =VLOOKUP(LookUpSheet!$D$20,'RC2015'!$B$2:$BH$552,7,FALSE) -> 964 | T40: 0.007314524556 | U40: =VLOOKUP(LookUpSheet!$D$20,'RC2014'!$B$2:$BH$337,7,FALSE) -> 957 | V40: 0.03459459459 | W40: =VLOOKUP(LookUpSheet!$D$20,'RC2013'!$B$2:$BH$337,7,FALSE) -> 925 | X40: 0.01203501094 | Y40: =VLOOKUP(LookUpSheet!$D$20,'RC2012'!$B$2:$BH$337,7,FALSE) -> 914 | Z40: -0.004357298475 | AA40: =VLOOKUP(LookUpSheet!$D$20,'RC2011'!$B$2:$BH$555,7,FALSE) -> 918 | AB40: 0.01436464088 | AC40: =VLOOKUP(LookUpSheet!$D$20,'RC2010'!$B$2:$BH$342,7,FALSE) -> 905 | AD40: 0.008918617614 | AE40: =VLOOKUP(LookUpSheet!$D$20,'RC2009'!$B$2:$BH$343,7,FALSE) -> 897 | AF40: 0.07296650718 | AG40: =VLOOKUP(LookUpSheet!$D$20,'RC2008'!$B$2:$BH$339,7,FALSE) -> 836 | AH40: -0.06382978723 | AI40: =VLOOKUP(LookUpSheet!$D$20,'RC2007'!$B$2:$BH$341,7,FALSE) -> 893 | AJ40: 0.1246851385 | AK40: =VLOOKUP(LookUpSheet!$D$20,'RC2006'!$B$2:$BH$336,7,FALSE) -> 794 | AL40: 0.05585106383 | AM40: =VLOOKUP(LookUpSheet!$D$20,'RC2005'!$B$2:$BH$336,7,FALSE) -> 752 | AN40: 0.02452316076 | AO40: =VLOOKUP(LookUpSheet!$D$20,'RC2004'!$B$2:$BH$337,7,FALSE) -> 734 | AP40: 0.06531204644 | AQ40: =VLOOKUP(LookUpSheet!$D$20,'RC2003'!$B$2:$BH$518,7,FALSE) -> 689
A42: New Hampshire | B42: =(C42-W42)/W42 -> 0.6394052045 | C42: =VLOOKUP(LookUpSheet!$D$5,'RC2023'!$B$2:$BH$552,7,FALSE) -> 1764 | D42: =(C42-E42)/E42 -> 0.1136363636 | E42: =VLOOKUP(LookUpSheet!$D$5,'RC2022'!$B$2:$BH$552,7,FALSE) -> 1584 | F42: =(E42-G42)/G42 -> 0.05740987984 | G42: =VLOOKUP(LookUpSheet!$D$5,'RC2021'!$B$2:$BH$552,7,FALSE) -> 1498 | H42: =(G42-I42)/I42 -> 0.0601556971 | I42: =VLOOKUP(LookUpSheet!$D$5,'RC2020'!$B$2:$BH$552,7,FALSE) -> 1413 | J42: =(I42-K42)/K42 -> 0.04899777283 | K42: =VLOOKUP(LookUpSheet!$D$5,'RC2019'!$B$2:$BH$552,7,FALSE) -> 1347 | L42: =(K42-M42)/M42 -> 0.03935185185 | M42: =VLOOKUP(LookUpSheet!$D$5,'RC2018'!$B$2:$BH$552,7,FALSE) -> 1296 | N42: =(M42-O42)/O42 -> 0.02938840349 | O42: =VLOOKUP(LookUpSheet!$D$5,'RC2017'!$B$2:$BH$552,7,FALSE) -> 1259 | P42: =(O42-Q42)/Q42 -> 0.04394693201 | Q42: =VLOOKUP(LookUpSheet!$D$5,'RC2016'!$B$2:$BH$339,7,FALSE) -> 1206 | R42: =(Q42-S42)/S42 -> 0.04235090752 | S42: =VLOOKUP(LookUpSheet!$D$5,'RC2015'!$B$2:$BH$552,7,FALSE) -> 1157 | T42: =(S42-U42)/U42 -> 0.04422382671 | U42: =VLOOKUP(LookUpSheet!$D$5,'RC2014'!$B$2:$BH$337,7,FALSE) -> 1108 | V42: =(U42-W42)/W42 -> 0.02973977695 | W42: =VLOOKUP(LookUpSheet!$D$5,'RC2013'!$B$2:$BH$337,7,FALSE) -> 1076 | X42: =(W42-Y42)/Y42 -> -0.008294930876 | Y42: =VLOOKUP(LookUpSheet!$D$5,'RC2012'!$B$2:$BH$337,7,FALSE) -> 1085 | Z42: =(Y42-AA42)/AA42 -> 0.03530534351 | AA42: =VLOOKUP(LookUpSheet!$D$5,'RC2011'!$B$2:$BH$555,7,FALSE) -> 1048 | AB42: =(AA42-AC42)/AC42 -> -0.007575757576 | AC42: =VLOOKUP(LookUpSheet!$D$5,'RC2010'!$B$2:$BH$342,7,FALSE) -> 1056 | AD42: =(AC42-AE42)/AE42 -> 0.0144092219 | AE42: =VLOOKUP(LookUpSheet!$D$5,'RC2009'!$B$2:$BH$343,7,FALSE) -> 1041 | AF42: =(AE42-AG42)/AG42 -> -0.002873563218 | AG42: =VLOOKUP(LookUpSheet!$D$5,'RC2008'!$B$2:$BH$339,7,FALSE) -> 1044 | AH42: =(AG42-AI42)/AI42 -> 0.01457725948 | AI42: =VLOOKUP(LookUpSheet!$D$5,'RC2007'!$B$2:$BH$341,7,FALSE) -> 1029 | AJ42: =(AI42-AK42)/AK42 -> 0.0259222333 | AK42: =VLOOKUP(LookUpSheet!$D$5,'RC2006'!$B$2:$BH$336,7,FALSE) -> 1003 | AL42: =(AK42-AM42)/AM42 -> 0.01415571284 | AM42: =VLOOKUP(LookUpSheet!$D$5,'RC2005'!$B$2:$BH$336,7,FALSE) -> 989 | AN42: =(AM42-AO42)/AO42 -> 0.01124744376 | AO42: =VLOOKUP(LookUpSheet!$D$5,'RC2004'!$B$2:$BH$337,7,FALSE) -> 978 | AP42: =(AO42-AQ42)/AQ42 -> 0.04935622318 | AQ42: =VLOOKUP(LookUpSheet!$D$5,'RC2003'!$B$2:$BH$518,7,FALSE) -> 932

Sheet LookUpSheet (hidden)
O3: Data Year
A4: Area Name | B4: 0 Bedroom | C4: 1 Bedroom | D4: 2 Bedroom | E4: 3 Bedroom | F4: 4+ Bedroom | G4: All Units | O4: 2000
A5: State of New Hampshire | B5: StWide a | C5: StWide b | D5: StWide c | E5: StWide d | F5: StWide e | G5: StWide f | O5: 2001
O6: 2002
O7: 2003
O8: 2004
A9: County Areas | B9: 2 | C9: 3 | D9: 4 | E9: 5 | F9: 6 | G9: 7 | O9: 2005
A10: Area Name | B10: 0 Bedroom | C10: 1 Bedroom | D10: 2 Bedroom | E10: 3 Bedroom | F10: 4+ Bedroom | G10: All Units | O10: 2006
A11: Belknap County | B11: Cnty 01 a | C11: Cnty 01 b | D11: Cnty 01 c | E11: Cnty 01 d | F11: Cnty 01 e | G11: Cnty 01 f | O11: 2007
A12: Carroll County | B12: Cnty 02 a | C12: Cnty 02 b | D12: Cnty 02 c | E12: Cnty 02 d | F12: Cnty 02 e | G12: Cnty 02 f | O12: 2008
A13: Cheshire County | B13: Cnty 03 a | C13: Cnty 03 b | D13: Cnty 03 c | E13: Cnty 03 d | F13: Cnty 03 e | G13: Cnty 03 f | O13: 2009
A14: Coos County | B14: Cnty 04 a | C14: Cnty 04 b | D14: Cnty 04 c | E14: Cnty 04 d | F14: Cnty 04 e | G14: Cnty 04 f | O14: 2010
A15: Grafton County | B15: Cnty 05 a | C15: Cnty 05 b | D15: Cnty 05 c | E15: Cnty 05 d | F15: Cnty 05 e | G15: Cnty 05 f | O15: 2011
A16: Hillsborough County | B16: Cnty 06 a | C16: Cnty 06 b | D16: Cnty 06 c | E16: Cnty 06 d | F16: Cnty 06 e | G16: Cnty 06 f | O16: 2012
A17: Merrimack County | B17: Cnty 07 a | C17: Cnty 07 b | D17: Cnty 07 c | E17: Cnty 07 d | F17: Cnty 07 e | G17: Cnty 07 f | O17: 2013
A18: Rockingham County | B18: Cnty 08 a | C18: Cnty 08 b | D18: Cnty 08 c | E18: Cnty 08 d | F18: Cnty 08 e | G18: Cnty 08 f | O18: 2014
A19: Strafford County | B19: Cnty 09 a | C19: Cnty 09 b | D19: Cnty 09 c | E19: Cnty 09 d | F19: Cnty 09 e | G19: Cnty 09 f | O19: 2015
A20: Sullivan County | B20: Cnty 10 a | C20: Cnty 10 b | D20: Cnty 10 c | E20: Cnty 10 d | F20: Cnty 10 e | G20: Cnty 10 f | O20: 2016
O21: 2017
A22: List Control | B22: 4 | O22: 2018
A23: Grafton County | B23: =VLOOKUP($A$23,$A$11:$G$20,B$9) -> Cnty 05 a | C23: Cnty 05 b | D23: Cnty 05 c | E23: Cnty 05 d | F23: Cnty 05 e | G23: Cnty 05 f | O23: 2019
O24: 2020
O25: 2021
O26: 2022
O27: 2023
O34: 2023
O35: =VALUE(O34) -> 2023
A37: Metro and NonMetroAreas | B37: 2 | C37: 3 | D37: 4 | E37: 5 | F37: 6 | G37: 7 | H37: 8
A38: Area Name | B38: 0 Bedroom | C38: 1 Bedroom | D38: 2 Bedroom | E38: 3 Bedroom | F38: 4+ Bedroom | G38: All Units
A39: Belknap County, NH Non-metropolitan | B39: HMFA 08 a | C39: HMFA 08 b | D39: HMFA 08 c | E39: HMFA 08 d | F39: HMFA 08 e | G39: HMFA 08 f | H39: Alton, Barnstead, Belmont, Center Harbor, Gilford, Gilmanton, Laconia, Meredith, New Hampton, Sanbornton, Tilton
A40: Boston-Cambridge-Quincy, MA-NH HMFA | B40: HMFA 01 a | C40: HMFA 01 b | D40: HMFA 01 c | E40: HMFA 01 d | F40: HMFA 01 e | G40: HMFA 01 f | H40: Seabrook, South Hampton
A41: Carroll County, NH Non-metropolitan | B41: HMFA 09 a | C41: HMFA 09 b | D41: HMFA 09 c | E41: HMFA 09 d | F41: HMFA 09 e | G41: HMFA 09 f | H41: Albany, Bartlett, Brookfield, Chatham, Conway, Eaton, Effingham, Freedom, Hale's Location, Hart's Location, Jackson, Madison, Moultonborough, Ossipee, Sandwich, Tamworth, Tuftonboro, Wakefield, Wolfeboro
A42: Cheshire County, NH Non-metropolitan | B42: HMFA 10 a | C42: HMFA 10 b | D42: HMFA 10 c | E42: HMFA 10 d | F42: HMFA 10 e | G42: HMFA 10 f | H42: Alstead, Chesterfield, Dublin, Fitzwilliam, Gilsum, Harrisville, Hinsdale, Jaffrey, Keene, Marlborough, Marlow, Nelson, Richmond, Rindge, Roxbury, Stoddard, Sullivan, Surry, Swanzey, Troy, Walpole, Westmoreland, Winchester
A43: Combined Metro Areas | B43: SCombinedMetro&Non 01 a | C43: SCombinedMetro&Non 01 b | D43: SCombinedMetro&Non 01 c | E43: SCombinedMetro&Non 01 d | F43: SCombinedMetro&Non 01 e | G43: SCombinedMetro&Non 01 f | H43: The list of towns include all of those listed in the metropolitan HMFAs.
A44: Combined Non-Metro Areas | B44: SCombinedMetro&Non 02 a | C44: SCombinedMetro&Non 02 b | D44: SCombinedMetro&Non 02 c | E44: SCombinedMetro&Non 02 d | F44: SCombinedMetro&Non 02 e | G44: SCombinedMetro&Non 02 f | H44: The list of towns include all of those listed in the non-metropolitan HMFAs.
A45: Coos County, NH Non-metropolitan | B45: HMFA 11 a | C45: HMFA 11 b | D45: HMFA 11 c | E45: HMFA 11 d | F45: HMFA 11 e | G45: HMFA 11 f | H45: Atkinson and Gilmanton Grant, Bean's Grant, Bean's Purchase, Berlin, Cambridge, Carroll, Chandler's Purchase, Clarksville, Colebrook, Columbia, Crawford's Purchase, Cutt's Grant, Dalton, Dix's Grant, Dixville, Dummer, Errol, Erving's Location, Gorham, Green's Grant, Hadley's Purchase, Jefferson, Kilkenny Township, Lancaster, Low and Burbank's Grant, Martin's Location, Milan, Millsfield, Northumberland, Odell Township, Pinkham's Grant, Pittsburg, Randolph, Sargent's Purchase, Second College Grant, Shelburne, Stark, Stewartstown, Stratford, Success, Thompson and Meserve's Purchase, Wentworth's Location, Whitefield
A46: Grafton County, NH Non-metropolitan | B46: HMFA 12 a | C46: HMFA 12 b | D46: HMFA 12 c | E46: HMFA 12 d | F46: HMFA 12 e | G46: HMFA 12 f | H46: Alexandria, Ashland, Bath, Benton, Bethlehem, Bridgewater, Bristol, Campton, Canaan, Dorchester, Easton, Ellsworth, Enfield, Franconia, Grafton, Groton, Hanover, Haverhill, Hebron, Holderness, Landaff, Lebanon, Lincoln, Lisbon, Littleton, Livermore, Lyman, Lyme, Monroe, Orange, Orford, Piermont, Plymouth, Rumney, Sugar Hill, Thornton, Warren, Waterville Valley, Wentworth, Woodstock
A47: Hillsborough County, NH (part) HMFA | B47: HMFA 07 a | C47: HMFA 07 b | D47: HMFA 07 c | E47: HMFA 07 d | F47: HMFA 07 e | G47: HMFA 07 f | H47: Antrim, Bennington, Deering, Francestown, Greenfield, Hancock, Hillsborough, Lyndeborough, New Boston, Peterborough, Sharon, Temple, Windsor
A48: Lawrence, MA-NH HMFA | B48: HMFA 02 a | C48: HMFA 02 b | D48: HMFA 02 c | E48: HMFA 02 d | F48: HMFA 02 e | G48: HMFA 02 f | H48: Atkinson, Chester, Danville, Derry, Fremont, Hampstead, Kingston, Newton, Plaistow, Raymond, Salem, Sandown, Windham
A49: Manchester, NH HMFA | B49: HMFA 05 a | C49: HMFA 05 b | D49: HMFA 05 c | E49: HMFA 05 d | F49: HMFA 05 e | G49: HMFA 05 f | H49: Bedford, Goffstown, Manchester, Weare
A50: Merrimack County, NH Non-metropolitan | B50: HMFA 13 a | C50: HMFA 13 b | D50: HMFA 13 c | E50: HMFA 13 d | F50: HMFA 13 e | G50: HMFA 13 f | H50: Allenstown, Andover, Boscawen, Bow, Bradford, Canterbury, Chichester, Concord, Danbury, Dunbarton, Epsom, Franklin, Henniker, Hill, Hooksett, Hopkinton, Loudon, New London, Newbury, Northfield, Pembroke, Pittsfield, Salisbury, Sutton, Warner, Webster, Wilmot
A51: Nashua, NH HMFA | B51: HMFA 06 a | C51: HMFA 06 b | D51: HMFA 06 c | E51: HMFA 06 d | F51: HMFA 06 e | G51: HMFA 06 f | H51: Amherst, Brookline, Greenville, Hollis, Hudson, Litchfield, Mason, Merrimack, Milford, Mont Vernon, Nashua, New Ipswich, Pelham, Wilton
A52: Portsmouth-Rochester, NH HMFA | B52: HMFA 04 a | C52: HMFA 04 b | D52: HMFA 04 c | E52: HMFA 04 d | F52: HMFA 04 e | G52: HMFA 04 f | H52: Barrington, Brentwood, Dover, Durham, East Kingston, Epping, Exeter, Farmington, Greenland, Hampton, Hampton Falls, Kensington, Lee, Madbury, Middleton, Milton, New Castle, New Durham, Newfields, Newington, Newmarket, North Hampton, Portsmouth, Rochester, Rollinsford, Rye, Somersworth, Strafford, Stratham
A53: Sullivan County, NH Non-metropolitan | B53: HMFA 14 a | C53: HMFA 14 b | D53: HMFA 14 c | E53: HMFA 14 d | F53: HMFA 14 e | G53: HMFA 14 f | H53: Acworth, Charlestown, Claremont, Cornish, Croydon, Goshen, Grantham, Langdon, Lempster, Newport, Plainfield, Springfield, Sunapee, Unity, Washington
A54: Western Rockingham County, NH HMFA | B54: HMFA 03 a | C54: HMFA 03 b | D54: HMFA 03 c | E54: HMFA 03 d | F54: HMFA 03 e | G54: HMFA 03 f | H54: Auburn, Candia, Deerfield, Londonderry, Northwood, Nottingham
A56: List Control | B56: 3
A57: Portsmouth-Rochester, NH HMFA | B57: =VLOOKUP($A$57,$A$39:$H$54,B$37,FALSE) -> HMFA 04 a | C57: HMFA 04 b | D57: HMFA 04 c | E57: HMFA 04 d | F57: HMFA 04 e | G57: HMFA 04 f | H57: Barrington, Brentwood, Dover, Durham, East Kingston, Epping, Exeter, Farmington, Greenland, Hampton, Hampton Falls, Kensington, Lee, Madbury, Middleton, Milton, New Castle, New Durham, Newfields, Newington, Newmarket, North Hampton, Portsmouth, Rochester, Rollinsford, Rye, Somersworth, Strafford, Stratham
A60: Area Name | B60: 0 Bedroom | C60: 1 Bedroom | D60: 2 Bedroom | E60: 3 Bedroom | F60: 4+ Bedroom | G60: All Units | H60: Towns in NECTAs or LMAs
A61: Belmont LMA | B61: NECTA 13 a | C61: NECTA 13 b | D61: NECTA 13 c | E61: NECTA 13 d | F61: NECTA 13 e | G61: NECTA 13 f | H61: Alton, Barnstead, Belmont, Gilmanton
A62: Berlin NH Micropolitan NECTA | B62: NECTA 01 a | C62: NECTA 01 b | D62: NECTA 01 c | E62: NECTA 01 d | F62: NECTA 01 e | G62: NECTA 01 f | H62: Berlin, Dummer, Gorham, Milan, Randolph, Shelburne, Stark
A63: Charlestown NH LMA | B63: NECTA 14 a | C63: NECTA 14 b | D63: NECTA 14 c | E63: NECTA 14 d | F63: NECTA 14 e | G63: NECTA 14 f | H63: Acworth, Alstead, Charlestown, Langdon, Walpole
A64: Claremont NH Micropolitan NECTA | B64: NECTA 05 a | C64: NECTA 05 b | D64: NECTA 05 c | E64: NECTA 05 d | F64: NECTA 05 e | G64: NECTA 05 f | H64: Claremont, Unity
A65: Colebrook NH-VT LMA | B65: NECTA 15 a | C65: NECTA 15 b | D65: NECTA 15 c | E65: NECTA 15 d | F65: NECTA 15 e | G65: NECTA 15 f | H65: Atkinson and Gilmanton Grant, Cambridge, Clarksville, Colebrook, Columbia, Dix's Grant, Dixville, Errol, Erving's Location, Millsfield, Pittsburg, Second College Grant, Stewartstown, Success, Wentworth's Location
A66: Concord NH Micropolitan NECTA | B66: NECTA 02 a | C66: NECTA 02 b | D66: NECTA 02 c | E66: NECTA 02 d | F66: NECTA 02 e | G66: NECTA 02 f | H66: Boscawen, Bow, Canterbury, Chichester, Concord, Epsom, Hopkinton, Loudon, Pittsfield, Salisbury, Warner, Webster
A67: Conway NH-ME LMA | B67: NECTA 16 a | C67: NECTA 16 b | D67: NECTA 16 c | E67: NECTA 16 d | F67: NECTA 16 e | G67: NECTA 16 f | H67: Albany, Bartlett, Bean's Grant, Bean's Purchase, Chandler's Purchase, Chatham, Conway, Crawford's Purchase, Cutt's Grant, Eaton, Freedom, Greens Grant, Hadley's Purchase, Hale's Location, Hart's Location, Jackson, Livermore, Low and Burbank's Grant, Madison, Martin's Location, Pinkham's Grant, Sandwich, Sargent's Purchase, Tamworth, Thompson and Meserves Purchase
A68: Dover-Durham NH-ME MetroNECTA | B68: NECTA 12 a | C68: NECTA 12 b | D68: NECTA 12 c | E68: NECTA 12 d | F68: NECTA 12 e | G68: NECTA 12 f | H68: Barrington, Dover, Durham, Farmington, Lee, Madbury, Middleton, Milton, New Durham, Rochester, Rollinsford, Somersworth, Strafford
A69: Franklin NH LMA | B69: NECTA 17 a | C69: NECTA 17 b | D69: NECTA 17 c | E69: NECTA 17 d | F69: NECTA 17 e | G69: NECTA 17 f | H69: Franklin, Hill, Northfield, Sanbornton, Tilton
A70: Haverhill NH LMA | B70: NECTA 18 a | C70: NECTA 18 b | D70: NECTA 18 c | E70: NECTA 18 d | F70: NECTA 18 e | G70: NECTA 18 f | H70: Bath, Benton, Haverhill, Monroe
A71: Hillsborough NH LMA | B71: NECTA 19 a | C71: NECTA 19 b | D71: NECTA 19 c | E71: NECTA 19 d | F71: NECTA 19 e | G71: NECTA 19 f | H71: Deering, Henniker, Hillsborough, Stoddard, Washington, Windsor
A72: Hinsdale Town Brattleboro VT-NH LMA | B72: NECTA 20 a | C72: NECTA 20 b | D72: NECTA 20 c | E72: NECTA 20 d | F72: NECTA 20 e | G72: NECTA 20 f | H72: Hinsdale
A73: Keene NH Micropolitan NECTA | B73: NECTA 03 a | C73: NECTA 03 b | D73: NECTA 03 c | E73: NECTA 03 d | F73: NECTA 03 e | G73: NECTA 03 f | H73: Chesterfield, Gilsum, Harrisville, Keene, Marlborough, Marlow, Nelson, Richmond, Roxbury, Sullivan, Surry, Swanzey, Troy, Westmoreland, Winchester
A74: Laconia NH Micropolitan NECTA | B74: NECTA 04 a | C74: NECTA 04 b | D74: NECTA 04 c | E74: NECTA 04 d | F74: NECTA 04 e | G74: NECTA 04 f | H74: Gilford, Laconia
A75: Lebanon NH-VT Micropolitan NECTA | B75: NECTA 28 a | C75: NECTA 28 b | D75: NECTA 28 c | E75: NECTA 28 d | F75: NECTA 28 e | G75: NECTA 28 f | H75: Canaan, Cornish, Croydon, Dorchester, Enfield, Grafton, Grantham, Hanover, Lebanon, Lyme, Orange, Orford, Piermont, Plainfield
A76: Littleton NH LMA | B76: NECTA 21 a | C76: NECTA 21 b | D76: NECTA 21 c | E76: NECTA 21 d | F76: NECTA 21 e | G76: NECTA 21 f | H76: Bethlehem, Carroll, Dalton, Easton, Franconia, Jefferson, Kilkenny, Lancaster, Landaff, Lisbon, Littleton, Lyman, Northumberland, Odell, Stratford, Sugar Hill, Whitefield
A77: Manchester NH Metropolitan NECTA | B77: NECTA 10 a | C77: NECTA 10 b | D77: NECTA 10 c | E77: NECTA 10 d | F77: NECTA 10 e | G77: NECTA 10 f | H77: Allenstown, Auburn, Bedford, Candia, Dunbarton, Goffstown, Hooksett, Manchester, New Boston, Pembroke, Weare
A78: Meredith NH LMA | B78: NECTA 22 a | C78: NECTA 22 b | D78: NECTA 22 c | E78: NECTA 22 d | F78: NECTA 22 e | G78: NECTA 22 f | H78: Center Harbor, Meredith, Moultonborough, New Hampton
A79: Nashua NH Metropolitan NECTA | B79: NECTA 09 a | C79: NECTA 09 b | D79: NECTA 09 c | E79: NECTA 09 d | F79: NECTA 09 e | G79: NECTA 09 f | H79: Amherst, Brookline, Chester, Derry, Greenfield, Greenville, Hollis, Hudson, Litchfield, Londonderry, Lyndeborough, Mason, Merrimack, Milford, Mont Vernon, Nashua, Temple, Wilton, Windham
A80: New London NH LMA | B80: NECTA 23 a | C80: NECTA 23 b | D80: NECTA 23 c | E80: NECTA 23 d | F80: NECTA 23 e | G80: NECTA 23 f | H80: Andover, Bradford, Danbury, New London, Newbury, Springfield, Sutton, Wilmot
A81: Newport NH LMA | B81: NECTA 29 a | C81: NECTA 29 b | D81: NECTA 29 c | E81: NECTA 29 d | F81: NECTA 29 e | G81: NECTA 29 f | H81: Goshen, Lempster, Newport, Sunapee
A82: Pelham Town Lowell-Billerica-Chelmsford Metro Division | B82: NECTA 08 a | C82: NECTA 08 b | D82: NECTA 08 c | E82: NECTA 08 d | F82: NECTA 08 e | G82: NECTA 08 f | H82: Pelham
A83: Peterborough NH LMA | B83: NECTA 24 a | C83: NECTA 24 b | D83: NECTA 24 c | E83: NECTA 24 d | F83: NECTA 24 e | G83: NECTA 24 f | H83: Antrim, Bennington, Dublin, Fitzwilliam, Francestown, Hancock, Jaffrey, New Ipswich, Peterborough, Rindge, Sharon
A84: Plymouth NH LMA | B84: NECTA 25 a | C84: NECTA 25 b | D84: NECTA 25 c | E84: NECTA 25 d | F84: NECTA 25 e | G84: NECTA 25 f | H84: Alexandria, Ashland, Bridgewater, Bristol, Campton, Ellsworth, Groton, Hebron, Holderness, Lincoln, Plymouth, Rumney, Thornton, Warren, Waterville Valley, Wentworth, Woodstock
A85: Portsmouth NH-ME Metropolitan NECTA | B85: NECTA 11 a | C85: NECTA 11 b | D85: NECTA 11 c | E85: NECTA 11 d | F85: NECTA 11 e | G85: NECTA 11 f | H85: Brentwood, Epping, Exeter, Greenland, Hampton, New Castle, Newfields, Newington, Newmarket, North Hampton, Portsmouth, Rye, Stratham
A86: Raymond NH LMA | B86: NECTA 26 a | C86: NECTA 26 b | D86: NECTA 26 c | E86: NECTA 26 d | F86: NECTA 26 e | G86: NECTA 26 f | H86: Deerfield, Northwood, Nottingham, Raymond
A87: Salem Town Lawrence-Methuen Metro Division | B87: NECTA 07 a | C87: NECTA 07 b | D87: NECTA 07 c | E87: NECTA 07 d | F87: NECTA 07 e | G87: NECTA 07 f | H87: Salem
A88: Seabrook-Hampstead Area NECTA Division | B88: NECTA 06 a | C88: NECTA 06 b | D88: NECTA 06 c | E88: NECTA 06 d | F88: NECTA 06 e | G88: NECTA 06 f | H88: Atkinson, Danville, East Kingston, Fremont, Hampstead, Hampton Falls, Kensington, Kingston, Newton, Plaistow, Sandown, Seabrook, South Hampton
A89: Wolfeboro NH LMA | B89: NECTA 27 a | C89: NECTA 27 b | D89: NECTA 27 c | E89: NECTA 27 d | F89: NECTA 27 e | G89: NECTA 27 f | H89: Brookfield, Effingham, Ossipee, Tuftonboro, Wakefield, Wolfeboro
A91: List Control | B91: 8
A92: Nashua NH Metropolitan NECTA | B92: =VLOOKUP($A$92,$A$61:$H$88,2,FALSE) -> NECTA 09 a | C92: =VLOOKUP($A$92,$A$61:$H$88,3,FALSE) -> NECTA 09 b | D92: =VLOOKUP($A$92,$A$61:$H$88,4,FALSE) -> NECTA 09 c | E92: =VLOOKUP($A$92,$A$61:$H$88,5,FALSE) -> NECTA 09 d | F92: =VLOOKUP($A$92,$A$61:$H$88,6,FALSE) -> NECTA 09 e | G92: =VLOOKUP($A$92,$A$61:$H$88,7,FALSE) -> NECTA 09 f | H92: =VLOOKUP($A$92,$A$61:$H$88,8,FALSE) -> Amherst, Brookline, Chester, Derry, Greenfield, Greenville, Hollis, Hudson, Litchfield, Londonderry, Lyndeborough, Mason, Merrimack, Milford, Mont Vernon, Nashua, Temple, Wilton, Windham
A97: Cities and Towns | B97: 2 | C97: 3 | D97: 4 | E97: 5 | F97: 6 | G97: 7 | H97: 8
A98: Area Name | B98: 0 Bedroom | C98: 1 Bedroom | D98: 2 Bedroom | E98: 3 Bedroom | F98: 4+ Bedroom | G98: All Units | H98: TownOrCity
A99: Acworth | B99: Town 1001 a | C99: Town 1001 b | D99: Town 1001 c | E99: Town 1001 d | F99: Town 1001 e | G99: Town 1001 f | H99: Town
A100: Albany | B100: Town 0201 a | C100: Town 0201 b | D100: Town 0201 c | E100: Town 0201 d | F100: Town 0201 e | G100: Town 0201 f | H100: Town
A101: Alexandria | B101: Town 0501 a | C101: Town 0501 b | D101: Town 0501 c | E101: Town 0501 d | F101: Town 0501 e | G101: Town 0501 f | H101: Town
A102: Allenstown | B102: Town 0701 a | C102: Town 0701 b | D102: Town 0701 c | E102: Town 0701 d | F102: Town 0701 e | G102: Town 0701 f | H102: Town
A103: Alstead | B103: Town 0301 a | C103: Town 0301 b | D103: Town 0301 c | E103: Town 0301 d | F103: Town 0301 e | G103: Town 0301 f | H103: Town
A104: Alton | B104: Town 0101 a | C104: Town 0101 b | D104: Town 0101 c | E104: Town 0101 d | F104: Town 0101 e | G104: Town 0101 f | H104: Town
A105: Amherst | B105: Town 0601 a | C105: Town 0601 b | D105: Town 0601 c | E105: Town 0601 d | F105: Town 0601 e | G105: Town 0601 f | H105: Town
A106: Andover | B106: Town 0702 a | C106: Town 0702 b | D106: Town 0702 c | E106: Town 0702 d | F106: Town 0702 e | G106: Town 0702 f | H106: Town
A107: Antrim | B107: Town 0602 a | C107: Town 0602 b | D107: Town 0602 c | E107: Town 0602 d | F107: Town 0602 e | G107: Town 0602 f | H107: Town
A108: Ashland | B108: Town 0502 a | C108: Town 0502 b | D108: Town 0502 c | E108: Town 0502 d | F108: Town 0502 e | G108: Town 0502 f | H108: Town
A109: Atkinson | B109: Town 0801 a | C109: Town 0801 b | D109: Town 0801 c | E109: Town 0801 d | F109: Town 0801 e | G109: Town 0801 f | H109: Town
A110: Atkinson and Gilmanton Grant | B110: Town 0421 a | C110: Town 0421 b | D110: Town 0421 c | E110: Town 0421 d | F110: Town 0421 e | G110: Town 0421 f | H110: Town
A111: Auburn | B111: Town 0802 a | C111: Town 0802 b | D111: Town 0802 c | E111: Town 0802 d | F111: Town 0802 e | G111: Town 0802 f | H111: Town
A112: Barnstead | B112: Town 0102 a | C112: Town 0102 b | D112: Town 0102 c | E112: Town 0102 d | F112: Town 0102 e | G112: Town 0102 f | H112: Town
A113: Barrington | B113: Town 0901 a | C113: Town 0901 b | D113: Town 0901 c | E113: Town 0901 d | F113: Town 0901 e | G113: Town 0901 f | H113: Town
A114: Bartlett | B114: Town 0202 a | C114: Town 0202 b | D114: Town 0202 c | E114: Town 0202 d | F114: Town 0202 e | G114: Town 0202 f | H114: Town
A115: Bath | B115: Town 0503 a | C115: Town 0503 b | D115: Town 0503 c | E115: Town 0503 d | F115: Town 0503 e | G115: Town 0503 f | H115: Town
A116: Bean's Grant | B116: Town 0422 a | C116: Town 0422 b | D116: Town 0422 c | E116: Town 0422 d | F116: Town 0422 e | G116: Town 0422 f | H116: Town
A117: Bean's Purchase | B117: Town 0423 a | C117: Town 0423 b | D117: Town 0423 c | E117: Town 0423 d | F117: Town 0423 e | G117: Town 0423 f | H117: Town
A118: Bedford | B118: Town 0603 a | C118: Town 0603 b | D118: Town 0603 c | E118: Town 0603 d | F118: Town 0603 e | G118: Town 0603 f | H118: Town
A119: Belmont | B119: Town 0103 a | C119: Town 0103 b | D119: Town 0103 c | E119: Town 0103 d | F119: Town 0103 e | G119: Town 0103 f | H119: Town
A120: Bennington | B120: Town 0604 a | C120: Town 0604 b | D120: Town 0604 c | E120: Town 0604 d | F120: Town 0604 e | G120: Town 0604 f | H120: Town
A121: Benton | B121: Town 0504 a | C121: Town 0504 b | D121: Town 0504 c | E121: Town 0504 d | F121: Town 0504 e | G121: Town 0504 f | H121: Town
A122: Berlin | B122: Town 0401 a | C122: Town 0401 b | D122: Town 0401 c | E122: Town 0401 d | F122: Town 0401 e | G122: Town 0401 f | H122: City
A123: Bethlehem | B123: Town 0505 a | C123: Town 0505 b | D123: Town 0505 c | E123: Town 0505 d | F123: Town 0505 e | G123: Town 0505 f | H123: Town
A124: Boscawen | B124: Town 0703 a | C124: Town 0703 b | D124: Town 0703 c | E124: Town 0703 d | F124: Town 0703 e | G124: Town 0703 f | H124: Town
A125: Bow | B125: Town 0704 a | C125: Town 0704 b | D125: Town 0704 c | E125: Town 0704 d | F125: Town 0704 e | G125: Town 0704 f | H125: Town
A126: Bradford | B126: Town 0705 a | C126: Town 0705 b | D126: Town 0705 c | E126: Town 0705 d | F126: Town 0705 e | G126: Town 0705 f | H126: Town
A127: Brentwood | B127: Town 0803 a | C127: Town 0803 b | D127: Town 0803 c | E127: Town 0803 d | F127: Town 0803 e | G127: Town 0803 f | H127: Town
A128: Bridgewater | B128: Town 0506 a | C128: Town 0506 b | D128: Town 0506 c | E128: Town 0506 d | F128: Town 0506 e | G128: Town 0506 f | H128: Town
A129: Bristol | B129: Town 0507 a | C129: Town 0507 b | D129: Town 0507 c | E129: Town 0507 d | F129: Town 0507 e | G129: Town 0507 f | H129: Town
A130: Brookfield | B130: Town 0203 a | C130: Town 0203 b | D130: Town 0203 c | E130: Town 0203 d | F130: Town 0203 e | G130: Town 0203 f | H130: Town
A131: Brookline | B131: Town 0605 a | C131: Town 0605 b | D131: Town 0605 c | E131: Town 0605 d | F131: Town 0605 e | G131: Town 0605 f | H131: Town
A132: Cambridge | B132: Town 0424 a | C132: Town 0424 b | D132: Town 0424 c | E132: Town 0424 d | F132: Town 0424 e | G132: Town 0424 f | H132: Town
A133: Campton | B133: Town 0508 a | C133: Town 0508 b | D133: Town 0508 c | E133: Town 0508 d | F133: Town 0508 e | G133: Town 0508 f | H133: Town
A134: Canaan | B134: Town 0509 a | C134: Town 0509 b | D134: Town 0509 c | E134: Town 0509 d | F134: Town 0509 e | G134: Town 0509 f | H134: Town
A135: Candia | B135: Town 0804 a | C135: Town 0804 b | D135: Town 0804 c | E135: Town 0804 d | F135: Town 0804 e | G135: Town 0804 f | H135: Town
A136: Canterbury | B136: Town 0706 a | C136: Town 0706 b | D136: Town 0706 c | E136: Town 0706 d | F136: Town 0706 e | G136: Town 0706 f | H136: Town
A137: Carroll | B137: Town 0402 a | C137: Town 0402 b | D137: Town 0402 c | E137: Town 0402 d | F137: Town 0402 e | G137: Town 0402 f | H137: Town
A138: Center Harbor | B138: Town 0104 a | C138: Town 0104 b | D138: Town 0104 c | E138: Town 0104 d | F138: Town 0104 e | G138: Town 0104 f | H138: Town
A139: Chandler's Purchase | B139: Town 0425 a | C139: Town 0425 b | D139: Town 0425 c | E139: Town 0425 d | F139: Town 0425 e | G139: Town 0425 f | H139: Town
A140: Charlestown | B140: Town 1002 a | C140: Town 1002 b | D140: Town 1002 c | E140: Town 1002 d | F140: Town 1002 e | G140: Town 1002 f | H140: Town
A141: Chatham | B141: Town 0204 a | C141: Town 0204 b | D141: Town 0204 c | E141: Town 0204 d | F141: Town 0204 e | G141: Town 0204 f | H141: Town
A142: Chester | B142: Town 0805 a | C142: Town 0805 b | D142: Town 0805 c | E142: Town 0805 d | F142: Town 0805 e | G142: Town 0805 f | H142: Town
A143: Chesterfield | B143: Town 0302 a | C143: Town 0302 b | D143: Town 0302 c | E143: Town 0302 d | F143: Town 0302 e | G143: Town 0302 f | H143: Town
A144: Chichester | B144: Town 0707 a | C144: Town 0707 b | D144: Town 0707 c | E144: Town 0707 d | F144: Town 0707 e | G144: Town 0707 f | H144: Town
A145: Claremont | B145: Town 1003 a | C145: Town 1003 b | D145: Town 1003 c | E145: Town 1003 d | F145: Town 1003 e | G145: Town 1003 f | H145: City
A146: Clarksville | B146: Town 0403 a | C146: Town 0403 b | D146: Town 0403 c | E146: Town 0403 d | F146: Town 0403 e | G146: Town 0403 f | H146: Town
A147: Colebrook | B147: Town 0404 a | C147: Town 0404 b | D147: Town 0404 c | E147: Town 0404 d | F147: Town 0404 e | G147: Town 0404 f | H147: Town
A148: Columbia | B148: Town 0405 a | C148: Town 0405 b | D148: Town 0405 c | E148: Town 0405 d | F148: Town 0405 e | G148: Town 0405 f | H148: Town
A149: Concord | B149: Town 0708 a | C149: Town 0708 b | D149: Town 0708 c | E149: Town 0708 d | F149: Town 0708 e | G149: Town 0708 f | H149: City
A150: Conway | B150: Town 0205 a | C150: Town 0205 b | D150: Town 0205 c | E150: Town 0205 d | F150: Town 0205 e | G150: Town 0205 f | H150: Town
A151: Cornish | B151: Town 1004 a | C151: Town 1004 b | D151: Town 1004 c | E151: Town 1004 d | F151: Town 1004 e | G151: Town 1004 f | H151: Town
A152: Crawford's Purchase | B152: Town 0426 a | C152: Town 0426 b | D152: Town 0426 c | E152: Town 0426 d | F152: Town 0426 e | G152: Town 0426 f | H152: Town
A153: Croydon | B153: Town 1005 a | C153: Town 1005 b | D153: Town 1005 c | E153: Town 1005 d | F153: Town 1005 e | G153: Town 1005 f | H153: Town
A154: Cutt's Grant | B154: Town 0427 a | C154: Town 0427 b | D154: Town 0427 c | E154: Town 0427 d | F154: Town 0427 e | G154: Town 0427 f | H154: Town
A155: Dalton | B155: Town 0406 a | C155: Town 0406 b | D155: Town 0406 c | E155: Town 0406 d | F155: Town 0406 e | G155: Town 0406 f | H155: Town
A156: Danbury | B156: Town 0709 a | C156: Town 0709 b | D156: Town 0709 c | E156: Town 0709 d | F156: Town 0709 e | G156: Town 0709 f | H156: Town
A157: Danville | B157: Town 0806 a | C157: Town 0806 b | D157: Town 0806 c | E157: Town 0806 d | F157: Town 0806 e | G157: Town 0806 f | H157: Town
A158: Deerfield | B158: Town 0807 a | C158: Town 0807 b | D158: Town 0807 c | E158: Town 0807 d | F158: Town 0807 e | G158: Town 0807 f | H158: Town
A159: Deering | B159: Town 0606 a | C159: Town 0606 b | D159: Town 0606 c | E159: Town 0606 d | F159: Town 0606 e | G159: Town 0606 f | H159: Town
A160: Derry | B160: Town 0808 a | C160: Town 0808 b | D160: Town 0808 c | E160: Town 0808 d | F160: Town 0808 e | G160: Town 0808 f | H160: Town
A161: Dix's Grant | B161: Town 0428 a | C161: Town 0428 b | D161: Town 0428 c | E161: Town 0428 d | F161: Town 0428 e | G161: Town 0428 f | H161: Town
A162: Dixville township | B162: Town 0429 a | C162: Town 0429 b | D162: Town 0429 c | E162: Town 0429 d | F162: Town 0429 e | G162: Town 0429 f | H162: Town
A163: Dorchester | B163: Town 0510 a | C163: Town 0510 b | D163: Town 0510 c | E163: Town 0510 d | F163: Town 0510 e | G163: Town 0510 f | H163: Town
A164: Dover | B164: Town 0902 a | C164: Town 0902 b | D164: Town 0902 c | E164: Town 0902 d | F164: Town 0902 e | G164: Town 0902 f | H164: City
A165: Dublin | B165: Town 0303 a | C165: Town 0303 b | D165: Town 0303 c | E165: Town 0303 d | F165: Town 0303 e | G165: Town 0303 f | H165: Town
A166: Dummer | B166: Town 0407 a | C166: Town 0407 b | D166: Town 0407 c | E166: Town 0407 d | F166: Town 0407 e | G166: Town 0407 f | H166: Town
A167: Dunbarton | B167: Town 0710 a | C167: Town 0710 b | D167: Town 0710 c | E167: Town 0710 d | F167: Town 0710 e | G167: Town 0710 f | H167: Town
A168: Durham | B168: Town 0903 a | C168: Town 0903 b | D168: Town 0903 c | E168: Town 0903 d | F168: Town 0903 e | G168: Town 0903 f | H168: Town
A169: East Kingston | B169: Town 0809 a | C169: Town 0809 b | D169: Town 0809 c | E169: Town 0809 d | F169: Town 0809 e | G169: Town 0809 f | H169: Town
A170: Easton | B170: Town 0511 a | C170: Town 0511 b | D170: Town 0511 c | E170: Town 0511 d | F170: Town 0511 e | G170: Town 0511 f | H170: Town
A171: Eaton | B171: Town 0206 a | C171: Town 0206 b | D171: Town 0206 c | E171: Town 0206 d | F171: Town 0206 e | G171: Town 0206 f | H171: Town
A172: Effingham | B172: Town 0207 a | C172: Town 0207 b | D172: Town 0207 c | E172: Town 0207 d | F172: Town 0207 e | G172: Town 0207 f | H172: Town
A173: Ellsworth | B173: Town 0512 a | C173: Town 0512 b | D173: Town 0512 c | E173: Town 0512 d | F173: Town 0512 e | G173: Town 0512 f | H173: Town
A174: Enfield | B174: Town 0513 a | C174: Town 0513 b | D174: Town 0513 c | E174: Town 0513 d | F174: Town 0513 e | G174: Town 0513 f | H174: Town
A175: Epping | B175: Town 0810 a | C175: Town 0810 b | D175: Town 0810 c | E175: Town 0810 d | F175: Town 0810 e | G175: Town 0810 f | H175: Town
A176: Epsom | B176: Town 0711 a | C176: Town 0711 b | D176: Town 0711 c | E176: Town 0711 d | F176: Town 0711 e | G176: Town 0711 f | H176: Town
A177: Errol | B177: Town 0408 a | C177: Town 0408 b | D177: Town 0408 c | E177: Town 0408 d | F177: Town 0408 e | G177: Town 0408 f | H177: Town
A178: Erving's Location | B178: Town 0430 a | C178: Town 0430 b | D178: Town 0430 c | E178: Town 0430 d | F178: Town 0430 e | G178: Town 0430 f | H178: Town
A179: Exeter | B179: Town 0811 a | C179: Town 0811 b | D179: Town 0811 c | E179: Town 0811 d | F179: Town 0811 e | G179: Town 0811 f | H179: Town
A180: Farmington | B180: Town 0904 a | C180: Town 0904 b | D180: Town 0904 c | E180: Town 0904 d | F180: Town 0904 e | G180: Town 0904 f | H180: Town
A181: Fitzwilliam | B181: Town 0304 a | C181: Town 0304 b | D181: Town 0304 c | E181: Town 0304 d | F181: Town 0304 e | G181: Town 0304 f | H181: Town
A182: Francestown | B182: Town 0607 a | C182: Town 0607 b | D182: Town 0607 c | E182: Town 0607 d | F182: Town 0607 e | G182: Town 0607 f | H182: Town
A183: Franconia | B183: Town 0514 a | C183: Town 0514 b | D183: Town 0514 c | E183: Town 0514 d | F183: Town 0514 e | G183: Town 0514 f | H183: Town
A184: Franklin | B184: Town 0712 a | C184: Town 0712 b | D184: Town 0712 c | E184: Town 0712 d | F184: Town 0712 e | G184: Town 0712 f | H184: City
A185: Freedom | B185: Town 0208 a | C185: Town 0208 b | D185: Town 0208 c | E185: Town 0208 d | F185: Town 0208 e | G185: Town 0208 f | H185: Town
A186: Fremont | B186: Town 0812 a | C186: Town 0812 b | D186: Town 0812 c | E186: Town 0812 d | F186: Town 0812 e | G186: Town 0812 f | H186: Town
A187: Gilford | B187: Town 0105 a | C187: Town 0105 b | D187: Town 0105 c | E187: Town 0105 d | F187: Town 0105 e | G187: Town 0105 f | H187: Town
A188: Gilmanton | B188: Town 0106 a | C188: Town 0106 b | D188: Town 0106 c | E188: Town 0106 d | F188: Town 0106 e | G188: Town 0106 f | H188: Town
A189: Gilsum | B189: Town 0305 a | C189: Town 0305 b | D189: Town 0305 c | E189: Town 0305 d | F189: Town 0305 e | G189: Town 0305 f | H189: Town
A190: Goffstown | B190: Town 0608 a | C190: Town 0608 b | D190: Town 0608 c | E190: Town 0608 d | F190: Town 0608 e | G190: Town 0608 f | H190: Town
A191: Gorham | B191: Town 0409 a | C191: Town 0409 b | D191: Town 0409 c | E191: Town 0409 d | F191: Town 0409 e | G191: Town 0409 f | H191: Town
A192: Goshen | B192: Town 1006 a | C192: Town 1006 b | D192: Town 1006 c | E192: Town 1006 d | F192: Town 1006 e | G192: Town 1006 f | H192: Town
A193: Grafton | B193: Town 0515 a | C193: Town 0515 b | D193: Town 0515 c | E193: Town 0515 d | F193: Town 0515 e | G193: Town 0515 f | H193: Town
A194: Grantham | B194: Town 1007 a | C194: Town 1007 b | D194: Town 1007 c | E194: Town 1007 d | F194: Town 1007 e | G194: Town 1007 f | H194: Town
A195: Greenfield | B195: Town 0609 a | C195: Town 0609 b | D195: Town 0609 c | E195: Town 0609 d | F195: Town 0609 e | G195: Town 0609 f | H195: Town
A196: Greenland | B196: Town 0813 a | C196: Town 0813 b | D196: Town 0813 c | E196: Town 0813 d | F196: Town 0813 e | G196: Town 0813 f | H196: Town
A197: Greens Grant | B197: Town 0431 a | C197: Town 0431 b | D197: Town 0431 c | E197: Town 0431 d | F197: Town 0431 e | G197: Town 0431 f | H197: Town
A198: Greenville | B198: Town 0610 a | C198: Town 0610 b | D198: Town 0610 c | E198: Town 0610 d | F198: Town 0610 e | G198: Town 0610 f | H198: Town
A199: Groton | B199: Town 0516 a | C199: Town 0516 b | D199: Town 0516 c | E199: Town 0516 d | F199: Town 0516 e | G199: Town 0516 f | H199: Town
A200: Hadley's Purchase | B200: Town 0432 a | C200: Town 0432 b | D200: Town 0432 c | E200: Town 0432 d | F200: Town 0432 e | G200: Town 0432 f | H200: Town
A201: Hale's Location | B201: Town 0219 a | C201: Town 0219 b | D201: Town 0219 c | E201: Town 0219 d | F201: Town 0219 e | G201: Town 0219 f | H201: Town
A202: Hampstead | B202: Town 0814 a | C202: Town 0814 b | D202: Town 0814 c | E202: Town 0814 d | F202: Town 0814 e | G202: Town 0814 f | H202: Town
A203: Hampton | B203: Town 0815 a | C203: Town 0815 b | D203: Town 0815 c | E203: Town 0815 d | F203: Town 0815 e | G203: Town 0815 f | H203: Town
A204: Hampton Falls | B204: Town 0816 a | C204: Town 0816 b | D204: Town 0816 c | E204: Town 0816 d | F204: Town 0816 e | G204: Town 0816 f | H204: Town
A205: Hancock | B205: Town 0611 a | C205: Town 0611 b | D205: Town 0611 c | E205: Town 0611 d | F205: Town 0611 e | G205: Town 0611 f | H205: Town
A206: Hanover | B206: Town 0517 a | C206: Town 0517 b | D206: Town 0517 c | E206: Town 0517 d | F206: Town 0517 e | G206: Town 0517 f | H206: Town
A207: Harrisville | B207: Town 0306 a | C207: Town 0306 b | D207: Town 0306 c | E207: Town 0306 d | F207: Town 0306 e | G207: Town 0306 f | H207: Town
A208: Hart's Location | B208: Town 0209 a | C208: Town 0209 b | D208: Town 0209 c | E208: Town 0209 d | F208: Town 0209 e | G208: Town 0209 f | H208: Town
A209: Haverhill | B209: Town 0518 a | C209: Town 0518 b | D209: Town 0518 c | E209: Town 0518 d | F209: Town 0518 e | G209: Town 0518 f | H209: Town
A210: Hebron | B210: Town 0519 a | C210: Town 0519 b | D210: Town 0519 c | E210: Town 0519 d | F210: Town 0519 e | G210: Town 0519 f | H210: Town
A211: Henniker | B211: Town 0713 a | C211: Town 0713 b | D211: Town 0713 c | E211: Town 0713 d | F211: Town 0713 e | G211: Town 0713 f | H211: Town
A212: Hill | B212: Town 0714 a | C212: Town 0714 b | D212: Town 0714 c | E212: Town 0714 d | F212: Town 0714 e | G212: Town 0714 f | H212: Town
A213: Hillsborough | B213: Town 0612 a | C213: Town 0612 b | D213: Town 0612 c | E213: Town 0612 d | F213: Town 0612 e | G213: Town 0612 f | H213: Town
A214: Hinsdale | B214: Town 0307 a | C214: Town 0307 b | D214: Town 0307 c | E214: Town 0307 d | F214: Town 0307 e | G214: Town 0307 f | H214: Town
A215: Holderness | B215: Town 0520 a | C215: Town 0520 b | D215: Town 0520 c | E215: Town 0520 d | F215: Town 0520 e | G215: Town 0520 f | H215: Town
A216: Hollis | B216: Town 0613 a | C216: Town 0613 b | D216: Town 0613 c | E216: Town 0613 d | F216: Town 0613 e | G216: Town 0613 f | H216: Town
A217: Hooksett | B217: Town 0715 a | C217: Town 0715 b | D217: Town 0715 c | E217: Town 0715 d | F217: Town 0715 e | G217: Town 0715 f | H217: Town
... 155 more rows

Sheet DataLink2 (hidden)
E1: Note | F1: The column references in this look up table refer to the actual column
F2: numbers in the RCYYYY worksheets.
A4: State Data Link
A5: =LookUpSheet!$A$5 -> State of New Hampshire | G5: frequency upper limit
A6: Column Reference | C6: 3 | D6: 1 | E6: 4 | F6: 7 | G6: 19 | H6: =G6+1 -> 20 | I6: 21 | J6: 22 | K6: 23 | L6: 24 | M6: 25 | N6: 26 | O6: 27 | P6: 28 | Q6: 29 | R6: 30 | S6: 31 | T6: 32 | U6: 33 | V6: 34 | W6: 35 | X6: 36 | Y6: 37 | Z6: 38 | AA6: 39 | AB6: 40 | AC6: 41 | AD6: 42 | AE6: 43 | AF6: 44 | AG6: 45 | AH6: 46 | AI6: 47 | AJ6: 48 | AK6: 49 | AL6: 50 | AM6: 51 | AN6: 52 | AO6: 53 | AP6: 54 | AQ6: 55 | AR6: 56 | AS6: 57 | AT6: 58 | AU6: 59
C7: Year | D7: Area | E7: Bedroom | F7: MedianRent | G7: 400 | H7: =G7+100 -> 500 | I7: 600 | J7: 700 | K7: 800 | L7: 900 | M7: 1000 | N7: 1100 | O7: 1200 | P7: 1300 | Q7: 1400 | R7: 1500 | S7: 1600 | T7: 1700 | U7: 1800 | V7: 1900 | W7: 2000 | X7: 2100 | Y7: 2200 | Z7: 2300 | AA7: 2400 | AB7: 2500 | AC7: 2600 | AD7: 2700 | AE7: 2800 | AF7: 2900 | AG7: 3000 | AH7: 3100 | AI7: 3200 | AJ7: 3300 | AK7: 3400 | AL7: 3500 | AM7: 3600 | AN7: 3700 | AO7: 3800 | AP7: 3900 | AQ7: 4000 | AR7: 4100 | AS7: 4200 | AT7: 4300 | AU7: 4400
C8: =VLOOKUP(LookUpSheet!$D$5,'RC2000'!$B$2:$BH$621,C$6,FALSE) -> 2000 | D8: =VLOOKUP(LookUpSheet!$D$5,'RC2000'!$B$2:$BH$621,D$6,FALSE) -> StWide c | E8: =VLOOKUP(LookUpSheet!$D$5,'RC2000'!$B$2:$BH$621,E$6,FALSE) -> 2 | F8: =VLOOKUP(LookUpSheet!$D$5,'RC2000'!$B$2:$BH$621,F$6,FALSE) -> 774 | G8: =VLOOKUP(LookUpSheet!$D$5,'RC2000'!$B$2:$BH$621,G$6,FALSE) -> 189 | H8: =VLOOKUP(LookUpSheet!$D$5,'RC2000'!$B$2:$BH$621,H$6,FALSE) -> 603 | I8: =VLOOKUP(LookUpSheet!$D$5,'RC2000'!$B$2:$BH$621,I$6,FALSE) -> 1198 | J8: =VLOOKUP(LookUpSheet!$D$5,'RC2000'!$B$2:$BH$621,J$6,FALSE) -> 1273 | K8: =VLOOKUP(LookUpSheet!$D$5,'RC2000'!$B$2:$BH$621,K$6,FALSE) -> 1081 | L8: =VLOOKUP(LookUpSheet!$D$5,'RC2000'!$B$2:$BH$621,L$6,FALSE) -> 668 | M8: =VLOOKUP(LookUpSheet!$D$5,'RC2000'!$B$2:$BH$621,M$6,FALSE) -> 340 | N8: =VLOOKUP(LookUpSheet!$D$5,'RC2000'!$B$2:$BH$621,N$6,FALSE) -> 218 | O8: =VLOOKUP(LookUpSheet!$D$5,'RC2000'!$B$2:$BH$621,O$6,FALSE) -> 80 | P8: =VLOOKUP(LookUpSheet!$D$5,'RC2000'!$B$2:$BH$621,P$6,FALSE) -> 20 | Q8: =VLOOKUP(LookUpSheet!$D$5,'RC2000'!$B$2:$BH$621,Q$6,FALSE) -> 22 | R8: =VLOOKUP(LookUpSheet!$D$5,'RC2000'!$B$2:$BH$621,R$6,FALSE) -> 9 | S8: =VLOOKUP(LookUpSheet!$D$5,'RC2000'!$B$2:$BH$621,S$6,FALSE) -> 67 | T8: =VLOOKUP(LookUpSheet!$D$5,'RC2000'!$B$2:$BH$621,T$6,FALSE) -> 2 | U8: =VLOOKUP(LookUpSheet!$D$5,'RC2000'!$B$2:$BH$621,U$6,FALSE) -> 0 | V8: =VLOOKUP(LookUpSheet!$D$5,'RC2000'!$B$2:$BH$621,V$6,FALSE) -> 0 | W8: =VLOOKUP(LookUpSheet!$D$5,'RC2000'!$B$2:$BH$621,W$6,FALSE) -> 0 | X8: =VLOOKUP(LookUpSheet!$D$5,'RC2000'!$B$2:$BH$621,X$6,FALSE) -> 0 | Y8: =VLOOKUP(LookUpSheet!$D$5,'RC2000'!$B$2:$BH$621,Y$6,FALSE) -> 0 | Z8: =VLOOKUP(LookUpSheet!$D$5,'RC2000'!$B$2:$BH$621,Z$6,FALSE) -> 0 | AA8: =VLOOKUP(LookUpSheet!$D$5,'RC2000'!$B$2:$BH$621,AA$6,FALSE) -> 0 | AB8: =VLOOKUP(LookUpSheet!$D$5,'RC2000'!$B$2:$BH$621,AB$6,FALSE) -> 0 | AC8: =VLOOKUP(LookUpSheet!$D$5,'RC2000'!$B$2:$BH$621,AC$6,FALSE) -> 0 | AD8: =VLOOKUP(LookUpSheet!$D$5,'RC2000'!$B$2:$BH$621,AD$6,FALSE) -> 0 | AE8: =VLOOKUP(LookUpSheet!$D$5,'RC2000'!$B$2:$BH$621,AE$6,FALSE) -> 0 | AF8: =VLOOKUP(LookUpSheet!$D$5,'RC2000'!$B$2:$BH$621,AF$6,FALSE) -> 0 | AG8: =VLOOKUP(LookUpSheet!$D$5,'RC2000'!$B$2:$BH$621,AG$6,FALSE) -> 0 | AH8: =VLOOKUP(LookUpSheet!$D$5,'RC2000'!$B$2:$BH$621,AH$6,FALSE) -> 0 | AI8: =VLOOKUP(LookUpSheet!$D$5,'RC2000'!$B$2:$BH$621,AI$6,FALSE) -> 0 | AJ8: =VLOOKUP(LookUpSheet!$D$5,'RC2000'!$B$2:$BH$621,AJ$6,FALSE) -> 0 | AK8: =VLOOKUP(LookUpSheet!$D$5,'RC2000'!$B$2:$BH$621,AK$6,FALSE) -> 0 | AL8: =VLOOKUP(LookUpSheet!$D$5,'RC2000'!$B$2:$BH$621,AL$6,FALSE) -> 0 | AM8: =VLOOKUP(LookUpSheet!$D$5,'RC2000'!$B$2:$BH$621,AM$6,FALSE) -> 0 | AN8: =VLOOKUP(LookUpSheet!$D$5,'RC2000'!$B$2:$BH$621,AN$6,FALSE) -> 0 | AO8: =VLOOKUP(LookUpSheet!$D$5,'RC2000'!$B$2:$BH$621,AO$6,FALSE) -> 0 | AP8: =VLOOKUP(LookUpSheet!$D$5,'RC2000'!$B$2:$BH$621,AP$6,FALSE) -> 0 | AQ8: =VLOOKUP(LookUpSheet!$D$5,'RC2000'!$B$2:$BH$621,AQ$6,FALSE) -> 0 | AR8: =VLOOKUP(LookUpSheet!$D$5,'RC2000'!$B$2:$BH$621,AR$6,FALSE) -> 0 | AS8: =VLOOKUP(LookUpSheet!$D$5,'RC2000'!$B$2:$BH$621,AS$6,FALSE) -> 0 | AT8: =VLOOKUP(LookUpSheet!$D$5,'RC2000'!$B$2:$BH$621,AT$6,FALSE) -> 0 | AU8: =VLOOKUP(LookUpSheet!$D$5,'RC2000'!$B$2:$BH$621,AU$6,FALSE) -> 0
C9: =VLOOKUP(LookUpSheet!$D$5,'RC2001'!$B$2:$BH$516,C$6,FALSE) -> 2001 | D9: =VLOOKUP(LookUpSheet!$D$5,'RC2001'!$B$2:$BH$516,D$6,FALSE) -> StWide c | E9: =VLOOKUP(LookUpSheet!$D$5,'RC2001'!$B$2:$BH$516,E$6,FALSE) -> 2 | F9: =VLOOKUP(LookUpSheet!$D$5,'RC2001'!$B$2:$BH$516,F$6,FALSE) -> 818 | G9: =VLOOKUP(LookUpSheet!$D$5,'RC2001'!$B$2:$BH$516,G$6,FALSE) -> 168 | H9: =VLOOKUP(LookUpSheet!$D$5,'RC2001'!$B$2:$BH$516,H$6,FALSE) -> 334 | I9: =VLOOKUP(LookUpSheet!$D$5,'RC2001'!$B$2:$BH$516,I$6,FALSE) -> 807 | J9: =VLOOKUP(LookUpSheet!$D$5,'RC2001'!$B$2:$BH$516,J$6,FALSE) -> 1089 | K9: =VLOOKUP(LookUpSheet!$D$5,'RC2001'!$B$2:$BH$516,K$6,FALSE) -> 793 | L9: =VLOOKUP(LookUpSheet!$D$5,'RC2001'!$B$2:$BH$516,L$6,FALSE) -> 671 | M9: =VLOOKUP(LookUpSheet!$D$5,'RC2001'!$B$2:$BH$516,M$6,FALSE) -> 360 | N9: =VLOOKUP(LookUpSheet!$D$5,'RC2001'!$B$2:$BH$516,N$6,FALSE) -> 453 | O9: =VLOOKUP(LookUpSheet!$D$5,'RC2001'!$B$2:$BH$516,O$6,FALSE) -> 93 | P9: =VLOOKUP(LookUpSheet!$D$5,'RC2001'!$B$2:$BH$516,P$6,FALSE) -> 59 | Q9: =VLOOKUP(LookUpSheet!$D$5,'RC2001'!$B$2:$BH$516,Q$6,FALSE) -> 104 | R9: =VLOOKUP(LookUpSheet!$D$5,'RC2001'!$B$2:$BH$516,R$6,FALSE) -> 45 | S9: =VLOOKUP(LookUpSheet!$D$5,'RC2001'!$B$2:$BH$516,S$6,FALSE) -> 34 | T9: =VLOOKUP(LookUpSheet!$D$5,'RC2001'!$B$2:$BH$516,T$6,FALSE) -> 2 | U9: =VLOOKUP(LookUpSheet!$D$5,'RC2001'!$B$2:$BH$516,U$6,FALSE) -> 2 | V9: =VLOOKUP(LookUpSheet!$D$5,'RC2001'!$B$2:$BH$516,V$6,FALSE) -> 0 | W9: =VLOOKUP(LookUpSheet!$D$5,'RC2001'!$B$2:$BH$516,W$6,FALSE) -> 0 | X9: =VLOOKUP(LookUpSheet!$D$5,'RC2001'!$B$2:$BH$516,X$6,FALSE) -> 0 | Y9: =VLOOKUP(LookUpSheet!$D$5,'RC2001'!$B$2:$BH$516,Y$6,FALSE) -> 0 | Z9: =VLOOKUP(LookUpSheet!$D$5,'RC2001'!$B$2:$BH$516,Z$6,FALSE) -> 0 | AA9: =VLOOKUP(LookUpSheet!$D$5,'RC2001'!$B$2:$BH$516,AA$6,FALSE) -> 0 | AB9: =VLOOKUP(LookUpSheet!$D$5,'RC2001'!$B$2:$BH$516,AB$6,FALSE) -> 0 | AC9: =VLOOKUP(LookUpSheet!$D$5,'RC2001'!$B$2:$BH$516,AC$6,FALSE) -> 0 | AD9: =VLOOKUP(LookUpSheet!$D$5,'RC2001'!$B$2:$BH$516,AD$6,FALSE) -> 0 | AE9: =VLOOKUP(LookUpSheet!$D$5,'RC2001'!$B$2:$BH$516,AE$6,FALSE) -> 0 | AF9: =VLOOKUP(LookUpSheet!$D$5,'RC2001'!$B$2:$BH$516,AF$6,FALSE) -> 0 | AG9: =VLOOKUP(LookUpSheet!$D$5,'RC2001'!$B$2:$BH$516,AG$6,FALSE) -> 0 | AH9: =VLOOKUP(LookUpSheet!$D$5,'RC2001'!$B$2:$BH$516,AH$6,FALSE) -> 0 | AI9: =VLOOKUP(LookUpSheet!$D$5,'RC2001'!$B$2:$BH$516,AI$6,FALSE) -> 0 | AJ9: =VLOOKUP(LookUpSheet!$D$5,'RC2001'!$B$2:$BH$516,AJ$6,FALSE) -> 0 | AK9: =VLOOKUP(LookUpSheet!$D$5,'RC2001'!$B$2:$BH$516,AK$6,FALSE) -> 0 | AL9: =VLOOKUP(LookUpSheet!$D$5,'RC2001'!$B$2:$BH$516,AL$6,FALSE) -> 0 | AM9: =VLOOKUP(LookUpSheet!$D$5,'RC2001'!$B$2:$BH$516,AM$6,FALSE) -> 0 | AN9: =VLOOKUP(LookUpSheet!$D$5,'RC2001'!$B$2:$BH$516,AN$6,FALSE) -> 0 | AO9: =VLOOKUP(LookUpSheet!$D$5,'RC2001'!$B$2:$BH$516,AO$6,FALSE) -> 0 | AP9: =VLOOKUP(LookUpSheet!$D$5,'RC2001'!$B$2:$BH$516,AP$6,FALSE) -> 0 | AQ9: =VLOOKUP(LookUpSheet!$D$5,'RC2001'!$B$2:$BH$516,AQ$6,FALSE) -> 0 | AR9: =VLOOKUP(LookUpSheet!$D$5,'RC2001'!$B$2:$BH$516,AR$6,FALSE) -> 0 | AS9: =VLOOKUP(LookUpSheet!$D$5,'RC2001'!$B$2:$BH$516,AS$6,FALSE) -> 0 | AT9: =VLOOKUP(LookUpSheet!$D$5,'RC2001'!$B$2:$BH$516,AT$6,FALSE) -> 0 | AU9: =VLOOKUP(LookUpSheet!$D$5,'RC2001'!$B$2:$BH$516,AU$6,FALSE) -> 0
C10: =VLOOKUP(LookUpSheet!$D$5,'RC2002'!$B$2:$BH$426,C$6,FALSE) -> 2002 | D10: =VLOOKUP(LookUpSheet!$D$5,'RC2002'!$B$2:$BH$426,D$6,FALSE) -> StWide c | E10: =VLOOKUP(LookUpSheet!$D$5,'RC2002'!$B$2:$BH$426,E$6,FALSE) -> 2 | F10: =VLOOKUP(LookUpSheet!$D$5,'RC2002'!$B$2:$BH$426,F$6,FALSE) -> 884 | G10: =VLOOKUP(LookUpSheet!$D$5,'RC2002'!$B$2:$BH$426,G$6,FALSE) -> 137 | H10: =VLOOKUP(LookUpSheet!$D$5,'RC2002'!$B$2:$BH$426,H$6,FALSE) -> 201 | I10: =VLOOKUP(LookUpSheet!$D$5,'RC2002'!$B$2:$BH$426,I$6,FALSE) -> 540 | J10: =VLOOKUP(LookUpSheet!$D$5,'RC2002'!$B$2:$BH$426,J$6,FALSE) -> 1090 | K10: =VLOOKUP(LookUpSheet!$D$5,'RC2002'!$B$2:$BH$426,K$6,FALSE) -> 1106 | L10: =VLOOKUP(LookUpSheet!$D$5,'RC2002'!$B$2:$BH$426,L$6,FALSE) -> 873 | M10: =VLOOKUP(LookUpSheet!$D$5,'RC2002'!$B$2:$BH$426,M$6,FALSE) -> 787 | N10: =VLOOKUP(LookUpSheet!$D$5,'RC2002'!$B$2:$BH$426,N$6,FALSE) -> 535 | O10: =VLOOKUP(LookUpSheet!$D$5,'RC2002'!$B$2:$BH$426,O$6,FALSE) -> 172 | P10: =VLOOKUP(LookUpSheet!$D$5,'RC2002'!$B$2:$BH$426,P$6,FALSE) -> 109 | Q10: =VLOOKUP(LookUpSheet!$D$5,'RC2002'!$B$2:$BH$426,Q$6,FALSE) -> 90 | R10: =VLOOKUP(LookUpSheet!$D$5,'RC2002'!$B$2:$BH$426,R$6,FALSE) -> 52 | S10: =VLOOKUP(LookUpSheet!$D$5,'RC2002'!$B$2:$BH$426,S$6,FALSE) -> 52 | T10: =VLOOKUP(LookUpSheet!$D$5,'RC2002'!$B$2:$BH$426,T$6,FALSE) -> 0 | U10: =VLOOKUP(LookUpSheet!$D$5,'RC2002'!$B$2:$BH$426,U$6,FALSE) -> 0 | V10: =VLOOKUP(LookUpSheet!$D$5,'RC2002'!$B$2:$BH$426,V$6,FALSE) -> 4 | W10: =VLOOKUP(LookUpSheet!$D$5,'RC2002'!$B$2:$BH$426,W$6,FALSE) -> 3 | X10: =VLOOKUP(LookUpSheet!$D$5,'RC2002'!$B$2:$BH$426,X$6,FALSE) -> 0 | Y10: =VLOOKUP(LookUpSheet!$D$5,'RC2002'!$B$2:$BH$426,Y$6,FALSE) -> 0 | Z10: =VLOOKUP(LookUpSheet!$D$5,'RC2002'!$B$2:$BH$426,Z$6,FALSE) -> 0 | AA10: =VLOOKUP(LookUpSheet!$D$5,'RC2002'!$B$2:$BH$426,AA$6,FALSE) -> 0 | AB10: =VLOOKUP(LookUpSheet!$D$5,'RC2002'!$B$2:$BH$426,AB$6,FALSE) -> 0 | AC10: =VLOOKUP(LookUpSheet!$D$5,'RC2002'!$B$2:$BH$426,AC$6,FALSE) -> 0 | AD10: =VLOOKUP(LookUpSheet!$D$5,'RC2002'!$B$2:$BH$426,AD$6,FALSE) -> 0 | AE10: =VLOOKUP(LookUpSheet!$D$5,'RC2002'!$B$2:$BH$426,AE$6,FALSE) -> 0 | AF10: =VLOOKUP(LookUpSheet!$D$5,'RC2002'!$B$2:$BH$426,AF$6,FALSE) -> 0 | AG10: =VLOOKUP(LookUpSheet!$D$5,'RC2002'!$B$2:$BH$426,AG$6,FALSE) -> 0 | AH10: =VLOOKUP(LookUpSheet!$D$5,'RC2002'!$B$2:$BH$426,AH$6,FALSE) -> 0 | AI10: =VLOOKUP(LookUpSheet!$D$5,'RC2002'!$B$2:$BH$426,AI$6,FALSE) -> 0 | AJ10: =VLOOKUP(LookUpSheet!$D$5,'RC2002'!$B$2:$BH$426,AJ$6,FALSE) -> 0 | AK10: =VLOOKUP(LookUpSheet!$D$5,'RC2002'!$B$2:$BH$426,AK$6,FALSE) -> 0 | AL10: =VLOOKUP(LookUpSheet!$D$5,'RC2002'!$B$2:$BH$426,AL$6,FALSE) -> 0 | AM10: =VLOOKUP(LookUpSheet!$D$5,'RC2002'!$B$2:$BH$426,AM$6,FALSE) -> 0 | AN10: =VLOOKUP(LookUpSheet!$D$5,'RC2002'!$B$2:$BH$426,AN$6,FALSE) -> 0 | AO10: =VLOOKUP(LookUpSheet!$D$5,'RC2002'!$B$2:$BH$426,AO$6,FALSE) -> 0 | AP10: =VLOOKUP(LookUpSheet!$D$5,'RC2002'!$B$2:$BH$426,AP$6,FALSE) -> 0 | AQ10: =VLOOKUP(LookUpSheet!$D$5,'RC2002'!$B$2:$BH$426,AQ$6,FALSE) -> 0 | AR10: =VLOOKUP(LookUpSheet!$D$5,'RC2002'!$B$2:$BH$426,AR$6,FALSE) -> 0 | AS10: =VLOOKUP(LookUpSheet!$D$5,'RC2002'!$B$2:$BH$426,AS$6,FALSE) -> 0 | AT10: =VLOOKUP(LookUpSheet!$D$5,'RC2002'!$B$2:$BH$426,AT$6,FALSE) -> 0 | AU10: =VLOOKUP(LookUpSheet!$D$5,'RC2002'!$B$2:$BH$426,AU$6,FALSE) -> 0
C11: =VLOOKUP(LookUpSheet!$D$5,'RC2003'!$B$2:$BH$518,C$6,FALSE) -> 2003 | D11: =VLOOKUP(LookUpSheet!$D$5,'RC2003'!$B$2:$BH$518,D$6,FALSE) -> StWide c | E11: =VLOOKUP(LookUpSheet!$D$5,'RC2003'!$B$2:$BH$518,E$6,FALSE) -> 2 | F11: =VLOOKUP(LookUpSheet!$D$5,'RC2003'!$B$2:$BH$518,F$6,FALSE) -> 932 | G11: =VLOOKUP(LookUpSheet!$D$5,'RC2003'!$B$2:$BH$518,G$6,FALSE) -> 112 | H11: =VLOOKUP(LookUpSheet!$D$5,'RC2003'!$B$2:$BH$518,H$6,FALSE) -> 166 | I11: =VLOOKUP(LookUpSheet!$D$5,'RC2003'!$B$2:$BH$518,I$6,FALSE) -> 528 | J11: =VLOOKUP(LookUpSheet!$D$5,'RC2003'!$B$2:$BH$518,J$6,FALSE) -> 983 | K11: =VLOOKUP(LookUpSheet!$D$5,'RC2003'!$B$2:$BH$518,K$6,FALSE) -> 1375 | L11: =VLOOKUP(LookUpSheet!$D$5,'RC2003'!$B$2:$BH$518,L$6,FALSE) -> 1334 | M11: =VLOOKUP(LookUpSheet!$D$5,'RC2003'!$B$2:$BH$518,M$6,FALSE) -> 1367 | N11: =VLOOKUP(LookUpSheet!$D$5,'RC2003'!$B$2:$BH$518,N$6,FALSE) -> 396 | O11: =VLOOKUP(LookUpSheet!$D$5,'RC2003'!$B$2:$BH$518,O$6,FALSE) -> 321 | P11: =VLOOKUP(LookUpSheet!$D$5,'RC2003'!$B$2:$BH$518,P$6,FALSE) -> 186 | Q11: =VLOOKUP(LookUpSheet!$D$5,'RC2003'!$B$2:$BH$518,Q$6,FALSE) -> 166 | R11: =VLOOKUP(LookUpSheet!$D$5,'RC2003'!$B$2:$BH$518,R$6,FALSE) -> 162 | S11: =VLOOKUP(LookUpSheet!$D$5,'RC2003'!$B$2:$BH$518,S$6,FALSE) -> 50 | T11: =VLOOKUP(LookUpSheet!$D$5,'RC2003'!$B$2:$BH$518,T$6,FALSE) -> 1 | U11: =VLOOKUP(LookUpSheet!$D$5,'RC2003'!$B$2:$BH$518,U$6,FALSE) -> 0 | V11: =VLOOKUP(LookUpSheet!$D$5,'RC2003'!$B$2:$BH$518,V$6,FALSE) -> 4 | W11: =VLOOKUP(LookUpSheet!$D$5,'RC2003'!$B$2:$BH$518,W$6,FALSE) -> 1 | X11: =VLOOKUP(LookUpSheet!$D$5,'RC2003'!$B$2:$BH$518,X$6,FALSE) -> 2 | Y11: =VLOOKUP(LookUpSheet!$D$5,'RC2003'!$B$2:$BH$518,Y$6,FALSE) -> 0 | Z11: =VLOOKUP(LookUpSheet!$D$5,'RC2003'!$B$2:$BH$518,Z$6,FALSE) -> 0 | AA11: =VLOOKUP(LookUpSheet!$D$5,'RC2003'!$B$2:$BH$518,AA$6,FALSE) -> 0 | AB11: =VLOOKUP(LookUpSheet!$D$5,'RC2003'!$B$2:$BH$518,AB$6,FALSE) -> 0 | AC11: =VLOOKUP(LookUpSheet!$D$5,'RC2003'!$B$2:$BH$518,AC$6,FALSE) -> 0 | AD11: =VLOOKUP(LookUpSheet!$D$5,'RC2003'!$B$2:$BH$518,AD$6,FALSE) -> 0 | AE11: =VLOOKUP(LookUpSheet!$D$5,'RC2003'!$B$2:$BH$518,AE$6,FALSE) -> 0 | AF11: =VLOOKUP(LookUpSheet!$D$5,'RC2003'!$B$2:$BH$518,AF$6,FALSE) -> 0 | AG11: =VLOOKUP(LookUpSheet!$D$5,'RC2003'!$B$2:$BH$518,AG$6,FALSE) -> 0 | AH11: =VLOOKUP(LookUpSheet!$D$5,'RC2003'!$B$2:$BH$518,AH$6,FALSE) -> 0 | AI11: =VLOOKUP(LookUpSheet!$D$5,'RC2003'!$B$2:$BH$518,AI$6,FALSE) -> 0 | AJ11: =VLOOKUP(LookUpSheet!$D$5,'RC2003'!$B$2:$BH$518,AJ$6,FALSE) -> 0 | AK11: =VLOOKUP(LookUpSheet!$D$5,'RC2003'!$B$2:$BH$518,AK$6,FALSE) -> 0 | AL11: =VLOOKUP(LookUpSheet!$D$5,'RC2003'!$B$2:$BH$518,AL$6,FALSE) -> 0 | AM11: =VLOOKUP(LookUpSheet!$D$5,'RC2003'!$B$2:$BH$518,AM$6,FALSE) -> 0 | AN11: =VLOOKUP(LookUpSheet!$D$5,'RC2003'!$B$2:$BH$518,AN$6,FALSE) -> 0 | AO11: =VLOOKUP(LookUpSheet!$D$5,'RC2003'!$B$2:$BH$518,AO$6,FALSE) -> 0 | AP11: =VLOOKUP(LookUpSheet!$D$5,'RC2003'!$B$2:$BH$518,AP$6,FALSE) -> 0 | AQ11: =VLOOKUP(LookUpSheet!$D$5,'RC2003'!$B$2:$BH$518,AQ$6,FALSE) -> 0 | AR11: =VLOOKUP(LookUpSheet!$D$5,'RC2003'!$B$2:$BH$518,AR$6,FALSE) -> 0 | AS11: =VLOOKUP(LookUpSheet!$D$5,'RC2003'!$B$2:$BH$518,AS$6,FALSE) -> 0 | AT11: =VLOOKUP(LookUpSheet!$D$5,'RC2003'!$B$2:$BH$518,AT$6,FALSE) -> 0 | AU11: =VLOOKUP(LookUpSheet!$D$5,'RC2003'!$B$2:$BH$518,AU$6,FALSE) -> 0
C12: =VLOOKUP(LookUpSheet!$D$5,'RC2004'!$B$2:$BH$337,C$6,FALSE) -> 2004 | D12: =VLOOKUP(LookUpSheet!$D$5,'RC2004'!$B$2:$BH$337,D$6,FALSE) -> StWide c | E12: =VLOOKUP(LookUpSheet!$D$5,'RC2004'!$B$2:$BH$337,E$6,FALSE) -> 2 | F12: =VLOOKUP(LookUpSheet!$D$5,'RC2004'!$B$2:$BH$337,F$6,FALSE) -> 978 | G12: =VLOOKUP(LookUpSheet!$D$5,'RC2004'!$B$2:$BH$337,G$6,FALSE) -> 71 | H12: =VLOOKUP(LookUpSheet!$D$5,'RC2004'!$B$2:$BH$337,H$6,FALSE) -> 121 | I12: =VLOOKUP(LookUpSheet!$D$5,'RC2004'!$B$2:$BH$337,I$6,FALSE) -> 307 | J12: =VLOOKUP(LookUpSheet!$D$5,'RC2004'!$B$2:$BH$337,J$6,FALSE) -> 695 | K12: =VLOOKUP(LookUpSheet!$D$5,'RC2004'!$B$2:$BH$337,K$6,FALSE) -> 1130 | L12: =VLOOKUP(LookUpSheet!$D$5,'RC2004'!$B$2:$BH$337,L$6,FALSE) -> 1197 | M12: =VLOOKUP(LookUpSheet!$D$5,'RC2004'!$B$2:$BH$337,M$6,FALSE) -> 1360 | N12: =VLOOKUP(LookUpSheet!$D$5,'RC2004'!$B$2:$BH$337,N$6,FALSE) -> 628 | O12: =VLOOKUP(LookUpSheet!$D$5,'RC2004'!$B$2:$BH$337,O$6,FALSE) -> 204 | P12: =VLOOKUP(LookUpSheet!$D$5,'RC2004'!$B$2:$BH$337,P$6,FALSE) -> 439 | Q12: =VLOOKUP(LookUpSheet!$D$5,'RC2004'!$B$2:$BH$337,Q$6,FALSE) -> 166 | R12: =VLOOKUP(LookUpSheet!$D$5,'RC2004'!$B$2:$BH$337,R$6,FALSE) -> 181 | S12: =VLOOKUP(LookUpSheet!$D$5,'RC2004'!$B$2:$BH$337,S$6,FALSE) -> 41 | T12: =VLOOKUP(LookUpSheet!$D$5,'RC2004'!$B$2:$BH$337,T$6,FALSE) -> 17 | U12: =VLOOKUP(LookUpSheet!$D$5,'RC2004'!$B$2:$BH$337,U$6,FALSE) -> 3 | V12: =VLOOKUP(LookUpSheet!$D$5,'RC2004'!$B$2:$BH$337,V$6,FALSE) -> 0 | W12: =VLOOKUP(LookUpSheet!$D$5,'RC2004'!$B$2:$BH$337,W$6,FALSE) -> 2 | X12: =VLOOKUP(LookUpSheet!$D$5,'RC2004'!$B$2:$BH$337,X$6,FALSE) -> 3 | Y12: =VLOOKUP(LookUpSheet!$D$5,'RC2004'!$B$2:$BH$337,Y$6,FALSE) -> 3 | Z12: =VLOOKUP(LookUpSheet!$D$5,'RC2004'!$B$2:$BH$337,Z$6,FALSE) -> 0 | AA12: =VLOOKUP(LookUpSheet!$D$5,'RC2004'!$B$2:$BH$337,AA$6,FALSE) -> 0 | AB12: =VLOOKUP(LookUpSheet!$D$5,'RC2004'!$B$2:$BH$337,AB$6,FALSE) -> 0 | AC12: =VLOOKUP(LookUpSheet!$D$5,'RC2004'!$B$2:$BH$337,AC$6,FALSE) -> 0 | AD12: =VLOOKUP(LookUpSheet!$D$5,'RC2004'!$B$2:$BH$337,AD$6,FALSE) -> 0 | AE12: =VLOOKUP(LookUpSheet!$D$5,'RC2004'!$B$2:$BH$337,AE$6,FALSE) -> 0 | AF12: =VLOOKUP(LookUpSheet!$D$5,'RC2004'!$B$2:$BH$337,AF$6,FALSE) -> 0 | AG12: =VLOOKUP(LookUpSheet!$D$5,'RC2004'!$B$2:$BH$337,AG$6,FALSE) -> 0 | AH12: =VLOOKUP(LookUpSheet!$D$5,'RC2004'!$B$2:$BH$337,AH$6,FALSE) -> 0 | AI12: =VLOOKUP(LookUpSheet!$D$5,'RC2004'!$B$2:$BH$337,AI$6,FALSE) -> 0 | AJ12: =VLOOKUP(LookUpSheet!$D$5,'RC2004'!$B$2:$BH$337,AJ$6,FALSE) -> 0 | AK12: =VLOOKUP(LookUpSheet!$D$5,'RC2004'!$B$2:$BH$337,AK$6,FALSE) -> 0 | AL12: =VLOOKUP(LookUpSheet!$D$5,'RC2004'!$B$2:$BH$337,AL$6,FALSE) -> 0 | AM12: =VLOOKUP(LookUpSheet!$D$5,'RC2004'!$B$2:$BH$337,AM$6,FALSE) -> 0 | AN12: =VLOOKUP(LookUpSheet!$D$5,'RC2004'!$B$2:$BH$337,AN$6,FALSE) -> 0 | AO12: =VLOOKUP(LookUpSheet!$D$5,'RC2004'!$B$2:$BH$337,AO$6,FALSE) -> 0 | AP12: =VLOOKUP(LookUpSheet!$D$5,'RC2004'!$B$2:$BH$337,AP$6,FALSE) -> 0 | AQ12: =VLOOKUP(LookUpSheet!$D$5,'RC2004'!$B$2:$BH$337,AQ$6,FALSE) -> 0 | AR12: =VLOOKUP(LookUpSheet!$D$5,'RC2004'!$B$2:$BH$337,AR$6,FALSE) -> 0 | AS12: =VLOOKUP(LookUpSheet!$D$5,'RC2004'!$B$2:$BH$337,AS$6,FALSE) -> 0 | AT12: =VLOOKUP(LookUpSheet!$D$5,'RC2004'!$B$2:$BH$337,AT$6,FALSE) -> 0 | AU12: =VLOOKUP(LookUpSheet!$D$5,'RC2004'!$B$2:$BH$337,AU$6,FALSE) -> 0
C13: =VLOOKUP(LookUpSheet!$D$5,'RC2005'!$B$2:$BH$336,C$6,FALSE) -> 2005 | D13: =VLOOKUP(LookUpSheet!$D$5,'RC2005'!$B$2:$BH$336,D$6,FALSE) -> StWide c | E13: =VLOOKUP(LookUpSheet!$D$5,'RC2005'!$B$2:$BH$336,E$6,FALSE) -> 2 | F13: =VLOOKUP(LookUpSheet!$D$5,'RC2005'!$B$2:$BH$336,F$6,FALSE) -> 989 | G13: =VLOOKUP(LookUpSheet!$D$5,'RC2005'!$B$2:$BH$336,G$6,FALSE) -> 37 | H13: =VLOOKUP(LookUpSheet!$D$5,'RC2005'!$B$2:$BH$336,H$6,FALSE) -> 139 | I13: =VLOOKUP(LookUpSheet!$D$5,'RC2005'!$B$2:$BH$336,I$6,FALSE) -> 228 | J13: =VLOOKUP(LookUpSheet!$D$5,'RC2005'!$B$2:$BH$336,J$6,FALSE) -> 618 | K13: =VLOOKUP(LookUpSheet!$D$5,'RC2005'!$B$2:$BH$336,K$6,FALSE) -> 1333 | L13: =VLOOKUP(LookUpSheet!$D$5,'RC2005'!$B$2:$BH$336,L$6,FALSE) -> 1226 | M13: =VLOOKUP(LookUpSheet!$D$5,'RC2005'!$B$2:$BH$336,M$6,FALSE) -> 1199 | N13: =VLOOKUP(LookUpSheet!$D$5,'RC2005'!$B$2:$BH$336,N$6,FALSE) -> 913 | O13: =VLOOKUP(LookUpSheet!$D$5,'RC2005'!$B$2:$BH$336,O$6,FALSE) -> 339 | P13: =VLOOKUP(LookUpSheet!$D$5,'RC2005'!$B$2:$BH$336,P$6,FALSE) -> 426 | Q13: =VLOOKUP(LookUpSheet!$D$5,'RC2005'!$B$2:$BH$336,Q$6,FALSE) -> 116 | R13: =VLOOKUP(LookUpSheet!$D$5,'RC2005'!$B$2:$BH$336,R$6,FALSE) -> 97 | S13: =VLOOKUP(LookUpSheet!$D$5,'RC2005'!$B$2:$BH$336,S$6,FALSE) -> 46 | T13: =VLOOKUP(LookUpSheet!$D$5,'RC2005'!$B$2:$BH$336,T$6,FALSE) -> 52 | U13: =VLOOKUP(LookUpSheet!$D$5,'RC2005'!$B$2:$BH$336,U$6,FALSE) -> 7 | V13: =VLOOKUP(LookUpSheet!$D$5,'RC2005'!$B$2:$BH$336,V$6,FALSE) -> 1 | W13: =VLOOKUP(LookUpSheet!$D$5,'RC2005'!$B$2:$BH$336,W$6,FALSE) -> 8 | X13: =VLOOKUP(LookUpSheet!$D$5,'RC2005'!$B$2:$BH$336,X$6,FALSE) -> 0 | Y13: =VLOOKUP(LookUpSheet!$D$5,'RC2005'!$B$2:$BH$336,Y$6,FALSE) -> 2 | Z13: =VLOOKUP(LookUpSheet!$D$5,'RC2005'!$B$2:$BH$336,Z$6,FALSE) -> 0 | AA13: =VLOOKUP(LookUpSheet!$D$5,'RC2005'!$B$2:$BH$336,AA$6,FALSE) -> 2 | AB13: =VLOOKUP(LookUpSheet!$D$5,'RC2005'!$B$2:$BH$336,AB$6,FALSE) -> 0 | AC13: =VLOOKUP(LookUpSheet!$D$5,'RC2005'!$B$2:$BH$336,AC$6,FALSE) -> 0 | AD13: =VLOOKUP(LookUpSheet!$D$5,'RC2005'!$B$2:$BH$336,AD$6,FALSE) -> 0 | AE13: =VLOOKUP(LookUpSheet!$D$5,'RC2005'!$B$2:$BH$336,AE$6,FALSE) -> 0 | AF13: =VLOOKUP(LookUpSheet!$D$5,'RC2005'!$B$2:$BH$336,AF$6,FALSE) -> 0 | AG13: =VLOOKUP(LookUpSheet!$D$5,'RC2005'!$B$2:$BH$336,AG$6,FALSE) -> 0 | AH13: =VLOOKUP(LookUpSheet!$D$5,'RC2005'!$B$2:$BH$336,AH$6,FALSE) -> 0 | AI13: =VLOOKUP(LookUpSheet!$D$5,'RC2005'!$B$2:$BH$336,AI$6,FALSE) -> 0 | AJ13: =VLOOKUP(LookUpSheet!$D$5,'RC2005'!$B$2:$BH$336,AJ$6,FALSE) -> 0 | AK13: =VLOOKUP(LookUpSheet!$D$5,'RC2005'!$B$2:$BH$336,AK$6,FALSE) -> 0 | AL13: =VLOOKUP(LookUpSheet!$D$5,'RC2005'!$B$2:$BH$336,AL$6,FALSE) -> 0 | AM13: =VLOOKUP(LookUpSheet!$D$5,'RC2005'!$B$2:$BH$336,AM$6,FALSE) -> 0 | AN13: =VLOOKUP(LookUpSheet!$D$5,'RC2005'!$B$2:$BH$336,AN$6,FALSE) -> 0 | AO13: =VLOOKUP(LookUpSheet!$D$5,'RC2005'!$B$2:$BH$336,AO$6,FALSE) -> 0 | AP13: =VLOOKUP(LookUpSheet!$D$5,'RC2005'!$B$2:$BH$336,AP$6,FALSE) -> 0 | AQ13: =VLOOKUP(LookUpSheet!$D$5,'RC2005'!$B$2:$BH$336,AQ$6,FALSE) -> 0 | AR13: =VLOOKUP(LookUpSheet!$D$5,'RC2005'!$B$2:$BH$336,AR$6,FALSE) -> 0 | AS13: =VLOOKUP(LookUpSheet!$D$5,'RC2005'!$B$2:$BH$336,AS$6,FALSE) -> 0 | AT13: =VLOOKUP(LookUpSheet!$D$5,'RC2005'!$B$2:$BH$336,AT$6,FALSE) -> 0 | AU13: =VLOOKUP(LookUpSheet!$D$5,'RC2005'!$B$2:$BH$336,AU$6,FALSE) -> 0
C14: =VLOOKUP(LookUpSheet!$D$5,'RC2006'!$B$2:$BH$336,C$6,FALSE) -> 2006 | D14: =VLOOKUP(LookUpSheet!$D$5,'RC2006'!$B$2:$BH$336,D$6,FALSE) -> StWide c | E14: =VLOOKUP(LookUpSheet!$D$5,'RC2006'!$B$2:$BH$336,E$6,FALSE) -> 2 | F14: =VLOOKUP(LookUpSheet!$D$5,'RC2006'!$B$2:$BH$336,F$6,FALSE) -> 1003 | G14: =VLOOKUP(LookUpSheet!$D$5,'RC2006'!$B$2:$BH$336,G$6,FALSE) -> 10 | H14: =VLOOKUP(LookUpSheet!$D$5,'RC2006'!$B$2:$BH$336,H$6,FALSE) -> 175 | I14: =VLOOKUP(LookUpSheet!$D$5,'RC2006'!$B$2:$BH$336,I$6,FALSE) -> 157 | J14: =VLOOKUP(LookUpSheet!$D$5,'RC2006'!$B$2:$BH$336,J$6,FALSE) -> 509 | K14: =VLOOKUP(LookUpSheet!$D$5,'RC2006'!$B$2:$BH$336,K$6,FALSE) -> 1192 | L14: =VLOOKUP(LookUpSheet!$D$5,'RC2006'!$B$2:$BH$336,L$6,FALSE) -> 1319 | M14: =VLOOKUP(LookUpSheet!$D$5,'RC2006'!$B$2:$BH$336,M$6,FALSE) -> 1138 | N14: =VLOOKUP(LookUpSheet!$D$5,'RC2006'!$B$2:$BH$336,N$6,FALSE) -> 1075 | O14: =VLOOKUP(LookUpSheet!$D$5,'RC2006'!$B$2:$BH$336,O$6,FALSE) -> 447 | P14: =VLOOKUP(LookUpSheet!$D$5,'RC2006'!$B$2:$BH$336,P$6,FALSE) -> 363 | Q14: =VLOOKUP(LookUpSheet!$D$5,'RC2006'!$B$2:$BH$336,Q$6,FALSE) -> 274 | R14: =VLOOKUP(LookUpSheet!$D$5,'RC2006'!$B$2:$BH$336,R$6,FALSE) -> 94 | S14: =VLOOKUP(LookUpSheet!$D$5,'RC2006'!$B$2:$BH$336,S$6,FALSE) -> 80 | T14: =VLOOKUP(LookUpSheet!$D$5,'RC2006'!$B$2:$BH$336,T$6,FALSE) -> 33 | U14: =VLOOKUP(LookUpSheet!$D$5,'RC2006'!$B$2:$BH$336,U$6,FALSE) -> 22 | V14: =VLOOKUP(LookUpSheet!$D$5,'RC2006'!$B$2:$BH$336,V$6,FALSE) -> 20 | W14: =VLOOKUP(LookUpSheet!$D$5,'RC2006'!$B$2:$BH$336,W$6,FALSE) -> 9 | X14: =VLOOKUP(LookUpSheet!$D$5,'RC2006'!$B$2:$BH$336,X$6,FALSE) -> 2 | Y14: =VLOOKUP(LookUpSheet!$D$5,'RC2006'!$B$2:$BH$336,Y$6,FALSE) -> 0 | Z14: =VLOOKUP(LookUpSheet!$D$5,'RC2006'!$B$2:$BH$336,Z$6,FALSE) -> 0 | AA14: =VLOOKUP(LookUpSheet!$D$5,'RC2006'!$B$2:$BH$336,AA$6,FALSE) -> 2 | AB14: =VLOOKUP(LookUpSheet!$D$5,'RC2006'!$B$2:$BH$336,AB$6,FALSE) -> 2 | AC14: =VLOOKUP(LookUpSheet!$D$5,'RC2006'!$B$2:$BH$336,AC$6,FALSE) -> 0 | AD14: =VLOOKUP(LookUpSheet!$D$5,'RC2006'!$B$2:$BH$336,AD$6,FALSE) -> 0 | AE14: =VLOOKUP(LookUpSheet!$D$5,'RC2006'!$B$2:$BH$336,AE$6,FALSE) -> 0 | AF14: =VLOOKUP(LookUpSheet!$D$5,'RC2006'!$B$2:$BH$336,AF$6,FALSE) -> 0 | AG14: =VLOOKUP(LookUpSheet!$D$5,'RC2006'!$B$2:$BH$336,AG$6,FALSE) -> 0 | AH14: =VLOOKUP(LookUpSheet!$D$5,'RC2006'!$B$2:$BH$336,AH$6,FALSE) -> 0 | AI14: =VLOOKUP(LookUpSheet!$D$5,'RC2006'!$B$2:$BH$336,AI$6,FALSE) -> 0 | AJ14: =VLOOKUP(LookUpSheet!$D$5,'RC2006'!$B$2:$BH$336,AJ$6,FALSE) -> 0 | AK14: =VLOOKUP(LookUpSheet!$D$5,'RC2006'!$B$2:$BH$336,AK$6,FALSE) -> 0 | AL14: =VLOOKUP(LookUpSheet!$D$5,'RC2006'!$B$2:$BH$336,AL$6,FALSE) -> 0 | AM14: =VLOOKUP(LookUpSheet!$D$5,'RC2006'!$B$2:$BH$336,AM$6,FALSE) -> 0 | AN14: =VLOOKUP(LookUpSheet!$D$5,'RC2006'!$B$2:$BH$336,AN$6,FALSE) -> 0 | AO14: =VLOOKUP(LookUpSheet!$D$5,'RC2006'!$B$2:$BH$336,AO$6,FALSE) -> 0 | AP14: =VLOOKUP(LookUpSheet!$D$5,'RC2006'!$B$2:$BH$336,AP$6,FALSE) -> 0 | AQ14: =VLOOKUP(LookUpSheet!$D$5,'RC2006'!$B$2:$BH$336,AQ$6,FALSE) -> 0 | AR14: =VLOOKUP(LookUpSheet!$D$5,'RC2006'!$B$2:$BH$336,AR$6,FALSE) -> 0 | AS14: =VLOOKUP(LookUpSheet!$D$5,'RC2006'!$B$2:$BH$336,AS$6,FALSE) -> 0 | AT14: =VLOOKUP(LookUpSheet!$D$5,'RC2006'!$B$2:$BH$336,AT$6,FALSE) -> 0 | AU14: =VLOOKUP(LookUpSheet!$D$5,'RC2006'!$B$2:$BH$336,AU$6,FALSE) -> 0
C15: =VLOOKUP(LookUpSheet!$D$5,'RC2007'!$B$2:$BH$341,C$6,FALSE) -> 2007 | D15: =VLOOKUP(LookUpSheet!$D$5,'RC2007'!$B$2:$BH$341,D$6,FALSE) -> StWide c | E15: =VLOOKUP(LookUpSheet!$D$5,'RC2007'!$B$2:$BH$341,E$6,FALSE) -> 2 | F15: =VLOOKUP(LookUpSheet!$D$5,'RC2007'!$B$2:$BH$341,F$6,FALSE) -> 1029 | G15: =VLOOKUP(LookUpSheet!$D$5,'RC2007'!$B$2:$BH$341,G$6,FALSE) -> 8 | H15: =VLOOKUP(LookUpSheet!$D$5,'RC2007'!$B$2:$BH$341,H$6,FALSE) -> 82 | I15: =VLOOKUP(LookUpSheet!$D$5,'RC2007'!$B$2:$BH$341,I$6,FALSE) -> 123 | J15: =VLOOKUP(LookUpSheet!$D$5,'RC2007'!$B$2:$BH$341,J$6,FALSE) -> 423 | K15: =VLOOKUP(LookUpSheet!$D$5,'RC2007'!$B$2:$BH$341,K$6,FALSE) -> 944 | L15: =VLOOKUP(LookUpSheet!$D$5,'RC2007'!$B$2:$BH$341,L$6,FALSE) -> 1537 | M15: =VLOOKUP(LookUpSheet!$D$5,'RC2007'!$B$2:$BH$341,M$6,FALSE) -> 1166 | N15: =VLOOKUP(LookUpSheet!$D$5,'RC2007'!$B$2:$BH$341,N$6,FALSE) -> 1045 | O15: =VLOOKUP(LookUpSheet!$D$5,'RC2007'!$B$2:$BH$341,O$6,FALSE) -> 447 | P15: =VLOOKUP(LookUpSheet!$D$5,'RC2007'!$B$2:$BH$341,P$6,FALSE) -> 362 | Q15: =VLOOKUP(LookUpSheet!$D$5,'RC2007'!$B$2:$BH$341,Q$6,FALSE) -> 323 | R15: =VLOOKUP(LookUpSheet!$D$5,'RC2007'!$B$2:$BH$341,R$6,FALSE) -> 178 | S15: =VLOOKUP(LookUpSheet!$D$5,'RC2007'!$B$2:$BH$341,S$6,FALSE) -> 38 | T15: =VLOOKUP(LookUpSheet!$D$5,'RC2007'!$B$2:$BH$341,T$6,FALSE) -> 42 | U15: =VLOOKUP(LookUpSheet!$D$5,'RC2007'!$B$2:$BH$341,U$6,FALSE) -> 40 | V15: =VLOOKUP(LookUpSheet!$D$5,'RC2007'!$B$2:$BH$341,V$6,FALSE) -> 6 | W15: =VLOOKUP(LookUpSheet!$D$5,'RC2007'!$B$2:$BH$341,W$6,FALSE) -> 26 | X15: =VLOOKUP(LookUpSheet!$D$5,'RC2007'!$B$2:$BH$341,X$6,FALSE) -> 1 | Y15: =VLOOKUP(LookUpSheet!$D$5,'RC2007'!$B$2:$BH$341,Y$6,FALSE) -> 1 | Z15: =VLOOKUP(LookUpSheet!$D$5,'RC2007'!$B$2:$BH$341,Z$6,FALSE) -> 0 | AA15: =VLOOKUP(LookUpSheet!$D$5,'RC2007'!$B$2:$BH$341,AA$6,FALSE) -> 2 | AB15: =VLOOKUP(LookUpSheet!$D$5,'RC2007'!$B$2:$BH$341,AB$6,FALSE) -> 2 | AC15: =VLOOKUP(LookUpSheet!$D$5,'RC2007'!$B$2:$BH$341,AC$6,FALSE) -> 1 | AD15: =VLOOKUP(LookUpSheet!$D$5,'RC2007'!$B$2:$BH$341,AD$6,FALSE) -> 0 | AE15: =VLOOKUP(LookUpSheet!$D$5,'RC2007'!$B$2:$BH$341,AE$6,FALSE) -> 0 | AF15: =VLOOKUP(LookUpSheet!$D$5,'RC2007'!$B$2:$BH$341,AF$6,FALSE) -> 0 | AG15: =VLOOKUP(LookUpSheet!$D$5,'RC2007'!$B$2:$BH$341,AG$6,FALSE) -> 0 | AH15: =VLOOKUP(LookUpSheet!$D$5,'RC2007'!$B$2:$BH$341,AH$6,FALSE) -> 0 | AI15: =VLOOKUP(LookUpSheet!$D$5,'RC2007'!$B$2:$BH$341,AI$6,FALSE) -> 0 | AJ15: =VLOOKUP(LookUpSheet!$D$5,'RC2007'!$B$2:$BH$341,AJ$6,FALSE) -> 0 | AK15: =VLOOKUP(LookUpSheet!$D$5,'RC2007'!$B$2:$BH$341,AK$6,FALSE) -> 0 | AL15: =VLOOKUP(LookUpSheet!$D$5,'RC2007'!$B$2:$BH$341,AL$6,FALSE) -> 0 | AM15: =VLOOKUP(LookUpSheet!$D$5,'RC2007'!$B$2:$BH$341,AM$6,FALSE) -> 0 | AN15: =VLOOKUP(LookUpSheet!$D$5,'RC2007'!$B$2:$BH$341,AN$6,FALSE) -> 0 | AO15: =VLOOKUP(LookUpSheet!$D$5,'RC2007'!$B$2:$BH$341,AO$6,FALSE) -> 0 | AP15: =VLOOKUP(LookUpSheet!$D$5,'RC2007'!$B$2:$BH$341,AP$6,FALSE) -> 0 | AQ15: =VLOOKUP(LookUpSheet!$D$5,'RC2007'!$B$2:$BH$341,AQ$6,FALSE) -> 0 | AR15: =VLOOKUP(LookUpSheet!$D$5,'RC2007'!$B$2:$BH$341,AR$6,FALSE) -> 0 | AS15: =VLOOKUP(LookUpSheet!$D$5,'RC2007'!$B$2:$BH$341,AS$6,FALSE) -> 0 | AT15: =VLOOKUP(LookUpSheet!$D$5,'RC2007'!$B$2:$BH$341,AT$6,FALSE) -> 0 | AU15: =VLOOKUP(LookUpSheet!$D$5,'RC2007'!$B$2:$BH$341,AU$6,FALSE) -> 0
C16: =VLOOKUP(LookUpSheet!$D$5,'RC2008'!$B$2:$BH$70,C$6,FALSE) -> 2008 | D16: =VLOOKUP(LookUpSheet!$D$5,'RC2008'!$B$2:$BH$70,D$6,FALSE) -> StWide c | E16: =VLOOKUP(LookUpSheet!$D$5,'RC2008'!$B$2:$BH$70,E$6,FALSE) -> 2 | F16: =VLOOKUP(LookUpSheet!$D$5,'RC2008'!$B$2:$BH$70,F$6,FALSE) -> 1044 | G16: =VLOOKUP(LookUpSheet!$D$5,'RC2008'!$B$2:$BH$70,G$6,FALSE) -> 5 | H16: =VLOOKUP(LookUpSheet!$D$5,'RC2008'!$B$2:$BH$70,H$6,FALSE) -> 50 | I16: =VLOOKUP(LookUpSheet!$D$5,'RC2008'!$B$2:$BH$70,I$6,FALSE) -> 98 | J16: =VLOOKUP(LookUpSheet!$D$5,'RC2008'!$B$2:$BH$70,J$6,FALSE) -> 299 | K16: =VLOOKUP(LookUpSheet!$D$5,'RC2008'!$B$2:$BH$70,K$6,FALSE) -> 898 | L16: =VLOOKUP(LookUpSheet!$D$5,'RC2008'!$B$2:$BH$70,L$6,FALSE) -> 1334 | M16: =VLOOKUP(LookUpSheet!$D$5,'RC2008'!$B$2:$BH$70,M$6,FALSE) -> 1178 | N16: =VLOOKUP(LookUpSheet!$D$5,'RC2008'!$B$2:$BH$70,N$6,FALSE) -> 1020 | O16: =VLOOKUP(LookUpSheet!$D$5,'RC2008'!$B$2:$BH$70,O$6,FALSE) -> 534 | P16: =VLOOKUP(LookUpSheet!$D$5,'RC2008'!$B$2:$BH$70,P$6,FALSE) -> 375 | Q16: =VLOOKUP(LookUpSheet!$D$5,'RC2008'!$B$2:$BH$70,Q$6,FALSE) -> 400 | R16: =VLOOKUP(LookUpSheet!$D$5,'RC2008'!$B$2:$BH$70,R$6,FALSE) -> 129 | S16: =VLOOKUP(LookUpSheet!$D$5,'RC2008'!$B$2:$BH$70,S$6,FALSE) -> 64 | T16: =VLOOKUP(LookUpSheet!$D$5,'RC2008'!$B$2:$BH$70,T$6,FALSE) -> 29 | U16: =VLOOKUP(LookUpSheet!$D$5,'RC2008'!$B$2:$BH$70,U$6,FALSE) -> 21 | V16: =VLOOKUP(LookUpSheet!$D$5,'RC2008'!$B$2:$BH$70,V$6,FALSE) -> 14 | W16: =VLOOKUP(LookUpSheet!$D$5,'RC2008'!$B$2:$BH$70,W$6,FALSE) -> 5 | X16: =VLOOKUP(LookUpSheet!$D$5,'RC2008'!$B$2:$BH$70,X$6,FALSE) -> 17 | Y16: =VLOOKUP(LookUpSheet!$D$5,'RC2008'!$B$2:$BH$70,Y$6,FALSE) -> 1 | Z16: =VLOOKUP(LookUpSheet!$D$5,'RC2008'!$B$2:$BH$70,Z$6,FALSE) -> 2 | AA16: =VLOOKUP(LookUpSheet!$D$5,'RC2008'!$B$2:$BH$70,AA$6,FALSE) -> 0 | AB16: =VLOOKUP(LookUpSheet!$D$5,'RC2008'!$B$2:$BH$70,AB$6,FALSE) -> 0 | AC16: =VLOOKUP(LookUpSheet!$D$5,'RC2008'!$B$2:$BH$70,AC$6,FALSE) -> 0 | AD16: =VLOOKUP(LookUpSheet!$D$5,'RC2008'!$B$2:$BH$70,AD$6,FALSE) -> 0 | AE16: =VLOOKUP(LookUpSheet!$D$5,'RC2008'!$B$2:$BH$70,AE$6,FALSE) -> 0 | AF16: =VLOOKUP(LookUpSheet!$D$5,'RC2008'!$B$2:$BH$70,AF$6,FALSE) -> 0 | AG16: =VLOOKUP(LookUpSheet!$D$5,'RC2008'!$B$2:$BH$70,AG$6,FALSE) -> 0 | AH16: =VLOOKUP(LookUpSheet!$D$5,'RC2008'!$B$2:$BH$70,AH$6,FALSE) -> 0 | AI16: =VLOOKUP(LookUpSheet!$D$5,'RC2008'!$B$2:$BH$70,AI$6,FALSE) -> 0 | AJ16: =VLOOKUP(LookUpSheet!$D$5,'RC2008'!$B$2:$BH$70,AJ$6,FALSE) -> 0 | AK16: =VLOOKUP(LookUpSheet!$D$5,'RC2008'!$B$2:$BH$70,AK$6,FALSE) -> 0 | AL16: =VLOOKUP(LookUpSheet!$D$5,'RC2008'!$B$2:$BH$70,AL$6,FALSE) -> 0 | AM16: =VLOOKUP(LookUpSheet!$D$5,'RC2008'!$B$2:$BH$70,AM$6,FALSE) -> 0 | AN16: =VLOOKUP(LookUpSheet!$D$5,'RC2008'!$B$2:$BH$70,AN$6,FALSE) -> 0 | AO16: =VLOOKUP(LookUpSheet!$D$5,'RC2008'!$B$2:$BH$70,AO$6,FALSE) -> 0 | AP16: =VLOOKUP(LookUpSheet!$D$5,'RC2008'!$B$2:$BH$70,AP$6,FALSE) -> 0 | AQ16: =VLOOKUP(LookUpSheet!$D$5,'RC2008'!$B$2:$BH$70,AQ$6,FALSE) -> 0 | AR16: =VLOOKUP(LookUpSheet!$D$5,'RC2008'!$B$2:$BH$70,AR$6,FALSE) -> 0 | AS16: =VLOOKUP(LookUpSheet!$D$5,'RC2008'!$B$2:$BH$70,AS$6,FALSE) -> 0 | AT16: =VLOOKUP(LookUpSheet!$D$5,'RC2008'!$B$2:$BH$70,AT$6,FALSE) -> 0 | AU16: =VLOOKUP(LookUpSheet!$D$5,'RC2008'!$B$2:$BH$70,AU$6,FALSE) -> 0
C17: =VLOOKUP(LookUpSheet!$D$5,'RC2009'!$B$2:$BH$70,C$6,FALSE) -> 2009 | D17: =VLOOKUP(LookUpSheet!$D$5,'RC2009'!$B$2:$BH$70,D$6,FALSE) -> StWide c | E17: =VLOOKUP(LookUpSheet!$D$5,'RC2009'!$B$2:$BH$70,E$6,FALSE) -> 2 | F17: =VLOOKUP(LookUpSheet!$D$5,'RC2009'!$B$2:$BH$70,F$6,FALSE) -> 1041 | G17: =VLOOKUP(LookUpSheet!$D$5,'RC2009'!$B$2:$BH$70,G$6,FALSE) -> 4 | H17: =VLOOKUP(LookUpSheet!$D$5,'RC2009'!$B$2:$BH$70,H$6,FALSE) -> 48 | I17: =VLOOKUP(LookUpSheet!$D$5,'RC2009'!$B$2:$BH$70,I$6,FALSE) -> 98 | J17: =VLOOKUP(LookUpSheet!$D$5,'RC2009'!$B$2:$BH$70,J$6,FALSE) -> 365 | K17: =VLOOKUP(LookUpSheet!$D$5,'RC2009'!$B$2:$BH$70,K$6,FALSE) -> 991 | L17: =VLOOKUP(LookUpSheet!$D$5,'RC2009'!$B$2:$BH$70,L$6,FALSE) -> 1581 | M17: =VLOOKUP(LookUpSheet!$D$5,'RC2009'!$B$2:$BH$70,M$6,FALSE) -> 1333 | N17: =VLOOKUP(LookUpSheet!$D$5,'RC2009'!$B$2:$BH$70,N$6,FALSE) -> 1140 | O17: =VLOOKUP(LookUpSheet!$D$5,'RC2009'!$B$2:$BH$70,O$6,FALSE) -> 516 | P17: =VLOOKUP(LookUpSheet!$D$5,'RC2009'!$B$2:$BH$70,P$6,FALSE) -> 417 | Q17: =VLOOKUP(LookUpSheet!$D$5,'RC2009'!$B$2:$BH$70,Q$6,FALSE) -> 505 | R17: =VLOOKUP(LookUpSheet!$D$5,'RC2009'!$B$2:$BH$70,R$6,FALSE) -> 167 | S17: =VLOOKUP(LookUpSheet!$D$5,'RC2009'!$B$2:$BH$70,S$6,FALSE) -> 96 | T17: =VLOOKUP(LookUpSheet!$D$5,'RC2009'!$B$2:$BH$70,T$6,FALSE) -> 19 | U17: =VLOOKUP(LookUpSheet!$D$5,'RC2009'!$B$2:$BH$70,U$6,FALSE) -> 18 | V17: =VLOOKUP(LookUpSheet!$D$5,'RC2009'!$B$2:$BH$70,V$6,FALSE) -> 3 | W17: =VLOOKUP(LookUpSheet!$D$5,'RC2009'!$B$2:$BH$70,W$6,FALSE) -> 7 | X17: =VLOOKUP(LookUpSheet!$D$5,'RC2009'!$B$2:$BH$70,X$6,FALSE) -> 1 | Y17: =VLOOKUP(LookUpSheet!$D$5,'RC2009'!$B$2:$BH$70,Y$6,FALSE) -> 1 | Z17: =VLOOKUP(LookUpSheet!$D$5,'RC2009'!$B$2:$BH$70,Z$6,FALSE) -> 23 | AA17: =VLOOKUP(LookUpSheet!$D$5,'RC2009'!$B$2:$BH$70,AA$6,FALSE) -> 0 | AB17: =VLOOKUP(LookUpSheet!$D$5,'RC2009'!$B$2:$BH$70,AB$6,FALSE) -> 0 | AC17: =VLOOKUP(LookUpSheet!$D$5,'RC2009'!$B$2:$BH$70,AC$6,FALSE) -> 0 | AD17: =VLOOKUP(LookUpSheet!$D$5,'RC2009'!$B$2:$BH$70,AD$6,FALSE) -> 0 | AE17: =VLOOKUP(LookUpSheet!$D$5,'RC2009'!$B$2:$BH$70,AE$6,FALSE) -> 0 | AF17: =VLOOKUP(LookUpSheet!$D$5,'RC2009'!$B$2:$BH$70,AF$6,FALSE) -> 0 | AG17: =VLOOKUP(LookUpSheet!$D$5,'RC2009'!$B$2:$BH$70,AG$6,FALSE) -> 0 | AH17: =VLOOKUP(LookUpSheet!$D$5,'RC2009'!$B$2:$BH$70,AH$6,FALSE) -> 0 | AI17: =VLOOKUP(LookUpSheet!$D$5,'RC2009'!$B$2:$BH$70,AI$6,FALSE) -> 0 | AJ17: =VLOOKUP(LookUpSheet!$D$5,'RC2009'!$B$2:$BH$70,AJ$6,FALSE) -> 0 | AK17: =VLOOKUP(LookUpSheet!$D$5,'RC2009'!$B$2:$BH$70,AK$6,FALSE) -> 0 | AL17: =VLOOKUP(LookUpSheet!$D$5,'RC2009'!$B$2:$BH$70,AL$6,FALSE) -> 0 | AM17: =VLOOKUP(LookUpSheet!$D$5,'RC2009'!$B$2:$BH$70,AM$6,FALSE) -> 0 | AN17: =VLOOKUP(LookUpSheet!$D$5,'RC2009'!$B$2:$BH$70,AN$6,FALSE) -> 0 | AO17: =VLOOKUP(LookUpSheet!$D$5,'RC2009'!$B$2:$BH$70,AO$6,FALSE) -> 0 | AP17: =VLOOKUP(LookUpSheet!$D$5,'RC2009'!$B$2:$BH$70,AP$6,FALSE) -> 0 | AQ17: =VLOOKUP(LookUpSheet!$D$5,'RC2009'!$B$2:$BH$70,AQ$6,FALSE) -> 0 | AR17: =VLOOKUP(LookUpSheet!$D$5,'RC2009'!$B$2:$BH$70,AR$6,FALSE) -> 0 | AS17: =VLOOKUP(LookUpSheet!$D$5,'RC2009'!$B$2:$BH$70,AS$6,FALSE) -> 0 | AT17: =VLOOKUP(LookUpSheet!$D$5,'RC2009'!$B$2:$BH$70,AT$6,FALSE) -> 0 | AU17: =VLOOKUP(LookUpSheet!$D$5,'RC2009'!$B$2:$BH$70,AU$6,FALSE) -> 0
C18: =VLOOKUP(LookUpSheet!$D$5,'RC2010'!$B$2:$BH$70,C$6,FALSE) -> 2010 | D18: =VLOOKUP(LookUpSheet!$D$5,'RC2010'!$B$2:$BH$70,D$6,FALSE) -> StWide c | E18: =VLOOKUP(LookUpSheet!$D$5,'RC2010'!$B$2:$BH$70,E$6,FALSE) -> 2 | F18: =VLOOKUP(LookUpSheet!$D$5,'RC2010'!$B$2:$BH$70,F$6,FALSE) -> 1056 | G18: =VLOOKUP(LookUpSheet!$D$5,'RC2010'!$B$2:$BH$70,G$6,FALSE) -> 2 | H18: =VLOOKUP(LookUpSheet!$D$5,'RC2010'!$B$2:$BH$70,H$6,FALSE) -> 51 | I18: =VLOOKUP(LookUpSheet!$D$5,'RC2010'!$B$2:$BH$70,I$6,FALSE) -> 156 | J18: =VLOOKUP(LookUpSheet!$D$5,'RC2010'!$B$2:$BH$70,J$6,FALSE) -> 338 | K18: =VLOOKUP(LookUpSheet!$D$5,'RC2010'!$B$2:$BH$70,K$6,FALSE) -> 789 | L18: =VLOOKUP(LookUpSheet!$D$5,'RC2010'!$B$2:$BH$70,L$6,FALSE) -> 1325 | M18: =VLOOKUP(LookUpSheet!$D$5,'RC2010'!$B$2:$BH$70,M$6,FALSE) -> 1370 | N18: =VLOOKUP(LookUpSheet!$D$5,'RC2010'!$B$2:$BH$70,N$6,FALSE) -> 1015 | O18: =VLOOKUP(LookUpSheet!$D$5,'RC2010'!$B$2:$BH$70,O$6,FALSE) -> 652 | P18: =VLOOKUP(LookUpSheet!$D$5,'RC2010'!$B$2:$BH$70,P$6,FALSE) -> 396 | Q18: =VLOOKUP(LookUpSheet!$D$5,'RC2010'!$B$2:$BH$70,Q$6,FALSE) -> 387 | R18: =VLOOKUP(LookUpSheet!$D$5,'RC2010'!$B$2:$BH$70,R$6,FALSE) -> 212 | S18: =VLOOKUP(LookUpSheet!$D$5,'RC2010'!$B$2:$BH$70,S$6,FALSE) -> 127 | T18: =VLOOKUP(LookUpSheet!$D$5,'RC2010'!$B$2:$BH$70,T$6,FALSE) -> 32 | U18: =VLOOKUP(LookUpSheet!$D$5,'RC2010'!$B$2:$BH$70,U$6,FALSE) -> 24 | V18: =VLOOKUP(LookUpSheet!$D$5,'RC2010'!$B$2:$BH$70,V$6,FALSE) -> 5 | W18: =VLOOKUP(LookUpSheet!$D$5,'RC2010'!$B$2:$BH$70,W$6,FALSE) -> 8 | X18: =VLOOKUP(LookUpSheet!$D$5,'RC2010'!$B$2:$BH$70,X$6,FALSE) -> 24 | Y18: =VLOOKUP(LookUpSheet!$D$5,'RC2010'!$B$2:$BH$70,Y$6,FALSE) -> 5 | Z18: =VLOOKUP(LookUpSheet!$D$5,'RC2010'!$B$2:$BH$70,Z$6,FALSE) -> 1 | AA18: =VLOOKUP(LookUpSheet!$D$5,'RC2010'!$B$2:$BH$70,AA$6,FALSE) -> 0 | AB18: =VLOOKUP(LookUpSheet!$D$5,'RC2010'!$B$2:$BH$70,AB$6,FALSE) -> 0 | AC18: =VLOOKUP(LookUpSheet!$D$5,'RC2010'!$B$2:$BH$70,AC$6,FALSE) -> 0 | AD18: =VLOOKUP(LookUpSheet!$D$5,'RC2010'!$B$2:$BH$70,AD$6,FALSE) -> 0 | AE18: =VLOOKUP(LookUpSheet!$D$5,'RC2010'!$B$2:$BH$70,AE$6,FALSE) -> 0 | AF18: =VLOOKUP(LookUpSheet!$D$5,'RC2010'!$B$2:$BH$70,AF$6,FALSE) -> 0 | AG18: =VLOOKUP(LookUpSheet!$D$5,'RC2010'!$B$2:$BH$70,AG$6,FALSE) -> 0 | AH18: =VLOOKUP(LookUpSheet!$D$5,'RC2010'!$B$2:$BH$70,AH$6,FALSE) -> 0 | AI18: =VLOOKUP(LookUpSheet!$D$5,'RC2010'!$B$2:$BH$70,AI$6,FALSE) -> 0 | AJ18: =VLOOKUP(LookUpSheet!$D$5,'RC2010'!$B$2:$BH$70,AJ$6,FALSE) -> 0 | AK18: =VLOOKUP(LookUpSheet!$D$5,'RC2010'!$B$2:$BH$70,AK$6,FALSE) -> 0 | AL18: =VLOOKUP(LookUpSheet!$D$5,'RC2010'!$B$2:$BH$70,AL$6,FALSE) -> 0 | AM18: =VLOOKUP(LookUpSheet!$D$5,'RC2010'!$B$2:$BH$70,AM$6,FALSE) -> 0 | AN18: =VLOOKUP(LookUpSheet!$D$5,'RC2010'!$B$2:$BH$70,AN$6,FALSE) -> 0 | AO18: =VLOOKUP(LookUpSheet!$D$5,'RC2010'!$B$2:$BH$70,AO$6,FALSE) -> 0 | AP18: =VLOOKUP(LookUpSheet!$D$5,'RC2010'!$B$2:$BH$70,AP$6,FALSE) -> 0 | AQ18: =VLOOKUP(LookUpSheet!$D$5,'RC2010'!$B$2:$BH$70,AQ$6,FALSE) -> 0 | AR18: =VLOOKUP(LookUpSheet!$D$5,'RC2010'!$B$2:$BH$70,AR$6,FALSE) -> 0 | AS18: =VLOOKUP(LookUpSheet!$D$5,'RC2010'!$B$2:$BH$70,AS$6,FALSE) -> 0 | AT18: =VLOOKUP(LookUpSheet!$D$5,'RC2010'!$B$2:$BH$70,AT$6,FALSE) -> 0 | AU18: =VLOOKUP(LookUpSheet!$D$5,'RC2010'!$B$2:$BH$70,AU$6,FALSE) -> 0
C19: =VLOOKUP(LookUpSheet!$D$5,'RC2011'!$B$2:$BH$70,C$6,FALSE) -> 2011 | D19: =VLOOKUP(LookUpSheet!$D$5,'RC2011'!$B$2:$BH$70,D$6,FALSE) -> StWide c | E19: =VLOOKUP(LookUpSheet!$D$5,'RC2011'!$B$2:$BH$70,E$6,FALSE) -> 2 | F19: =VLOOKUP(LookUpSheet!$D$5,'RC2011'!$B$2:$BH$70,F$6,FALSE) -> 1048 | G19: =VLOOKUP(LookUpSheet!$D$5,'RC2011'!$B$2:$BH$70,G$6,FALSE) -> 5 | H19: =VLOOKUP(LookUpSheet!$D$5,'RC2011'!$B$2:$BH$70,H$6,FALSE) -> 39 | I19: =VLOOKUP(LookUpSheet!$D$5,'RC2011'!$B$2:$BH$70,I$6,FALSE) -> 130 | J19: =VLOOKUP(LookUpSheet!$D$5,'RC2011'!$B$2:$BH$70,J$6,FALSE) -> 290 | K19: =VLOOKUP(LookUpSheet!$D$5,'RC2011'!$B$2:$BH$70,K$6,FALSE) -> 786 | L19: =VLOOKUP(LookUpSheet!$D$5,'RC2011'!$B$2:$BH$70,L$6,FALSE) -> 1384 | M19: =VLOOKUP(LookUpSheet!$D$5,'RC2011'!$B$2:$BH$70,M$6,FALSE) -> 1505 | N19: =VLOOKUP(LookUpSheet!$D$5,'RC2011'!$B$2:$BH$70,N$6,FALSE) -> 749 | O19: =VLOOKUP(LookUpSheet!$D$5,'RC2011'!$B$2:$BH$70,O$6,FALSE) -> 615 | P19: =VLOOKUP(LookUpSheet!$D$5,'RC2011'!$B$2:$BH$70,P$6,FALSE) -> 372 | Q19: =VLOOKUP(LookUpSheet!$D$5,'RC2011'!$B$2:$BH$70,Q$6,FALSE) -> 407 | R19: =VLOOKUP(LookUpSheet!$D$5,'RC2011'!$B$2:$BH$70,R$6,FALSE) -> 254 | S19: =VLOOKUP(LookUpSheet!$D$5,'RC2011'!$B$2:$BH$70,S$6,FALSE) -> 103 | T19: =VLOOKUP(LookUpSheet!$D$5,'RC2011'!$B$2:$BH$70,T$6,FALSE) -> 41 | U19: =VLOOKUP(LookUpSheet!$D$5,'RC2011'!$B$2:$BH$70,U$6,FALSE) -> 8 | V19: =VLOOKUP(LookUpSheet!$D$5,'RC2011'!$B$2:$BH$70,V$6,FALSE) -> 8 | W19: =VLOOKUP(LookUpSheet!$D$5,'RC2011'!$B$2:$BH$70,W$6,FALSE) -> 26 | X19: =VLOOKUP(LookUpSheet!$D$5,'RC2011'!$B$2:$BH$70,X$6,FALSE) -> 6 | Y19: =VLOOKUP(LookUpSheet!$D$5,'RC2011'!$B$2:$BH$70,Y$6,FALSE) -> 2 | Z19: =VLOOKUP(LookUpSheet!$D$5,'RC2011'!$B$2:$BH$70,Z$6,FALSE) -> 2 | AA19: =VLOOKUP(LookUpSheet!$D$5,'RC2011'!$B$2:$BH$70,AA$6,FALSE) -> 1 | AB19: =VLOOKUP(LookUpSheet!$D$5,'RC2011'!$B$2:$BH$70,AB$6,FALSE) -> 0 | AC19: =VLOOKUP(LookUpSheet!$D$5,'RC2011'!$B$2:$BH$70,AC$6,FALSE) -> 0 | AD19: =VLOOKUP(LookUpSheet!$D$5,'RC2011'!$B$2:$BH$70,AD$6,FALSE) -> 0 | AE19: =VLOOKUP(LookUpSheet!$D$5,'RC2011'!$B$2:$BH$70,AE$6,FALSE) -> 0 | AF19: =VLOOKUP(LookUpSheet!$D$5,'RC2011'!$B$2:$BH$70,AF$6,FALSE) -> 0 | AG19: =VLOOKUP(LookUpSheet!$D$5,'RC2011'!$B$2:$BH$70,AG$6,FALSE) -> 0 | AH19: =VLOOKUP(LookUpSheet!$D$5,'RC2011'!$B$2:$BH$70,AH$6,FALSE) -> 0 | AI19: =VLOOKUP(LookUpSheet!$D$5,'RC2011'!$B$2:$BH$70,AI$6,FALSE) -> 0 | AJ19: =VLOOKUP(LookUpSheet!$D$5,'RC2011'!$B$2:$BH$70,AJ$6,FALSE) -> 0 | AK19: =VLOOKUP(LookUpSheet!$D$5,'RC2011'!$B$2:$BH$70,AK$6,FALSE) -> 0 | AL19: =VLOOKUP(LookUpSheet!$D$5,'RC2011'!$B$2:$BH$70,AL$6,FALSE) -> 0 | AM19: =VLOOKUP(LookUpSheet!$D$5,'RC2011'!$B$2:$BH$70,AM$6,FALSE) -> 0 | AN19: =VLOOKUP(LookUpSheet!$D$5,'RC2011'!$B$2:$BH$70,AN$6,FALSE) -> 0 | AO19: =VLOOKUP(LookUpSheet!$D$5,'RC2011'!$B$2:$BH$70,AO$6,FALSE) -> 0 | AP19: =VLOOKUP(LookUpSheet!$D$5,'RC2011'!$B$2:$BH$70,AP$6,FALSE) -> 0 | AQ19: =VLOOKUP(LookUpSheet!$D$5,'RC2011'!$B$2:$BH$70,AQ$6,FALSE) -> 0 | AR19: =VLOOKUP(LookUpSheet!$D$5,'RC2011'!$B$2:$BH$70,AR$6,FALSE) -> 0 | AS19: =VLOOKUP(LookUpSheet!$D$5,'RC2011'!$B$2:$BH$70,AS$6,FALSE) -> 0 | AT19: =VLOOKUP(LookUpSheet!$D$5,'RC2011'!$B$2:$BH$70,AT$6,FALSE) -> 0 | AU19: =VLOOKUP(LookUpSheet!$D$5,'RC2011'!$B$2:$BH$70,AU$6,FALSE) -> 0
C20: =VLOOKUP(LookUpSheet!$D$5,'RC2012'!$B$2:$BH$70,C$6,FALSE) -> 2012 | D20: =VLOOKUP(LookUpSheet!$D$5,'RC2012'!$B$2:$BH$70,D$6,FALSE) -> StWide c | E20: =VLOOKUP(LookUpSheet!$D$5,'RC2012'!$B$2:$BH$70,E$6,FALSE) -> 2 | F20: =VLOOKUP(LookUpSheet!$D$5,'RC2012'!$B$2:$BH$70,F$6,FALSE) -> 1085 | G20: =VLOOKUP(LookUpSheet!$D$5,'RC2012'!$B$2:$BH$70,G$6,FALSE) -> 2 | H20: =VLOOKUP(LookUpSheet!$D$5,'RC2012'!$B$2:$BH$70,H$6,FALSE) -> 35 | I20: =VLOOKUP(LookUpSheet!$D$5,'RC2012'!$B$2:$BH$70,I$6,FALSE) -> 124 | J20: =VLOOKUP(LookUpSheet!$D$5,'RC2012'!$B$2:$BH$70,J$6,FALSE) -> 179 | K20: =VLOOKUP(LookUpSheet!$D$5,'RC2012'!$B$2:$BH$70,K$6,FALSE) -> 808 | L20: =VLOOKUP(LookUpSheet!$D$5,'RC2012'!$B$2:$BH$70,L$6,FALSE) -> 1323 | M20: =VLOOKUP(LookUpSheet!$D$5,'RC2012'!$B$2:$BH$70,M$6,FALSE) -> 1265 | N20: =VLOOKUP(LookUpSheet!$D$5,'RC2012'!$B$2:$BH$70,N$6,FALSE) -> 1171 | O20: =VLOOKUP(LookUpSheet!$D$5,'RC2012'!$B$2:$BH$70,O$6,FALSE) -> 586 | P20: =VLOOKUP(LookUpSheet!$D$5,'RC2012'!$B$2:$BH$70,P$6,FALSE) -> 480 | Q20: =VLOOKUP(LookUpSheet!$D$5,'RC2012'!$B$2:$BH$70,Q$6,FALSE) -> 430 | R20: =VLOOKUP(LookUpSheet!$D$5,'RC2012'!$B$2:$BH$70,R$6,FALSE) -> 275 | S20: =VLOOKUP(LookUpSheet!$D$5,'RC2012'!$B$2:$BH$70,S$6,FALSE) -> 241 | T20: =VLOOKUP(LookUpSheet!$D$5,'RC2012'!$B$2:$BH$70,T$6,FALSE) -> 39 | U20: =VLOOKUP(LookUpSheet!$D$5,'RC2012'!$B$2:$BH$70,U$6,FALSE) -> 30 | V20: =VLOOKUP(LookUpSheet!$D$5,'RC2012'!$B$2:$BH$70,V$6,FALSE) -> 22 | W20: =VLOOKUP(LookUpSheet!$D$5,'RC2012'!$B$2:$BH$70,W$6,FALSE) -> 4 | X20: =VLOOKUP(LookUpSheet!$D$5,'RC2012'!$B$2:$BH$70,X$6,FALSE) -> 34 | Y20: =VLOOKUP(LookUpSheet!$D$5,'RC2012'!$B$2:$BH$70,Y$6,FALSE) -> 2 | Z20: =VLOOKUP(LookUpSheet!$D$5,'RC2012'!$B$2:$BH$70,Z$6,FALSE) -> 3 | AA20: =VLOOKUP(LookUpSheet!$D$5,'RC2012'!$B$2:$BH$70,AA$6,FALSE) -> 0 | AB20: =VLOOKUP(LookUpSheet!$D$5,'RC2012'!$B$2:$BH$70,AB$6,FALSE) -> 1 | AC20: =VLOOKUP(LookUpSheet!$D$5,'RC2012'!$B$2:$BH$70,AC$6,FALSE) -> 0 | AD20: =VLOOKUP(LookUpSheet!$D$5,'RC2012'!$B$2:$BH$70,AD$6,FALSE) -> 0 | AE20: =VLOOKUP(LookUpSheet!$D$5,'RC2012'!$B$2:$BH$70,AE$6,FALSE) -> 0 | AF20: =VLOOKUP(LookUpSheet!$D$5,'RC2012'!$B$2:$BH$70,AF$6,FALSE) -> 0 | AG20: =VLOOKUP(LookUpSheet!$D$5,'RC2012'!$B$2:$BH$70,AG$6,FALSE) -> 0 | AH20: =VLOOKUP(LookUpSheet!$D$5,'RC2012'!$B$2:$BH$70,AH$6,FALSE) -> 0 | AI20: =VLOOKUP(LookUpSheet!$D$5,'RC2012'!$B$2:$BH$70,AI$6,FALSE) -> 0 | AJ20: =VLOOKUP(LookUpSheet!$D$5,'RC2012'!$B$2:$BH$70,AJ$6,FALSE) -> 0 | AK20: =VLOOKUP(LookUpSheet!$D$5,'RC2012'!$B$2:$BH$70,AK$6,FALSE) -> 0 | AL20: =VLOOKUP(LookUpSheet!$D$5,'RC2012'!$B$2:$BH$70,AL$6,FALSE) -> 0 | AM20: =VLOOKUP(LookUpSheet!$D$5,'RC2012'!$B$2:$BH$70,AM$6,FALSE) -> 0 | AN20: =VLOOKUP(LookUpSheet!$D$5,'RC2012'!$B$2:$BH$70,AN$6,FALSE) -> 0 | AO20: =VLOOKUP(LookUpSheet!$D$5,'RC2012'!$B$2:$BH$70,AO$6,FALSE) -> 0 | AP20: =VLOOKUP(LookUpSheet!$D$5,'RC2012'!$B$2:$BH$70,AP$6,FALSE) -> 0 | AQ20: =VLOOKUP(LookUpSheet!$D$5,'RC2012'!$B$2:$BH$70,AQ$6,FALSE) -> 0 | AR20: =VLOOKUP(LookUpSheet!$D$5,'RC2012'!$B$2:$BH$70,AR$6,FALSE) -> 0 | AS20: =VLOOKUP(LookUpSheet!$D$5,'RC2012'!$B$2:$BH$70,AS$6,FALSE) -> 0 | AT20: =VLOOKUP(LookUpSheet!$D$5,'RC2012'!$B$2:$BH$70,AT$6,FALSE) -> 0 | AU20: =VLOOKUP(LookUpSheet!$D$5,'RC2012'!$B$2:$BH$70,AU$6,FALSE) -> 0
C21: =VLOOKUP(LookUpSheet!$D$5,'RC2013'!$B$2:$BH$70,C$6,FALSE) -> 2013 | D21: =VLOOKUP(LookUpSheet!$D$5,'RC2013'!$B$2:$BH$70,D$6,FALSE) -> StWide c | E21: =VLOOKUP(LookUpSheet!$D$5,'RC2013'!$B$2:$BH$70,E$6,FALSE) -> 2 | F21: =VLOOKUP(LookUpSheet!$D$5,'RC2013'!$B$2:$BH$70,F$6,FALSE) -> 1076 | G21: =VLOOKUP(LookUpSheet!$D$5,'RC2013'!$B$2:$BH$70,G$6,FALSE) -> 9 | H21: =VLOOKUP(LookUpSheet!$D$5,'RC2013'!$B$2:$BH$70,H$6,FALSE) -> 19 | I21: =VLOOKUP(LookUpSheet!$D$5,'RC2013'!$B$2:$BH$70,I$6,FALSE) -> 112 | J21: =VLOOKUP(LookUpSheet!$D$5,'RC2013'!$B$2:$BH$70,J$6,FALSE) -> 217 | K21: =VLOOKUP(LookUpSheet!$D$5,'RC2013'!$B$2:$BH$70,K$6,FALSE) -> 721 | L21: =VLOOKUP(LookUpSheet!$D$5,'RC2013'!$B$2:$BH$70,L$6,FALSE) -> 1351 | M21: =VLOOKUP(LookUpSheet!$D$5,'RC2013'!$B$2:$BH$70,M$6,FALSE) -> 1441 | N21: =VLOOKUP(LookUpSheet!$D$5,'RC2013'!$B$2:$BH$70,N$6,FALSE) -> 1005 | O21: =VLOOKUP(LookUpSheet!$D$5,'RC2013'!$B$2:$BH$70,O$6,FALSE) -> 799 | P21: =VLOOKUP(LookUpSheet!$D$5,'RC2013'!$B$2:$BH$70,P$6,FALSE) -> 512 | Q21: =VLOOKUP(LookUpSheet!$D$5,'RC2013'!$B$2:$BH$70,Q$6,FALSE) -> 455 | R21: =VLOOKUP(LookUpSheet!$D$5,'RC2013'!$B$2:$BH$70,R$6,FALSE) -> 238 | S21: =VLOOKUP(LookUpSheet!$D$5,'RC2013'!$B$2:$BH$70,S$6,FALSE) -> 156 | T21: =VLOOKUP(LookUpSheet!$D$5,'RC2013'!$B$2:$BH$70,T$6,FALSE) -> 49 | U21: =VLOOKUP(LookUpSheet!$D$5,'RC2013'!$B$2:$BH$70,U$6,FALSE) -> 32 | V21: =VLOOKUP(LookUpSheet!$D$5,'RC2013'!$B$2:$BH$70,V$6,FALSE) -> 11 | W21: =VLOOKUP(LookUpSheet!$D$5,'RC2013'!$B$2:$BH$70,W$6,FALSE) -> 2 | X21: =VLOOKUP(LookUpSheet!$D$5,'RC2013'!$B$2:$BH$70,X$6,FALSE) -> 30 | Y21: =VLOOKUP(LookUpSheet!$D$5,'RC2013'!$B$2:$BH$70,Y$6,FALSE) -> 3 | Z21: =VLOOKUP(LookUpSheet!$D$5,'RC2013'!$B$2:$BH$70,Z$6,FALSE) -> 2 | AA21: =VLOOKUP(LookUpSheet!$D$5,'RC2013'!$B$2:$BH$70,AA$6,FALSE) -> 1 | AB21: =VLOOKUP(LookUpSheet!$D$5,'RC2013'!$B$2:$BH$70,AB$6,FALSE) -> 0 | AC21: =VLOOKUP(LookUpSheet!$D$5,'RC2013'!$B$2:$BH$70,AC$6,FALSE) -> 0 | AD21: =VLOOKUP(LookUpSheet!$D$5,'RC2013'!$B$2:$BH$70,AD$6,FALSE) -> 0 | AE21: =VLOOKUP(LookUpSheet!$D$5,'RC2013'!$B$2:$BH$70,AE$6,FALSE) -> 0 | AF21: =VLOOKUP(LookUpSheet!$D$5,'RC2013'!$B$2:$BH$70,AF$6,FALSE) -> 0 | AG21: =VLOOKUP(LookUpSheet!$D$5,'RC2013'!$B$2:$BH$70,AG$6,FALSE) -> 0 | AH21: =VLOOKUP(LookUpSheet!$D$5,'RC2013'!$B$2:$BH$70,AH$6,FALSE) -> 0 | AI21: =VLOOKUP(LookUpSheet!$D$5,'RC2013'!$B$2:$BH$70,AI$6,FALSE) -> 0 | AJ21: =VLOOKUP(LookUpSheet!$D$5,'RC2013'!$B$2:$BH$70,AJ$6,FALSE) -> 0 | AK21: =VLOOKUP(LookUpSheet!$D$5,'RC2013'!$B$2:$BH$70,AK$6,FALSE) -> 0 | AL21: =VLOOKUP(LookUpSheet!$D$5,'RC2013'!$B$2:$BH$70,AL$6,FALSE) -> 0 | AM21: =VLOOKUP(LookUpSheet!$D$5,'RC2013'!$B$2:$BH$70,AM$6,FALSE) -> 0 | AN21: =VLOOKUP(LookUpSheet!$D$5,'RC2013'!$B$2:$BH$70,AN$6,FALSE) -> 0 | AO21: =VLOOKUP(LookUpSheet!$D$5,'RC2013'!$B$2:$BH$70,AO$6,FALSE) -> 0 | AP21: =VLOOKUP(LookUpSheet!$D$5,'RC2013'!$B$2:$BH$70,AP$6,FALSE) -> 0 | AQ21: =VLOOKUP(LookUpSheet!$D$5,'RC2013'!$B$2:$BH$70,AQ$6,FALSE) -> 0 | AR21: =VLOOKUP(LookUpSheet!$D$5,'RC2013'!$B$2:$BH$70,AR$6,FALSE) -> 0 | AS21: =VLOOKUP(LookUpSheet!$D$5,'RC2013'!$B$2:$BH$70,AS$6,FALSE) -> 0 | AT21: =VLOOKUP(LookUpSheet!$D$5,'RC2013'!$B$2:$BH$70,AT$6,FALSE) -> 0 | AU21: =VLOOKUP(LookUpSheet!$D$5,'RC2013'!$B$2:$BH$70,AU$6,FALSE) -> 0
C22: =VLOOKUP(LookUpSheet!$D$5,'RC2014'!$B$2:$BH$70,C$6,FALSE) -> 2014 | D22: =VLOOKUP(LookUpSheet!$D$5,'RC2014'!$B$2:$BH$70,D$6,FALSE) -> StWide c | E22: =VLOOKUP(LookUpSheet!$D$5,'RC2014'!$B$2:$BH$70,E$6,FALSE) -> 2 | F22: =VLOOKUP(LookUpSheet!$D$5,'RC2014'!$B$2:$BH$70,F$6,FALSE) -> 1108 | G22: =VLOOKUP(LookUpSheet!$D$5,'RC2014'!$B$2:$BH$70,G$6,FALSE) -> 6 | H22: =VLOOKUP(LookUpSheet!$D$5,'RC2014'!$B$2:$BH$70,H$6,FALSE) -> 19 | I22: =VLOOKUP(LookUpSheet!$D$5,'RC2014'!$B$2:$BH$70,I$6,FALSE) -> 94 | J22: =VLOOKUP(LookUpSheet!$D$5,'RC2014'!$B$2:$BH$70,J$6,FALSE) -> 127 | K22: =VLOOKUP(LookUpSheet!$D$5,'RC2014'!$B$2:$BH$70,K$6,FALSE) -> 535 | L22: =VLOOKUP(LookUpSheet!$D$5,'RC2014'!$B$2:$BH$70,L$6,FALSE) -> 1288 | M22: =VLOOKUP(LookUpSheet!$D$5,'RC2014'!$B$2:$BH$70,M$6,FALSE) -> 1305 | N22: =VLOOKUP(LookUpSheet!$D$5,'RC2014'!$B$2:$BH$70,N$6,FALSE) -> 1116 | O22: =VLOOKUP(LookUpSheet!$D$5,'RC2014'!$B$2:$BH$70,O$6,FALSE) -> 816 | P22: =VLOOKUP(LookUpSheet!$D$5,'RC2014'!$B$2:$BH$70,P$6,FALSE) -> 702 | Q22: =VLOOKUP(LookUpSheet!$D$5,'RC2014'!$B$2:$BH$70,Q$6,FALSE) -> 340 | R22: =VLOOKUP(LookUpSheet!$D$5,'RC2014'!$B$2:$BH$70,R$6,FALSE) -> 283 | S22: =VLOOKUP(LookUpSheet!$D$5,'RC2014'!$B$2:$BH$70,S$6,FALSE) -> 242 | T22: =VLOOKUP(LookUpSheet!$D$5,'RC2014'!$B$2:$BH$70,T$6,FALSE) -> 49 | U22: =VLOOKUP(LookUpSheet!$D$5,'RC2014'!$B$2:$BH$70,U$6,FALSE) -> 50 | V22: =VLOOKUP(LookUpSheet!$D$5,'RC2014'!$B$2:$BH$70,V$6,FALSE) -> 29 | W22: =VLOOKUP(LookUpSheet!$D$5,'RC2014'!$B$2:$BH$70,W$6,FALSE) -> 3 | X22: =VLOOKUP(LookUpSheet!$D$5,'RC2014'!$B$2:$BH$70,X$6,FALSE) -> 28 | Y22: =VLOOKUP(LookUpSheet!$D$5,'RC2014'!$B$2:$BH$70,Y$6,FALSE) -> 2 | Z22: =VLOOKUP(LookUpSheet!$D$5,'RC2014'!$B$2:$BH$70,Z$6,FALSE) -> 5 | AA22: =VLOOKUP(LookUpSheet!$D$5,'RC2014'!$B$2:$BH$70,AA$6,FALSE) -> 1 | AB22: =VLOOKUP(LookUpSheet!$D$5,'RC2014'!$B$2:$BH$70,AB$6,FALSE) -> 1 | AC22: =VLOOKUP(LookUpSheet!$D$5,'RC2014'!$B$2:$BH$70,AC$6,FALSE) -> 0 | AD22: =VLOOKUP(LookUpSheet!$D$5,'RC2014'!$B$2:$BH$70,AD$6,FALSE) -> 0 | AE22: =VLOOKUP(LookUpSheet!$D$5,'RC2014'!$B$2:$BH$70,AE$6,FALSE) -> 0 | AF22: =VLOOKUP(LookUpSheet!$D$5,'RC2014'!$B$2:$BH$70,AF$6,FALSE) -> 0 | AG22: =VLOOKUP(LookUpSheet!$D$5,'RC2014'!$B$2:$BH$70,AG$6,FALSE) -> 0 | AH22: =VLOOKUP(LookUpSheet!$D$5,'RC2014'!$B$2:$BH$70,AH$6,FALSE) -> 0 | AI22: =VLOOKUP(LookUpSheet!$D$5,'RC2014'!$B$2:$BH$70,AI$6,FALSE) -> 0 | AJ22: =VLOOKUP(LookUpSheet!$D$5,'RC2014'!$B$2:$BH$70,AJ$6,FALSE) -> 0 | AK22: =VLOOKUP(LookUpSheet!$D$5,'RC2014'!$B$2:$BH$70,AK$6,FALSE) -> 0 | AL22: =VLOOKUP(LookUpSheet!$D$5,'RC2014'!$B$2:$BH$70,AL$6,FALSE) -> 0 | AM22: =VLOOKUP(LookUpSheet!$D$5,'RC2014'!$B$2:$BH$70,AM$6,FALSE) -> 0 | AN22: =VLOOKUP(LookUpSheet!$D$5,'RC2014'!$B$2:$BH$70,AN$6,FALSE) -> 0 | AO22: =VLOOKUP(LookUpSheet!$D$5,'RC2014'!$B$2:$BH$70,AO$6,FALSE) -> 0 | AP22: =VLOOKUP(LookUpSheet!$D$5,'RC2014'!$B$2:$BH$70,AP$6,FALSE) -> 0 | AQ22: =VLOOKUP(LookUpSheet!$D$5,'RC2014'!$B$2:$BH$70,AQ$6,FALSE) -> 0 | AR22: =VLOOKUP(LookUpSheet!$D$5,'RC2014'!$B$2:$BH$70,AR$6,FALSE) -> 0 | AS22: =VLOOKUP(LookUpSheet!$D$5,'RC2014'!$B$2:$BH$70,AS$6,FALSE) -> 0 | AT22: =VLOOKUP(LookUpSheet!$D$5,'RC2014'!$B$2:$BH$70,AT$6,FALSE) -> 0 | AU22: =VLOOKUP(LookUpSheet!$D$5,'RC2014'!$B$2:$BH$70,AU$6,FALSE) -> 0
